Workbook

Sheet START

Sheet Instructions
D2: 2020
X4: Yes
X5: No
W7: Type of Entities Range:
X8: Parent Municipality
X9: Consolidated Information
F14: START
F15: Instructions
F16: Template names
F17: Lookup and lists | W17: MTREF Range: | X17: 2013
F18: Org structure | X18: 2014
F19: Contacts | X19: 2015
F20: A1-Sum | X20: 2016
F21: A2-FinPerf SC | X21: 2017
F22: A2A | X22: 2018
F23: A3-FinPerf V | X23: 2019
F24: A3A | X24: 2020
F25: A4-FinPerf RE | X25: 2021
F26: A5-Capex | X26: 2022
F27: A5A | X27: 2023
F28: A6-FinPos | X28: 2024
F29: A7-CFlow | X29: 2025
F30: A8-ResRecon | X30: 2026
F31: A9-Asset | X31: 2027
F32: A10-SerDel
F33: SA1 | W33: MTREF Linked: | X33: 12
F34: SA2 | W34: MTREF: | X34: =INDEX(X17:X31,X33,1) -> 2024
F35: SA3
F36: SA4 | W36: Fin Year: | X36: =MTREF&"/"&RIGHT(MTREF,2)+1 -> 2024/25
F37: SA5
F38: SA6
F39: SA7
F40: SA8
F41: SA9
F42: SA10
F43: SA11
F44: SA12a
F45: SA12b
F46: SA13a
F47: SA13b
F48: SA14
F49: SA15
F50: SA16
F51: SA17
F52: SA18
F53: SA19
F54: SA20
F55: SA21
F56: SA22
F57: SA23
F58: SA24
F59: SA25
F60: SA26
F61: SA27
F62: SA28
F63: SA29
F64: SA30
F65: SA31
F66: SA32
F67: SA33
F68: SA34a
F69: SA34b
F70: SA34c
F71: SA34d
F72: SA34e
F73: SA35
F74: SA36
F75: SA37
F76: SA38
F77: LGDB_EXPORT

Sheet Template names (hidden)
A1: Common sheet headings
A2: Head1 | B2: =HLOOKUP(MTREF,Headings,2) -> 2022/23 | C2: Prior year -1
A3: Head1A | B3: =HLOOKUP(MTREF,Headings,3) -> 2021/22 | C3: Prior year -2
A4: Head1B | B4: =HLOOKUP(MTREF,Headings,4) -> 2020/21 | C4: Prior year -3
A5: Head2 | B5: =HLOOKUP(MTREF,Headings,5) -> Current Year 2023/24 | C5: Year in which budget is being prepared
A6: Head2A | B6: =HLOOKUP(MTREF,Headings,6) -> 2023/24 | C6: Year in which budget is being prepared
A7: Head3 | B7: =HLOOKUP(MTREF,Headings,7) -> 2024/25 Medium Term Revenue & Expenditure Framework | C7: MTREF name
A8: Head4 | B8: LTFS | C8: Long term financial strategy
A9: Head5 | B9: Audited Outcome
A10: Head5A | B10: Outcome
A11: Head5B | B11: Pre-audit outcome
A12: Head6 | B12: Original Budget
A13: Head7 | B13: Adjusted Budget
A14: Head8 | B14: Full Year Forecast
A15: Head9 | B15: =HLOOKUP(MTREF,Headings,8) -> Budget Year 2024/25 | C15: 1st year of MTREF | D15: Year1
A16: Head10 | B16: =HLOOKUP(MTREF,Headings,9) -> Budget Year +1 2025/26 | C16: 2nd year of MTREF | D16: Year2
A17: Head11 | B17: =HLOOKUP(MTREF,Headings,10) -> Budget Year +2 2026/27 | C17: 3rd year of MTREF | D17: Year3
A18: Head12 | B18: =HLOOKUP(MTREF,Headings,11) -> Forecast 2027/28 | C18: 1st yr of long term forecast | D18: Year4
A19: Head13 | B19: =HLOOKUP(MTREF,Headings,12) -> Forecast 2028/29 | C19: Next yr of long term forecast | D19: Year5
A20: Head14 | B20: =HLOOKUP(MTREF,Headings,13) -> Forecast 2029/30 | C20: Next yr of long term forecast | D20: Year6
A21: Head15 | B21: =HLOOKUP(MTREF,Headings,14) -> Forecast 2030/31 | C21: Next yr of long term forecast | D21: Year7
A22: Head16 | B22: =HLOOKUP(MTREF,Headings,15) -> Forecast 2031/32 | C22: Next yr of long term forecast | D22: Year8
A23: Head17 | B23: =HLOOKUP(MTREF,Headings,16) -> Forecast 2032/33 | C23: Next yr of long term forecast | D23: Year9
A24: Head18 | B24: =HLOOKUP(MTREF,Headings,17) -> Forecast 2033/34 | C24: Next yr of long term forecast | D24: Year10
A25: Head19 | B25: =HLOOKUP(MTREF,Headings,18) -> Forecast 2034/35 | C25: Next yr of long term forecast | D25: Year11
A26: Head20 | B26: =HLOOKUP(MTREF,Headings,19) -> Forecast 2035/36 | C26: Next yr of long term forecast | D26: Year12
A27: Head21 | B27: =HLOOKUP(MTREF,Headings,20) -> Forecast 2036/37 | C27: Next yr of long term forecast | D27: Year13
A28: Head22 | B28: =HLOOKUP(MTREF,Headings,21) -> Forecast 2037/38 | C28: Next yr of long term forecast | D28: Year14
A29: Head23 | B29: =HLOOKUP(MTREF,Headings,22) -> Forecast 2038/39 | C29: Next yr of long term forecast | D29: Year15
A30: Head24 | B30: Description
A31: Head25
A32: Head26 | B32: Vote Description
A33: Head27 | B33: Ref
A34: Head27a | B34: References
A35: Head28 | B35: Surplus/(Deficit) for the year | D35: Result
A36: Head29 | B36: =HLOOKUP(MTREF,Headings,23) -> Annual target 2024/25
A37: Head30 | B37: =HLOOKUP(MTREF,Headings,24) -> Revised target 2024/25
A38: Head31 | B38: Quarter ended 30 September
A39: Head32 | B39: Quarter ended 31 December
A40: Head33 | B40: Quarter ended 31 March
A41: Head34 | B41: Quarter ended 30 June
A42: Head35 | B42: Variance explanation
A43: Head36 | B43: YTD Actual 31 Dec
A44: Head37 | B44: YTD Budget 31 Dec
A45: Head38 | B45: Monthly actual
A46: Head39 | B46: YTD actual
A47: Head40 | B47: YTD budget
A48: Head41 | B48: YTD variance
A49: Head42 | B49: Surplus/ (Deficit) for the yr/period
A50: Head43 | B50: =Head3&" Summary" -> 2024/25 Medium Term Revenue & Expenditure Framework Summary
A51: Head44 | B51: 2001 Census
A52: Head45 | B52: 2011 Census
A53: Head46 | B53: - Adjustments Budget - January 2007
A54: Head47 | B54: Previous target year to complete
A55: Head48 | B55: Present value
A56: Head49
A57: Head50 | B57: Other Adjusts.
A58: Head51 | B58: Accum. Funds
A59: Head52 | B59: Multi-year capital
A60: Head53 | B60: Unfore. Unavoid.
A61: Head54 | B61: Prior Adjusted
A62: Head55 | B62: Nat. or Prov. Govt
A63: Head56 | B63: Total Adjusts.
A64: SFPerf1 | B64: Budgeted Financial Performance
A65: SFPerf2 | B65: Forecast Financial Performance
A66: SFPos1 | B66: Budgeted Financial Position
A67: SFPos2 | B67: Forecast Financial Position
A68: Cash1 | B68: Budget Cash Flow
A69: Cash2 | B69: Forecast Cash Flow
A70: RandM | B70: Expenditure includes repairs & maintenance of R'000
A71: Depart1 | B71: Department 1 - | D71: DEP1
A72: Depart2 | B72: Department 2 - | D72: DEP2
A73: Depart3 | B73: Department 3 - | D73: DEP3
A74: Depart4 | B74: Department 4 - | D74: DEP4
A75: Depart5 | B75: Department 5 - | D75: DEP5
A76: Depart6 | B76: Department 6 - | D76: DEP6
A77: Depart7 | B77: Department 7 - | D77: DEP7
A78: Depart8 | B78: Department 8 - | D78: DEP8
A79: Depart9 | B79: Department 9 - | D79: DEP9
A80: Depart10 | B80: Department 10 - | D80: DEP10
A81: Depart11 | B81: Department 11 - | D81: DEP11
A82: Depart12 | B82: Department 12 - | D82: DEP12
A83: Depart13 | B83: Department 13 - | D83: DEP13
A84: Depart14 | B84: Department 14 - | D84: DEP14
A87: Base year of forecast column selection names
A88: Choose | B88: ACT
B89: APP
B90: ADJ
A92: Standard nomenclature
A93: Muni | B93: ='Lookup and lists'!B28 -> NW403 City Of Matlosana
A94: Municipal Entities | B94: 2 | C94: Type of report: | D94: 1
A95: =IF((MuniEntities=1)*(MuniType=2),"YES","NO") -> NO | B95: Does this municipality have entities (consolidated budget and entity budgets required)? YES/NO
A96: Entity 1 | B96: (Pty) Ltd Example 1 - Municipal entity - | D96: Ent1
A97: Entity 2 | B97: (Pty) Ltd Example 2 - Municipal entity - | D97: Ent2
A98: Entity 3 | B98: Municipal Entity Example 3 | D98: Ent3
A99: Budget approval tables | C99: Chart x-ref | D99: Sch/Tab/Ch | E99: Alternative for municipalities without entities | F99: Alternative for municipalities without entities
B100: =IF(Consolques="YES",E100,F100) -> Table A1 Budget Summary | D100: Table A1 | E100: =D100&"Consolidated Budget Summary" -> Table A1 Consolidated Budget Summary | F100: =D100&"Budget Summary" -> Table A1 Budget Summary
B101: Table A2 Budgeted Financial Performance (revenue and expenditure by functional classification) | C101: Charts 5, 6 | D101: Table A2 | E101: =D101&"Consolidated Budgeted Financial Performance (revenue and expenditure by functional classification)" -> Table A2 Consolidated Budgeted Financial Performance (revenue and expenditure by functional classification) | F101: =D101&"Budgeted Financial Performance (revenue and expenditure by functional classification)" -> Table A2 Budgeted Financial Performance (revenue and expenditure by functional classification)
B102: Table A3 Budgeted Financial Performance (revenue and expenditure by municipal vote) | D102: Table A3 | E102: =D102&"Consolidated Budgeted Financial Performance (revenue and expenditure by municipal vote)" -> Table A3 Consolidated Budgeted Financial Performance (revenue and expenditure by municipal vote) | F102: =D102&"Budgeted Financial Performance (revenue and expenditure by municipal vote)" -> Table A3 Budgeted Financial Performance (revenue and expenditure by municipal vote)
B103: Table A4 Budgeted Financial Performance (revenue and expenditure) | C103: Charts 1, 2, 3, 4 | D103: Table A4 | E103: =D103&"Consolidated Budgeted Financial Performance (revenue and expenditure)" -> Table A4 Consolidated Budgeted Financial Performance (revenue and expenditure) | F103: =D103&"Budgeted Financial Performance (revenue and expenditure)" -> Table A4 Budgeted Financial Performance (revenue and expenditure)
B104: Table A5 Budgeted Capital Expenditure by vote, functional classification and funding | C104: Charts 7, 8, 9, 10, 20 | D104: Table A5 | E104: =D104&"Consolidated Budgeted Capital Expenditure by vote, functional classification and funding" -> Table A5 Consolidated Budgeted Capital Expenditure by vote, functional classification and funding | F104: =D104&"Budgeted Capital Expenditure by vote, functional classification and funding" -> Table A5 Budgeted Capital Expenditure by vote, functional classification and funding
B105: Table A6 Budgeted Financial Position | D105: Table A6 | E105: =D105&"Consolidated Budgeted Financial Position" -> Table A6 Consolidated Budgeted Financial Position | F105: =D105&"Budgeted Financial Position" -> Table A6 Budgeted Financial Position
B106: Table A7 Budgeted Cash Flows | D106: Table A7 | E106: =D106&"Consolidated Budgeted Cash Flows" -> Table A7 Consolidated Budgeted Cash Flows | F106: =D106&"Budgeted Cash Flows" -> Table A7 Budgeted Cash Flows
B107: Table A8 Cash backed reserves/accumulated surplus reconciliation | D107: Table A8 | E107: =D107&"Consolidated Cash backed reserves/accumulated surplus reconciliation" -> Table A8 Consolidated Cash backed reserves/accumulated surplus reconciliation | F107: =D107&"Cash backed reserves/accumulated surplus reconciliation" -> Table A8 Cash backed reserves/accumulated surplus reconciliation
B108: Table A9 Asset Management | D108: Table A9 | E108: =D108&"Consolidated Asset Management" -> Table A9 Consolidated Asset Management | F108: =D108&"Asset Management" -> Table A9 Asset Management
B109: Table A10 Basic service delivery measurement | D109: Table A10 | E109: =D109&"Consolidated basic service delivery measurement" -> Table A10 Consolidated basic service delivery measurement | F109: =D109&"Basic service delivery measurement" -> Table A10 Basic service delivery measurement
A110: Supportinging Tables to the Budget Approval Tables | C110: =$C$99 -> Chart x-ref | D110: =$D$99 -> Sch/Tab/Ch
A111: Supporting Table SA1 | B111: =A111&" Supportinging detail to 'Budgeted Financial Performance'" -> Supporting Table SA1 Supportinging detail to 'Budgeted Financial Performance'
A112: Supporting Table SA2 | B112: =IF(Consolques="YES",E112,F112) -> Supporting Table SA2 Matrix Financial Performance Budget (revenue source/expenditure type and dept.) | E112: =A112&"Consolidated Matrix Financial Performance Budget (revenue source/expenditure type & dept.)" -> Supporting Table SA2 Consolidated Matrix Financial Performance Budget (revenue source/expenditure type & dept.) | F112: =A112&"Matrix Financial Performance Budget (revenue source/expenditure type and dept.)" -> Supporting Table SA2 Matrix Financial Performance Budget (revenue source/expenditure type and dept.)
A113: Supporting Table SA3 | B113: =A113&"Supportinging detail to 'Budgeted Financial Position'" -> Supporting Table SA3 Supportinging detail to 'Budgeted Financial Position'
A114: Supporting Table SA4 | B114: =A114&"Reconciliation of IDP strategic objectives and budget (revenue)" -> Supporting Table SA4 Reconciliation of IDP strategic objectives and budget (revenue) | C114: Chart 11
A115: Supporting Table SA5 | B115: =A115&"Reconciliation of IDP strategic objectives and budget (operating expenditure)" -> Supporting Table SA5 Reconciliation of IDP strategic objectives and budget (operating expenditure) | C115: Chart 12
A116: Supporting Table SA6 | B116: =A116&"Reconciliation of IDP strategic objectives and budget (capital expenditure)" -> Supporting Table SA6 Reconciliation of IDP strategic objectives and budget (capital expenditure) | C116: Chart 13
A117: Supporting Table SA7 | B117: =A117&" Measureable performance objectives" -> Supporting Table SA7 Measureable performance objectives
A118: Supporting Table SA8 | B118: =A118&" Performance indicators and benchmarks" -> Supporting Table SA8 Performance indicators and benchmarks | C118: Chts 15-19
A119: Supporting Table SA9 | B119: =A119&" Social, economic and demographic statistics and assumptions" -> Supporting Table SA9 Social, economic and demographic statistics and assumptions
A120: Supporting Table SA10 | B120: =A120&" Funding measurement" -> Supporting Table SA10 Funding measurement | C120: Chart 14
A121: Supporting Table SA11 | B121: =A121&" Property rates summary" -> Supporting Table SA11 Property rates summary
A122: Supporting Table SA12a | B122: =A122&" Property rates by category (current year)" -> Supporting Table SA12a Property rates by category (current year)
A123: Supporting Table SA12b | B123: =A123&" Property rates by category (budget year)" -> Supporting Table SA12b Property rates by category (budget year)
A124: Supporting Table SA13a | B124: =A124&" Service Tariffs by category" -> Supporting Table SA13a Service Tariffs by category
A125: Supporting Table SA13b | B125: =A125&" Service Tariffs by category - explanatory" -> Supporting Table SA13b Service Tariffs by category - explanatory
A126: Supporting Table SA14 | B126: =A126&" Household bills" -> Supporting Table SA14 Household bills
A127: Supporting Table SA15 | B127: =A127&" Investment particulars by type" -> Supporting Table SA15 Investment particulars by type
A128: Supporting Table SA16 | B128: =A128&" Investment particulars by maturity" -> Supporting Table SA16 Investment particulars by maturity
A129: Supporting Table SA17 | B129: =A129&" Borrowing" -> Supporting Table SA17 Borrowing
A130: Supporting Table SA18 | B130: =A130&" Transfers and grant receipts" -> Supporting Table SA18 Transfers and grant receipts
A131: Supporting Table SA19 | B131: =A131&" Expenditure on transfers and grant programme" -> Supporting Table SA19 Expenditure on transfers and grant programme
A132: Supporting Table SA20 | B132: =A132&" Reconciliation of transfers, grant receipts and unspent funds" -> Supporting Table SA20 Reconciliation of transfers, grant receipts and unspent funds
A133: Supporting Table SA21 | B133: =A133&" Transfers and grants made by the municipality" -> Supporting Table SA21 Transfers and grants made by the municipality
A134: Supporting Table SA22 | B134: =A134&" Summary councillor and staff benefits" -> Supporting Table SA22 Summary councillor and staff benefits
A135: Supporting Table SA23 | B135: =A135&" Salaries, allowances & benefits (political office bearers/councillors/senior managers)" -> Supporting Table SA23 Salaries, allowances & benefits (political office bearers/councillors/senior managers)
A136: Supporting Table SA24 | B136: =A136&" Summary of personnel numbers" -> Supporting Table SA24 Summary of personnel numbers
A137: Supporting Table SA25 | B137: =IF(Consolques="YES",E137,F137) -> Supporting Table SA25 Budgeted monthly revenue and expenditure | E137: =A137&" Consolidated budgeted monthly revenue and expenditure" -> Supporting Table SA25 Consolidated budgeted monthly revenue and expenditure | F137: =A137&" Budgeted monthly revenue and expenditure" -> Supporting Table SA25 Budgeted monthly revenue and expenditure
A138: Supporting Table SA26 | B138: Supporting Table SA26 Budgeted monthly revenue and expenditure (municipal vote) | E138: =A138&" Consolidated budgeted monthly revenue and expenditure (municipal vote)" -> Supporting Table SA26 Consolidated budgeted monthly revenue and expenditure (municipal vote) | F138: =A138&" Budgeted monthly revenue and expenditure (municipal vote)" -> Supporting Table SA26 Budgeted monthly revenue and expenditure (municipal vote)
A139: Supporting Table SA27 | B139: Supporting Table SA27 Budgeted monthly revenue and expenditure (functional classification) | E139: =A139&" Consolidated budgeted monthly revenue and expenditure (functional classification)" -> Supporting Table SA27 Consolidated budgeted monthly revenue and expenditure (functional classification) | F139: =A139&" Budgeted monthly revenue and expenditure (functional classification)" -> Supporting Table SA27 Budgeted monthly revenue and expenditure (functional classification)
A140: Supporting Table SA28 | B140: Supporting Table SA28 Budgeted monthly capital expenditure (municipal vote) | E140: =A140&" Consolidated budgeted monthly capital expenditure (municipal vote)" -> Supporting Table SA28 Consolidated budgeted monthly capital expenditure (municipal vote) | F140: =A140&" Budgeted monthly capital expenditure (municipal vote)" -> Supporting Table SA28 Budgeted monthly capital expenditure (municipal vote)
A141: Supporting Table SA29 | B141: Supporting Table SA29 Budgeted monthly capital expenditure (functional classification) | E141: =A141&" Consolidated budgeted monthly capital expenditure (functional classification)" -> Supporting Table SA29 Consolidated budgeted monthly capital expenditure (functional classification) | F141: =A141&" Budgeted monthly capital expenditure (functional classification)" -> Supporting Table SA29 Budgeted monthly capital expenditure (functional classification)
A142: Supporting Table SA30 | B142: Supporting Table SA30 Budgeted monthly cash flow | E142: =A142&" Consolidated budgeted monthly cash flow" -> Supporting Table SA30 Consolidated budgeted monthly cash flow | F142: =A142&" Budgeted monthly cash flow" -> Supporting Table SA30 Budgeted monthly cash flow
A143: Supporting Table SA31 | B143: NOT REQUIRED - municipality does not have entities | E143: =A143&" Aggregated entity budget" -> Supporting Table SA31 Aggregated entity budget | F143: NOT REQUIRED - municipality does not have entities
A144: Supporting Table SA32 | B144: =A144&" List of external mechanisms" -> Supporting Table SA32 List of external mechanisms
A145: Supporting Table SA33 | B145: =A145&" Contracts having future budgetary implications" -> Supporting Table SA33 Contracts having future budgetary implications
A146: Supporting Table SA34a | B146: =IF(Consolques="YES",E146,F146) -> Supporting Table SA34a Capital expenditure on new assets by asset class | E146: =A146&" Consolidated capital expenditure on new assets by asset class" -> Supporting Table SA34a Consolidated capital expenditure on new assets by asset class | F146: =A146&" Capital expenditure on new assets by asset class" -> Supporting Table SA34a Capital expenditure on new assets by asset class
A147: Supporting Table SA34b | B147: Supporting Table SA34b Capital expenditure on the renewal of existing assets by asset class | E147: =A147&" Consolidated capital expenditure on the renewal of existing assets by asset class" -> Supporting Table SA34b Consolidated capital expenditure on the renewal of existing assets by asset class | F147: =A147&" Capital expenditure on the renewal of existing assets by asset class" -> Supporting Table SA34b Capital expenditure on the renewal of existing assets by asset class
A148: Supporting Table SA34c | B148: Supporting Table SA34c Repairs and maintenance expenditure by asset class | E148: =A148&" Consolidated repairs and maintenance by asset class" -> Supporting Table SA34c Consolidated repairs and maintenance by asset class | F148: =A148&" Repairs and maintenance expenditure by asset class" -> Supporting Table SA34c Repairs and maintenance expenditure by asset class
A149: Supporting Table SA34d | B149: =IF(Consolques="YES",E149,F149) -> Supporting Table SA34d Depreciation by asset class | E149: =A149&" Consolidated Depreciation by asset class" -> Supporting Table SA34d Consolidated Depreciation by asset class | F149: =A149&" Depreciation by asset class" -> Supporting Table SA34d Depreciation by asset class
A150: Supporting Table SA34e | B150: =IF(Consolques="YES",E150,F150) -> Supporting Table SA34e Capital expenditure on the upgrading of existing assets by asset class | E150: =A150&" Consolidated capital expenditure on the upgrading of existing assets by asset class" -> Supporting Table SA34e Consolidated capital expenditure on the upgrading of existing assets by asset class | F150: =A150&" Capital expenditure on the upgrading of existing assets by asset class" -> Supporting Table SA34e Capital expenditure on the upgrading of existing assets by asset class
A151: Supporting Table SA35 | B151: Supporting Table SA35 Future financial implications of the capital budget | E151: =A151&" Consolidated future financial implications of the capital budget" -> Supporting Table SA35 Consolidated future financial implications of the capital budget | F151: =A151& " Future financial implications of the capital budget" -> Supporting Table SA35 Future financial implications of the capital budget
A152: Supporting Table SA36 | B152: Supporting Table SA36 Detailed capital budget | E152: =A152&" Consolidated detailed capital budget" -> Supporting Table SA36 Consolidated detailed capital budget | F152: =A152& " Detailed capital budget" -> Supporting Table SA36 Detailed capital budget
A153: Supporting Table SA37 | B153: Supporting Table SA37 Projects delayed from previous financial year/s | E153: =A153&" Consolidated projects delayed from previous financial year/s" -> Supporting Table SA37 Consolidated projects delayed from previous financial year/s | F153: =A153& " Projects delayed from previous financial year/s" -> Supporting Table SA37 Projects delayed from previous financial year/s
A154: Supporting Table SA38 | B154: =IF(Consolques="YES",E154,F154) -> Supporting Table SA38 Detailed operational projects | E154: =A154&" Consolidated detailed operational projects" -> Supporting Table SA38 Consolidated detailed operational projects | F154: =A154& " Detailed operational projects" -> Supporting Table SA38 Detailed operational projects
A156: Budget Charts | B156: Charts | C156: Cross reference
A157: Chart A1 | B157: =A157&"Revenue by Municipal Vote" -> Chart A1 Revenue by Municipal Vote
A158: Chart A2 | B158: =A158&"Expenditure by Municipal Vote" -> Chart A2 Expenditure by Municipal Vote
A159: Chart A3 | B159: =A159&"Revenue by Standard Classification" -> Chart A3 Revenue by Standard Classification | C159: A2
A160: Chart A4 | B160: =A160&"Expenditure by Standard Classification" -> Chart A4 Expenditure by Standard Classification | C160: A2
A161: Chart A5 | B161: =A161&"Revenue by Major Source (refer 'Minor' source for 'Other Revenue' allocation" -> Chart A5 Revenue by Major Source (refer 'Minor' source for 'Other Revenue' allocation | C161: A3
A162: Chart A6 | B162: =A162&"Revenue by Minor Source (Other)" -> Chart A6 Revenue by Minor Source (Other) | C162: A3
A163: Chart A7 | B163: =A163&"Expenditure by Major Type" -> Chart A7 Expenditure by Major Type | C163: A3
A164: Chart A8 | B164: =A164&"Expenditure by Minor Type (Other)" -> Chart A8 Expenditure by Minor Type (Other) | C164: A3
A165: Chart A9 | B165: =A165&"Capital Expenditure by Municipal Vote/Appropriation (Major)" -> Chart A9 Capital Expenditure by Municipal Vote/Appropriation (Major) | C165: A5
A166: Chart A10 | B166: =A166&"Capital Expenditure by Municipal Vote/Appropriation (Minor)" -> Chart A10 Capital Expenditure by Municipal Vote/Appropriation (Minor) | C166: A5
A167: Chart A11 | B167: =A166&"Capital Expenditure by Standard Classification" -> Chart A10 Capital Expenditure by Standard Classification | C167: A5
A168: Chart A12 | B168: =A168&"Capital expenditure performance trend" -> Chart A12 Capital expenditure performance trend | C168: A5
A169: Chart A13 | B169: =A169&"Capital funding by Source" -> Chart A13 Capital funding by Source | C169: A5
A170: Chart A14 | B170: =A170&"Cash flow trend" -> Chart A14 Cash flow trend | C170: A7
A171: Chart A15 | B171: =A171&"IDP Strategic Objective - Revenue" -> Chart A15 IDP Strategic Objective - Revenue | C171: Table A4
A172: Chart A16 | B172: =A172&"IDP Strategic Objective - Expenditure" -> Chart A16 IDP Strategic Objective - Expenditure | C172: Table A5
A173: Chart A17 | B173: =A173&"IDP Strategic Objective - Capital Expenditure" -> Chart A17 IDP Strategic Objective - Capital Expenditure | C173: Table A6
A174: Chart A18 | B174: =A174&"Debt (borrowing to Total Revenue)" -> Chart A18 Debt (borrowing to Total Revenue) | C174: Table A8
A175: Chart A19 | B175: =A175&"Debtors' trend analysis" -> Chart A19 Debtors' trend analysis | C175: Table A8
A176: Chart A20 | B176: =A176&"Distribution losses" -> Chart A20 Distribution losses | C176: Table A8
A177: Chart A21 | B177: =A177&"Borrowed funding of capital expenditure" -> Chart A21 Borrowed funding of capital expenditure | C177: Table A8
A178: Chart A22 | B178: =A178&"Expenditure analysis (% of Revenue)" -> Chart A22 Expenditure analysis (% of Revenue) | C178: Table A8
A179: Chart A23 | B179: =A179&"Increases in service charges" -> Chart A23 Increases in service charges | C179: Table A10

Sheet Lookup and lists (hidden)
A1: Description | B1: 2013 | C1: 2014 | D1: 2015 | E1: 2016 | F1: 2017 | G1: 2018 | H1: 2019 | I1: 2020 | J1: 2021 | K1: 2022 | L1: 2023 | M1: 2024 | N1: 2025 | O1: 2026 | Q1: Lists | Y1: Grants: | Z1: National - opex | AA1: Provincial - opex | AB1: National - capex | AC1: Provincial - capex
A2: ='Template names'!C2 -> Prior year -1 | B2: =B1-2&"/"&RIGHT(B1,2)-1 -> 2011/12 | C2: 2012/13 | D2: 2013/14 | E2: 2014/15 | F2: 2015/16 | G2: 2016/17 | H2: 2017/18 | I2: 2018/19 | J2: =J1-2&"/"&RIGHT(J1,2)-1 -> 2019/20 | K2: 2020/21 | L2: 2021/22 | M2: 2022/23 | N2: 2023/24 | O2: 2024/25 | Q2: Yes | R2: <1 | S2: <4 | T2: Market | U2: Land & impr. | V2: Yes | W2: Uniform | X2: Yrs | Z2: Local Government Equitable Share | AA2: Health subsidy | AB2: Municipal Infrastructure Grant (MIG) | AC2: Agriculture
A3: ='Template names'!C3 -> Prior year -2 | B3: =B1-3&"/"&RIGHT(B1,2)-2 -> 2010/11 | C3: 2011/12 | D3: 2012/13 | E3: 2013/14 | F3: 2014/15 | G3: 2015/16 | H3: 2016/17 | I3: 2017/18 | J3: =J1-3&"/"&RIGHT(J1,2)-2 -> 2018/19 | K3: 2019/20 | L3: 2020/21 | M3: 2021/22 | N3: 2022/23 | O3: 2023/24 | Q3: No | R3: 1 | S3: 4 | T3: Dep.Replace | U3: Land only | V3: No | W3: Variable | X3: Mths | Z3: RSC Levy Replacement | AA3: Ambulance subsidy | AB3: Public Transport and Systems | AC3: Education
A4: ='Template names'!C4 -> Prior year -3 | B4: =B1-4&"/"&RIGHT(B1,2)-3 -> 2009/10 | C4: 2010/11 | D4: 2011/12 | E4: 2012/13 | F4: 2013/14 | G4: 2014/15 | H4: 2015/16 | I4: 2016/17 | J4: =J1-4&"/"&RIGHT(J1,2)-3 -> 2017/18 | K4: 2018/19 | L4: 2019/20 | M4: 2020/21 | N4: 2021/22 | O4: 2022/23 | R4: 2 | S4: 5 | T4: Other | U4: Other | Z4: Finance Management | AA4: Housing | AB4: Rural Transport Services and Infrastructure | AC4: Health
A5: ='Template names'!C5 -> Year in which budget is being prepared | B5: ="Current Year "& B1-1&"/"&RIGHT(B1,2) -> Current Year 2012/13 | C5: Current Year 2013/14 | D5: Current Year 2014/15 | E5: Current Year 2015/16 | F5: Current Year 2016/17 | G5: Current Year 2017/18 | H5: Current Year 2018/19 | I5: Current Year 2019/20 | J5: ="Current Year "& J1-1&"/"&RIGHT(J1,2) -> Current Year 2020/21 | K5: Current Year 2021/22 | L5: Current Year 2022/23 | M5: Current Year 2023/24 | N5: Current Year 2024/25 | O5: Current Year 2025/26 | R5: 3 | S5: 6 | Z5: Municipal Systems Improvement | AA5: Sport and Recreation | AB5: Regional Bulk Infrastructure | AC5: Housing and Local Government
A6: ='Template names'!C6 -> Year in which budget is being prepared | B6: =B1-1&"/"&RIGHT(B1,2) -> 2012/13 | C6: 2013/14 | D6: 2014/15 | E6: 2015/16 | F6: 2016/17 | G6: 2017/18 | H6: 2018/19 | I6: 2019/20 | J6: =J1-1&"/"&RIGHT(J1,2) -> 2020/21 | K6: 2021/22 | L6: 2022/23 | M6: 2023/24 | N6: 2024/25 | O6: 2025/26 | R6: 4 | S6: 6-10 | Z6: Water Services Operating Subsidy | AB6: Rural Households Infrastructure | AC6: Other Departments
A7: ='Template names'!C7 -> MTREF name | B7: =B1&"/"&RIGHT(B1,2)+1&" Medium Term Revenue & Expenditure Framework" -> 2013/14 Medium Term Revenue & Expenditure Framework | C7: 2014/15 Medium Term Revenue & Expenditure Framework | D7: 2015/16 Medium Term Revenue & Expenditure Framework | E7: 2016/17 Medium Term Revenue & Expenditure Framework | F7: 2017/18 Medium Term Revenue & Expenditure Framework | G7: 2018/19 Medium Term Revenue & Expenditure Framework | H7: 2019/20 Medium Term Revenue & Expenditure Framework | I7: 2020/21 Medium Term Revenue & Expenditure Framework | J7: =J1&"/"&RIGHT(J1,2)+1&" Medium Term Revenue & Expenditure Framework" -> 2021/22 Medium Term Revenue & Expenditure Framework | K7: 2022/23 Medium Term Revenue & Expenditure Framework | L7: 2023/24 Medium Term Revenue & Expenditure Framework | M7: 2024/25 Medium Term Revenue & Expenditure Framework | N7: 2025/26 Medium Term Revenue & Expenditure Framework | O7: 2026/27 Medium Term Revenue & Expenditure Framework | R7: 5 | S7: >10 | Z7: Energy Efficiency and Demand Management | AB7: Neighbourhood Development Partnership | AC7: Public Works, Roads, Transport
A8: ='Template names'!C15 -> 1st year of MTREF | B8: ="Budget Year "&B1&"/"&RIGHT(B1,2)+1 -> Budget Year 2013/14 | C8: Budget Year 2014/15 | D8: Budget Year 2015/16 | E8: Budget Year 2016/17 | F8: Budget Year 2017/18 | G8: Budget Year 2018/19 | H8: Budget Year 2019/20 | I8: Budget Year 2020/21 | J8: ="Budget Year "&J1&"/"&RIGHT(J1,2)+1 -> Budget Year 2021/22 | K8: Budget Year 2022/23 | L8: Budget Year 2023/24 | M8: Budget Year 2024/25 | N8: Budget Year 2025/26 | O8: Budget Year 2026/27 | R8: >5 | Z8: Integrated National Electrification Programme | AB8: 2010 FIFA World Cup Stadiums Development | AC8: Sport and Recreation
A9: ='Template names'!C16 -> 2nd year of MTREF | B9: ="Budget Year +1 "&B1+1&"/"&RIGHT(B1,2)+2 -> Budget Year +1 2014/15 | C9: Budget Year +1 2015/16 | D9: Budget Year +1 2016/17 | E9: Budget Year +1 2017/18 | F9: Budget Year +1 2018/19 | G9: Budget Year +1 2019/20 | H9: Budget Year +1 2020/21 | I9: Budget Year +1 2021/22 | J9: ="Budget Year +1 "&J1+1&"/"&RIGHT(J1,2)+2 -> Budget Year +1 2022/23 | K9: Budget Year +1 2023/24 | L9: Budget Year +1 2024/25 | M9: Budget Year +1 2025/26 | N9: Budget Year +1 2026/27 | O9: Budget Year +1 2027/28 | Z9: Municipal Drought Relief
A10: ='Template names'!C17 -> 3rd year of MTREF | B10: ="Budget Year +2 "&B1+2&"/"&RIGHT(B1,2)+3 -> Budget Year +2 2015/16 | C10: Budget Year +2 2016/17 | D10: Budget Year +2 2017/18 | E10: Budget Year +2 2018/19 | F10: Budget Year +2 2019/20 | G10: Budget Year +2 2020/21 | H10: Budget Year +2 2021/22 | I10: Budget Year +2 2022/23 | J10: ="Budget Year +2 "&J1+2&"/"&RIGHT(J1,2)+3 -> Budget Year +2 2023/24 | K10: Budget Year +2 2024/25 | L10: Budget Year +2 2025/26 | M10: Budget Year +2 2026/27 | N10: Budget Year +2 2027/28 | O10: Budget Year +2 2028/29 | Z10: 2010 FIFA World Cup Operating
A11: ='Template names'!C18 -> 1st yr of long term forecast | B11: ="Forecast "&B1+3&"/"&RIGHT(B1,2)+4 -> Forecast 2016/17 | C11: Forecast 2017/18 | D11: Forecast 2018/19 | E11: Forecast 2019/20 | F11: Forecast 2020/21 | G11: Forecast 2021/22 | H11: Forecast 2022/23 | I11: Forecast 2023/24 | J11: ="Forecast "&J1+3&"/"&RIGHT(J1,2)+4 -> Forecast 2024/25 | K11: Forecast 2025/26 | L11: Forecast 2026/27 | M11: Forecast 2027/28 | N11: Forecast 2028/29 | O11: Forecast 2029/30 | Z11: Electricity Demand Side Management
A12: ='Template names'!C19 -> Next yr of long term forecast | B12: ="Forecast "&B1+4&"/"&RIGHT(B1,2)+5 -> Forecast 2017/18 | C12: Forecast 2018/19 | D12: Forecast 2019/20 | E12: Forecast 2020/21 | F12: Forecast 2021/22 | G12: Forecast 2022/23 | H12: Forecast 2023/24 | I12: Forecast 2024/25 | J12: ="Forecast "&J1+4&"/"&RIGHT(J1,2)+5 -> Forecast 2025/26 | K12: Forecast 2026/27 | L12: Forecast 2027/28 | M12: Forecast 2028/29 | N12: Forecast 2029/30 | O12: Forecast 2030/31 | Z12: EPWP Incentive
A13: ='Template names'!C20 -> Next yr of long term forecast | B13: ="Forecast "&B1+5&"/"&RIGHT(B1,2)+6 -> Forecast 2018/19 | C13: Forecast 2019/20 | D13: Forecast 2020/21 | E13: Forecast 2021/22 | F13: Forecast 2022/23 | G13: Forecast 2023/24 | H13: Forecast 2024/25 | I13: Forecast 2025/26 | J13: ="Forecast "&J1+5&"/"&RIGHT(J1,2)+6 -> Forecast 2026/27 | K13: Forecast 2027/28 | L13: Forecast 2028/29 | M13: Forecast 2029/30 | N13: Forecast 2030/31 | O13: Forecast 2031/32
A14: ='Template names'!C21 -> Next yr of long term forecast | B14: ="Forecast "&B1+6&"/"&RIGHT(B1,2)+7 -> Forecast 2019/20 | C14: Forecast 2020/21 | D14: Forecast 2021/22 | E14: Forecast 2022/23 | F14: Forecast 2023/24 | G14: Forecast 2024/25 | H14: Forecast 2025/26 | I14: Forecast 2026/27 | J14: ="Forecast "&J1+6&"/"&RIGHT(J1,2)+7 -> Forecast 2027/28 | K14: Forecast 2028/29 | L14: Forecast 2029/30 | M14: Forecast 2030/31 | N14: Forecast 2031/32 | O14: Forecast 2032/33 | Z14: Asset Class | AA14: Asset sub-class old | AB14: Asset sub-class | AC14: IUDF | AD14: MTSF
A15: ='Template names'!C22 -> Next yr of long term forecast | B15: ="Forecast "&B1+7&"/"&RIGHT(B1,2)+8 -> Forecast 2020/21 | C15: Forecast 2021/22 | D15: Forecast 2022/23 | E15: Forecast 2023/24 | F15: Forecast 2024/25 | G15: Forecast 2025/26 | H15: Forecast 2026/27 | I15: Forecast 2027/28 | J15: ="Forecast "&J1+7&"/"&RIGHT(J1,2)+8 -> Forecast 2028/29 | K15: Forecast 2029/30 | L15: Forecast 2030/31 | M15: Forecast 2031/32 | N15: Forecast 2032/33 | O15: Forecast 2033/34
A16: ='Template names'!C23 -> Next yr of long term forecast | B16: ="Forecast "&B1+8&"/"&RIGHT(B1,2)+9 -> Forecast 2021/22 | C16: Forecast 2022/23 | D16: Forecast 2023/24 | E16: Forecast 2024/25 | F16: Forecast 2025/26 | G16: Forecast 2026/27 | H16: Forecast 2027/28 | I16: Forecast 2028/29 | J16: ="Forecast "&J1+8&"/"&RIGHT(J1,2)+9 -> Forecast 2029/30 | K16: Forecast 2030/31 | L16: Forecast 2031/32 | M16: Forecast 2032/33 | N16: Forecast 2033/34 | O16: Forecast 2034/35 | Z16: Roads Infrastructure | AA16: Roads, Pavements & Bridges | AB16: Roads | AC16: Spatial integration | AD16: Quality basic education
A17: ='Template names'!C24 -> Next yr of long term forecast | B17: ="Forecast "&B1+9&"/"&RIGHT(B1,2)+10 -> Forecast 2022/23 | C17: Forecast 2023/24 | D17: Forecast 2024/25 | E17: Forecast 2025/26 | F17: Forecast 2026/27 | G17: Forecast 2027/28 | H17: Forecast 2028/29 | I17: Forecast 2029/30 | J17: ="Forecast "&J1+9&"/"&RIGHT(J1,2)+10 -> Forecast 2030/31 | K17: Forecast 2031/32 | L17: Forecast 2032/33 | M17: Forecast 2033/34 | N17: Forecast 2034/35 | O17: Forecast 2035/36 | Z17: Storm water Infrastructure | AA17: Storm water | AB17: Road Structures | AC17: Inclusion and access | AD17: A long and healthy life for all South Africans
A18: ='Template names'!C25 -> Next yr of long term forecast | B18: ="Forecast "&B1+10&"/"&RIGHT(B1,2)+11 -> Forecast 2023/24 | C18: Forecast 2024/25 | D18: Forecast 2025/26 | E18: Forecast 2026/27 | F18: Forecast 2027/28 | G18: Forecast 2028/29 | H18: Forecast 2029/30 | I18: Forecast 2030/31 | J18: ="Forecast "&J1+10&"/"&RIGHT(J1,2)+11 -> Forecast 2031/32 | K18: Forecast 2032/33 | L18: Forecast 2033/34 | M18: Forecast 2034/35 | N18: Forecast 2035/36 | O18: Forecast 2036/37 | Z18: Electrical Infrastructure | AA18: Generation | AB18: Road Furniture | AC18: Growth | AD18: All people in South Africa are and feel safe
A19: ='Template names'!C26 -> Next yr of long term forecast | B19: ="Forecast "&B1+11&"/"&RIGHT(B1,2)+12 -> Forecast 2024/25 | C19: Forecast 2025/26 | D19: Forecast 2026/27 | E19: Forecast 2027/28 | F19: Forecast 2028/29 | G19: Forecast 2029/30 | H19: Forecast 2030/31 | I19: Forecast 2031/32 | J19: ="Forecast "&J1+11&"/"&RIGHT(J1,2)+12 -> Forecast 2032/33 | K19: Forecast 2033/34 | L19: Forecast 2034/35 | M19: Forecast 2035/36 | N19: Forecast 2036/37 | O19: Forecast 2037/38 | Z19: Water Supply Infrastructure | AA19: Transmission & Reticulation | AB19: Capital Spares | AC19: Governance | AD19: Decent employment through inclusive growth
A20: ='Template names'!C27 -> Next yr of long term forecast | B20: ="Forecast "&B1+12&"/"&RIGHT(B1,2)+13 -> Forecast 2025/26 | C20: Forecast 2026/27 | D20: Forecast 2027/28 | E20: Forecast 2028/29 | F20: Forecast 2029/30 | G20: Forecast 2030/31 | H20: Forecast 2031/32 | I20: Forecast 2032/33 | J20: ="Forecast "&J1+12&"/"&RIGHT(J1,2)+13 -> Forecast 2033/34 | K20: Forecast 2034/35 | L20: Forecast 2035/36 | M20: Forecast 2036/37 | N20: Forecast 2037/38 | O20: Forecast 2038/39 | Z20: Sanitation Infrastructure | AA20: Street Lighting | AB20: Drainage Collection | AD20: A skilled and capable workforce to support an inclusive growth path
A21: ='Template names'!C28 -> Next yr of long term forecast | B21: ="Forecast "&B1+13&"/"&RIGHT(B1,2)+14 -> Forecast 2026/27 | C21: Forecast 2027/28 | D21: Forecast 2028/29 | E21: Forecast 2029/30 | F21: Forecast 2030/31 | G21: Forecast 2031/32 | H21: Forecast 2032/33 | I21: Forecast 2033/34 | J21: ="Forecast "&J1+13&"/"&RIGHT(J1,2)+14 -> Forecast 2034/35 | K21: Forecast 2035/36 | L21: Forecast 2036/37 | M21: Forecast 2037/38 | N21: Forecast 2038/39 | O21: Forecast 2039/40 | Z21: Solid Waste Infrastructure | AA21: Dams & Reservoirs | AB21: Storm water Conveyance | AD21: An efficient, competitive and responsive economic infrastructure network
A22: ='Template names'!C29 -> Next yr of long term forecast | B22: ="Forecast "&B1+14&"/"&RIGHT(B1,2)+15 -> Forecast 2027/28 | C22: Forecast 2028/29 | D22: Forecast 2029/30 | E22: Forecast 2030/31 | F22: Forecast 2031/32 | G22: Forecast 2032/33 | H22: Forecast 2033/34 | I22: Forecast 2034/35 | J22: ="Forecast "&J1+14&"/"&RIGHT(J1,2)+15 -> Forecast 2035/36 | K22: Forecast 2036/37 | L22: Forecast 2037/38 | M22: Forecast 2038/39 | N22: Forecast 2039/40 | O22: Forecast 2040/41 | Z22: Rail Infrastructure | AA22: Water purification | AB22: Attenuation | AD22: Vibrant, equitable, sustainable rural communities contributing towards food security for all
A23: Adjustments Budget | B23: ="Annual target " & B1&"/"&RIGHT(B1,2)+1 -> Annual target 2013/14 | C23: Annual target 2014/15 | D23: Annual target 2015/16 | E23: Annual target 2016/17 | F23: Annual target 2017/18 | G23: Annual target 2018/19 | H23: Annual target 2019/20 | I23: Annual target 2020/21 | J23: ="Annual target " & J1&"/"&RIGHT(J1,2)+1 -> Annual target 2021/22 | K23: Annual target 2022/23 | L23: Annual target 2023/24 | M23: Annual target 2024/25 | N23: Annual target 2025/26 | O23: Annual target 2026/27 | Z23: Coastal Infrastructure | AA23: Reticulation | AB23: Power Plants | AD23: Sustainable human settlements and improved quality of household life
A24: =A23 -> Adjustments Budget | B24: ="Revised target "& B1&"/"&RIGHT(B1,2)+1 -> Revised target 2013/14 | C24: Revised target 2014/15 | D24: Revised target 2015/16 | E24: Revised target 2016/17 | F24: Revised target 2017/18 | G24: Revised target 2018/19 | H24: Revised target 2019/20 | I24: Revised target 2020/21 | J24: ="Revised target "& J1&"/"&RIGHT(J1,2)+1 -> Revised target 2021/22 | K24: Revised target 2022/23 | L24: Revised target 2023/24 | M24: Revised target 2024/25 | N24: Revised target 2025/26 | O24: Revised target 2026/27 | Z24: Information and Communication Infrastructure | AA24: Sewerage purification | AB24: HV Substations | AD24: Responsive, accountable, effective and efficient local government
A25: NOTE: This sheet should not be directly amended - select headings from sheet 'S' | Z25: Community Facilities | AA25: Waste Management | AB25: HV Switching Station | AD25: Protect and enhance our environmental assets and natural resources
Z26: Sport and Recreation Facilities | AA26: Transportation | AB26: HV Transmission Conductors | AD26: Create a better South Africa and contribute to a better Africa and a better world
A27: Name link | B27: 225 | Z27: Heritage assets | AA27: Gas | AB27: MV Substations | AD27: An efficient, effective and development-oriented public service
A28: Name of Muni | B28: =INDEX(B29:B307,B27,1) -> NW403 City Of Matlosana | Z28: Revenue Generating | AA28: Parks & gardens | AB28: MV Switching Stations | AD28: A comprehensive, responsive and sustainable social protection system
B29: Choose name from list | C29: Set name on 'Instructions' sheet | Z29: Non-revenue Generating | AA29: Sportsfields & stadia | AB29: MV Networks | AD29: A diverse, socially cohesive society with a common national identity
B30: BUF Buffalo City | C30: EC EASTERN CAPE | Z30: Operational Buildings | AA30: Swimming pools | AB30: LV Networks
B31: NMA Nelson Mandela Bay | C31: EC EASTERN CAPE | Z31: Housing | AA31: Community halls | AB31: Capital Spares
B32: EC101 Dr Beyers Naude | C32: EC EASTERN CAPE | Z32: Biological or Cultivated Assets | AA32: Libraries | AB32: Dams and Weirs
B33: EC102 Blue Crane Route | C33: EC EASTERN CAPE | Z33: Servitudes | AA33: Recreational facilities | AB33: Boreholes
B34: EC104 Makana | C34: EC EASTERN CAPE | Z34: Licences and Rights | AA34: Fire, safety & emergency | AB34: Reservoirs
B35: EC105 Ndlambe | C35: EC EASTERN CAPE | Z35: Computer Equipment | AA35: Security and policing | AB35: Pump Stations
B36: EC106 Sundays River Valley | C36: EC EASTERN CAPE | Z36: Furniture and Office Equipment | AA36: Buses | AB36: Water Treatment Works
B37: EC108 Kouga | C37: EC EASTERN CAPE | Z37: Machinery and Equipment | AA37: Clinics | AB37: Bulk Mains
B38: EC109 Kou-Kamma | C38: EC EASTERN CAPE | Z38: Transport Assets | AA38: Museums & Art Galleries | AB38: Distribution
B39: DC10 Sarah Baartman | C39: EC EASTERN CAPE | Z39: Land | AA39: Cemeteries | AB39: Distribution Points
B40: EC121 Mbhashe | C40: EC EASTERN CAPE | Z40: Zoo's, Marine and Non-biological Animals | AA40: Social rental housing | AB40: PRV Stations
B41: EC122 Mnquma | C41: EC EASTERN CAPE | AA41: Buildings | AB41: Capital Spares
B42: EC123 Great Kei | C42: EC EASTERN CAPE | AA42: Housing development | AB42: Pump Station
B43: EC124 Amahlathi | C43: EC EASTERN CAPE | AA43: General vehicles | AB43: Reticulation
B44: EC126 Ngqushwa | C44: EC EASTERN CAPE | AA44: Specialised vehicles - Refuse | AB44: Waste Water Treatment Works
B45: EC129 Raymond Mhlaba | C45: EC EASTERN CAPE | AA45: Specialised vehicles - Fire | AB45: Outfall Sewers
B46: DC12 Amathole | C46: EC EASTERN CAPE | AA46: Specialised vehicles - Conservancy | AB46: Toilet Facilities
B47: EC131 Inxuba Yethemba | C47: EC EASTERN CAPE | AA47: Specialised vehicles - Ambulances | AB47: Capital Spares
B48: EC135 Intsika Yethu | C48: EC EASTERN CAPE | AA48: Plant & equipment | AB48: Landfill Sites
B49: EC136 Emalahleni (Ec) | C49: EC EASTERN CAPE | AA49: Computers - hardware/equipment | AB49: Waste Transfer Stations
B50: EC137 Engcobo | C50: EC EASTERN CAPE | AA50: Furniture and other office equipment | AB50: Waste Processing Facilities
B51: EC138 Sakhisizwe | C51: EC EASTERN CAPE | AA51: Abattoirs | AB51: Waste Drop-off Points
B52: EC139 Enoch Mgijima | C52: EC EASTERN CAPE | AA52: Markets | AB52: Waste Separation Facilities
B53: DC13 Chris Hani | C53: EC EASTERN CAPE | AA53: Civic Land and Buildings | AB53: Electricity Generation Facilities
B54: EC141 Elundini | C54: EC EASTERN CAPE | AA54: Other Buildings | AB54: Capital Spares
B55: EC142 Senqu | C55: EC EASTERN CAPE | AA55: Other Land | AB55: Rail Lines
B56: EC145 Walter Sisulu | C56: EC EASTERN CAPE | AA56: Surplus Assets - (Investment or Inventory) | AB56: Rail Structures
B57: DC14 Joe Gqabi | C57: EC EASTERN CAPE | AA57: Computers - software & programming | AB57: Rail Furniture
B58: EC153 Ngquza Hills | C58: EC EASTERN CAPE | AA58: Other | AB58: Drainage Collection
B59: EC154 Port St Johns | C59: EC EASTERN CAPE | AB59: Storm water Conveyance
B60: EC155 Nyandeni | C60: EC EASTERN CAPE | Z60: SA16 - Investments | AB60: Attenuation
B61: EC156 Mhlontlo | C61: EC EASTERN CAPE | Z61: Security | AA61: Interest rate | AB61: MV Substations
B62: EC157 King Sabata Dalindyebo | C62: EC EASTERN CAPE | Z62: Yes | AA62: Fixed | AB62: LV Networks
B63: DC15 O .R. Tambo | C63: EC EASTERN CAPE | Z63: No | AA63: Variable | AB63: Capital Spares
B64: EC441 Matatiele | C64: EC EASTERN CAPE | AB64: Sand Pumps
B65: EC442 Umzimvubu | C65: EC EASTERN CAPE | AB65: Piers
B66: EC443 Winnie Madikizela Mandela | C66: EC EASTERN CAPE | Z66: SA36, SA37 - Capital projects | AB66: Revetments
B67: EC444 Ntabankulu | C67: EC EASTERN CAPE | Z67: Yes | AB67: Promenades
B68: DC44 Alfred Nzo | C68: EC EASTERN CAPE | Z68: No | AB68: Capital Spares
B69: MAN Mangaung | C69: FS FREE STATE | AB69: Data Centres
B70: FS161 Letsemeng | C70: FS FREE STATE | AB70: Core Layers
B71: FS162 Kopanong | C71: FS FREE STATE | AB71: Distribution Layers
B72: FS163 Mohokare | C72: FS FREE STATE | AB72: Capital Spares
B73: DC16 Xhariep | C73: FS FREE STATE | AB73: Halls
B74: FS181 Masilonyana | C74: FS FREE STATE | AB74: Centres
B75: FS182 Tokologo | C75: FS FREE STATE | AB75: Crèches
B76: FS183 Tswelopele | C76: FS FREE STATE | AB76: Clinics/Care Centres
B77: FS184 Matjhabeng | C77: FS FREE STATE | AB77: Fire/Ambulance Stations
B78: FS185 Nala | C78: FS FREE STATE | AB78: Testing Stations
B79: DC18 Lejweleputswa | C79: FS FREE STATE | AB79: Museums
B80: FS191 Setsoto | C80: FS FREE STATE | AB80: Galleries
B81: FS192 Dihlabeng | C81: FS FREE STATE | AB81: Theatres
B82: FS193 Nketoana | C82: FS FREE STATE | AB82: Libraries
B83: FS194 Maluti-a-Phofung | C83: FS FREE STATE | AB83: Cemeteries/Crematoria
B84: FS195 Phumelela | C84: FS FREE STATE | AB84: Police
B85: FS196 Mantsopa | C85: FS FREE STATE | AB85: Purls
B86: DC19 Thabo Mofutsanyana | C86: FS FREE STATE | AB86: Public Open Space
B87: FS201 Moqhaka | C87: FS FREE STATE | AB87: Nature Reserves
B88: FS203 Ngwathe | C88: FS FREE STATE | AB88: Public Ablution Facilities
B89: FS204 Metsimaholo | C89: FS FREE STATE | AB89: Markets
B90: FS205 Mafube | C90: FS FREE STATE | AB90: Stalls
B91: DC20 Fezile Dabi | C91: FS FREE STATE | AB91: Abattoirs
B92: EKU City of Ekurhuleni | C92: GT GAUTENG | AB92: Airports
B93: JHB City Of Johannesburg | C93: GT GAUTENG | AB93: Taxi Ranks/Bus Terminals
B94: TSH City Of Tshwane | C94: GT GAUTENG | AB94: Capital Spares
B95: GT421 Emfuleni | C95: GT GAUTENG | AB95: Indoor Facilities
B96: GT422 Midvaal | C96: GT GAUTENG | AB96: Outdoor Facilities
B97: GT423 Lesedi | C97: GT GAUTENG | AB97: Capital Spares
B98: DC42 Sedibeng | C98: GT GAUTENG | AB98: Monuments
B99: GT481 Mogale City | C99: GT GAUTENG | AB99: Historic Buildings
B100: GT484 Merafong City | C100: GT GAUTENG | AB100: Works of Art
B101: GT485 Rand West City | C101: GT GAUTENG | AB101: Conservation Areas
B102: DC48 West Rand | C102: GT GAUTENG | AB102: Other Heritage
B103: ETH eThekwini | C103: KZN KWAZULU-NATAL | AB103: Improved Property
B104: KZN212 Umdoni | C104: KZN KWAZULU-NATAL | AB104: Unimproved Property
B105: KZN213 Umzumbe | C105: KZN KWAZULU-NATAL | AB105: Municipal Offices
B106: KZN214 uMuziwabantu | C106: KZN KWAZULU-NATAL | AB106: Pay/Enquiry Points
B107: KZN216 Ray Nkonyeni | C107: KZN KWAZULU-NATAL | AB107: Building Plan Offices
B108: DC21 Ugu | C108: KZN KWAZULU-NATAL | AB108: Workshops
B109: KZN221 uMshwathi | C109: KZN KWAZULU-NATAL | AB109: Yards
B110: KZN222 uMngeni | C110: KZN KWAZULU-NATAL | AB110: Stores
B111: KZN223 Mpofana | C111: KZN KWAZULU-NATAL | AB111: Laboratories
B112: KZN224 Impendle | C112: KZN KWAZULU-NATAL | AB112: Training Centres
B113: KZN225 Msunduzi | C113: KZN KWAZULU-NATAL | AB113: Manufacturing Plant
B114: KZN226 Mkhambathini | C114: KZN KWAZULU-NATAL | AB114: Depots
B115: KZN227 Richmond | C115: KZN KWAZULU-NATAL | AB115: Capital Spares
B116: DC22 uMgungundlovu | C116: KZN KWAZULU-NATAL | AB116: Staff Housing
B117: KZN235 Okhahlamba | C117: KZN KWAZULU-NATAL | AB117: Social Housing
B118: KZN237 Inkosi Langalibalele | C118: KZN KWAZULU-NATAL | AB118: Capital Spares
B119: KZN238 Alfred Duma | C119: KZN KWAZULU-NATAL | AB119: Water Rights
B120: DC23 Uthukela | C120: KZN KWAZULU-NATAL | AB120: Effluent Licenses
B121: KZN241 Endumeni | C121: KZN KWAZULU-NATAL | AB121: Solid Waste Licenses
B122: KZN242 Nquthu | C122: KZN KWAZULU-NATAL | AB122: Computer Software and Applications
B123: KZN244 Msinga | C123: KZN KWAZULU-NATAL | AB123: Load Settlement Software Applications
B124: KZN245 Umvoti | C124: KZN KWAZULU-NATAL | AB124: Unspecified
B125: DC24 Umzinyathi | C125: KZN KWAZULU-NATAL
B126: KZN252 Newcastle | C126: KZN KWAZULU-NATAL
B127: KZN253 Emadlangeni | C127: KZN KWAZULU-NATAL
B128: KZN254 Dannhauser | C128: KZN KWAZULU-NATAL
B129: DC25 Amajuba | C129: KZN KWAZULU-NATAL
B130: KZN261 eDumbe | C130: KZN KWAZULU-NATAL
B131: KZN262 uPhongolo | C131: KZN KWAZULU-NATAL
B132: KZN263 Abaqulusi | C132: KZN KWAZULU-NATAL
B133: KZN265 Nongoma | C133: KZN KWAZULU-NATAL
B134: KZN266 Ulundi | C134: KZN KWAZULU-NATAL
B135: DC26 Zululand | C135: KZN KWAZULU-NATAL
B136: KZN271 Umhlabuyalingana | C136: KZN KWAZULU-NATAL
B137: KZN272 Jozini | C137: KZN KWAZULU-NATAL
B138: KZN275 Mtubatuba | C138: KZN KWAZULU-NATAL
B139: KZN276 Hlabisa Big Five | C139: KZN KWAZULU-NATAL
B140: DC27 Umkhanyakude | C140: KZN KWAZULU-NATAL
B141: KZN281 Mfolozi | C141: KZN KWAZULU-NATAL
B142: KZN282 uMhlathuze | C142: KZN KWAZULU-NATAL
B143: KZN284 uMlalazi | C143: KZN KWAZULU-NATAL
B144: KZN285 Mthonjaneni | C144: KZN KWAZULU-NATAL
B145: KZN286 Nkandla | C145: KZN KWAZULU-NATAL
B146: DC28 King Cetshwayo | C146: KZN KWAZULU-NATAL
B147: KZN291 Mandeni | C147: KZN KWAZULU-NATAL
B148: KZN292 KwaDukuza | C148: KZN KWAZULU-NATAL
B149: KZN293 Ndwedwe | C149: KZN KWAZULU-NATAL
B150: KZN294 Maphumulo | C150: KZN KWAZULU-NATAL
B151: DC29 iLembe | C151: KZN KWAZULU-NATAL
B152: KZN433 Greater Kokstad | C152: KZN KWAZULU-NATAL
B153: KZN434 Ubuhlebezwe | C153: KZN KWAZULU-NATAL
B154: KZN435 Umzimkhulu | C154: KZN KWAZULU-NATAL
B155: KZN436 Dr Nkosazana Dlamini Zuma | C155: KZN KWAZULU-NATAL
B156: DC43 Harry Gwala | C156: KZN KWAZULU-NATAL
B157: LIM331 Greater Giyani | C157: LIM LIMPOPO
B158: LIM332 Greater Letaba | C158: LIM LIMPOPO
B159: LIM333 Greater Tzaneen | C159: LIM LIMPOPO
B160: LIM334 Ba-Phalaborwa | C160: LIM LIMPOPO
B161: LIM335 Maruleng | C161: LIM LIMPOPO
B162: DC33 Mopani | C162: LIM LIMPOPO
B163: LIM341 Musina | C163: LIM LIMPOPO
B164: LIM343 Thulamela | C164: LIM LIMPOPO
B165: LIM344 Makhado | C165: LIM LIMPOPO
B166: LIM345 Collins Chabane | C166: LIM LIMPOPO
B167: DC34 Vhembe | C167: LIM LIMPOPO
B168: LIM351 Blouberg | C168: LIM LIMPOPO
B169: LIM353 Molemole | C169: LIM LIMPOPO
B170: LIM354 Polokwane | C170: LIM LIMPOPO
B171: LIM355 Lepelle-Nkumpi | C171: LIM LIMPOPO
B172: DC35 Capricorn | C172: LIM LIMPOPO
B173: LIM361 Thabazimbi | C173: LIM LIMPOPO
B174: LIM362 Lephalale | C174: LIM LIMPOPO
B175: LIM366 Bela Bela | C175: LIM LIMPOPO
B176: LIM367 Mogalakwena | C176: LIM LIMPOPO
B177: LIM368 Modimolle-Mookgopong | C177: LIM LIMPOPO
B178: DC36 Waterberg | C178: LIM LIMPOPO
B179: LIM471 Ephraim Mogale | C179: LIM LIMPOPO
B180: LIM472 Elias Motsoaledi | C180: LIM LIMPOPO
B181: LIM473 Makhuduthamaga | C181: LIM LIMPOPO
B182: LIM476 Tubatse Fetakgomo | C182: LIM LIMPOPO
B183: DC47 Sekhukhune | C183: LIM LIMPOPO
B184: MP301 Albert Luthuli | C184: MP MPUMALANGA
B185: MP302 Msukaligwa | C185: MP MPUMALANGA
B186: MP303 Mkhondo | C186: MP MPUMALANGA
B187: MP304 Pixley Ka Seme (MP) | C187: MP MPUMALANGA
B188: MP305 Lekwa | C188: MP MPUMALANGA
B189: MP306 Dipaleseng | C189: MP MPUMALANGA
B190: MP307 Govan Mbeki | C190: MP MPUMALANGA
B191: DC30 Gert Sibande | C191: MP MPUMALANGA
B192: MP311 Victor Khanye | C192: MP MPUMALANGA
B193: MP312 Emalahleni (Mp) | C193: MP MPUMALANGA
B194: MP313 Steve Tshwete | C194: MP MPUMALANGA
B195: MP314 Emakhazeni | C195: MP MPUMALANGA
B196: MP315 Thembisile Hani | C196: MP MPUMALANGA
B197: MP316 Dr J.S. Moroka | C197: MP MPUMALANGA
B198: DC31 Nkangala | C198: MP MPUMALANGA
B199: MP321 Thaba Chweu | C199: MP MPUMALANGA
B200: MP324 Nkomazi | C200: MP MPUMALANGA
... 87 more rows

Sheet Org structure
A1: Organisational Structure Votes | C1: Organisational Structure Sub-Votes | E1: Display Sub-Votes
A2: =B2&" - "&C2 -> Vote 01 - Public Safety | B2: Vote 01 | C2: Public Safety
A3: =B9&" - "&C9 -> Vote 02 - Health Services | B3: 01.1 | C3: Public Safety Administration | D3: =CONCATENATE(B3, " - ", C3) -> 01.1 - Public Safety Administration | E3: 01.1 - Public Safety Administration
A4: =B12&" - "&C12 -> Vote 03 - Community Services | B4: 01.2 | C4: Fire Brigade | D4: 01.2 - Fire Brigade | E4: 01.2 - Fire Brigade
A5: =B19&" - "&C19 -> Vote 04 - Housing | B5: 01.3 | C5: Licencing Administration | D5: 01.3 - Licencing Administration | E5: 01.3 - Licencing Administration
A6: =B25&" - "&C25 -> Vote 05 - Sport Arts And Culture | B6: 01.4 | C6: Traffic Administration | D6: 01.4 - Traffic Administration | E6: 01.4 - Traffic Administration
A7: =B32&" - "&C32 -> Vote 06 - Council General | B7: 01.5 | C7: Disaster Management | D7: 01.5 - Disaster Management | E7: 01.5 - Disaster Management
A8: =B41&" - "&C41 -> Vote 07 - Civil Engineering | B8: 01.6 | C8: Municipal Court | D8: 01.6 - Municipal Court | E8: 01.6 - Municipal Court
A9: =B46&" - "&C46 -> Vote 08 - Water Section | B9: Vote 02 | C9: Health Services
A10: =B49&" - "&C49 -> Vote 09 - City Electrial Engineering | B10: 02.1 | C10: Health Services Administration | D10: =CONCATENATE(B10, " - ", C10) -> 02.1 - Health Services Administration | E10: 02.1 - Health Services Administration
A11: =B55&" - "&C55 -> Vote 10 - Corporate Governane | B11: 02.2 | C11: Occupational Health Centre | D11: =CONCATENATE(B11, " - ", C11) -> 02.2 - Occupational Health Centre | E11: 02.2 - Occupational Health Centre
A12: =B59&" - "&C59 -> Vote 11 - Budget And Treasury Office | B12: Vote 03 | C12: Community Services
A13: =B63&" - "&C63 -> Vote 12 - Cleansing | B13: 03.1 | C13: Administration Community Services | D13: =CONCATENATE(B13, " - ", C13) -> 03.1 - Administration Community Services | E13: 03.1 - Administration Community Services
A14: =B71&" - "&C71 -> Vote 13 - Sewerage | B14: 03.2 | C14: Cemetary | D14: 03.2 - Cemetary | E14: 03.2 - Cemetary
A15: =B76&" - "&C76 -> Vote 14 - Market | B15: 03.3 | C15: Aerodome | D15: 03.3 - Aerodome | E15: 03.3 - Aerodome
A16: =B78&" - "&C78 -> Vote 15 - Other | B16: 03.4 | C16: Nature Reserve | D16: 03.4 - Nature Reserve | E16: 03.4 - Nature Reserve
B17: 03.5 | C17: Orkney Vaal | D17: 03.5 - Orkney Vaal | E17: 03.5 - Orkney Vaal
B18: 03.6 | C18: Administration Parks | D18: 03.6 - Administration Parks | E18: 03.6 - Administration Parks
B19: Vote 04 | C19: Housing
B20: 04.1 | C20: Administration Housing Services | D20: =CONCATENATE(B20, " - ", C20) -> 04.1 - Administration Housing Services | E20: 04.1 - Administration Housing Services
B21: 04.2 | C21: Housing Services | D21: =CONCATENATE(B21, " - ", C21) -> 04.2 - Housing Services | E21: 04.2 - Housing Services
B22: 04.3 | C22: Building Survey | D22: =CONCATENATE(B22, " - ", C22) -> 04.3 - Building Survey | E22: 04.3 - Building Survey
B23: 04.4 | C23: Town Planning | D23: =CONCATENATE(B23, " - ", C23) -> 04.4 - Town Planning | E23: 04.4 - Town Planning
B24: 04.5 | C24: Land Affairs | D24: =CONCATENATE(B24, " - ", C24) -> 04.5 - Land Affairs | E24: 04.5 - Land Affairs
B25: Vote 05 | C25: Sport Arts And Culture
B26: 05.1 | C26: Traffic Administration | D26: =CONCATENATE(B26, " - ", C26) -> 05.1 - Traffic Administration | E26: 05.1 - Traffic Administration
B27: 05.2 | C27: Administration Sports Arts & Culture | D27: 05.2 - Administration Sports Arts & Culture | E27: 05.2 - Administration Sports Arts & Culture
B28: 05.3 | C28: Museum | D28: 05.3 - Museum | E28: 05.3 - Museum
B29: 05.4 | C29: Library | D29: 05.4 - Library | E29: 05.4 - Library
B30: 05.5 | C30: Sports And Recreation | D30: 05.5 - Sports And Recreation | E30: 05.5 - Sports And Recreation
B31: 05.6 | C31: Oppenheimer Stadium | D31: 05.6 - Oppenheimer Stadium | E31: 05.6 - Oppenheimer Stadium
B32: Vote 06 | C32: Council General
B33: 06.1 | C33: Administration Council General | D33: =CONCATENATE(B33, " - ", C33) -> 06.1 - Administration Council General | E33: 06.1 - Administration Council General
B34: 06.2 | C34: Administration Municipal Manager | D34: 06.2 - Administration Municipal Manager | E34: 06.2 - Administration Municipal Manager
B35: 06.3 | C35: Internal Audit | D35: 06.3 - Internal Audit | E35: 06.3 - Internal Audit
B36: 06.4 | C36: Strategic | D36: 06.4 - Strategic | E36: 06.4 - Strategic
B37: 06.5 | C37: Administration Mayor | D37: 06.5 - Administration Mayor | E37: 06.5 - Administration Mayor
B38: 06.6 | C38: Administration Speaker | D38: 06.6 - Administration Speaker | E38: 06.6 - Administration Speaker
B39: 06.7 | C39: Chief Whip | D39: 06.7 - Chief Whip | E39: 06.7 - Chief Whip
B40: 06.8 | C40: Mpac | D40: 06.8 - Mpac | E40: 06.8 - Mpac
B41: Vote 07 | C41: Civil Engineering
B42: 07.1 | C42: Administration City Civil Engineer | D42: =CONCATENATE(B42, " - ", C42) -> 07.1 - Administration City Civil Engineer | E42: 07.1 - Administration City Civil Engineer
B43: 07.2 | C43: Building Construction | D43: =CONCATENATE(B43, " - ", C43) -> 07.2 - Building Construction | E43: 07.2 - Building Construction
B44: 07.3 | C44: Roads | D44: =CONCATENATE(B44, " - ", C44) -> 07.3 - Roads | E44: 07.3 - Roads
B45: 07.4 | C45: Pmu Unit | D45: =CONCATENATE(B45, " - ", C45) -> 07.4 - Pmu Unit | E45: 07.4 - Pmu Unit
B46: Vote 08 | C46: Water Section
B47: 08.1 | C47: Administration Water | D47: =CONCATENATE(B47, " - ", C47) -> 08.1 - Administration Water | E47: 08.1 - Administration Water
B48: 08.2 | C48: Water Distribution | D48: =CONCATENATE(B48, " - ", C48) -> 08.2 - Water Distribution | E48: 08.2 - Water Distribution
B49: Vote 09 | C49: City Electrial Engineering
B50: 09.1 | C50: Streetlighting | D50: =CONCATENATE(B50, " - ", C50) -> 09.1 - Streetlighting | E50: 09.1 - Streetlighting
B51: 09.2 | C51: Garage | D51: =CONCATENATE(B51, " - ", C51) -> 09.2 - Garage | E51: 09.2 - Garage
B52: 09.3 | C52: Workshop | D52: =CONCATENATE(B52, " - ", C52) -> 09.3 - Workshop | E52: 09.3 - Workshop
B53: 09.4 | C53: Administration Electricity | D53: =CONCATENATE(B53, " - ", C53) -> 09.4 - Administration Electricity | E53: 09.4 - Administration Electricity
B54: 09.5 | C54: Electricity Distribution | D54: =CONCATENATE(B54, " - ", C54) -> 09.5 - Electricity Distribution | E54: 09.5 - Electricity Distribution
B55: Vote 10 | C55: Corporate Governane
B56: 10.1 | C56: Administration City Secretary | D56: =CONCATENATE(B56, " - ", C56) -> 10.1 - Administration City Secretary | E56: 10.1 - Administration City Secretary
B57: 10.2 | C57: Legal And Land Affairs | D57: =CONCATENATE(B57, " - ", C57) -> 10.2 - Legal And Land Affairs | E57: 10.2 - Legal And Land Affairs
B58: 10.3 | C58: Management Services | D58: =CONCATENATE(B58, " - ", C58) -> 10.3 - Management Services | E58: 10.3 - Management Services
B59: Vote 11 | C59: Budget And Treasury Office
B60: 11.1 | C60: Administration City Treasurer | D60: =CONCATENATE(B60, " - ", C60) -> 11.1 - Administration City Treasurer | E60: 11.1 - Administration City Treasurer
B61: 11.2 | C61: Data | D61: =CONCATENATE(B61, " - ", C61) -> 11.2 - Data | E61: 11.2 - Data
B62: 11.3 | C62: Stores | D62: =CONCATENATE(B62, " - ", C62) -> 11.3 - Stores | E62: 11.3 - Stores
B63: Vote 12 | C63: Cleansing
B64: 12.1 | C64: Landfill Site | D64: =CONCATENATE(B64, " - ", C64) -> 12.1 - Landfill Site | E64: 12.1 - Landfill Site
B65: 12.2 | C65: Administration Cleansing | D65: 12.2 - Administration Cleansing | E65: 12.2 - Administration Cleansing
B66: 12.3 | C66: Refuse Removal | D66: 12.3 - Refuse Removal | E66: 12.3 - Refuse Removal
B67: 12.4 | C67: Nightsoil Services | D67: 12.4 - Nightsoil Services | E67: 12.4 - Nightsoil Services
B68: 12.5 | C68: Street Cleaning | D68: 12.5 - Street Cleaning | E68: 12.5 - Street Cleaning
B69: 12.6 | C69: Public Restrooms | D69: 12.6 - Public Restrooms | E69: 12.6 - Public Restrooms
B70: 12.7 | C70: Landfill Site | D70: 12.7 - Landfill Site | E70: 12.7 - Landfill Site
B71: Vote 13 | C71: Sewerage
B72: 13.1 | C72: Administration Sewerage | D72: =CONCATENATE(B72, " - ", C72) -> 13.1 - Administration Sewerage | E72: 13.1 - Administration Sewerage
B73: 13.2 | C73: Sewer Agency | D73: =CONCATENATE(B73, " - ", C73) -> 13.2 - Sewer Agency | E73: 13.2 - Sewer Agency
B74: 13.3 | C74: Sewer Distribution | D74: =CONCATENATE(B74, " - ", C74) -> 13.3 - Sewer Distribution | E74: 13.3 - Sewer Distribution
B75: 13.4 | C75: Nightsoil Services | D75: =CONCATENATE(B75, " - ", C75) -> 13.4 - Nightsoil Services | E75: 13.4 - Nightsoil Services
B76: Vote 14 | C76: Market
B77: 14.1 | C77: Market | D77: =CONCATENATE(B77, " - ", C77) -> 14.1 - Market | E77: 14.1 - Market
B78: Vote 15 | C78: Other
B79: 15.1 | C79: Administration Led | D79: =CONCATENATE(B79, " - ", C79) -> 15.1 - Administration Led | E79: 15.1 - Administration Led
B80: 15.2 | C80: Economic Affairs & Corporate Communicati | D80: =CONCATENATE(B80, " - ", C80) -> 15.2 - Economic Affairs & Corporate Communicati | E80: 15.2 - Economic Affairs & Corporate Communicati
B81: 15.3 | C81: Local Economic Development | D81: =CONCATENATE(B81, " - ", C81) -> 15.3 - Local Economic Development | E81: 15.3 - Local Economic Development

Sheet Contacts
A1: =muni&" - "&" Contact Information" -> NW403 City Of Matlosana - Contact Information
A3: A. GENERAL INFORMATION
A4: Municipality | B4: =muni -> NW403 City Of Matlosana | C4: =IF(B4="Choose name from List","Set name on 'Instructions' sheet", "") -> 
A6: Grade | B6: 2 | C6: 1 Grade in terms of the Remuneration of Public Office Bearers Act.
A8: Province | B8: =IF(B4>" ",VLOOKUP(B4,'Lookup and lists'!B29:C307,2, FALSE)," ") -> NW NORTH WEST
A10: Web Address | B10: www.matlosana.gov.za
A12: e-mail Address | B12: dnkosi@klerksdorp.org
A14: B. CONTACT INFORMATION
A15: Postal address:
A16: P.O. Box | B16: 99
A17: City / Town | B17: Klerksdorp
A18: Postal Code | B18: 2570
A20: Street address
A21: Building | B21: Mayibuye
A22: Street No. & Name | B22: c/n Braam Fisher & Emily Hobhouse
A23: City / Town | B23: Klerksdorp
A24: Postal Code | B24: 2570
A26: General Contacts
A27: Telephone number | B27: 018 487 8009
A28: Fax number | B28: 018 464 2318
A30: C. POLITICAL LEADERSHIP
A31: Speaker: | C31: Secretary/PA to the Speaker:
A32: ID Number | C32: ID Number
A33: Title | B33: Ms | C33: Title | D33: Ms
A34: Name | B34: Stella Lebogang Modlane | C34: Name | D34: Annah Khoza
A35: Telephone number | B35: 0184878004 | C35: Telephone number | D35: 0184878004
A36: Cell number | B36: 0658524333 | C36: Cell number | D36: 0782300566
A37: Fax number | C37: Fax number
A38: E-mail address | B38: speaker@klerksdorp.org | C38: E-mail address | D38: speaker@klerksdorp.org
A40: Mayor/Executive Mayor: | C40: Secretary/PA to the Mayor/Executive Mayor:
A41: ID Number | C41: ID Number
A42: Title | B42: Mr | C42: Title | D42: Mrs
A43: Name | B43: James Ntsolela | C43: Name | D43: Amantle Obuseng
A44: Telephone number | B44: 0184878002 | C44: Telephone number | D44: 0184878002
A45: Cell number | B45: 0747933889 | C45: Cell number | D45: 0682557948
A46: Fax number | C46: Fax number
A47: E-mail address | B47: ymajova@klerksdorp.org | C47: E-mail address | D47: ymajova@klerksdorp.org
A49: Deputy Mayor/Executive Mayor: | C49: Secretary/PA to the Deputy Mayor/Executive Mayor:
A50: ID Number | C50: ID Number
A51: Title | C51: Title
A52: Name | C52: Name
A53: Telephone number | C53: Telephone number
A54: Cell number | C54: Cell number
A55: Fax number | C55: Fax number
A56: E-mail address | C56: E-mail address
A58: D. MANAGEMENT LEADERSHIP
A59: Municipal Manager: | C59: Secretary/PA to the Municipal Manager:
A60: ID Number | C60: ID Number
A61: Title | B61: Acting | C61: Title | D61: Ms
A62: Name | B62: Lesego Seametso | C62: Name | D62: Dikeledi Nkosi
A63: Telephone number | B63: 0184878009 | C63: Telephone number | D63: 0184878009
A64: Cell number | B64: 0760197668 | C64: Cell number | D64: 0827521457
A65: Fax number | C65: Fax number
A66: E-mail address | B66: dnkosi@klerksdorp.org | C66: E-mail address | D66: dnkosi@klerksdorp.org
A68: Chief Financial Officer | C68: Secretary/PA to the Chief Financial Officer
A69: ID Number | C69: ID Number
A70: Title | B70: Mr | C70: Title | D70: Mrs
A71: Name | B71: Peter Thelele | C71: Name | D71: Megan Senegal
A72: Telephone number | B72: 0184878017 | C72: Telephone number | D72: 0184878009
A73: Cell number | B73: 0814266596 | C73: Cell number
A74: Fax number | C74: Fax number
A75: E-mail address | B75: finance@klerksdorp.org | C75: E-mail address | D75: finance@klerksdorp.org
A77: Official responsible for submitting financial information | C77: Official responsible for submitting financial information
A78: ID Number | C78: ID Number
A79: Title | B79: Mrs | C79: Title | D79: Mr
A80: Name | B80: MEITIE SEBOLAI | C80: Name | D80: DRICKUS ROSSOUW
A81: Telephone number | B81: 0184878569 | C81: Telephone number | D81: 018 487 8518
A82: Cell number | C82: Cell number | D82: 083 627 7278
A83: Fax number | C83: Fax number | D83: 018 487 2318
A84: E-mail address | B84: meitie@klerksdorp.org | C84: E-mail address | D84: drossouw@klerksdorp.og
A85: Official responsible for submitting financial information | C85: Official responsible for submitting financial information
A86: ID Number | C86: ID Number
A87: Title | B87: Mrs | C87: Title | D87: Mrs
A88: Name | B88: TSAONE SEKGALA | C88: Name | D88: NALEDI MOEKETSI
A89: Telephone number | B89: 018 487 8549 | C89: Telephone number | D89: 018 487 8569
A90: Cell number | B90: 083 280 1159 | C90: Cell number | D90: 083 8222 077
A91: Fax number | C91: Fax number
A92: E-mail address | B92: osekgala@klerksdorp.org | C92: E-mail address | D92: sylvia@klerksdorp.org
A93: Official responsible for submitting financial information | C93: Official responsible for submitting financial information
A94: ID Number | C94: ID Number
A95: Title | C95: Title
A96: Name | C96: Name
A97: Telephone number | C97: Telephone number
A98: Cell number | C98: Cell number
A99: Fax number | C99: Fax number
A100: E-mail address | C100: E-mail address
A101: Official responsible for submitting financial information | C101: Official responsible for submitting financial information
A102: ID Number | C102: ID Number
A103: Title | C103: Title
A104: Name | C104: Name
A105: Telephone number | C105: Telephone number
A106: Cell number | C106: Cell number
A107: Fax number | C107: Fax number
A108: E-mail address | C108: E-mail address
A109: Official responsible for submitting financial information | C109: Official responsible for submitting financial information
A110: ID Number | C110: ID Number
A111: Title | C111: Title
A112: Name | C112: Name
A113: Telephone number | C113: Telephone number
A114: Cell number | C114: Cell number
A115: Fax number | C115: Fax number
A116: E-mail address | C116: E-mail address
A117: Official responsible for submitting financial information | C117: Official responsible for submitting financial information
A118: ID Number | C118: ID Number
A119: Title | C119: Title
A120: Name | C120: Name
A121: Telephone number | C121: Telephone number
A122: Cell number | C122: Cell number
A123: Fax number | C123: Fax number
A124: E-mail address | C124: E-mail address
A125: Official responsible for submitting financial information | C125: Official responsible for submitting financial information
A126: ID Number | C126: ID Number
A127: Title | C127: Title
A128: Name | C128: Name
A129: Telephone number | C129: Telephone number
A130: Cell number | C130: Cell number
A131: Fax number | C131: Fax number
A132: E-mail address | C132: E-mail address
A133: Official responsible for submitting financial information
A134: ID Number
A135: Title
A136: Name
A137: Telephone number
A138: Cell number
A139: Fax number
A140: E-mail address

Sheet A1-Sum
A1: =muni&" - "&Approve1 -> NW403 City Of Matlosana - Table A1 Budget Summary
A2: =desc -> Description | B2: =head1b -> 2020/21 | C2: =head1A -> 2021/22 | D2: =Head1 -> 2022/23 | E2: =Head2 -> Current Year 2023/24 | I2: =Head3 -> 2024/25 Medium Term Revenue & Expenditure Framework
A3: R thousands | B3: =Head5 -> Audited Outcome | C3: =Head5 -> Audited Outcome | D3: =Head5 -> Audited Outcome | E3: =Head6 -> Original Budget | F3: =Head7 -> Adjusted Budget | G3: =Head8 -> Full Year Forecast | H3: =Head5b -> Pre-audit outcome | I3: =Head9 -> Budget Year 2024/25 | J3: =Head10 -> Budget Year +1 2025/26 | K3: =Head11 -> Budget Year +2 2026/27
A4: Financial Performance
A5: Property rates | B5: ='A4-FinPerf RE'!C21 -> 425503361.1 | C5: ='A4-FinPerf RE'!D21 -> 451441226.4 | D5: ='A4-FinPerf RE'!E21 -> 456396936.2 | E5: ='A4-FinPerf RE'!F21 -> 561076166 | F5: ='A4-FinPerf RE'!G21 -> 546004467 | G5: ='A4-FinPerf RE'!H21 -> 546004467 | H5: ='A4-FinPerf RE'!I21 -> 469829302.7 | I5: ='A4-FinPerf RE'!J21 -> 593684392 | J5: ='A4-FinPerf RE'!K21 -> 616369951 | K5: ='A4-FinPerf RE'!L21 -> 644722968
A6: Service charges | B6: =SUM('A4-FinPerf RE'!C6:C9) -> 1766526458 | C6: =SUM('A4-FinPerf RE'!D6:D9) -> 1901216070 | D6: =SUM('A4-FinPerf RE'!E6:E9) -> 1949608127 | E6: =SUM('A4-FinPerf RE'!F6:F9) -> 2305666724 | F6: =SUM('A4-FinPerf RE'!G6:G9) -> 2110046965 | G6: =SUM('A4-FinPerf RE'!H6:H9) -> 2110046965 | H6: =SUM('A4-FinPerf RE'!I6:I9) -> 1873895163 | I6: =SUM('A4-FinPerf RE'!J6:J9) -> 2350094782 | J6: =SUM('A4-FinPerf RE'!K6:K9) -> 2458199150 | K6: =SUM('A4-FinPerf RE'!L6:L9) -> 2571276310
A7: Investment revenue | B7: ='A4-FinPerf RE'!C14 -> 8059667.51 | C7: ='A4-FinPerf RE'!D14 -> 10685431.08 | D7: ='A4-FinPerf RE'!E14 -> 15402442.26 | E7: ='A4-FinPerf RE'!F14 -> 9760918 | F7: ='A4-FinPerf RE'!G14 -> 9760918 | G7: ='A4-FinPerf RE'!H14 -> 9760918 | H7: ='A4-FinPerf RE'!I14 -> 8273858.07 | I7: ='A4-FinPerf RE'!J14 -> 10239203 | J7: ='A4-FinPerf RE'!K14 -> 10740924 | K7: ='A4-FinPerf RE'!L14 -> 11235006
A8: Transfer and subsidies - Operational | B8: ='A4-FinPerf RE'!C25 -> 530447694.2 | C8: ='A4-FinPerf RE'!D25 -> 511230910 | D8: ='A4-FinPerf RE'!E25 -> 559520046.7 | E8: ='A4-FinPerf RE'!F25 -> 616920600 | F8: ='A4-FinPerf RE'!G25 -> 616487600 | G8: ='A4-FinPerf RE'!H25 -> 616487600 | H8: ='A4-FinPerf RE'!I25 -> 594827251.9 | I8: ='A4-FinPerf RE'!J25 -> 657797200 | J8: ='A4-FinPerf RE'!K25 -> 698315000 | K8: ='A4-FinPerf RE'!L25 -> 741650000
A9: Other own revenue | B9: ='A4-FinPerf RE'!C32-SUM(B5:B8) -> 869728249.6 | C9: ='A4-FinPerf RE'!D32-SUM(C5:C8) -> 821241344.4 | D9: ='A4-FinPerf RE'!E32-SUM(D5:D8) -> 764794284.2 | E9: ='A4-FinPerf RE'!F32-SUM(E5:E8) -> 721131246 | F9: ='A4-FinPerf RE'!G32-SUM(F5:F8) -> 643721041 | G9: ='A4-FinPerf RE'!H32-SUM(G5:G8) -> 643721041 | H9: ='A4-FinPerf RE'!I32-SUM(H5:H8) -> 673855356.4 | I9: ='A4-FinPerf RE'!J32-SUM(I5:I8) -> 653045276 | J9: ='A4-FinPerf RE'!K32-SUM(J5:J8) -> 658846063 | K9: ='A4-FinPerf RE'!L32-SUM(K5:K8) -> 682714212
A10: ='A4-FinPerf RE'!A32 -> Total Revenue (excluding capital transfers and contributions) | B10: =SUM(B5:B9) -> 3600265430 | C10: =SUM(C5:C9) -> 3695814982 | D10: 3745721837 | E10: 4214555654 | F10: 3926020991 | G10: 3926020991 | H10: 3620680932 | I10: 4264860853 | J10: 4442471088 | K10: 4651598496
A11: Employee costs | B11: ='A4-FinPerf RE'!C34 -> 711929298 | C11: ='A4-FinPerf RE'!D34 -> 686188405.8 | D11: ='A4-FinPerf RE'!E34 -> 696837022.5 | E11: ='A4-FinPerf RE'!F34 -> 785821472 | F11: ='A4-FinPerf RE'!G34 -> 770974710 | G11: ='A4-FinPerf RE'!H34 -> 770974710 | H11: ='A4-FinPerf RE'!I34 -> 708607742.2 | I11: ='A4-FinPerf RE'!J34 -> 794681905 | J11: ='A4-FinPerf RE'!K34 -> 835809548 | K11: ='A4-FinPerf RE'!L34 -> 874256784
A12: Remuneration of councillors | B12: ='A4-FinPerf RE'!C35 -> 36495510.29 | C12: ='A4-FinPerf RE'!D35 -> 34189332.6 | D12: ='A4-FinPerf RE'!E35 -> 36911611.07 | E12: ='A4-FinPerf RE'!F35 -> 41586467 | F12: ='A4-FinPerf RE'!G35 -> 43497293 | G12: ='A4-FinPerf RE'!H35 -> 43497293 | H12: ='A4-FinPerf RE'!I35 -> 36789489.61 | I12: ='A4-FinPerf RE'!J35 -> 46107129 | J12: ='A4-FinPerf RE'!K35 -> 48228064 | K12: ='A4-FinPerf RE'!L35 -> 50446558
A13: Depreciation and amortisation | B13: ='A4-FinPerf RE'!C39 -> 417553088.7 | C13: ='A4-FinPerf RE'!D39 -> 383480410.6 | D13: ='A4-FinPerf RE'!E39 -> 382953200.1 | E13: ='A4-FinPerf RE'!F39 -> 440000000 | F13: ='A4-FinPerf RE'!G39 -> 420000000 | G13: ='A4-FinPerf RE'!H39 -> 420000000 | H13: ='A4-FinPerf RE'!I39 -> 316085315.8 | I13: ='A4-FinPerf RE'!J39 -> 411097601 | J13: ='A4-FinPerf RE'!K39 -> 456158103 | K13: ='A4-FinPerf RE'!L39 -> 477141378
A14: Interest | B14: ='A4-FinPerf RE'!C40 -> 74477210.65 | C14: ='A4-FinPerf RE'!D40 -> 116935916 | D14: ='A4-FinPerf RE'!E40 -> 237534472.3 | E14: ='A4-FinPerf RE'!F40 -> 10710640 | F14: ='A4-FinPerf RE'!G40 -> 10707640 | G14: ='A4-FinPerf RE'!H40 -> 10707640 | H14: ='A4-FinPerf RE'!I40 -> 793779.11 | I14: ='A4-FinPerf RE'!J40 -> 10144245 | J14: ='A4-FinPerf RE'!K40 -> 10610895 | K14: ='A4-FinPerf RE'!L40 -> 11098993
A15: Inventory consumed and bulk purchases | B15: ='A4-FinPerf RE'!C36+'A4-FinPerf RE'!C37 -> 788645528.4 | C15: ='A4-FinPerf RE'!D36+'A4-FinPerf RE'!D37 -> 912765989.9 | D15: ='A4-FinPerf RE'!E36+'A4-FinPerf RE'!E37 -> 907467927.6 | E15: ='A4-FinPerf RE'!F36+'A4-FinPerf RE'!F37 -> 1550025144 | F15: ='A4-FinPerf RE'!G36+'A4-FinPerf RE'!G37 -> 1550025144 | G15: ='A4-FinPerf RE'!H36+'A4-FinPerf RE'!H37 -> 1550025144 | H15: ='A4-FinPerf RE'!I36+'A4-FinPerf RE'!I37 -> 578253253.9 | I15: ='A4-FinPerf RE'!J36+'A4-FinPerf RE'!J37 -> 1359300934 | J15: ='A4-FinPerf RE'!K36+'A4-FinPerf RE'!K37 -> 1507145740 | K15: ='A4-FinPerf RE'!L36+'A4-FinPerf RE'!L37 -> 1025000000
A16: Transfers and subsidies | B16: ='A4-FinPerf RE'!C42 -> 0 | C16: ='A4-FinPerf RE'!D42 -> 0 | D16: ='A4-FinPerf RE'!E42 -> 0 | E16: ='A4-FinPerf RE'!F42 -> 0 | F16: ='A4-FinPerf RE'!G42 -> 0 | G16: ='A4-FinPerf RE'!H42 -> 0 | H16: ='A4-FinPerf RE'!I42 -> 0 | I16: ='A4-FinPerf RE'!J42 -> 0 | J16: ='A4-FinPerf RE'!K42 -> 0 | K16: ='A4-FinPerf RE'!L42 -> 0
A17: Other expenditure | B17: ='A4-FinPerf RE'!C47-SUM(B11:B16) -> 1627125151 | C17: ='A4-FinPerf RE'!D47-SUM(C11:C16) -> 1873462391 | D17: ='A4-FinPerf RE'!E47-SUM(D11:D16) -> 1952982242 | E17: ='A4-FinPerf RE'!F47-SUM(E11:E16) -> 1364177164 | F17: ='A4-FinPerf RE'!G47-SUM(F11:F16) -> 1018085711 | G17: ='A4-FinPerf RE'!H47-SUM(G11:G16) -> 1018085711 | H17: ='A4-FinPerf RE'!I47-SUM(H11:H16) -> 824090837.2 | I17: ='A4-FinPerf RE'!J47-SUM(I11:I16) -> 1641308990 | J17: ='A4-FinPerf RE'!K47-SUM(J11:J16) -> 1466361044 | K17: ='A4-FinPerf RE'!L47-SUM(K11:K16) -> 1213918701
A18: ='A4-FinPerf RE'!A47 -> Total Expenditure | B18: =SUM(B11:B17) -> 3656225787 | C18: =SUM(C11:C17) -> 4007022446 | D18: 4214686475 | E18: 4192320887 | F18: 3813290498 | G18: 3813290498 | H18: 2464620418 | I18: 4262640804 | J18: 4324313394 | K18: 3651862414
A19: ='A4-FinPerf RE'!A48 -> Surplus/(Deficit) | B19: =B10-B18 -> -55960357.08 | C19: =C10-C18 -> -311207463.9 | D19: -468964638.6 | E19: 22234767 | F19: 112730493 | G19: 112730493 | H19: 1156060514 | I19: 2220049 | J19: 118157694 | K19: 999736082
A20: ='A4-FinPerf RE'!A49 -> Transfers and subsidies - capital (monetary allocations) | B20: ='A4-FinPerf RE'!C49 -> 189550763.4 | C20: ='A4-FinPerf RE'!D49 -> 156811322.9 | D20: ='A4-FinPerf RE'!E49 -> 107436569.9 | E20: ='A4-FinPerf RE'!F49 -> 191469400 | F20: ='A4-FinPerf RE'!G49 -> 171529401 | G20: ='A4-FinPerf RE'!H49 -> 171529401 | H20: ='A4-FinPerf RE'!I49 -> 105889534.4 | I20: ='A4-FinPerf RE'!J49 -> 186249799 | J20: ='A4-FinPerf RE'!K49 -> 197524000 | K20: ='A4-FinPerf RE'!L49 -> 225287000
A21: ='A4-FinPerf RE'!A50 -> Transfers and subsidies - capital (in-kind) | B21: ='A4-FinPerf RE'!C50 -> 0 | C21: ='A4-FinPerf RE'!D50 -> 0 | D21: ='A4-FinPerf RE'!E50 -> 0 | E21: ='A4-FinPerf RE'!F50 -> 0 | F21: ='A4-FinPerf RE'!G50 -> 0 | G21: ='A4-FinPerf RE'!H50 -> 0 | H21: ='A4-FinPerf RE'!I50 -> 0 | I21: ='A4-FinPerf RE'!J50 -> 0 | J21: ='A4-FinPerf RE'!K50 -> 0 | K21: ='A4-FinPerf RE'!L50 -> 0
A22: ='A4-FinPerf RE'!A51 -> Surplus/(Deficit) after capital transfers & contributions | B22: =B19+SUM(B20:B21) -> 133590406.3 | C22: =C19+SUM(C20:C21) -> -154396140.9 | D22: -361528068.7 | E22: 213704167 | F22: 284259894 | G22: 284259894 | H22: 1261950048 | I22: 188469848 | J22: 315681694 | K22: 1225023082
A23: ='A4-FinPerf RE'!A57 -> Share of Surplus/Deficit attributable to Associate | B23: ='A4-FinPerf RE'!C57 -> 0 | C23: ='A4-FinPerf RE'!D57 -> 0 | D23: ='A4-FinPerf RE'!E57 -> 0 | E23: ='A4-FinPerf RE'!F57 -> 0 | F23: ='A4-FinPerf RE'!G57 -> 0 | G23: ='A4-FinPerf RE'!H57 -> 0 | H23: ='A4-FinPerf RE'!I57 -> 0 | I23: ='A4-FinPerf RE'!J57 -> 0 | J23: ='A4-FinPerf RE'!K57 -> 0 | K23: ='A4-FinPerf RE'!L57 -> 0
A24: ='A4-FinPerf RE'!A59 -> Surplus/(Deficit) for the year | B24: =B22+B23 -> 133590406.3 | C24: =C22+C23 -> -154396140.9 | D24: -361528068.7 | E24: 213704167 | F24: 284259894 | G24: 284259894 | H24: 1261950048 | I24: 188469848 | J24: 315681694 | K24: 1225023082
A25: Capital expenditure & funds sources
A26: Capital expenditure | B26: ='A5-Capex'!C63 -> 191472532.2 | C26: ='A5-Capex'!D63 -> 152540817.6 | D26: ='A5-Capex'!E63 -> 83951958.14 | E26: ='A5-Capex'!F63 -> 231469401 | F26: ='A5-Capex'!G63 -> 216856548 | G26: ='A5-Capex'!H63 -> 216856548 | H26: ='A5-Capex'!I63 -> 108128757.8 | I26: ='A5-Capex'!J63 -> 236249799 | J26: ='A5-Capex'!K63 -> 197524000 | K26: ='A5-Capex'!L63 -> 225286999
A27: Transfers recognised - capital | B27: ='A5-Capex'!C70 -> 184303800.3 | C27: ='A5-Capex'!D70 -> 145096678.9 | D27: ='A5-Capex'!E70 -> 77726955.16 | E27: ='A5-Capex'!F70 -> 191469401 | F27: ='A5-Capex'!G70 -> 195856548 | G27: ='A5-Capex'!H70 -> 195856548 | H27: ='A5-Capex'!I70 -> 106801422.7 | I27: ='A5-Capex'!J70 -> 186249799 | J27: ='A5-Capex'!K70 -> 197524000 | K27: ='A5-Capex'!L70 -> 225286999
A29: ='A5-Capex'!A72 -> Borrowing | B29: ='A5-Capex'!C72 -> 0 | C29: ='A5-Capex'!D72 -> 0 | D29: ='A5-Capex'!E72 -> 0 | E29: ='A5-Capex'!F72 -> 0 | F29: ='A5-Capex'!G72 -> 0 | G29: ='A5-Capex'!H72 -> 0 | H29: ='A5-Capex'!I72 -> 0 | I29: ='A5-Capex'!J72 -> 0 | J29: ='A5-Capex'!K72 -> 0 | K29: ='A5-Capex'!L72 -> 0
A30: ='A5-Capex'!A73 -> Internally generated funds | B30: ='A5-Capex'!C73 -> 7168731.9 | C30: ='A5-Capex'!D73 -> 7444138.71 | D30: ='A5-Capex'!E73 -> 6225002.98 | E30: ='A5-Capex'!F73 -> 40000000 | F30: ='A5-Capex'!G73 -> 21000000 | G30: ='A5-Capex'!H73 -> 21000000 | H30: ='A5-Capex'!I73 -> 1327335.1 | I30: ='A5-Capex'!J73 -> 50000000 | J30: ='A5-Capex'!K73 -> 0 | K30: ='A5-Capex'!L73 -> 0
A31: Total sources of capital funds | B31: =+B27+B29+B30 -> 191472532.2 | C31: =+C27+C29+C30 -> 152540817.6 | D31: 83951958.14 | E31: 231469401 | F31: 216856548 | G31: 216856548 | H31: 108128757.8 | I31: 236249799 | J31: 197524000 | K31: 225286999
A32: Financial position
A33: ='A6-FinPos'!A13 -> Total current assets | B33: ='A6-FinPos'!C13 -> 1133746726 | C33: ='A6-FinPos'!D13 -> 1865464133 | D33: ='A6-FinPos'!E13 -> 1903958580 | E33: ='A6-FinPos'!F13 -> 486253102 | F33: ='A6-FinPos'!G13 -> 1537017201 | G33: ='A6-FinPos'!H13 -> 1537017201 | H33: ='A6-FinPos'!I13 -> 3463167735 | I33: ='A6-FinPos'!J13 -> 759880605 | J33: ='A6-FinPos'!K13 -> 4334629820 | K33: ='A6-FinPos'!L13 -> 855159934
A34: ='A6-FinPos'!A25 -> Total non current assets | B34: ='A6-FinPos'!C25 -> 5390070361 | C34: ='A6-FinPos'!D25 -> 5565160073 | D34: ='A6-FinPos'!E25 -> 5453530563 | E34: ='A6-FinPos'!F25 -> 4119658034 | F34: ='A6-FinPos'!G25 -> 4105045181 | G34: ='A6-FinPos'!H25 -> 4105045181 | H34: ='A6-FinPos'!I25 -> 5245574005 | I34: ='A6-FinPos'!J25 -> 3849404621 | J34: ='A6-FinPos'!K25 -> 3846810371 | K34: ='A6-FinPos'!L25 -> 225286999
A35: ='A6-FinPos'!A37 -> Total current liabilities | B35: ='A6-FinPos'!C37 -> 2827374565 | C35: ='A6-FinPos'!D37 -> 4028877127 | D35: ='A6-FinPos'!E37 -> 4977029495 | E35: ='A6-FinPos'!F37 -> 230387263 | F35: ='A6-FinPos'!G37 -> 1214930204 | G35: ='A6-FinPos'!H37 -> 1214930204 | H35: ='A6-FinPos'!I37 -> 5318229090 | I35: ='A6-FinPos'!J37 -> 3555959356 | J35: ='A6-FinPos'!K37 -> 3757797873 | K35: ='A6-FinPos'!L37 -> 643413260
A36: ='A6-FinPos'!A43 -> Total non current liabilities | B36: ='A6-FinPos'!C43 -> 48848229.69 | C36: ='A6-FinPos'!D43 -> 42265259.54 | D36: ='A6-FinPos'!E43 -> 26575963.32 | E36: ='A6-FinPos'!F43 -> 81274059 | F36: ='A6-FinPos'!G43 -> 81274059 | G36: ='A6-FinPos'!H43 -> 81274059 | H36: ='A6-FinPos'!I43 -> 16429929.88 | I36: ='A6-FinPos'!J43 -> 81274059 | J36: ='A6-FinPos'!K43 -> 82086800 | K36: ='A6-FinPos'!L43 -> 0
A37: Community wealth/Equity | B37: ='A6-FinPos'!C50 -> 4103041554 | C37: ='A6-FinPos'!D50 -> 3690653717 | D37: ='A6-FinPos'!E50 -> 2876893597 | E37: ='A6-FinPos'!F50 -> 4390837692 | F37: ='A6-FinPos'!G50 -> 4461393419 | G37: ='A6-FinPos'!H50 -> 4461393419 | H37: ='A6-FinPos'!I50 -> 3615812417 | I37: ='A6-FinPos'!J50 -> 973252632 | J37: ='A6-FinPos'!K50 -> 4408178397 | K37: ='A6-FinPos'!L50 -> 1225023082
A38: Cash flows
A39: Net cash from (used) operating | B39: ='A7-CFlow'!C17 -> 1870685958 | C39: ='A7-CFlow'!D17 -> 2152062854 | D39: ='A7-CFlow'!E17 -> 1691423431 | E39: ='A7-CFlow'!F17 -> 218461129 | F39: ='A7-CFlow'!G17 -> -11023794 | G39: ='A7-CFlow'!H17 -> -11023794 | H39: ='A7-CFlow'!I17 -> 2388215736 | I39: ='A7-CFlow'!J17 -> -119057310 | J39: ='A7-CFlow'!K17 -> -19605221 | K39: ='A7-CFlow'!L17 -> 228999859
A40: Net cash from (used) investing | B40: ='A7-CFlow'!C26 -> -140342184.1 | C40: ='A7-CFlow'!D26 -> -152540817.6 | D40: ='A7-CFlow'!E26 -> -83951958.14 | E40: ='A7-CFlow'!F26 -> -231469401 | F40: ='A7-CFlow'!G26 -> -216856548 | G40: ='A7-CFlow'!H26 -> -216856548 | H40: ='A7-CFlow'!I26 -> -108128757.8 | I40: ='A7-CFlow'!J26 -> -236249799 | J40: ='A7-CFlow'!K26 -> -197524000 | K40: ='A7-CFlow'!L26 -> -225286999
A41: Net cash from (used) financing | B41: ='A7-CFlow'!C35 -> 0 | C41: ='A7-CFlow'!D35 -> 0 | D41: ='A7-CFlow'!E35 -> 0 | E41: ='A7-CFlow'!F35 -> -2300000 | F41: ='A7-CFlow'!G35 -> -2300000 | G41: ='A7-CFlow'!H35 -> -2300000 | H41: ='A7-CFlow'!I35 -> 864648.31 | I41: ='A7-CFlow'!J35 -> -7300000 | J41: ='A7-CFlow'!K35 -> -725000 | K41: ='A7-CFlow'!L35 -> -2530000
A42: =LEFT('A7-CFlow'!A39,37) -> Cash/cash equivalents at the year end | B42: ='A7-CFlow'!C39 -> 1593957432 | C42: ='A7-CFlow'!D39 -> 1804120163 | D42: ='A7-CFlow'!E39 -> 1832392729 | E42: ='A7-CFlow'!F39 -> 197691728 | F42: ='A7-CFlow'!G39 -> 75498534 | G42: ='A7-CFlow'!H39 -> 75498534 | H42: ='A7-CFlow'!I39 -> 2280951627 | I42: ='A7-CFlow'!J39 -> -269928232 | J42: ='A7-CFlow'!K39 -> -487782453 | K42: ='A7-CFlow'!L39 -> -486599593
A44: Cash backing/surplus reconciliation
A45: ='A8-ResRecon'!A4 -> Cash and investments available | B45: ='A8-ResRecon'!C8 -> -195401873.4 | C45: ='A8-ResRecon'!D8 -> 224921256.7 | D45: ='A8-ResRecon'!E8 -> 104773259.4 | E45: ='A8-ResRecon'!F8 -> 197691728 | F45: ='A8-ResRecon'!G8 -> 522893308 | G45: ='A8-ResRecon'!H8 -> 522893308 | H45: ='A8-ResRecon'!I8 -> 498203114 | I45: ='A8-ResRecon'!J8 -> -453678031 | J45: ='A8-ResRecon'!K8 -> 3465847823 | K45: ='A8-ResRecon'!L8 -> 3683179744
A46: ='A8-ResRecon'!A10 -> Application of cash and investments | B46: ='A8-ResRecon'!C18 -> 1487163374 | C46: ='A8-ResRecon'!D18 -> 2332530039 | D46: ='A8-ResRecon'!E18 -> 3236281219 | E46: ='A8-ResRecon'!F18 -> -60295650 | F46: ='A8-ResRecon'!G18 -> 714016291 | G46: ='A8-ResRecon'!H18 -> 714016291 | H46: ='A8-ResRecon'!I18 -> 2706407926 | I46: ='A8-ResRecon'!J18 -> 2575669443 | J46: ='A8-ResRecon'!K18 -> 2863075261 | K46: ='A8-ResRecon'!L18 -> 3041243260
A47: Balance - surplus (shortfall) | B47: =B45-B46 -> -1682565247 | C47: =C45-C46 -> -2107608782 | D47: -3131507959 | E47: 257987378 | F47: -191122983 | G47: -191122983 | H47: -2208204812 | I47: -3029347474 | J47: 602772562 | K47: 641936484
A48: Asset management
A49: Asset register summary (WDV) | B49: ='A9-Asset'!C180 -> 5390070361 | C49: ='A9-Asset'!D180 -> 5565160073 | D49: ='A9-Asset'!E180 -> 5453530563 | E49: ='A9-Asset'!F180 -> 4119625279 | F49: ='A9-Asset'!G180 -> 4105012426 | G49: ='A9-Asset'!H180 -> 4105012426 | I49: ='A9-Asset'!I180 -> 3849371866 | J49: ='A9-Asset'!J180 -> 3846777288 | K49: ='A9-Asset'!K180 -> 225286999
A50: ='A9-Asset'!A183 -> Depreciation | B50: ='A9-Asset'!C183 -> 417553088.7 | C50: ='A9-Asset'!D183 -> 383480410.5 | D50: ='A9-Asset'!E183 -> 382953200.1 | E50: ='A9-Asset'!F183 -> 440000000 | F50: ='A9-Asset'!G183 -> 420000000 | G50: ='A9-Asset'!H183 -> 420000000 | I50: ='A9-Asset'!I183 -> 411097601 | J50: ='A9-Asset'!J183 -> 456158103 | K50: ='A9-Asset'!K183 -> 477141378
A51: Renewal and Upgrading of Existing Assets | B51: ='A9-Asset'!C40+'A9-Asset'!C75 -> 22367520.37 | C51: ='A9-Asset'!D40+'A9-Asset'!D75 -> 19161377.61 | D51: ='A9-Asset'!E40+'A9-Asset'!E75 -> 8941906.25 | E51: ='A9-Asset'!F40+'A9-Asset'!F75 -> 30943764 | F51: ='A9-Asset'!G40+'A9-Asset'!G75 -> 38628728 | G51: ='A9-Asset'!H40+'A9-Asset'!H75 -> 38628728 | I51: ='A9-Asset'!I40+'A9-Asset'!I75 -> 35100196 | J51: ='A9-Asset'!J40+'A9-Asset'!J75 -> 77918203 | K51: ='A9-Asset'!K40+'A9-Asset'!K75 -> 44984742
A52: Repairs and Maintenance | B52: ='A9-Asset'!C184 -> 125569101.3 | C52: ='A9-Asset'!D184 -> 115619354 | D52: ='A9-Asset'!E184 -> 137525528.5 | E52: ='A9-Asset'!F184 -> 278401658 | F52: ='A9-Asset'!G184 -> 306164845 | G52: ='A9-Asset'!H184 -> 306164845 | I52: ='A9-Asset'!I184 -> 264424176 | J52: ='A9-Asset'!J184 -> 366671730 | K52: ='A9-Asset'!K184 -> 339668948
A54: Free services
A55: Cost of Free Basic Services provided | B55: ='A10-SerDel'!C60 -> 123887857 | C55: ='A10-SerDel'!D60 -> 174700819.4 | D55: ='A10-SerDel'!E60 -> 123708843.7 | E55: ='A10-SerDel'!F60 -> 194797610 | F55: ='A10-SerDel'!G60 -> 194797610 | G55: ='A10-SerDel'!H60 -> 194797610 | I55: ='A10-SerDel'!I60 -> 207755533 | J55: ='A10-SerDel'!J60 -> 217312289 | K55: ='A10-SerDel'!K60 -> 227308656
A56: Revenue cost of free services provided | B56: ='A10-SerDel'!C79 -> 131391353.3 | C56: ='A10-SerDel'!D79 -> 142242472.9 | D56: ='A10-SerDel'!E79 -> 144991578.7 | E56: ='A10-SerDel'!F79 -> 97933263 | F56: ='A10-SerDel'!G79 -> 183006562 | G56: ='A10-SerDel'!H79 -> 183006562 | I56: ='A10-SerDel'!I79 -> 104865602 | J56: ='A10-SerDel'!J79 -> 189035446 | K56: ='A10-SerDel'!K79 -> 197731077
A57: Households below minimum service level
A58: ='A10-SerDel'!A5 -> Water: | B58: ='A10-SerDel'!C14 -> 0 | C58: ='A10-SerDel'!D14 -> 0 | D58: ='A10-SerDel'!E14 -> 0 | E58: ='A10-SerDel'!F14 -> 0 | F58: ='A10-SerDel'!G14 -> 0 | G58: ='A10-SerDel'!H14 -> 0 | I58: ='A10-SerDel'!I14 -> 0 | J58: ='A10-SerDel'!J14 -> 0 | K58: ='A10-SerDel'!K14 -> 0
A59: ='A10-SerDel'!A16 -> Sanitation/sewerage: | B59: ='A10-SerDel'!C26 -> 4960 | C59: ='A10-SerDel'!D26 -> 4960 | D59: ='A10-SerDel'!E26 -> 0 | E59: ='A10-SerDel'!F26 -> 4970 | F59: ='A10-SerDel'!G26 -> 4970 | G59: ='A10-SerDel'!H26 -> 4970 | I59: ='A10-SerDel'!I26 -> 4970 | J59: ='A10-SerDel'!J26 -> 4970 | K59: ='A10-SerDel'!K26 -> 5198
A60: ='A10-SerDel'!A28 -> Energy: | B60: ='A10-SerDel'!C35 -> 179990 | C60: ='A10-SerDel'!D35 -> 179990 | D60: ='A10-SerDel'!E35 -> 0 | E60: ='A10-SerDel'!F35 -> 20194 | F60: ='A10-SerDel'!G35 -> 20194 | G60: ='A10-SerDel'!H35 -> 20194 | I60: ='A10-SerDel'!I35 -> 20451 | J60: ='A10-SerDel'!J35 -> 20670 | K60: ='A10-SerDel'!K35 -> 21621
A61: ='A10-SerDel'!A37 -> Refuse: | B61: ='A10-SerDel'!C45 -> 8146 | C61: ='A10-SerDel'!D45 -> 8146 | D61: ='A10-SerDel'!E45 -> 0 | E61: ='A10-SerDel'!F45 -> 12082 | F61: ='A10-SerDel'!G45 -> 12082 | G61: ='A10-SerDel'!H45 -> 12082 | I61: ='A10-SerDel'!I45 -> 15503 | J61: ='A10-SerDel'!J45 -> 14056 | K61: ='A10-SerDel'!K45 -> 14703

Sheet A2-FinPerf SC
A1: =muni&" - "&Approve3 -> NW403 City Of Matlosana - Table A2 Budgeted Financial Performance (revenue and expenditure by functional classification)
A2: ="Functional Classification "&desc -> Functional Classification Description | B2: =head27 -> Ref | C2: =head1b -> 2020/21 | D2: =head1A -> 2021/22 | E2: =Head1 -> 2022/23 | F2: =Head2 -> Current Year 2023/24 | I2: =Head3 -> 2024/25 Medium Term Revenue & Expenditure Framework
A3: R thousand | B3: 1 | C3: =Head5 -> Audited Outcome | D3: =Head5 -> Audited Outcome | E3: =Head5 -> Audited Outcome | F3: =Head6 -> Original Budget | G3: =Head7 -> Adjusted Budget | H3: =Head8 -> Full Year Forecast | I3: =Head9 -> Budget Year 2024/25 | J3: =Head10 -> Budget Year +1 2025/26 | K3: =Head11 -> Budget Year +2 2026/27
A4: Revenue - Functional
A5: Governance and administration | C5: =SUM(C6:C8) -> 1031368008 | D5: =SUM(D6:D8) -> 1103391677 | E5: 1188283354 | F5: 1360784213 | G5: 1335164008 | H5: 1335164008 | I5: 1424033512 | J5: 1492666245 | K5: 1547103778
A6: Executive and council | C6: =A2A!C6 -> -5518330.46 | D6: =A2A!D6 -> 952014.99 | E6: =A2A!E6 -> -13807258.74 | F6: =A2A!F6 -> 2660781 | G6: =A2A!G6 -> 2660781 | H6: =A2A!H6 -> 2660781 | I6: =A2A!I6 -> 1430341 | J6: =A2A!J6 -> 2563057 | K6: =A2A!K6 -> 2680959
A7: Finance and administration | C7: =A2A!C9 -> 1036886338 | D7: =A2A!D9 -> 1102439662 | E7: =A2A!E9 -> 1202090613 | F7: =A2A!F9 -> 1358123432 | G7: =A2A!G9 -> 1332503227 | H7: =A2A!H9 -> 1332503227 | I7: =A2A!I9 -> 1422603171 | J7: =A2A!J9 -> 1490103188 | K7: =A2A!K9 -> 1544422819
A8: Internal audit | C8: =A2A!C23 -> 0 | D8: =A2A!D23 -> 0 | E8: =A2A!E23 -> 0 | F8: =A2A!F23 -> 0 | G8: =A2A!G23 -> 0 | H8: =A2A!H23 -> 0 | I8: =A2A!I23 -> 0 | J8: =A2A!J23 -> 0 | K8: =A2A!K23 -> 0
A9: Community and public safety | C9: =SUM(C10:C14) -> 473454753.9 | D9: =SUM(D10:D14) -> 325340475.4 | E9: 143887084.6 | F9: 79167723 | G9: 50728208 | H9: 50728208 | I9: 69283105 | J9: 77280557 | K9: 59228781
A10: Community and social services | C10: =A2A!C26 -> 408868723.8 | D10: =A2A!D26 -> 263726662.3 | E10: =A2A!E26 -> 101091234.2 | F10: =A2A!F26 -> 4679358 | G10: =A2A!G26 -> 4442358 | H10: =A2A!H26 -> 4442358 | I10: =A2A!I26 -> 3871932 | J10: =A2A!J26 -> 4046118 | K10: =A2A!K26 -> 4177914
A11: Sport and recreation | C11: =A2A!C48 -> 14669788.38 | D11: =A2A!D48 -> 29670284.84 | E11: =A2A!E48 -> 3782727.63 | F11: =A2A!F48 -> 7710370 | G11: =A2A!G48 -> 7710370 | H11: =A2A!H48 -> 7710370 | I11: =A2A!I48 -> 15833701 | J11: =A2A!J48 -> 21378713 | K11: =A2A!K48 -> 809775
A12: Public safety | C12: =A2A!C54 -> 49916241.7 | D12: =A2A!D54 -> 28135949.15 | E12: =A2A!E54 -> 31481990.35 | F12: =A2A!F54 -> 31777995 | G12: =A2A!G54 -> 28844542 | H12: =A2A!H54 -> 28844542 | I12: =A2A!I54 -> 39398911 | J12: =A2A!J54 -> 41208951 | K12: =A2A!K54 -> 43104565
A13: Housing | C13: =A2A!C63 -> 0 | D13: =A2A!D63 -> 3807579.14 | E13: =A2A!E63 -> 7531132.41 | F13: =A2A!F63 -> 35000000 | G13: =A2A!G63 -> 9730938 | H13: =A2A!H63 -> 9730938 | I13: =A2A!I63 -> 10178561 | J13: =A2A!J63 -> 10646775 | K13: =A2A!K63 -> 11136527
A14: Health | C14: =A2A!C66 -> 0 | D14: =A2A!D66 -> 0 | E14: =A2A!E66 -> 0 | F14: =A2A!F66 -> 0 | G14: =A2A!G66 -> 0 | H14: =A2A!H66 -> 0 | I14: =A2A!I66 -> 0 | J14: =A2A!J66 -> 0 | K14: =A2A!K66 -> 0
A15: Economic and environmental services | C15: =SUM(C16:C18) -> 67002556.52 | D15: =SUM(D16:D18) -> 70958835.89 | E15: 40705395.8 | F15: 59718949 | G15: 58400380 | H15: 58400380 | I15: 25871699 | J15: 27271579 | K15: 51908182
A16: Planning and development | C16: =A2A!C75 -> 9354287.3 | D16: =A2A!D75 -> 9992656.79 | E16: =A2A!E75 -> 9987323.34 | F16: =A2A!F75 -> 11845622 | G16: =A2A!G75 -> 11845622 | H16: =A2A!H75 -> 11845622 | I16: =A2A!I75 -> 11553969 | J16: =A2A!J75 -> 11581804 | K16: =A2A!K75 -> 12342352
A17: Road transport | C17: =A2A!C86 -> 57431871.72 | D17: =A2A!D86 -> 60814367.48 | E17: =A2A!E86 -> 30535870.89 | F17: =A2A!F86 -> 47652116 | G17: =A2A!G86 -> 46333547 | H17: =A2A!H86 -> 46333547 | I17: =A2A!I86 -> 14209053 | J17: =A2A!J86 -> 15576098 | K17: =A2A!K86 -> 39446924
A18: Environmental protection | C18: =A2A!C91 -> 216397.5 | D18: =A2A!D91 -> 151811.62 | E18: =A2A!E91 -> 182201.57 | F18: =A2A!F91 -> 221211 | G18: =A2A!G91 -> 221211 | H18: =A2A!H91 -> 221211 | I18: =A2A!I91 -> 108677 | J18: =A2A!J91 -> 113677 | K18: =A2A!K91 -> 118906
A19: Trading services | C19: =SUM(C20:C23) -> 2188481216 | D19: =SUM(D20:D23) -> 2316072325 | E19: 2451962586 | F19: 2883406872 | G19: 2628872887 | H19: 2628872887 | I19: 2901971178 | J19: =SUM(J20:J23) -> 3007177192 | K19: 3191867661
A20: Energy sources | C20: =A2A!C99 -> 953142854.7 | D20: =A2A!D99 -> 1017620228 | E20: =A2A!E99 -> 964401425.8 | F20: =A2A!F99 -> 1167556964 | G20: =A2A!G99 -> 1129247570 | H20: =A2A!H99 -> 1129247570 | I20: =A2A!I99 -> 1167621724 | J20: =A2A!J99 -> 1228816829 | K20: =A2A!K99 -> 1285477268
A21: Water management | C21: =A2A!C103 -> 851986850.7 | D21: =A2A!D103 -> 879795771.4 | E21: =A2A!E103 -> 986050634.4 | F21: =A2A!F103 -> 1048742393 | G21: =A2A!G103 -> 937425661 | H21: =A2A!H103 -> 937425661 | I21: =A2A!I103 -> 1092663201 | J21: =A2A!J103 -> 1117733462 | K21: =A2A!K103 -> 1185505508
A22: Waste water management | C22: =A2A!C107 -> 157705179.3 | D22: =A2A!D107 -> 143839765.8 | E22: =A2A!E107 -> 155436461.7 | F22: =A2A!F107 -> 242313026 | G22: =A2A!G107 -> 174702422 | H22: =A2A!H107 -> 174702422 | I22: =A2A!I107 -> 253895202 | J22: =A2A!J107 -> 286167645 | K22: =A2A!K107 -> 339479113
A23: Waste management | C23: =A2A!C112 -> 225646330.9 | D23: =A2A!D112 -> 274816559.8 | E23: =A2A!E112 -> 346074063.8 | F23: =A2A!F112 -> 424794489 | G23: =A2A!G112 -> 387497234 | H23: =A2A!H112 -> 387497234 | I23: =A2A!I112 -> 387791051 | J23: =A2A!J112 -> 374459256 | K23: =A2A!K112 -> 381405772
A24: Other | B24: 4 | C24: =A2A!C117 -> 29509659.87 | D24: =A2A!D117 -> 36862991.7 | E24: =A2A!E117 -> 28319986.78 | F24: =A2A!F117 -> 22947297 | G24: =A2A!G117 -> 24384909 | H24: =A2A!H117 -> 24384909 | I24: =A2A!I117 -> 29951158 | J24: =A2A!J117 -> 35599515 | K24: =A2A!K117 -> 26777094
A25: ="Total "&A4 -> Total Revenue - Functional | B25: 2 | C25: =C5+C9+C15+C19+C24 -> 3789816194 | D25: =D5+D9+D15+D19+D24 -> 3852626305 | E25: =E5+E9+E15+E19+E24 -> 3853158407 | F25: 4406025054 | G25: 4097550392 | H25: 4097550392 | I25: =I5+I9+I15+I19+I24 -> 4451110652 | J25: 4639995088 | K25: 4876885496
A27: Expenditure - Functional
A28: Governance and administration | C28: =SUM(C29:C31) -> 830184520.3 | D28: =SUM(D29:D31) -> 1201818550 | E28: 878191981.3 | F28: 772965063 | G28: 694585199 | H28: 694585199 | I28: 844795380 | J28: 842055994 | K28: 814299259
A29: Executive and council | C29: =A2A!C128 -> 364934453.9 | D29: =A2A!D128 -> 278160802.3 | E29: =A2A!E128 -> 556626564.5 | F29: =A2A!F128 -> 423829595 | G29: =A2A!G128 -> 434292892 | H29: =A2A!H128 -> 434292892 | I29: =A2A!I128 -> 406791316 | J29: =A2A!J128 -> 445477218 | K29: =A2A!K128 -> 463692294
A30: Finance and administration | C30: =A2A!C131 -> 460849097.2 | D30: =A2A!D131 -> 919960737.2 | E30: =A2A!E131 -> 315328329.9 | F30: =A2A!F131 -> 342814199 | G30: =A2A!G131 -> 253973052 | H30: =A2A!H131 -> 253973052 | I30: =A2A!I131 -> 431329203 | J30: =A2A!J131 -> 389596862 | K30: =A2A!K131 -> 343304106
A31: Internal audit | C31: =A2A!C145 -> 4400969.17 | D31: =A2A!D145 -> 3697010.16 | E31: =A2A!E145 -> 6237086.92 | F31: =A2A!F145 -> 6321269 | G31: =A2A!G145 -> 6319255 | H31: =A2A!H145 -> 6319255 | I31: =A2A!I145 -> 6674861 | J31: =A2A!J145 -> 6981914 | K31: =A2A!K145 -> 7302859
A32: Community and public safety | C32: =SUM(C33:C37) -> 292433306.9 | D32: =SUM(D33:D37) -> 297068511.2 | E32: 350482117.9 | F32: 434324716 | G32: 406584683 | H32: 406584683 | I32: 396427759 | J32: 427069714 | K32: 442987195
A33: Community and social services | C33: =A2A!C148 -> 77825933.35 | D33: =A2A!D148 -> 63938493.6 | E33: =A2A!E148 -> 58296168.93 | F33: =A2A!F148 -> 128419397 | G33: =A2A!G148 -> 123048408 | H33: =A2A!H148 -> 123048408 | I33: =A2A!I148 -> 118841838 | J33: =A2A!J148 -> 132064695 | K33: =A2A!K148 -> 134775659
A34: Sport and recreation | C34: =A2A!C170 -> 80865388.52 | D34: =A2A!D170 -> 90892099.61 | E34: =A2A!E170 -> 134836872.2 | F34: =A2A!F170 -> 114464044 | G34: =A2A!G170 -> 114445877 | H34: =A2A!H170 -> 114445877 | I34: =A2A!I170 -> 110728199 | J34: =A2A!J170 -> 120820360 | K34: =A2A!K170 -> 126212203
A35: Public safety | C35: =A2A!C176 -> 119336179.3 | D35: =A2A!D176 -> 138930408.2 | E35: =A2A!E176 -> 140761570.1 | F35: =A2A!F176 -> 171879957 | G35: =A2A!G176 -> 148326783 | H35: =A2A!H176 -> 148326783 | I35: =A2A!I176 -> 146356861 | J35: =A2A!J176 -> 152740750 | K35: =A2A!K176 -> 159571358
A36: Housing | C36: =A2A!C185 -> 4777104.87 | D36: =A2A!D185 -> 3206290.89 | E36: =A2A!E185 -> 16554812.57 | F36: =A2A!F185 -> 19390178 | G36: =A2A!G185 -> 20600314 | H36: =A2A!H185 -> 20600314 | I36: =A2A!I185 -> 20336660 | J36: =A2A!J185 -> 21272153 | K36: =A2A!K185 -> 22249378
A37: Health | C37: =A2A!C188 -> 9628700.89 | D37: =A2A!D188 -> 101218.91 | E37: =A2A!E188 -> 32694.07 | F37: =A2A!F188 -> 171140 | G37: =A2A!G188 -> 163301 | H37: =A2A!H188 -> 163301 | I37: =A2A!I188 -> 164201 | J37: =A2A!J188 -> 171756 | K37: =A2A!K188 -> 178597
A38: Economic and environmental services | C38: =SUM(C39:C41) -> 238232337.5 | D38: =SUM(D39:D41) -> 246223011.8 | E38: 287346782.5 | F38: 300925845 | G38: 318451442 | H38: 318451442 | I38: 282671424 | J38: 340664171 | K38: 318638184
A39: Planning and development | C39: =A2A!C197 -> 51817267.4 | D39: =A2A!D197 -> 84720108.44 | E39: =A2A!E197 -> 202029696.1 | F39: =A2A!F197 -> 73428572 | G39: =A2A!G197 -> 68381669 | H39: =A2A!H197 -> 68381669 | I39: =A2A!I197 -> 72417225 | J39: =A2A!J197 -> 74749067 | K39: =A2A!K197 -> 78144149
A40: Road transport | C40: =A2A!C208 -> 122988556.8 | D40: =A2A!D208 -> 161978545.8 | E40: =A2A!E208 -> 74239335.26 | F40: =A2A!F208 -> 225168026 | G40: =A2A!G208 -> 247757840 | H40: =A2A!H208 -> 247757840 | I40: =A2A!I208 -> 207945243 | J40: =A2A!J208 -> 263601954 | K40: =A2A!K208 -> 238078790
A41: Environmental protection | C41: =A2A!C213 -> 63426513.29 | D41: =A2A!D213 -> -475642.43 | E41: =A2A!E213 -> 11077751.16 | F41: =A2A!F213 -> 2329247 | G41: =A2A!G213 -> 2311933 | H41: =A2A!H213 -> 2311933 | I41: =A2A!I213 -> 2308956 | J41: =A2A!J213 -> 2313150 | K41: =A2A!K213 -> 2415245
A42: Trading services | C42: =SUM(C43:C46) -> 2654533787 | D42: =SUM(D43:D46) -> 2700663484 | E42: 3192533418 | F42: =SUM(F43:F46) -> 2751768807 | G42: 2481441319 | H42: 2481441319 | I42: 2711346043 | J42: 2686432720 | K42: =SUM(K43:K46) -> 2713126921
A43: Energy sources | C43: =A2A!C221 -> 1307545124 | D43: =A2A!D221 -> 1148406910 | E43: =A2A!E221 -> 1688347107 | F43: =A2A!F221 -> 1644879995 | G43: =A2A!G221 -> 1493494153 | H43: =A2A!H221 -> 1493494153 | I43: =A2A!I221 -> 1516661657 | J43: =A2A!J221 -> 1457462694 | K43: =A2A!K221 -> 1484181004
A44: Water management | C44: =A2A!C225 -> 956130376.6 | D44: =A2A!D225 -> 1046263249 | E44: =A2A!E225 -> 994760234.2 | F44: =A2A!F225 -> 666638088 | G44: =A2A!G225 -> 583171265 | H44: =A2A!H225 -> 583171265 | I44: =A2A!I225 -> 724759504 | J44: =A2A!J225 -> 694972475 | K44: =A2A!K225 -> 771017954
A45: Waste water management | C45: =A2A!C229 -> 200452060.3 | D45: =A2A!D229 -> 218935902.5 | E45: =A2A!E229 -> 228238643.8 | F45: =A2A!F229 -> 240544061 | G45: =A2A!G229 -> 222085184 | H45: =A2A!H229 -> 222085184 | I45: =A2A!I229 -> 252336111 | J45: =A2A!J229 -> 313979993 | K45: =A2A!K229 -> 246394357
A46: Waste management | C46: =A2A!C234 -> 190406226.5 | D46: =A2A!D234 -> 287057422.9 | E46: =A2A!E234 -> 281187432.8 | F46: =A2A!F234 -> 199706663 | G46: =A2A!G234 -> 182690717 | H46: =A2A!H234 -> 182690717 | I46: =A2A!I234 -> 217588771 | J46: =A2A!J234 -> 220017558 | K46: =A2A!K234 -> 211533606
A47: Other | B47: 4 | C47: =A2A!C239 -> 34663838.92 | D47: =A2A!D239 -> 24043168.02 | E47: =A2A!E239 -> 29142090.01 | F47: =A2A!F239 -> 27723514 | G47: =A2A!G239 -> 26592771 | H47: =A2A!H239 -> 26592771 | I47: =A2A!I239 -> 27400199 | J47: =A2A!J239 -> 28660632 | K47: =A2A!K239 -> 29956595
A48: ="Total "&A27 -> Total Expenditure - Functional | B48: 3 | C48: =C28+C32+C38+C42+C47 -> 4050047791 | D48: =D28+D32+D38+D42+D47 -> 4469816725 | E48: =E28+E32+E38+E42+E47 -> 4737696389 | F48: =F28+F32+F38+F42+F47 -> 4287707945 | G48: 3927655414 | H48: 3927655414 | I48: 4262640805 | J48: 4324883231 | K48: 4319008154
A49: =result -> Surplus/(Deficit) for the year | C49: =C25-C48 -> -260231597.5 | D49: =D25-D48 -> -617190420.1 | E49: -884537982.6 | F49: 118317109 | G49: 169894978 | H49: 169894978 | I49: 188469847 | J49: 315111857 | K49: 557877342
A50: =head27a -> References
A51: 1. Government Finance Statistics Functions and Sub-functions are standardised to assist the compilation of national and international accounts for comparison purposes
A52: 2. Total Revenue by functional classification must reconcile to Total Operating Revenue shown in Budgeted Financial Performance (revenue and expenditure)
A53: 3. Total Expenditure by Functional Classification must reconcile to Total Operating Expenditure shown in Budgeted Financial Performance (revenue and expenditure)
A54: 4. All amounts must be classified under a functional classification . The GFS function 'Other' is only for Abbatoirs, Air Transport, Forestry, Licensing and Regulation, Markets and Tourism - and if used must be supported by footnotes. Nothing else may be placed under 'Other'. Assign associate share to relevant classification.

Sheet A2A
A1: =muni&" - "&Approve3 -> NW403 City Of Matlosana - Table A2 Budgeted Financial Performance (revenue and expenditure by functional classification)
A2: ="Functional Classification "&desc -> Functional Classification Description | B2: =head27 -> Ref | C2: =head1b -> 2020/21 | D2: =head1A -> 2021/22 | E2: =Head1 -> 2022/23 | F2: =Head2 -> Current Year 2023/24 | I2: =Head3 -> 2024/25 Medium Term Revenue & Expenditure Framework
A3: R thousand | B3: 1 | C3: =Head5 -> Audited Outcome | D3: =Head5 -> Audited Outcome | E3: =Head5 -> Audited Outcome | F3: =Head6 -> Original Budget | G3: =Head7 -> Adjusted Budget | H3: =Head8 -> Full Year Forecast | I3: =Head9 -> Budget Year 2024/25 | J3: =Head10 -> Budget Year +1 2025/26 | K3: =Head11 -> Budget Year +2 2026/27
A4: Revenue - Functional
A5: Municipal governance and administration | C5: =C6+C9+C23 -> 1031368008 | D5: =D6+D9+D23 -> 1103391677 | E5: 1188283354 | F5: 1360784213 | G5: 1335164008 | H5: 1335164008 | I5: 1424033512 | J5: 1492666245 | K5: 1547103778
A6: Executive and council | C6: =SUM(C7:C8) -> -5518330.46 | D6: =SUM(D7:D8) -> 952014.99 | E6: -13807258.74 | F6: 2660781 | G6: 2660781 | H6: 2660781 | I6: 1430341 | J6: 2563057 | K6: 2680959
A7: Mayor and Council | C7: -7501381.92 | D7: -337613.95 | E7: -16564412.3 | F7: 421200 | G7: 421200 | H7: 421200 | I7: 200000 | J7: 209200 | K7: 218824
A8: Municipal Manager, Town Secretary and Chief Executive | C8: 1983051.46 | D8: 1289628.94 | E8: 2757153.56 | F8: 2239581 | G8: 2239581 | H8: 2239581 | I8: 1230341 | J8: 2353857 | K8: 2462135
A9: Finance and administration | C9: =SUM(C10:C22) -> 1036886338 | D9: =SUM(D10:D22) -> 1102439662 | E9: 1202090613 | F9: 1358123432 | G9: 1332503227 | H9: 1332503227 | I9: 1422603171 | J9: 1490103188 | K9: 1544422819
A10: Administrative and Corporate Support
A11: Asset Management
A12: Finance | C12: 1036632192 | D12: 1102340638 | E12: 1202048009 | F12: 1357987733 | G12: 1332367528 | H12: 1332367528 | I12: 1422460823 | J12: 1489954291 | K12: 1544267073
A13: Fleet Management
A14: Human Resources
A15: Information Technology | C15: 254146.56 | D15: 99023.53 | E15: 42604.09 | F15: 135699 | G15: 135699 | H15: 135699 | I15: 142348 | J15: 148897 | K15: 155746
A16: Legal Services
A17: Marketing, Customer Relations, Publicity and Media Co-ordination
A18: Property Services
A19: Risk Management
A20: Security Services
A21: Supply Chain Management
A22: Valuation Service
A23: Internal audit | C23: =SUM(C24:C24) -> 0 | D23: =SUM(D24:D24) -> 0 | E23: 0 | F23: 0 | G23: 0 | H23: 0 | I23: 0 | J23: 0 | K23: 0
A24: Governance Function
A25: Community and public safety | C25: =C26+C48+C54+C63+C66 -> 473454753.9 | D25: =D26+D48+D54+D63+D66 -> 325340475.4 | E25: 143887084.6 | F25: 79167723 | G25: 50728208 | H25: 50728208 | I25: 69283105 | J25: 77280557 | K25: 59228781
A26: Community and social services | C26: =SUM(C27:C47) -> 408868723.8 | D26: =SUM(D27:D47) -> 263726662.3 | E26: 101091234.2 | F26: 4679358 | G26: 4442358 | H26: 4442358 | I26: 3871932 | J26: 4046118 | K26: 4177914
A27: Aged Care
A28: Agricultural
A29: Animal Care and Diseases
A30: Cemeteries, Funeral Parlours and Crematoriums | C30: 2742429.06 | D30: 2233101.02 | E30: 1756399.72 | F30: 3090634 | G30: 3090634 | H30: 3090634 | I30: 2500000 | J30: 2615000 | K30: 2735290
A31: Child Care Facilities
A32: Community Halls and Facilities
A33: Consumer Protection
A34: Cultural Matters
A35: Disaster Management | C35: 47221776.72 | D35: 15897319 | E35: 0 | F35: 0 | G35: 0 | H35: 0 | I35: 0 | J35: 0 | K35: 0
A36: Education
A37: Indigenous and Customary Law
A38: Industrial Promotion
A39: Language Policy
A40: Libraries and Archives | C40: 358676513.8 | D40: 245350304.8 | E40: 99130854.85 | F40: 1095724 | G40: 1105724 | H40: 1105724 | I40: 1120932 | J40: 1128796 | K40: 1137021
A41: Literacy Programmes
A42: Media Services
A43: Museums and Art Galleries | C43: 228004.2 | D43: 245937.52 | E43: 203979.67 | F43: 493000 | G43: 246000 | H43: 246000 | I43: 251000 | J43: 302322 | K43: 305603
A44: Population Development
A45: Provincial Cultural Matters
A46: Theatres
A47: Zoo's
A48: Sport and recreation | C48: =SUM(C49:C53) -> 14669788.38 | D48: =SUM(D49:D53) -> 29670284.84 | E48: 3782727.63 | F48: 7710370 | G48: 7710370 | H48: 7710370 | I48: 15833701 | J48: 21378713 | K48: 809775
A49: Beaches and Jetties
A50: Casinos, Racing, Gambling, Wagering
A51: Community Parks (including Nurseries) | C51: 178147.31 | D51: 200867.08 | E51: 128143.48 | F51: 357061 | G51: 357061 | H51: 357061 | I51: 356139 | J51: 372522 | K51: 389658
A52: Recreational Facilities | C52: 0 | D52: 0 | E52: 0 | F52: 0 | G52: 0 | H52: 0 | I52: 0 | J52: 0 | K52: 0
A53: Sports Grounds and Stadiums | C53: 14491641.07 | D53: 29469417.76 | E53: 3654584.15 | F53: 7353309 | G53: 7353309 | H53: 7353309 | I53: 15477562 | J53: 21006191 | K53: 420117
A54: Public safety | C54: =SUM(C55:C62) -> 49916241.7 | D54: =SUM(D55:D62) -> 28135949.15 | E54: 31481990.35 | F54: 31777995 | G54: 28844542 | H54: 28844542 | I54: 39398911 | J54: 41208951 | K54: 43104565
A55: Civil Defence
A56: Cleansing
A57: Control of Public Nuisances
A58: Fencing and Fences
A59: Fire Fighting and Protection | C59: 354566.25 | D59: 468303.24 | E59: 512277.08 | F59: 725871 | G59: 1025871 | H59: 1025871 | I59: 761438 | J59: 796465 | K59: 833102
A60: Licensing and Control of Animals | C60: 25041604.67 | D60: 22583840.18 | E60: 22398134.84 | F60: 27687385 | G60: 24158018 | H60: 24158018 | I60: 24164748 | J60: 25274014 | K60: 26436620
A61: Police Forces, Traffic and Street Parking Control | C61: 24520070.78 | D61: 5083805.73 | E61: 8571578.43 | F61: 3364739 | G61: 3660653 | H61: 3660653 | I61: 14472725 | J61: 15138472 | K61: 15834843
A62: Pounds
A63: Housing | C63: =SUM(C64:C65) -> 0 | D63: =SUM(D64:D65) -> 3807579.14 | E63: 7531132.41 | F63: 35000000 | G63: 9730938 | H63: 9730938 | I63: 10178561 | J63: 10646775 | K63: 11136527
A64: Housing | C64: 0 | D64: 3807579.14 | E64: 7531132.41 | F64: 35000000 | G64: 9730938 | H64: 9730938 | I64: 10178561 | J64: 10646775 | K64: 11136527
A65: Informal Settlements
A66: Health | C66: =SUM(C67:C73) -> 0 | D66: =SUM(D67:D73) -> 0 | E66: 0 | F66: 0 | G66: 0 | H66: 0 | I66: 0 | J66: 0 | K66: 0
A67: Ambulance
A68: Health Services
A69: Laboratory Services
A70: Food Control
A71: Health Surveillance and Prevention of Communicable Diseases including immunizations
A72: Vector Control
A73: Chemical Safety
A74: Economic and environmental services | C74: =C75+C86+C91 -> 67002556.52 | D74: =D75+D86+D91 -> 70958835.89 | E74: 40705395.8 | F74: 59718949 | G74: 58400380 | H74: 58400380 | I74: 25871699 | J74: 27271579 | K74: 51908182
A75: Planning and development | C75: =SUM(C76:C85) -> 9354287.3 | D75: =SUM(D76:D85) -> 9992656.79 | E75: 9987323.34 | F75: 11845622 | G75: 11845622 | H75: 11845622 | I75: 11553969 | J75: 11581804 | K75: 12342352
A76: Billboards
A77: Corporate Wide Strategic Planning (IDPs, LEDs)
A78: Central City Improvement District
A79: Development Facilitation
A80: Economic Development/Planning | C80: 565.21 | D80: 542.54 | E80: 173.92 | F80: 979 | G80: 979 | H80: 979 | I80: 1027 | J80: 1075 | K80: 1124
A81: Regional Planning and Development
A82: Town Planning, Building Regulations and Enforcement, and City Engineer | C82: 4496941.24 | D82: 5203432.58 | E82: 4958767.03 | F82: 6058043 | G82: 6058043 | H82: 6058043 | I82: 5912742 | J82: 6184729 | K82: 6469228
A83: Project Management Unit | C83: 4856780.85 | D83: 4788681.67 | E83: 5028382.39 | F83: 5786600 | G83: 5786600 | H83: 5786600 | I83: 5640200 | J83: 5396000 | K83: 5872000
A84: Provincial Planning
A85: Support to Local Municipalities
A86: Road transport | C86: =SUM(C87:C90) -> 57431871.72 | D86: =SUM(D87:D90) -> 60814367.48 | E86: 30535870.89 | F86: 47652116 | G86: 46333547 | H86: 46333547 | I86: 14209053 | J86: 15576098 | K86: 39446924
A87: Public Transport
A88: Road and Traffic Regulation
A89: Roads | C89: 57431871.72 | D89: 60814367.48 | E89: 30535870.89 | F89: 47652116 | G89: 46333547 | H89: 46333547 | I89: 14209053 | J89: 15576098 | K89: 39446924
A90: Taxi Ranks
A91: Environmental protection | C91: =SUM(C92:C97) -> 216397.5 | D91: =SUM(D92:D97) -> 151811.62 | E91: 182201.57 | F91: 221211 | G91: 221211 | H91: 221211 | I91: 108677 | J91: 113677 | K91: 118906
A92: Biodiversity and Landscape
A93: Coastal Protection
A94: Indigenous Forests
A95: Nature Conservation | C95: 216397.5 | D95: 151811.62 | E95: 182201.57 | F95: 221211 | G95: 221211 | H95: 221211 | I95: 108677 | J95: 113677 | K95: 118906
A96: Pollution Control
A97: Soil Conservation
A98: Trading services | C98: =C99+C103+C107+C112 -> 2188481216 | D98: =D99+D103+D107+D112 -> 2316072325 | E98: 2451962586 | F98: 2883406872 | G98: 2628872887 | H98: 2628872887 | I98: 2901971178 | J98: 3007177192 | K98: =K99+K103+K107+K112 -> 3191867661
A99: Energy sources | C99: =SUM(C100:C102) -> 953142854.7 | D99: =SUM(D100:D102) -> 1017620228 | E99: 964401425.8 | F99: 1167556964 | G99: 1129247570 | H99: 1129247570 | I99: 1167621724 | J99: 1228816829 | K99: 1285477268
A100: Electricity | C100: 947168756.5 | D100: 1017620228 | E100: 961403965.8 | F100: 1163556964 | G100: 1125247570 | H100: 1125247570 | I100: 1162621724 | J100: 1223816829 | K100: 1281477268
A101: Street Lighting and Signal Systems | C101: 5974098.21 | D101: 0 | E101: 2997460 | F101: 4000000 | G101: 4000000 | H101: 4000000 | I101: 5000000 | J101: 5000000 | K101: 4000000
A102: Nonelectric Energy
A103: Water management | C103: =SUM(C104:C106) -> 851986850.7 | D103: =SUM(D104:D106) -> 879795771.4 | E103: 986050634.4 | F103: 1048742393 | G103: 937425661 | H103: 937425661 | I103: 1092663201 | J103: 1117733462 | K103: 1185505508
A104: Water Treatment
A105: Water Distribution | C105: 851986850.7 | D105: 879795771.4 | E105: 986050634.4 | F105: 1048742393 | G105: 937425661 | H105: 937425661 | I105: 1092663201 | J105: 1117733462 | K105: 1185505508
A106: Water Storage
A107: Waste water management | C107: =SUM(C108:C111) -> 157705179.3 | D107: =SUM(D108:D111) -> 143839765.8 | E107: 155436461.7 | F107: 242313026 | G107: 174702422 | H107: 174702422 | I107: 253895202 | J107: 286167645 | K107: 339479113
A108: Public Toilets
A109: Sewerage | C109: 157705179.3 | D109: 143839765.8 | E109: 155436461.7 | F109: 242313026 | G109: 174702422 | H109: 174702422 | I109: 253895202 | J109: 286167645 | K109: 339479113
A110: Storm Water Management
A111: Waste Water Treatment
A112: Waste management | C112: =SUM(C113:C116) -> 225646330.9 | D112: =SUM(D113:D116) -> 274816559.8 | E112: 346074063.8 | F112: 424794489 | G112: 387497234 | H112: 387497234 | I112: 387791051 | J112: 374459256 | K112: 381405772
A113: Recycling
A114: Solid Waste Disposal (Landfill Sites) | C114: 357631.57 | D114: 251891.82 | E114: 140524 | F114: 35875604 | G114: 31416783 | H114: 31416783 | I114: 39198099 | J114: 29443749 | K114: 464161
A115: Solid Waste Removal | C115: 225288699.3 | D115: 274564668 | E115: 345933539.8 | F115: 388918885 | G115: 356080451 | H115: 356080451 | I115: 348592952 | J115: 345015507 | K115: 380941611
A116: Street Cleaning
A117: Other | C117: =SUM(C118:C123) -> 29509659.87 | D117: =SUM(D118:D123) -> 36862991.7 | E117: 28319986.78 | F117: 22947297 | G117: 24384909 | H117: 24384909 | I117: 29951158 | J117: 35599515 | K117: 26777094
A118: Abattoirs
A119: Air Transport | C119: 0 | D119: 0 | E119: 0 | F119: 0 | G119: 0 | H119: 0 | I119: 90000 | J119: 0 | K119: 0
A120: Forestry
A121: Licensing and Regulation
A122: Markets | C122: 29509659.87 | D122: 36862991.7 | E122: 28319986.78 | F122: 22947297 | G122: 24384909 | H122: 24384909 | I122: 29861158 | J122: 35599515 | K122: 26777094
A123: Tourism
A124: ="Total "&A4 -> Total Revenue - Functional | B124: 2 | C124: =C5+C25+C74+C98+C117 -> 3789816194 | D124: =D5+D25+D74+D98+D117 -> 3852626305 | E124: 3853158407 | F124: 4406025054 | G124: 4097550392 | H124: 4097550392 | I124: 4451110652 | J124: 4639995088 | K124: 4876885496
A126: Expenditure - Functional
A127: =A5 -> Municipal governance and administration | C127: =C128+C131+C145 -> 830184520.3 | D127: =D128+D131+D145 -> 1201818550 | E127: 878191981.3 | F127: 772965063 | G127: 694585199 | H127: 694585199 | I127: 844795380 | J127: 842055994 | K127: 814299259
A128: Executive and council | C128: =SUM(C129:C130) -> 364934453.9 | D128: =SUM(D129:D130) -> 278160802.3 | E128: 556626564.5 | F128: 423829595 | G128: 434292892 | H128: 434292892 | I128: 406791316 | J128: 445477218 | K128: 463692294
A129: Mayor and Council | C129: 161433052.5 | D129: 139464976.7 | E129: 219677573.6 | F129: 232018368 | G129: 244172349 | H129: 244172349 | I129: 230842631 | J129: 244906907 | K129: 253946235
A130: Municipal Manager, Town Secretary and Chief Executive | C130: 203501401.4 | D130: 138695825.7 | E130: 336948990.9 | F130: 191811227 | G130: 190120543 | H130: 190120543 | I130: 175948685 | J130: 200570311 | K130: 209746059
A131: Finance and administration | C131: =SUM(C132:C144) -> 460849097.2 | D131: =SUM(D132:D144) -> 919960737.2 | E131: 315328329.9 | F131: 342814199 | G131: 253973052 | H131: 253973052 | I131: 431329203 | J131: 389596862 | K131: 343304106
A132: Administrative and Corporate Support
A133: Asset Management
A134: Finance | C134: 430795108.1 | D134: 891858880 | E134: 274557250.1 | F134: 300762037 | G134: 207397600 | H134: 207397600 | I134: 371893534 | J134: 327531672 | K134: 278418833
A135: Fleet Management
A136: Human Resources
A137: Information Technology | C137: 21379373.06 | D137: 16498814.87 | E137: 20012431.27 | F137: 21019674 | G137: 26275096 | H137: 26275096 | I137: 39598801 | J137: 40746810 | K137: 42540430
A138: Legal Services | C138: 8674616.02 | D138: 11603042.34 | E138: 20758648.5 | F138: 21032488 | G138: 20300356 | H138: 20300356 | I138: 19836868 | J138: 21318380 | K138: 22344843
A139: Marketing, Customer Relations, Publicity and Media Co-ordination
A140: Property Services
A141: Risk Management
A142: Security Services
A143: Supply Chain Management
A144: Valuation Service
A145: Internal audit | C145: =SUM(C146:C146) -> 4400969.17 | D145: =SUM(D146:D146) -> 3697010.16 | E145: 6237086.92 | F145: 6321269 | G145: 6319255 | H145: 6319255 | I145: 6674861 | J145: 6981914 | K145: 7302859
A146: Governance Function | C146: 4400969.17 | D146: 3697010.16 | E146: 6237086.92 | F146: 6321269 | G146: 6319255 | H146: 6319255 | I146: 6674861 | J146: 6981914 | K146: 7302859
A147: Community and public safety | C147: =C148+C170+C176+C185+C188 -> 292433306.9 | D147: =D148+D170+D176+D185+D188 -> 297068511.2 | E147: 350482117.9 | F147: 434324716 | G147: 406584683 | H147: 406584683 | I147: 396427759 | J147: 427069714 | K147: 442987195
A148: Community and social services | C148: =SUM(C149:C169) -> 77825933.35 | D148: =SUM(D149:D169) -> 63938493.6 | E148: 58296168.93 | F148: 128419397 | G148: 123048408 | H148: 123048408 | I148: 118841838 | J148: 132064695 | K148: 134775659
A149: Aged Care
A150: Agricultural
A151: Animal Care and Diseases
A152: Cemeteries, Funeral Parlours and Crematoriums | C152: 18939698.39 | D152: 30879591.56 | E152: 26385945 | F152: 25856239 | G152: 25765272 | H152: 25765272 | I152: 25651377 | J152: 26805201 | K152: 28033617
A153: Child Care Facilities
A154: Community Halls and Facilities
A155: Consumer Protection
A156: Cultural Matters
A157: Disaster Management | C157: 2879389.79 | D157: 7789954.22 | E157: 2174330.25 | F157: 40713385 | G157: 35233785 | H157: 35233785 | I157: 32678530 | J157: 41953523 | K157: 40621003
A158: Education
A159: =A37 -> Indigenous and Customary Law
A160: Industrial Promotion
A161: Language Policy
A162: Libraries and Archives | C162: 22208002.05 | D162: 22235440.62 | E162: 23440941.59 | F162: 56619924 | G162: 57447070 | H162: 57447070 | I162: 56079440 | J162: 58669578 | K162: 61277866
A163: Literacy Programmes
A164: Media Services
A165: Museums and Art Galleries | C165: 33798843.12 | D165: 3033507.2 | E165: 6294952.09 | F165: 5229849 | G165: 4602281 | H165: 4602281 | I165: 4432491 | J165: 4636393 | K165: 4843173
A166: Population Development
A167: Provincial Cultural Matters
A168: Theatres
A169: Zoo's
A170: Sport and recreation | C170: =SUM(C171:C175) -> 80865388.52 | D170: =SUM(D171:D175) -> 90892099.61 | E170: 134836872.2 | F170: 114464044 | G170: 114445877 | H170: 114445877 | I170: 110728199 | J170: 120820360 | K170: 126212203
A171: Beaches and Jetties
A172: Casinos, Racing, Gambling, Wagering
A173: Community Parks (including Nurseries) | C173: 38634425.37 | D173: 44512734.42 | E173: 48151369.32 | F173: 47530878 | G173: 48658458 | H173: 48658458 | I173: 43986401 | J173: 49835268 | K173: 52110779
A174: Recreational Facilities | C174: 18620151.65 | D174: 17852725.14 | E174: 23721426.95 | F174: 25546557 | G174: 25256557 | H174: 25256557 | I174: 29361080 | J174: 30629644 | K174: 32034563
A175: Sports Grounds and Stadiums | C175: 23610811.5 | D175: 28526640.05 | E175: 62964075.92 | F175: 41386609 | G175: 40530862 | H175: 40530862 | I175: 37380718 | J175: 40355448 | K175: 42066861
A176: Public safety | C176: =SUM(C177:C184) -> 119336179.3 | D176: =SUM(D177:D184) -> 138930408.2 | E176: 140761570.1 | F176: 171879957 | G176: 148326783 | H176: 148326783 | I176: 146356861 | J176: 152740750 | K176: 159571358
A177: Civil Defence
A178: Cleansing
A179: =A57 -> Control of Public Nuisances
A180: Fencing and Fences
A181: Fire Fighting and Protection | C181: 44436957.51 | D181: 51447282.51 | E181: 56198911.32 | F181: 65891830 | G181: 49870283 | H181: 49870283 | I181: 46043052 | J181: 47802012 | K181: 49892094
A182: Licensing and Control of Animals | C182: 38095315.69 | D182: 45164010.69 | E182: 44514000.97 | F182: 51969248 | G182: 49568838 | H182: 49568838 | I182: 51629000 | J182: 54003953 | K182: 56466798
A183: Police Forces, Traffic and Street Parking Control | C183: 36803906.11 | D183: 42319114.97 | E183: 40048657.82 | F183: 54018879 | G183: 48887662 | H183: 48887662 | I183: 48684809 | J183: 50934785 | K183: 53212466
A184: Pounds
A185: =A63 -> Housing | C185: =SUM(C186:C187) -> 4777104.87 | D185: =SUM(D186:D187) -> 3206290.89 | E185: 16554812.57 | F185: 19390178 | G185: 20600314 | H185: 20600314 | I185: 20336660 | J185: 21272153 | K185: 22249378
A186: Housing | C186: 4777104.87 | D186: 3206290.89 | E186: 16554812.57 | F186: 19390178 | G186: 20600314 | H186: 20600314 | I186: 20336660 | J186: 21272153 | K186: 22249378
A187: Informal Settlements
A188: Health | C188: =SUM(C189:C195) -> 9628700.89 | D188: =SUM(D189:D195) -> 101218.91 | E188: 32694.07 | F188: 171140 | G188: 163301 | H188: 163301 | I188: 164201 | J188: 171756 | K188: 178597
A189: Ambulance
A190: Health Services | C190: 9628700.89 | D190: 101218.91 | E190: 32694.07 | F190: 171140 | G190: 163301 | H190: 163301 | I190: 164201 | J190: 171756 | K190: 178597
A191: Laboratory Services
A192: Food Control
A193: Health Surveillance and Prevention of Communicable Diseases including immunizations
A194: Vector Control
A195: Chemical Safety
A196: Economic and environmental services | C196: =C197+C208+C213 -> 238232337.5 | D196: =D197+D208+D213 -> 246223011.8 | E196: 287346782.5 | F196: 300925845 | G196: 318451442 | H196: 318451442 | I196: 282671424 | J196: 340664171 | K196: 318638184
A197: Planning and development | C197: =SUM(C198:C207) -> 51817267.4 | D197: =SUM(D198:D207) -> 84720108.44 | E197: 202029696.1 | F197: 73428572 | G197: 68381669 | H197: 68381669 | I197: 72417225 | J197: 74749067 | K197: 78144149
A198: Billboards
A199: Corporate Wide Strategic Planning (IDPs, LEDs) | C199: 4265924.1 | D199: 4808672.3 | E199: 4003927.88 | F199: 5676716 | G199: 5154226 | H199: 5154226 | I199: 5420542 | J199: 5611850 | K199: 5869708
A200: Central City Improvement District
A201: Development Facilitation
... 51 more rows

Sheet A3-FinPerf V
A1: =muni&" - "&Approve2 -> NW403 City Of Matlosana - Table A3 Budgeted Financial Performance (revenue and expenditure by municipal vote)
A2: =Vdesc -> Vote Description | B2: =head27 -> Ref | C2: =head1b -> 2020/21 | D2: =head1A -> 2021/22 | E2: =Head1 -> 2022/23 | F2: =Head2 -> Current Year 2023/24 | I2: =Head3 -> 2024/25 Medium Term Revenue & Expenditure Framework | L2: =Head4 -> LTFS
A3: R thousand | C3: =Head5 -> Audited Outcome | D3: =Head5 -> Audited Outcome | E3: =Head5 -> Audited Outcome | F3: =Head6 -> Original Budget | G3: =Head7 -> Adjusted Budget | H3: =Head8 -> Full Year Forecast | I3: =Head9 -> Budget Year 2024/25 | J3: =Head10 -> Budget Year +1 2025/26 | K3: =Head11 -> Budget Year +2 2026/27 | L3: =Head12 -> Forecast 2027/28 | M3: =Head13 -> Forecast 2028/29 | N3: =Head14 -> Forecast 2029/30 | O3: =Head15 -> Forecast 2030/31 | P3: =Head16 -> Forecast 2031/32 | Q3: =Head17 -> Forecast 2032/33 | R3: =Head18 -> Forecast 2033/34 | S3: =Head19 -> Forecast 2034/35 | T3: =Head20 -> Forecast 2035/36 | U3: =Head21 -> Forecast 2036/37 | V3: =Head22 -> Forecast 2037/38 | W3: =Head23 -> Forecast 2038/39
A4: Revenue by Vote | B4: 1
A5: =A3A!A5 -> Vote 01 - Public Safety | C5: =A3A!C5 -> 97138018.42 | D5: =A3A!D5 -> 44033268.15 | E5: =A3A!E5 -> 31481990.35 | F5: =A3A!F5 -> 31777995 | G5: =A3A!G5 -> 28844542 | H5: =A3A!H5 -> 28844542 | I5: =A3A!I5 -> 39398911 | J5: =A3A!J5 -> 41208951 | K5: =A3A!K5 -> 43104565
A6: =A3A!A12 -> Vote 02 - Health Services | C6: =A3A!C12 -> 0 | D6: =A3A!D12 -> 0 | E6: =A3A!E12 -> 0 | F6: =A3A!F12 -> 0 | G6: =A3A!G12 -> 0 | H6: =A3A!H12 -> 0 | I6: =A3A!I12 -> 0 | J6: =A3A!J12 -> 0 | K6: =A3A!K12 -> 0
A7: =A3A!A15 -> Vote 03 - Community Services | C7: =A3A!C15 -> 3136973.87 | D7: =A3A!D15 -> 2585779.72 | E7: =A3A!E15 -> 2066744.77 | F7: =A3A!F15 -> 3668906 | G7: =A3A!G15 -> 3668906 | H7: =A3A!H15 -> 3668906 | I7: =A3A!I15 -> 3054816 | J7: =A3A!J15 -> 3101199 | K7: =A3A!K15 -> 3243854
A8: =A3A!A22 -> Vote 04 - Housing | C8: =A3A!C22 -> 4496941.24 | D8: =A3A!D22 -> 9011011.72 | E8: =A3A!E22 -> 12489899.44 | F8: =A3A!F22 -> 41058043 | G8: =A3A!G22 -> 15788981 | H8: =A3A!H22 -> 15788981 | I8: =A3A!I22 -> 16091303 | J8: =A3A!J22 -> 16831504 | K8: =A3A!K22 -> 17605755
A9: =A3A!A28 -> Vote 05 - Sport Arts And Culture | C9: =A3A!C28 -> 373396159.1 | D9: =A3A!D28 -> 275065660 | E9: =A3A!E28 -> 102989418.7 | F9: =A3A!F28 -> 8942033 | G9: =A3A!G28 -> 8705033 | H9: =A3A!H28 -> 8705033 | I9: =A3A!I28 -> 16849494 | J9: =A3A!J28 -> 22437309 | K9: =A3A!K28 -> 1862741
A10: =A3A!A35 -> Vote 06 - Council General | C10: =A3A!C35 -> -7501381.92 | D10: =A3A!D35 -> -337613.95 | E10: =A3A!E35 -> -16564412.3 | F10: =A3A!F35 -> 421200 | G10: =A3A!G35 -> 421200 | H10: =A3A!H35 -> 421200 | I10: =A3A!I35 -> 200000 | J10: =A3A!J35 -> 209200 | K10: =A3A!K35 -> 218824
A11: =A3A!A44 -> Vote 07 - Civil Engineering | C11: =A3A!C44 -> 62288652.57 | D11: =A3A!D44 -> 65603049.15 | E11: =A3A!E44 -> 35564253.28 | F11: =A3A!F44 -> 53438716 | G11: =A3A!G44 -> 52120147 | H11: =A3A!H44 -> 52120147 | I11: =A3A!I44 -> 19849253 | J11: =A3A!J44 -> 20972098 | K11: =A3A!K44 -> 45318924
A12: =A3A!A49 -> Vote 08 - Water Section | C12: =A3A!C49 -> 851986850.7 | D12: =A3A!D49 -> 879795771.4 | E12: =A3A!E49 -> 986050634.4 | F12: =A3A!F49 -> 1048742393 | G12: =A3A!G49 -> 937425661 | H12: =A3A!H49 -> 937425661 | I12: =A3A!I49 -> 1092663201 | J12: =A3A!J49 -> 1117733462 | K12: =A3A!K49 -> 1185505508
A13: =A3A!A52 -> Vote 09 - City Electrial Engineering | C13: =A3A!C52 -> 953142854.7 | D13: =A3A!D52 -> 1017620228 | E13: =A3A!E52 -> 964401425.8 | F13: =A3A!F52 -> 1167556964 | G13: =A3A!G52 -> 1129247570 | H13: =A3A!H52 -> 1129247570 | I13: =A3A!I52 -> 1167621724 | J13: =A3A!J52 -> 1228816829 | K13: =A3A!K52 -> 1285477268
A14: =A3A!A58 -> Vote 10 - Corporate Governane | C14: =A3A!C58 -> 1983051.46 | D14: =A3A!D58 -> 1289628.94 | E14: =A3A!E58 -> 2757153.56 | F14: =A3A!F58 -> 2239581 | G14: =A3A!G58 -> 2239581 | H14: =A3A!H58 -> 2239581 | I14: =A3A!I58 -> 1230341 | J14: =A3A!J58 -> 2353857 | K14: =A3A!K58 -> 2462135
A15: =A3A!A62 -> Vote 11 - Budget And Treasury Office | C15: =A3A!C62 -> 1036886338 | D15: =A3A!D62 -> 1102439662 | E15: =A3A!E62 -> 1202090613 | F15: =A3A!F62 -> 1358123432 | G15: =A3A!G62 -> 1332503227 | H15: =A3A!H62 -> 1332503227 | I15: =A3A!I62 -> 1422603171 | J15: =A3A!J62 -> 1490103188 | K15: =A3A!K62 -> 1544422819 | L15: =A5A!#REF! -> 
A16: =A3A!A66 -> Vote 12 - Cleansing | C16: =A3A!C66 -> 225646330.9 | D16: =A3A!D66 -> 274816559.8 | E16: =A3A!E66 -> 346074063.8 | F16: =A3A!F66 -> 424794489 | G16: =A3A!G66 -> 387497234 | H16: =A3A!H66 -> 387497234 | I16: =A3A!I66 -> 387791051 | J16: =A3A!J66 -> 374459256 | K16: =A3A!K66 -> 381405772 | L16: =A5A!#REF! -> 
A17: =A3A!A74 -> Vote 13 - Sewerage | C17: =A3A!C74 -> 157705179.3 | D17: =A3A!D74 -> 143839765.8 | E17: =A3A!E74 -> 155436461.7 | F17: =A3A!F74 -> 242313026 | G17: =A3A!G74 -> 174702422 | H17: =A3A!H74 -> 174702422 | I17: =A3A!I74 -> 253895202 | J17: =A3A!J74 -> 286167645 | K17: =A3A!K74 -> 339479113 | L17: =A5A!#REF! -> 
A18: =A3A!A79 -> Vote 14 - Market | C18: =A3A!C79 -> 29509659.87 | D18: =A3A!D79 -> 36862991.7 | E18: =A3A!E79 -> 28319986.78 | F18: =A3A!F79 -> 22947297 | G18: =A3A!G79 -> 24384909 | H18: =A3A!H79 -> 24384909 | I18: =A3A!I79 -> 29861158 | J18: =A3A!J79 -> 35599515 | K18: =A3A!K79 -> 26777094 | L18: =A5A!#REF! -> 
A19: =A3A!A81 -> Vote 15 - Other | C19: =A3A!C81 -> 565.21 | D19: =A3A!D81 -> 542.54 | E19: =A3A!E81 -> 173.92 | F19: =A3A!F81 -> 979 | G19: =A3A!G81 -> 979 | H19: =A3A!H81 -> 979 | I19: =A3A!I81 -> 1027 | J19: =A3A!J81 -> 1075 | K19: =A3A!K81 -> 1124 | L19: =A5A!#REF! -> 
A20: Total Revenue by Vote | B20: 2 | C20: =SUM(C5:C19) -> 3789816194 | D20: =SUM(D5:D19) -> 3852626305 | E20: 3853158407 | F20: 4406025054 | G20: 4097550392 | H20: 4097550392 | I20: 4451110652 | J20: 4639995088 | K20: 4876885496
A22: Expenditure by Vote to be appropriated | B22: 1
A23: =A3A!A88 -> Vote 01 - Public Safety | C23: =A3A!C88 -> 242473009.8 | D23: =A3A!D88 -> 218142532.9 | E23: =A3A!E88 -> 259734190.1 | F23: =A3A!F88 -> 276520271 | G23: =A3A!G88 -> 248192450 | H23: =A3A!H88 -> 248192450 | I23: =A3A!I88 -> 229307123 | J23: =A3A!J88 -> 262331862 | K23: =A3A!K88 -> 270932932
A24: =A3A!A95 -> Vote 02 - Health Services | C24: =A3A!C95 -> 32342883 | D24: =A3A!D95 -> 8359801.7 | E24: =A3A!E95 -> 10356982 | F24: =A3A!F95 -> 10898716 | G24: =A3A!G95 -> 9886553 | H24: =A3A!H95 -> 9886553 | I24: =A3A!I95 -> 10183319 | J24: =A3A!J95 -> 10651764 | K24: =A3A!K95 -> 11140301
A25: =A3A!A98 -> Vote 03 - Community Services | C25: =A3A!C98 -> 124750703.3 | D25: =A3A!D98 -> 79256133.29 | E25: =A3A!E98 -> 223562584.1 | F25: =A3A!F98 -> 117154671 | G25: =A3A!G98 -> 116507856 | H25: =A3A!H98 -> 116507856 | I25: =A3A!I98 -> 111625220 | J25: =A3A!J98 -> 120375281 | K25: =A3A!K98 -> 125880849
A26: =A3A!A105 -> Vote 04 - Housing | C26: =A3A!C105 -> 17593180 | D26: =A3A!D105 -> 17486514.37 | E26: =A3A!E105 -> 38444889 | F26: =A3A!F105 -> 46405859 | G26: =A3A!G105 -> 43013017 | H26: =A3A!H105 -> 43013017 | I26: =A3A!I105 -> 43961942 | J26: =A3A!J105 -> 45984227 | K26: =A3A!K105 -> 48078671
A27: =A3A!A111 -> Vote 05 - Sport Arts And Culture | C27: =A3A!C111 -> 79488753 | D27: =A3A!D111 -> 53657887.01 | E27: =A3A!E111 -> 92587374 | F27: =A3A!F111 -> 103412849 | G27: =A3A!G111 -> 102756680 | H27: =A3A!H111 -> 102756680 | I27: =A3A!I111 -> 97963223 | J27: =A3A!J111 -> 103735239 | K27: =A3A!K111 -> 108264637
A28: =A3A!A118 -> Vote 06 - Council General | C28: =A3A!C118 -> 173055981.5 | D28: =A3A!D118 -> 151819231.1 | E28: =A3A!E118 -> 233469010.2 | F28: =A3A!F118 -> 247900960 | G28: =A3A!G118 -> 260390405 | H28: =A3A!H118 -> 260390405 | I28: =A3A!I118 -> 247958374 | J28: =A3A!J118 -> 262751961 | K28: =A3A!K118 -> 272611414
A29: =A3A!A127 -> Vote 07 - Civil Engineering | C29: =A3A!C127 -> 146532870.3 | D29: =A3A!D127 -> 219091517.3 | E29: =A3A!E127 -> 236969728.7 | F29: =A3A!F127 -> 255129468 | G29: =A3A!G127 -> 276658940 | H29: =A3A!H127 -> 276658940 | I29: =A3A!I127 -> 237791135 | J29: =A3A!J127 -> 294820789 | K29: =A3A!K127 -> 270717844
A30: =A3A!A132 -> Vote 08 - Water Section | C30: =A3A!C132 -> 961312971.1 | D30: =A3A!D132 -> 1050746923 | E30: =A3A!E132 -> 1002773101 | F30: =A3A!F132 -> 672384967 | G30: =A3A!G132 -> 588918144 | H30: =A3A!H132 -> 588918144 | I30: =A3A!I132 -> 730845449 | J30: =A3A!J132 -> 701338373 | K30: =A3A!K132 -> 777676684
A31: =A3A!A135 -> Vote 09 - City Electrial Engineering | C31: =A3A!C135 -> 1334458235 | D31: =A3A!D135 -> 1174884182 | E31: =A3A!E135 -> 1728546163 | F31: =A3A!F135 -> 1683890420 | G31: =A3A!G135 -> 1532504578 | H31: =A3A!H135 -> 1532504578 | I31: =A3A!I135 -> 1562975979 | J31: =A3A!J135 -> 1505907472 | K31: =A3A!K135 -> 1534854243
A32: =A3A!A141 -> Vote 10 - Corporate Governane | C32: =A3A!C141 -> 55114170 | D32: =A3A!D141 -> 55234081.17 | E32: =A3A!E141 -> 74400449.7 | F32: =A3A!F141 -> 79164482 | G32: =A3A!G141 -> 80650647 | H32: =A3A!H141 -> 80650647 | I32: =A3A!I141 -> 78708674 | J32: =A3A!J141 -> 84372858 | K32: =A3A!K141 -> 88260600
A33: =A3A!A145 -> Vote 11 - Budget And Treasury Office | C33: =A3A!C145 -> 452125061 | D33: =A3A!D145 -> 908310529.3 | E33: =A3A!E145 -> 294480549.7 | F33: =A3A!F145 -> 321720358 | G33: =A3A!G145 -> 233611343 | H33: =A3A!H145 -> 233611343 | I33: =A3A!I145 -> 411424491 | J33: =A3A!J145 -> 368207548 | K33: =A3A!K145 -> 320885056 | L33: =A3A!L146 -> 0
A34: =A3A!A149 -> Vote 12 - Cleansing | C34: =A3A!C149 -> 192003419.5 | D34: =A3A!D149 -> 288952343.1 | E34: =A3A!E149 -> 283172168 | F34: =A3A!F149 -> 201851528 | G34: =A3A!G149 -> 184835582 | H34: =A3A!H149 -> 184835582 | I34: =A3A!I149 -> 219847042 | J34: =A3A!J149 -> 222379708 | K34: =A3A!K149 -> 214004416 | L34: =A3A!L150 -> 0
A35: =A3A!A157 -> Vote 13 - Sewerage | C35: =A3A!C157 -> 196134896.4 | D35: =A3A!D157 -> 214452451.7 | E35: =A3A!E157 -> 220259507.8 | F35: =A3A!F157 -> 233772767 | G35: =A3A!G157 -> 215313890 | H35: =A3A!H157 -> 215313890 | I35: =A3A!I157 -> 243945908 | J35: =A3A!J157 -> 305203839 | K35: =A3A!K157 -> 237214501 | L35: =A3A!L158 -> 0
A36: =A3A!A162 -> Vote 14 - Market | C36: =A3A!C162 -> 32020807.62 | D36: =A3A!D162 -> 21364082.5 | E36: =A3A!E162 -> 26209352.96 | F36: =A3A!F162 -> 24112771 | G36: =A3A!G162 -> 22982028 | H36: =A3A!H162 -> 22982028 | I36: =A3A!I162 -> 23181617 | J36: =A3A!J162 -> 24247993 | K36: =A3A!K162 -> 25340975 | L36: =A3A!L163 -> 0
A37: =A3A!A164 -> Vote 15 - Other | C37: =A3A!C164 -> 10640850 | D37: =A3A!D164 -> 8058514.45 | E37: =A3A!E164 -> 12730339 | F37: =A3A!F164 -> 13387858 | G37: =A3A!G164 -> 11433301 | H37: =A3A!H164 -> 11433301 | I37: =A3A!I164 -> 12921309 | J37: =A3A!J164 -> 12574317 | K37: =A3A!K164 -> 13145031 | L37: =A3A!L165 -> 0
A38: Total Expenditure by Vote | B38: 2 | C38: =SUM(C23:C37) -> 4050047791 | D38: =SUM(D23:D37) -> 4469816725 | E38: =SUM(E23:E37) -> 4737696389 | F38: 4287707945 | G38: 3927655414 | H38: 3927655414 | I38: 4262640805 | J38: 4324883231 | K38: 4319008154 | L38: =SUM(L23:L29) -> 0 | M38: 0 | N38: 0 | O38: 0 | P38: 0 | Q38: 0 | R38: 0 | S38: 0 | T38: 0 | U38: 0 | V38: 0 | W38: 0
A39: =result -> Surplus/(Deficit) for the year | B39: 2 | C39: =C20-C38 -> -260231597.5 | D39: =D20-D38 -> -617190420.1 | E39: -884537982.6 | F39: 118317109 | G39: 169894978 | H39: 169894978 | I39: 188469847 | J39: 315111857 | K39: 557877342 | L39: 0 | M39: 0 | N39: 0 | O39: 0 | P39: 0 | Q39: 0 | R39: 0 | S39: 0 | T39: 0 | U39: 0 | V39: 0 | W39: 0
A40: =head27a -> References
A41: 1. Insert 'Vote'; e.g. department, if different to functional classification structure
A42: 2. Must reconcile to Budgeted Financial Performance (revenue and expenditure)
A43: 3. Assign share in 'associate' to relevant Vote

Sheet A3A
A1: =muni&" - "&Approve2&"A" -> NW403 City Of Matlosana - Table A3 Budgeted Financial Performance (revenue and expenditure by municipal vote)A
A2: =Vdesc -> Vote Description | B2: =head27 -> Ref | C2: =head1b -> 2020/21 | D2: =head1A -> 2021/22 | E2: =Head1 -> 2022/23 | F2: =Head2 -> Current Year 2023/24 | I2: =Head3 -> 2024/25 Medium Term Revenue & Expenditure Framework | L2: =Head4 -> LTFS
A3: R thousand | C3: =Head5 -> Audited Outcome | D3: =Head5 -> Audited Outcome | E3: =Head5 -> Audited Outcome | F3: =Head6 -> Original Budget | G3: =Head7 -> Adjusted Budget | H3: =Head8 -> Full Year Forecast | I3: =Head9 -> Budget Year 2024/25 | J3: =Head10 -> Budget Year +1 2025/26 | K3: =Head11 -> Budget Year +2 2026/27 | L3: =Head12 -> Forecast 2027/28 | M3: =Head13 -> Forecast 2028/29 | N3: =Head14 -> Forecast 2029/30 | O3: =Head15 -> Forecast 2030/31 | P3: =Head16 -> Forecast 2031/32 | Q3: =Head17 -> Forecast 2032/33 | R3: =Head18 -> Forecast 2033/34 | S3: =Head19 -> Forecast 2034/35 | T3: =Head20 -> Forecast 2035/36 | U3: =Head21 -> Forecast 2036/37 | V3: =Head22 -> Forecast 2037/38 | W3: =Head23 -> Forecast 2038/39
A4: Revenue by Vote | B4: 1
A5: ='Org structure'!A2 -> Vote 01 - Public Safety | C5: =SUM(C6:C11) -> 97138018.42 | D5: 44033268.15 | E5: 31481990.35 | F5: 31777995 | G5: 28844542 | H5: 28844542 | I5: 39398911 | J5: 41208951 | K5: 43104565
A6: ='Org structure'!E3 -> 01.1 - Public Safety Administration | C6: 0 | D6: 0 | E6: 0 | F6: 0 | G6: 0 | H6: 0 | I6: 0 | J6: 0 | K6: 0
A7: ='Org structure'!E4 -> 01.2 - Fire Brigade | C7: 354566.25 | D7: 468303.24 | E7: 512277.08 | F7: 725871 | G7: 1025871 | H7: 1025871 | I7: 761438 | J7: 796465 | K7: 833102
A8: ='Org structure'!E5 -> 01.3 - Licencing Administration | C8: 25041604.67 | D8: 22583840.18 | E8: 22398134.84 | F8: 27687385 | G8: 24158018 | H8: 24158018 | I8: 24164748 | J8: 25274014 | K8: 26436620
A9: ='Org structure'!E6 -> 01.4 - Traffic Administration | C9: 24520070.78 | D9: 5083805.73 | E9: 8571578.43 | F9: 3364739 | G9: 3660653 | H9: 3660653 | I9: 14472725 | J9: 15138472 | K9: 15834843
A10: ='Org structure'!E7 -> 01.5 - Disaster Management | C10: 47221776.72 | D10: 15897319 | E10: 0 | F10: 0 | G10: 0 | H10: 0 | I10: 0 | J10: 0 | K10: 0
A11: ='Org structure'!E8 -> 01.6 - Municipal Court | C11: 0 | D11: 0 | E11: 0 | F11: 0 | G11: 0 | H11: 0 | I11: 0 | J11: 0 | K11: 0
A12: ='Org structure'!A3 -> Vote 02 - Health Services | C12: =SUM(C13:C14) -> 0 | D12: 0 | E12: 0 | F12: 0 | G12: 0 | H12: 0 | I12: 0 | J12: 0 | K12: 0
A13: ='Org structure'!E10 -> 02.1 - Health Services Administration | C13: 0 | D13: 0 | E13: 0 | F13: 0 | G13: 0 | H13: 0 | I13: 0 | J13: 0 | K13: 0
A14: ='Org structure'!E11 -> 02.2 - Occupational Health Centre | C14: 0 | D14: 0 | E14: 0 | F14: 0 | G14: 0 | H14: 0 | I14: 0 | J14: 0 | K14: 0
A15: ='Org structure'!A4 -> Vote 03 - Community Services | C15: =SUM(C16:C21) -> 3136973.87 | D15: 2585779.72 | E15: 2066744.77 | F15: 3668906 | G15: 3668906 | H15: 3668906 | I15: 3054816 | J15: 3101199 | K15: 3243854
A16: ='Org structure'!E13 -> 03.1 - Administration Community Services | C16: 0 | D16: 0 | E16: 0 | F16: 0 | G16: 0 | H16: 0 | I16: 0 | J16: 0 | K16: 0
A17: ='Org structure'!E14 -> 03.2 - Cemetary | C17: 2742429.06 | D17: 2233101.02 | E17: 1756399.72 | F17: 3090634 | G17: 3090634 | H17: 3090634 | I17: 2500000 | J17: 2615000 | K17: 2735290
A18: ='Org structure'!E15 -> 03.3 - Aerodome | C18: 0 | D18: 0 | E18: 0 | F18: 0 | G18: 0 | H18: 0 | I18: 90000 | J18: 0 | K18: 0
A19: ='Org structure'!E16 -> 03.4 - Nature Reserve | C19: 216397.5 | D19: 151811.62 | E19: 182201.57 | F19: 221211 | G19: 221211 | H19: 221211 | I19: 108677 | J19: 113677 | K19: 118906
A20: ='Org structure'!E17 -> 03.5 - Orkney Vaal | C20: 0 | D20: 0 | E20: 0 | F20: 0 | G20: 0 | H20: 0 | I20: 0 | J20: 0 | K20: 0
A21: ='Org structure'!E18 -> 03.6 - Administration Parks | C21: 178147.31 | D21: 200867.08 | E21: 128143.48 | F21: 357061 | G21: 357061 | H21: 357061 | I21: 356139 | J21: 372522 | K21: 389658
A22: ='Org structure'!A5 -> Vote 04 - Housing | C22: =SUM(C23:C27) -> 4496941.24 | D22: 9011011.72 | E22: 12489899.44 | F22: 41058043 | G22: 15788981 | H22: 15788981 | I22: 16091303 | J22: 16831504 | K22: 17605755
A23: ='Org structure'!E20 -> 04.1 - Administration Housing Services | C23: 0 | D23: 3807579.14 | E23: 7531132.41 | F23: 35000000 | G23: 9730938 | H23: 9730938 | I23: 10178561 | J23: 10646775 | K23: 11136527
A24: ='Org structure'!E21 -> 04.2 - Housing Services | C24: 3365138.96 | D24: 3970782.26 | E24: 3835661.61 | F24: 4187537 | G24: 4187537 | H24: 4187537 | I24: 4187527 | J24: 4380154 | K24: 4581641
A25: ='Org structure'!E22 -> 04.3 - Building Survey | C25: 930588.28 | D25: 947030.39 | E25: 803994.07 | F25: 1215648 | G25: 1215648 | H25: 1215648 | I25: 1275215 | J25: 1333875 | K25: 1395234
A26: ='Org structure'!E23 -> 04.4 - Town Planning | C26: 201214 | D26: 285619.93 | E26: 319111.35 | F26: 654858 | G26: 654858 | H26: 654858 | I26: 450000 | J26: 470700 | K26: 492353
A27: ='Org structure'!E24 -> 04.5 - Land Affairs | C27: 0 | D27: 0 | E27: 0 | F27: 0 | G27: 0 | H27: 0 | I27: 0 | J27: 0 | K27: 0
A28: ='Org structure'!A6 -> Vote 05 - Sport Arts And Culture | C28: =SUM(C29:C34) -> 373396159.1 | D28: 275065660 | E28: 102989418.7 | F28: 8942033 | G28: 8705033 | H28: 8705033 | I28: 16849494 | J28: 22437309 | K28: 1862741
A29: ='Org structure'!E26 -> 05.1 - Traffic Administration | C29: 0 | D29: 0 | E29: 0 | F29: 0 | G29: 0 | H29: 0 | I29: 0 | J29: 0 | K29: 0
A30: ='Org structure'!E27 -> 05.2 - Administration Sports Arts & Culture | C30: 0 | D30: 0 | E30: 0 | F30: 0 | G30: 0 | H30: 0 | I30: 0 | J30: 0 | K30: 0
A31: ='Org structure'!E28 -> 05.3 - Museum | C31: 228004.2 | D31: 245937.52 | E31: 203979.67 | F31: 493000 | G31: 246000 | H31: 246000 | I31: 251000 | J31: 302322 | K31: 305603
A32: ='Org structure'!E29 -> 05.4 - Library | C32: 358676513.8 | D32: 245350304.8 | E32: 99130854.85 | F32: 1095724 | G32: 1105724 | H32: 1105724 | I32: 1120932 | J32: 1128796 | K32: 1137021
A33: ='Org structure'!E30 -> 05.5 - Sports And Recreation | C33: 14491641.07 | D33: 29469417.76 | E33: 3654584.15 | F33: 7353309 | G33: 7353309 | H33: 7353309 | I33: 15477562 | J33: 21006191 | K33: 420117
A34: ='Org structure'!E31 -> 05.6 - Oppenheimer Stadium | C34: 0 | D34: 0 | E34: 0 | F34: 0 | G34: 0 | H34: 0 | I34: 0 | J34: 0 | K34: 0
A35: ='Org structure'!A7 -> Vote 06 - Council General | C35: =SUM(C36:C43) -> -7501381.92 | D35: -337613.95 | E35: -16564412.3 | F35: 421200 | G35: 421200 | H35: 421200 | I35: 200000 | J35: 209200 | K35: 218824
A36: ='Org structure'!E33 -> 06.1 - Administration Council General | C36: 1952719 | D36: 645546.05 | E36: 7980 | F36: 421200 | G36: 421200 | H36: 421200 | I36: 200000 | J36: 209200 | K36: 218824
A37: ='Org structure'!E34 -> 06.2 - Administration Municipal Manager | C37: 0 | D37: 0 | E37: 0 | F37: 0 | G37: 0 | H37: 0 | I37: 0 | J37: 0 | K37: 0
A38: ='Org structure'!E35 -> 06.3 - Internal Audit | C38: 0 | D38: 0 | E38: 0 | F38: 0 | G38: 0 | H38: 0 | I38: 0 | J38: 0 | K38: 0
A39: ='Org structure'!E36 -> 06.4 - Strategic | C39: 0 | D39: 0 | E39: 0 | F39: 0 | G39: 0 | H39: 0 | I39: 0 | J39: 0 | K39: 0
A40: ='Org structure'!E37 -> 06.5 - Administration Mayor | C40: -9454100.92 | D40: -983160 | E40: -16572392.3 | F40: 0 | G40: 0 | H40: 0 | I40: 0 | J40: 0 | K40: 0
A41: ='Org structure'!E38 -> 06.6 - Administration Speaker | C41: 0 | D41: 0 | E41: 0 | F41: 0 | G41: 0 | H41: 0 | I41: 0 | J41: 0 | K41: 0
A42: ='Org structure'!E39 -> 06.7 - Chief Whip | C42: 0 | D42: 0 | E42: 0 | F42: 0 | G42: 0 | H42: 0 | I42: 0 | J42: 0 | K42: 0
A43: ='Org structure'!E40 -> 06.8 - Mpac | C43: 0 | D43: 0 | E43: 0 | F43: 0 | G43: 0 | H43: 0 | I43: 0 | J43: 0 | K43: 0
A44: ='Org structure'!A8 -> Vote 07 - Civil Engineering | C44: =SUM(C45:C48) -> 62288652.57 | D44: 65603049.15 | E44: 35564253.28 | F44: 53438716 | G44: 52120147 | H44: 52120147 | I44: 19849253 | J44: 20972098 | K44: 45318924
A45: ='Org structure'!E42 -> 07.1 - Administration City Civil Engineer | C45: 0 | D45: 0 | E45: 0 | F45: 0 | G45: 0 | H45: 0 | I45: 0 | J45: 0 | K45: 0
A46: ='Org structure'!E43 -> 07.2 - Building Construction | C46: 0 | D46: 0 | E46: 0 | F46: 0 | G46: 0 | H46: 0 | I46: 0 | J46: 0 | K46: 0
A47: ='Org structure'!E44 -> 07.3 - Roads | C47: 57431871.72 | D47: 60814367.48 | E47: 30535870.89 | F47: 47652116 | G47: 46333547 | H47: 46333547 | I47: 14209053 | J47: 15576098 | K47: 39446924
A48: ='Org structure'!E45 -> 07.4 - Pmu Unit | C48: 4856780.85 | D48: 4788681.67 | E48: 5028382.39 | F48: 5786600 | G48: 5786600 | H48: 5786600 | I48: 5640200 | J48: 5396000 | K48: 5872000
A49: ='Org structure'!A9 -> Vote 08 - Water Section | C49: =SUM(C50:C51) -> 851986850.7 | D49: 879795771.4 | E49: 986050634.4 | F49: 1048742393 | G49: 937425661 | H49: 937425661 | I49: 1092663201 | J49: 1117733462 | K49: 1185505508
A50: ='Org structure'!E47 -> 08.1 - Administration Water | C50: 823554798.5 | D50: 855783654.3 | E50: 978470291.7 | F50: 1029742393 | G50: 889295661 | H50: 889295661 | I50: 1057195452 | J50: 1106463013 | K50: 1157360311
A51: ='Org structure'!E48 -> 08.2 - Water Distribution | C51: 28432052.14 | D51: 24012117.06 | E51: 7580342.61 | F51: 19000000 | G51: 48130000 | H51: 48130000 | I51: 35467749 | J51: 11270449 | K51: 28145197
A52: ='Org structure'!A10 -> Vote 09 - City Electrial Engineering | C52: =SUM(C53:C57) -> 953142854.7 | D52: 1017620228 | E52: 964401425.8 | F52: 1167556964 | G52: 1129247570 | H52: 1129247570 | I52: 1167621724 | J52: 1228816829 | K52: 1285477268
A53: ='Org structure'!E50 -> 09.1 - Streetlighting | C53: 5974098.21 | D53: 0 | E53: 2997460 | F53: 4000000 | G53: 4000000 | H53: 4000000 | I53: 5000000 | J53: 5000000 | K53: 4000000
A54: ='Org structure'!E51 -> 09.2 - Garage | C54: 0 | D54: 0 | E54: 0 | F54: 0 | G54: 0 | H54: 0 | I54: 0 | J54: 0 | K54: 0
A55: ='Org structure'!E52 -> 09.3 - Workshop | C55: 0 | D55: 0 | E55: 0 | F55: 0 | G55: 0 | H55: 0 | I55: 0 | J55: 0 | K55: 0
A56: ='Org structure'!E53 -> 09.4 - Administration Electricity | C56: 898075732.5 | D56: 1002562797 | E56: 932427801.5 | F56: 1158350787 | G56: 1120041393 | H56: 1120041393 | I56: 1157509072 | J56: 1210898626 | K56: 1266599963
A57: ='Org structure'!E54 -> 09.5 - Electricity Distribution | C57: 49093023.95 | D57: 15057430.79 | E57: 28976164.21 | F57: 5206177 | G57: 5206177 | H57: 5206177 | I57: 5112652 | J57: 12918203 | K57: 14877305
A58: ='Org structure'!A11 -> Vote 10 - Corporate Governane | C58: =SUM(C59:C61) -> 1983051.46 | D58: 1289628.94 | E58: 2757153.56 | F58: 2239581 | G58: 2239581 | H58: 2239581 | I58: 1230341 | J58: 2353857 | K58: 2462135
A59: ='Org structure'!E56 -> 10.1 - Administration City Secretary | C59: 18592 | D59: 164866.25 | E59: 195935.59 | F59: 219581 | G59: 219581 | H59: 219581 | I59: 230341 | J59: 240937 | K59: 252020
A60: ='Org structure'!E57 -> 10.2 - Legal And Land Affairs | C60: 0 | D60: 0 | E60: 0 | F60: 0 | G60: 0 | H60: 0 | I60: 0 | J60: 0 | K60: 0
A61: ='Org structure'!E58 -> 10.3 - Management Services | C61: 1964459.46 | D61: 1124762.69 | E61: 2561217.97 | F61: 2020000 | G61: 2020000 | H61: 2020000 | I61: 1000000 | J61: 2112920 | K61: 2210115
A62: ='Org structure'!A12 -> Vote 11 - Budget And Treasury Office | C62: =SUM(C63:C65) -> 1036886338 | D62: 1102439662 | E62: 1202090613 | F62: 1358123432 | G62: 1332503227 | H62: 1332503227 | I62: 1422603171 | J62: 1490103188 | K62: 1544422819
A63: ='Org structure'!E60 -> 11.1 - Administration City Treasurer | C63: 1033942821 | D63: 1099422678 | E63: 1200275443 | F63: 1356883797 | G63: 1331263592 | H63: 1331263592 | I63: 1421710823 | J63: 1489169791 | K63: 1543446486
A64: ='Org structure'!E61 -> 11.2 - Data | C64: 254146.56 | D64: 99023.53 | E64: 42604.09 | F64: 135699 | G64: 135699 | H64: 135699 | I64: 142348 | J64: 148897 | K64: 155746
A65: ='Org structure'!E62 -> 11.3 - Stores | C65: 2689370.75 | D65: 2917960.46 | E65: 1772565.15 | F65: 1103936 | G65: 1103936 | H65: 1103936 | I65: 750000 | J65: 784500 | K65: 820587
A66: ='Org structure'!A13 -> Vote 12 - Cleansing | C66: =SUM(C67:C73) -> 225646330.9 | D66: 274816559.8 | E66: 346074063.8 | F66: 424794489 | G66: 387497234 | H66: 387497234 | I66: 387791051 | J66: 374459256 | K66: 381405772
A67: ='Org structure'!E64 -> 12.1 - Landfill Site | C67: 0 | D67: 251891.82 | E67: 140524 | F67: 354417 | G67: 354417 | H67: 354417 | I67: 371783 | J67: 388886 | K67: 406774
A68: ='Org structure'!E65 -> 12.2 - Administration Cleansing | C68: 225288699.3 | D68: 274564668 | E68: 345933539.8 | F68: 388918885 | G68: 356080451 | H68: 356080451 | I68: 348592952 | J68: 345015507 | K68: 380941611
A69: ='Org structure'!E66 -> 12.3 - Refuse Removal | C69: 0 | D69: 0 | E69: 0 | F69: 0 | G69: 0 | H69: 0 | I69: 0 | J69: 0 | K69: 0
A70: ='Org structure'!E67 -> 12.4 - Nightsoil Services | C70: 0 | D70: 0 | E70: 0 | F70: 0 | G70: 0 | H70: 0 | I70: 0 | J70: 0 | K70: 0
A71: ='Org structure'!E68 -> 12.5 - Street Cleaning | C71: 0 | D71: 0 | E71: 0 | F71: 0 | G71: 0 | H71: 0 | I71: 0 | J71: 0 | K71: 0
A72: ='Org structure'!E69 -> 12.6 - Public Restrooms | C72: 0 | D72: 0 | E72: 0 | F72: 0 | G72: 0 | H72: 0 | I72: 0 | J72: 0 | K72: 0
A73: ='Org structure'!E70 -> 12.7 - Landfill Site | C73: 357631.57 | D73: 0 | E73: 0 | F73: 35521187 | G73: 31062366 | H73: 31062366 | I73: 38826316 | J73: 29054863 | K73: 57387
A74: ='Org structure'!A14 -> Vote 13 - Sewerage | C74: =SUM(C75:C78) -> 157705179.3 | D74: 143839765.8 | E74: 155436461.7 | F74: 242313026 | G74: 174702422 | H74: 174702422 | I74: 253895202 | J74: 286167645 | K74: 339479113
A75: ='Org structure'!E72 -> 13.1 - Administration Sewerage | C75: 121608575.2 | D75: 128520997.5 | E75: 145067704.8 | F75: 165748406 | G75: 144702422 | H75: 144702422 | I75: 179882748 | J75: 188167645 | K75: 196823355
A76: ='Org structure'!E73 -> 13.2 - Sewer Agency | C76: 0 | D76: 0 | E76: 0 | F76: 0 | G76: 0 | H76: 0 | I76: 0 | J76: 0 | K76: 0
A77: ='Org structure'!E74 -> 13.3 - Sewer Distribution | C77: 36096604.17 | D77: 15318768.28 | E77: 10368756.91 | F77: 76564620 | G77: 30000000 | H77: 30000000 | I77: 74012454 | J77: 98000000 | K77: 142655758
A78: ='Org structure'!E75 -> 13.4 - Nightsoil Services | C78: 0 | D78: 0 | E78: 0 | F78: 0 | G78: 0 | H78: 0 | I78: 0 | J78: 0 | K78: 0
A79: ='Org structure'!A15 -> Vote 14 - Market | C79: =SUM(C80:C80) -> 29509659.87 | D79: 36862991.7 | E79: 28319986.78 | F79: 22947297 | G79: 24384909 | H79: 24384909 | I79: 29861158 | J79: 35599515 | K79: 26777094
A80: ='Org structure'!E77 -> 14.1 - Market | C80: 29509659.87 | D80: 36862991.7 | E80: 28319986.78 | F80: 22947297 | G80: 24384909 | H80: 24384909 | I80: 29861158 | J80: 35599515 | K80: 26777094
A81: ='Org structure'!A16 -> Vote 15 - Other | C81: =SUM(C82:C84) -> 565.21 | D81: 542.54 | E81: 173.92 | F81: 979 | G81: 979 | H81: 979 | I81: 1027 | J81: 1075 | K81: 1124
A82: ='Org structure'!E79 -> 15.1 - Administration Led | C82: 565.21 | D82: 542.54 | E82: 173.92 | F82: 979 | G82: 979 | H82: 979 | I82: 1027 | J82: 1075 | K82: 1124
A83: ='Org structure'!E80 -> 15.2 - Economic Affairs & Corporate Communicati | C83: 0 | D83: 0 | E83: 0 | F83: 0 | G83: 0 | H83: 0 | I83: 0 | J83: 0 | K83: 0
A84: ='Org structure'!E81 -> 15.3 - Local Economic Development | C84: 0 | D84: 0 | E84: 0 | F84: 0 | G84: 0 | H84: 0 | I84: 0 | J84: 0 | K84: 0
A85: Total Revenue by Vote | B85: 2 | C85: =C5+C12+C15+C22+C28+C35+C44+C49+C52+C58+C62+C66+C74+C79+C81 -> 3789816194 | D85: 3852626305 | E85: 3853158407 | F85: 4406025054 | G85: 4097550392 | H85: 4097550392 | I85: 4451110652 | J85: 4639995088 | K85: 4876885496 | L85: =SUM(#REF!) ->  | M85: =SUM(#REF!) ->  | N85: =SUM(#REF!) ->  | O85: =SUM(#REF!) ->  | P85: =SUM(#REF!) ->  | Q85: =SUM(#REF!) ->  | R85: =SUM(#REF!) ->  | S85: =SUM(#REF!) ->  | T85: =SUM(#REF!) ->  | U85: =SUM(#REF!) ->  | V85: =SUM(#REF!) ->  | W85: =SUM(#REF!) -> 
A87: Expenditure by Vote | B87: 1
A88: ='Org structure'!A2 -> Vote 01 - Public Safety | C88: =SUM(C89:C94) -> 242473009.8 | D88: 218142532.9 | E88: 259734190.1 | F88: 276520271 | G88: 248192450 | H88: 248192450 | I88: 229307123 | J88: 262331862 | K88: 270932932
A89: ='Org structure'!E3 -> 01.1 - Public Safety Administration | C89: 80368028.04 | D89: 28597070.08 | E89: 5234152.84 | F89: 12221719 | G89: 10259980 | H89: 10259980 | I89: 10568835 | J89: 11055003 | K89: 11557661
A90: ='Org structure'!E4 -> 01.2 - Fire Brigade | C90: 44083858.97 | D90: 51168754.88 | E90: 55646874.95 | F90: 65275242 | G90: 49253695 | H90: 49253695 | I90: 45343686 | J90: 47070473 | K90: 49126905
A91: ='Org structure'!E5 -> 01.3 - Licencing Administration | C91: 35064274.41 | D91: 42512857.27 | E91: 41190111.1 | F91: 48006500 | G91: 45606090 | H91: 45606090 | I91: 47044568 | J91: 49208634 | K91: 51450896
A92: ='Org structure'!E6 -> 01.4 - Traffic Administration | C92: 36013311.77 | D92: 41499355.28 | E92: 38652065.71 | F92: 53075719 | G92: 47944502 | H92: 47944502 | I92: 47690857 | J92: 49895109 | K92: 52124966
A93: ='Org structure'!E7 -> 01.5 - Disaster Management | C93: 2879389.79 | D93: 7789954.22 | E93: 2174330.25 | F93: 40713385 | G93: 35233785 | H93: 35233785 | I93: 32678530 | J93: 41953523 | K93: 40621003
A94: ='Org structure'!E8 -> 01.6 - Municipal Court | C94: 44064146.77 | D94: 46574541.21 | E94: 116836655.2 | F94: 57227706 | G94: 59894398 | H94: 59894398 | I94: 45980647 | J94: 63149120 | K94: 66051501
A95: ='Org structure'!A3 -> Vote 02 - Health Services | C95: =SUM(C96:C97) -> 32342883 | D95: 8359801.7 | E95: 10356982 | F95: 10898716 | G95: 9886553 | H95: 9886553 | I95: 10183319 | J95: 10651764 | K95: 11140301
A96: ='Org structure'!E10 -> 02.1 - Health Services Administration | C96: 22714182.11 | D96: 8258582.79 | E96: 10324287.93 | F96: 10727576 | G96: 9723252 | H96: 9723252 | I96: 10019118 | J96: 10480008 | K96: 10961704
A97: ='Org structure'!E11 -> 02.2 - Occupational Health Centre | C97: 9628700.89 | D97: 101218.91 | E97: 32694.07 | F97: 171140 | G97: 163301 | H97: 163301 | I97: 164201 | J97: 171756 | K97: 178597
A98: ='Org structure'!A4 -> Vote 03 - Community Services | C98: =SUM(C99:C104) -> 124750703.3 | D98: 79256133.29 | E98: 223562584.1 | F98: 117154671 | G98: 116507856 | H98: 116507856 | I98: 111625220 | J98: 120375281 | K98: 125880849
A99: ='Org structure'!E13 -> 03.1 - Administration Community Services | C99: 5663387.19 | D99: 6273984.98 | E99: 141561673.6 | F99: 43723884 | G99: 42347770 | H99: 42347770 | I99: 42457028 | J99: 44410067 | K99: 46451124
A100: ='Org structure'!E14 -> 03.2 - Cemetary | C100: 14647466.1 | D100: 26731431.3 | E100: 20404224.47 | F100: 20657333 | G100: 20566366 | H100: 20566366 | I100: 20065621 | J100: 20962499 | K100: 21922150
A101: ='Org structure'!E15 -> 03.3 - Aerodome | C101: 0 | D101: 0 | E101: 0 | F101: 0 | G101: 0 | H101: 0 | I101: 0 | J101: 0 | K101: 0
A102: ='Org structure'!E16 -> 03.4 - Nature Reserve | C102: 63426513.29 | D102: -475642.43 | E102: 11077751.16 | F102: 2329247 | G102: 2311933 | H102: 2311933 | I102: 2308956 | J102: 2313150 | K102: 2415245
A103: ='Org structure'!E17 -> 03.5 - Orkney Vaal | C103: 2378911.39 | D103: 2213625.02 | E103: 2367565.52 | F103: 2913329 | G103: 2623329 | H103: 2623329 | I103: 2807214 | J103: 2854297 | K103: 2981551
A104: ='Org structure'!E18 -> 03.6 - Administration Parks | C104: 38634425.37 | D104: 44512734.42 | E104: 48151369.32 | F104: 47530878 | G104: 48658458 | H104: 48658458 | I104: 43986401 | J104: 49835268 | K104: 52110779
A105: ='Org structure'!A5 -> Vote 04 - Housing | C105: =SUM(C106:C110) -> 17593180 | D105: 17486514.37 | E105: 38444889 | F105: 46405859 | G105: 43013017 | H105: 43013017 | I105: 43961942 | J105: 45984227 | K105: 48078671
A106: ='Org structure'!E20 -> 04.1 - Administration Housing Services | C106: 4777104.87 | D106: 3206290.89 | E106: 16554812.57 | F106: 19390178 | G106: 20600314 | H106: 20600314 | I106: 20336660 | J106: 21272153 | K106: 22249378
A107: ='Org structure'!E21 -> 04.2 - Housing Services | C107: 10532843.63 | D107: 10411563.97 | E107: 16672992.66 | F107: 17771758 | G107: 16175758 | H107: 16175758 | I107: 17047074 | J107: 17831251 | K107: 18632185
A108: ='Org structure'!E22 -> 04.3 - Building Survey | C108: 2283231.5 | D108: 3868659.51 | E108: 5217083.77 | F108: 5203373 | G108: 5414859 | H108: 5414859 | I108: 5732582 | J108: 5996290 | K108: 6271888
A109: ='Org structure'!E23 -> 04.4 - Town Planning | C109: 0 | D109: 0 | E109: 0 | F109: 584936 | G109: 459936 | H109: 459936 | I109: 462052 | J109: 483309 | K109: 505540
A110: ='Org structure'!E24 -> 04.5 - Land Affairs | C110: 0 | D110: 0 | E110: 0 | F110: 3455614 | G110: 362150 | H110: 362150 | I110: 383574 | J110: 401224 | K110: 419680
A111: ='Org structure'!A6 -> Vote 05 - Sport Arts And Culture | C111: =SUM(C112:C117) -> 79488753 | D111: 53657887.01 | E111: 92587374 | F111: 103412849 | G111: 102756680 | H111: 102756680 | I111: 97963223 | J111: 103735239 | K111: 108264637
A112: ='Org structure'!E26 -> 05.1 - Traffic Administration | C112: 0 | D112: 0 | E112: 0 | F112: 0 | G112: 0 | H112: 0 | I112: 0 | J112: 0 | K112: 0
A113: ='Org structure'!E27 -> 05.2 - Administration Sports Arts & Culture | C113: 0 | D113: 0 | E113: 83300 | F113: 359522 | G113: 359522 | H113: 359522 | I113: 277140 | J113: 289891 | K113: 302746
A114: ='Org structure'!E28 -> 05.3 - Museum | C114: 33798843.12 | D114: 3033507.2 | E114: 6294952.09 | F114: 5229849 | G114: 4602281 | H114: 4602281 | I114: 4432491 | J114: 4636393 | K114: 4843173
A115: ='Org structure'!E29 -> 05.4 - Library | C115: 22079098.38 | D115: 22097739.76 | E115: 23245045.99 | F115: 56436869 | G115: 57264015 | H115: 57264015 | I115: 55872874 | J115: 58453507 | K115: 61051857
A116: ='Org structure'!E30 -> 05.5 - Sports And Recreation | C116: 23610811.5 | D116: 28526640.05 | E116: 62964075.92 | F116: 41386609 | G116: 40530862 | H116: 40530862 | I116: 37380718 | J116: 40355448 | K116: 42066861
A117: ='Org structure'!E31 -> 05.6 - Oppenheimer Stadium | C117: 0 | D117: 0 | E117: 0 | F117: 0 | G117: 0 | H117: 0 | I117: 0 | J117: 0 | K117: 0
A118: ='Org structure'!A7 -> Vote 06 - Council General | C118: =SUM(C119:C126) -> 173055981.5 | D118: 151819231.1 | E118: 233469010.2 | F118: 247900960 | G118: 260390405 | H118: 260390405 | I118: 247958374 | J118: 262751961 | K118: 272611414
A119: ='Org structure'!E33 -> 06.1 - Administration Council General | C119: 127468015.8 | D119: 110821578.5 | E119: 108043896.5 | F119: 187150890 | G119: 201020193 | H119: 201020193 | I119: 185011474 | J119: 196967475 | K119: 207118567
A120: ='Org structure'!E34 -> 06.2 - Administration Municipal Manager | C120: 2956035.78 | D120: 3848572.03 | E120: 3550421.81 | F120: 3884607 | G120: 4744575 | H120: 4744575 | I120: 5020340 | J120: 5251290 | K120: 5492612
A121: ='Org structure'!E35 -> 06.3 - Internal Audit | C121: 4400969.17 | D121: 3697010.16 | E121: 6237086.92 | F121: 6321269 | G121: 6319255 | H121: 6319255 | I121: 6674861 | J121: 6981914 | K121: 7302859
A122: ='Org structure'!E36 -> 06.4 - Strategic | C122: 4265924.1 | D122: 4808672.3 | E122: 4003927.88 | F122: 5676716 | G122: 5154226 | H122: 5154226 | I122: 5420542 | J122: 5611850 | K122: 5869708
A123: ='Org structure'!E37 -> 06.5 - Administration Mayor | C123: 9359512.77 | D123: 10845286.62 | E123: 7760360.28 | F123: 13252393 | G123: 11524049 | H123: 11524049 | I123: 12591739 | J123: 13170966 | K123: 13772849
A124: ='Org structure'!E38 -> 06.6 - Administration Speaker | C124: 22270628.54 | D124: 15096196.92 | E124: 101092951.5 | F124: 27622089 | G124: 27622089 | H124: 27622089 | I124: 28909437 | J124: 30239287 | K124: 28320896
A125: ='Org structure'!E39 -> 06.7 - Chief Whip | C125: 1451302.69 | D125: 1367962.58 | E125: 1304381.12 | F125: 2264768 | G125: 2275182 | H125: 2275182 | I125: 2535185 | J125: 2651811 | K125: 2770199
A126: ='Org structure'!E40 -> 06.8 - Mpac | C126: 883592.63 | D126: 1333952.08 | E126: 1475984.16 | F126: 1728228 | G126: 1730836 | H126: 1730836 | I126: 1794796 | J126: 1877368 | K126: 1963724
A127: ='Org structure'!A8 -> Vote 07 - Civil Engineering | C127: =SUM(C128:C131) -> 146532870.3 | D127: 219091517.3 | E127: 236969728.7 | F127: 255129468 | G127: 276658940 | H127: 276658940 | I127: 237791135 | J127: 294820789 | K127: 270717844
A128: ='Org structure'!E42 -> 07.1 - Administration City Civil Engineer | C128: 3353896.75 | D128: 3132641.51 | E128: 99366932.63 | F128: 4625293 | G128: 4453216 | H128: 4453216 | I128: 4631337 | J128: 4844387 | K128: 5067227
A129: ='Org structure'!E43 -> 07.2 - Building Construction | C129: 15446947.7 | D129: 30386307.4 | E129: 54735102.14 | F129: 20308299 | G129: 19333307 | H129: 19333307 | I129: 19838642 | J129: 20751236 | K129: 21693433
A130: ='Org structure'!E44 -> 07.3 - Roads | C130: 122843426.7 | D130: 161824842.4 | E130: 74104031.7 | F130: 224956629 | G130: 247546443 | H130: 247546443 | I130: 207705063 | J130: 263350724 | K130: 237816003
A131: ='Org structure'!E45 -> 07.4 - Pmu Unit | C131: 4888599.1 | D131: 23747726.03 | E131: 8763662.21 | F131: 5239247 | G131: 5325974 | H131: 5325974 | I131: 5616093 | J131: 5874442 | K131: 6141181
A132: ='Org structure'!A9 -> Vote 08 - Water Section | C132: =SUM(C133:C134) -> 961312971.1 | D132: 1050746923 | E132: 1002773101 | F132: 672384967 | G132: 588918144 | H132: 588918144 | I132: 730845449 | J132: 701338373 | K132: 777676684
A133: ='Org structure'!E47 -> 08.1 - Administration Water | C133: 957656391.7 | D133: 982289589.6 | E133: 940493871.3 | F133: 604532519 | G133: 511221949 | H133: 511221949 | I133: 665304722 | J133: 630121751 | K133: 698725208
A134: ='Org structure'!E48 -> 08.2 - Water Distribution | C134: 3656579.33 | D134: 68457333.27 | E134: 62279229.31 | F134: 67852448 | G134: 77696195 | H134: 77696195 | I134: 65540727 | J134: 71216622 | K134: 78951476
A135: ='Org structure'!A10 -> Vote 09 - City Electrial Engineering | C135: =SUM(C136:C140) -> 1334458235 | D135: 1174884182 | E135: 1728546163 | F135: 1683890420 | G135: 1532504578 | H135: 1532504578 | I135: 1562975979 | J135: 1505907472 | K135: 1534854243
A136: ='Org structure'!E50 -> 09.1 - Streetlighting | C136: 5161859.73 | D136: 22000 | E136: 3185700 | F136: 4003456 | G136: 4000456 | H136: 4000456 | I136: 4000000 | J136: 5230000 | K136: 5470580
A137: ='Org structure'!E51 -> 09.2 - Garage | C137: 9206203.91 | D137: 12828860.13 | E137: 10204329.16 | F137: 39351141 | G137: 26698464 | H137: 26698464 | I137: 14616072 | J137: 15288427 | K137: 15975751
A138: ='Org structure'!E52 -> 09.3 - Workshop | C138: 6487358.68 | D138: 7472943.59 | E138: 46716011.58 | F138: 28146302 | G138: 8165284 | H138: 8165284 | I138: 8424072 | J138: 8905730 | K138: 9303103
A139: ='Org structure'!E53 -> 09.4 - Administration Electricity | C139: 445650863.5 | D139: 81451847.56 | E139: 615811230.1 | F139: 265959743 | G139: 134213601 | H139: 134213601 | I139: 423090431 | J139: 331976191 | K139: 225847830
A140: ='Org structure'!E54 -> 09.5 - Electricity Distribution | C140: 867951948.8 | D140: 1073108531 | E140: 1052628893 | F140: 1346429778 | G140: 1359426773 | H140: 1359426773 | I140: 1112845404 | J140: 1144507124 | K140: 1278256979
A141: ='Org structure'!A11 -> Vote 10 - Corporate Governane | C141: =SUM(C142:C144) -> 55114170 | D141: 55234081.17 | E141: 74400449.7 | F141: 79164482 | G141: 80650647 | H141: 80650647 | I141: 78708674 | J141: 84372858 | K141: 88260600
A142: ='Org structure'!E56 -> 10.1 - Administration City Secretary | C142: 36574937.41 | D142: 33148344.12 | E142: 43153050.87 | F142: 45866611 | G142: 44608477 | H142: 44608477 | I142: 43630327 | J142: 45637341 | K142: 47699525
A143: ='Org structure'!E57 -> 10.2 - Legal And Land Affairs | C143: 8674616.02 | D143: 11603042.34 | E143: 20758648.5 | F143: 17576874 | G143: 19938206 | H143: 19938206 | I143: 19453294 | J143: 20917156 | K143: 21925163
A144: ='Org structure'!E58 -> 10.3 - Management Services | C144: 9864616.57 | D144: 10482694.71 | E144: 10488750.33 | F144: 15720997 | G144: 16103964 | H144: 16103964 | I144: 15625053 | J144: 17818361 | K144: 18635912
A145: ='Org structure'!A12 -> Vote 11 - Budget And Treasury Office | C145: =SUM(C146:C148) -> 452125061 | D145: 908310529.3 | E145: 294480549.7 | F145: 321720358 | G145: 233611343 | H145: 233611343 | I145: 411424491 | J145: 368207548 | K145: 320885056
A146: ='Org structure'!E60 -> 11.1 - Administration City Treasurer | C146: 418810763.1 | D146: 884573590.3 | E146: 268807962.1 | F146: 295323480 | G146: 201931897 | H146: 201931897 | I146: 366215088 | J146: 321592040 | K146: 272206457
A147: ='Org structure'!E61 -> 11.2 - Data | C147: 21379373.06 | D147: 16498814.87 | E147: 20012431.27 | F147: 21019674 | G147: 26275096 | H147: 26275096 | I147: 39598801 | J147: 40746810 | K147: 42540430
A148: ='Org structure'!E62 -> 11.3 - Stores | C148: 11934924.83 | D148: 7238124.15 | E148: 5660156.36 | F148: 5377204 | G148: 5404350 | H148: 5404350 | I148: 5610602 | J148: 5868698 | K148: 6138169
A149: ='Org structure'!A13 -> Vote 12 - Cleansing | C149: =SUM(C150:C156) -> 192003419.5 | D149: 288952343.1 | E149: 283172168 | F149: 201851528 | G149: 184835582 | H149: 184835582 | I149: 219847042 | J149: 222379708 | K149: 214004416
A150: ='Org structure'!E64 -> 12.1 - Landfill Site | C150: 2737837.6 | D150: 12478873.38 | E150: 17024390.5 | F150: 17126033 | G150: 17126033 | H150: 17126033 | I150: 14928903 | J150: 18753641 | K150: 19615976
A151: ='Org structure'!E65 -> 12.2 - Administration Cleansing | C151: 80762286.96 | D151: 110337768.9 | E151: 124414281.7 | F151: 37208771 | G151: 18187058 | H151: 18187058 | I151: 82000916 | J151: 62813270 | K151: 41665911
A152: ='Org structure'!E66 -> 12.3 - Refuse Removal | C152: 58752623.63 | D152: 113947155.3 | E152: 76998342.27 | F152: 80438004 | G152: 81258004 | H152: 81258004 | I152: 60098584 | J152: 68415978 | K152: 72044216
A153: ='Org structure'!E67 -> 12.4 - Nightsoil Services | C153: 9032483.38 | D153: 9186314.78 | E153: 8386207.88 | F153: 10828023 | G153: 9828023 | H153: 9828023 | I153: 10123020 | J153: 10672365 | K153: 11163294
A154: ='Org structure'!E68 -> 12.5 - Street Cleaning | C154: 29328231.49 | D154: 31212387.9 | E154: 31308486.22 | F154: 31254138 | G154: 31654138 | H154: 31654138 | I154: 30626478 | J154: 32349103 | K154: 38788969
A155: ='Org structure'!E69 -> 12.6 - Public Restrooms | C155: 0 | D155: 0 | E155: 0 | F155: 28557 | G155: 28557 | H155: 28557 | I155: 30270 | J155: 31663 | K155: 33119
A156: ='Org structure'!E70 -> 12.7 - Landfill Site | C156: 11389956.41 | D156: 11789842.76 | E156: 25040459.44 | F156: 24968002 | G156: 26753769 | H156: 26753769 | I156: 22038871 | J156: 29343688 | K156: 30692931
A157: ='Org structure'!A14 -> Vote 13 - Sewerage | C157: =SUM(C158:C161) -> 196134896.4 | D157: 214452451.7 | E157: 220259507.8 | F157: 233772767 | G157: 215313890 | H157: 215313890 | I157: 243945908 | J157: 305203839 | K157: 237214501
A158: ='Org structure'!E72 -> 13.1 - Administration Sewerage | C158: 53150249.96 | D158: 85445827.46 | E158: 92190813.04 | F158: 61736975 | G158: 27250564 | H158: 27250564 | I158: 65761739 | J158: 50329768 | K158: 33338399
A159: ='Org structure'!E73 -> 13.2 - Sewer Agency | C159: 25969882.9 | D159: 33214176.7 | E159: 45258818 | F159: 56750414 | G159: 56635666 | H159: 56635666 | I159: 45309747 | J159: 114632211 | K159: 57197970
A160: ='Org structure'!E74 -> 13.3 - Sewer Distribution | C160: 117014763.5 | D160: 95720614.07 | E160: 82809876.71 | F160: 115285378 | G160: 131427660 | H160: 131427660 | I160: 132874422 | J160: 140241860 | K160: 146678132
A161: ='Org structure'!E75 -> 13.4 - Nightsoil Services | C161: 0 | D161: 71833.44 | E161: 0 | F161: 0 | G161: 0 | H161: 0 | I161: 0 | J161: 0 | K161: 0
A162: ='Org structure'!A15 -> Vote 14 - Market | C162: =SUM(C163:C163) -> 32020807.62 | D162: 21364082.5 | E162: 26209352.96 | F162: 24112771 | G162: 22982028 | H162: 22982028 | I162: 23181617 | J162: 24247993 | K162: 25340975
A163: ='Org structure'!E77 -> 14.1 - Market | C163: 32020807.62 | D163: 21364082.5 | E163: 26209352.96 | F163: 24112771 | G163: 22982028 | H163: 22982028 | I163: 23181617 | J163: 24247993 | K163: 25340975
A164: ='Org structure'!A16 -> Vote 15 - Other | C164: =SUM(C165:C167) -> 10640850 | D164: 8058514.45 | E164: 12730339 | F164: 13387858 | G164: 11433301 | H164: 11433301 | I164: 12921309 | J164: 12574317 | K164: 13145031
A165: ='Org structure'!E79 -> 15.1 - Administration Led | C165: 2934879.97 | D165: 2985193.45 | E165: 3416191.93 | F165: 3715431 | G165: 3654915 | H165: 3654915 | I165: 3853241 | J165: 4030497 | K165: 4213857
A166: ='Org structure'!E80 -> 15.2 - Economic Affairs & Corporate Communicati | C166: 3002085.76 | D166: 2549225.19 | E166: 4682391.68 | F166: 5872329 | G166: 4646615 | H166: 4646615 | I166: 3858517 | J166: 4036019 | K166: 4216575
A167: ='Org structure'!E81 -> 15.3 - Local Economic Development | C167: 4703884.27 | D167: 2524095.81 | E167: 4631755.39 | F167: 3800098 | G167: 3131771 | H167: 3131771 | I167: 5209551 | J167: 4507801 | K167: 4714599
A168: Total Expenditure by Vote | B168: 2 | C168: =C88+C95+C98+C105+C111+C118+C127+C132+C135+C141+C145+C149+C157+C162+C164 -> 4050047791 | D168: 4469816725 | E168: 4737696389 | F168: 4287707945 | G168: 3927655414 | H168: 3927655414 | I168: 4262640805 | J168: 4324883231 | K168: 4319008154 | L168: =SUM(L88:L131) -> 0 | M168: 0 | N168: 0 | O168: 0 | P168: 0 | Q168: 0 | R168: 0 | S168: 0 | T168: 0 | U168: 0 | V168: 0 | W168: 0
A170: =result -> Surplus/(Deficit) for the year | B170: 2 | C170: =C85-C168 -> -260231597.5 | D170: -617190420.1 | E170: -884537982.6 | F170: 118317109 | G170: 169894978 | H170: 169894978 | I170: 188469847 | J170: 315111857 | K170: 557877342
A171: =head27a -> References
A172: 1. Insert 'Vote'; e.g. Department, if different to Functional structure
A173: 2. Must reconcile to Financial Performance ('Revenue and Expenditure by Functional Classification' and 'Revenue and Expenditure')
A174: 3. Assign share in 'associate' to relevant Vote

Sheet A4-FinPerf RE
A1: =muni&" - "&Approve4 -> NW403 City Of Matlosana - Table A4 Budgeted Financial Performance (revenue and expenditure)
A2: =desc -> Description | B2: =head27 -> Ref | C2: =head1b -> 2020/21 | D2: =head1A -> 2021/22 | E2: =Head1 -> 2022/23 | F2: =Head2 -> Current Year 2023/24 | J2: =Head3 -> 2024/25 Medium Term Revenue & Expenditure Framework | M2: =Head4 -> LTFS
A3: R thousand | B3: 1 | C3: =Head5 -> Audited Outcome | D3: =Head5 -> Audited Outcome | E3: =Head5 -> Audited Outcome | F3: =Head6 -> Original Budget | G3: =Head7 -> Adjusted Budget | H3: =Head8 -> Full Year Forecast | I3: =Head5b -> Pre-audit outcome | J3: =Head9 -> Budget Year 2024/25 | K3: =Head10 -> Budget Year +1 2025/26 | L3: =Head11 -> Budget Year +2 2026/27 | M3: =Head12 -> Forecast 2027/28 | N3: =Head13 -> Forecast 2028/29 | O3: =Head14 -> Forecast 2029/30 | P3: =Head15 -> Forecast 2030/31 | Q3: =Head16 -> Forecast 2031/32 | R3: =Head17 -> Forecast 2032/33 | S3: =Head18 -> Forecast 2033/34 | T3: =Head19 -> Forecast 2034/35 | U3: =Head20 -> Forecast 2035/36 | V3: =Head21 -> Forecast 2036/37 | W3: =Head22 -> Forecast 2037/38 | X3: =Head23 -> Forecast 2038/39
A4: Revenue
A5: Exchange Revenue
A6: Service charges - Electricity | B6: 2 | C6: ='SA1'!C17 -> 854445512.4 | D6: ='SA1'!D17 -> 957446989.6 | E6: ='SA1'!E17 -> 876123970.6 | F6: ='SA1'!F17 -> 1100939658 | G6: ='SA1'!G17 -> 1071668308 | H6: ='SA1'!H17 -> 1071668308 | I6: ='SA1'!I17 -> 904766916.4 | J6: ='SA1'!J17 -> 1109135987 | K6: ='SA1'!K17 -> 1160156248 | L6: ='SA1'!L17 -> 1213523436
A7: Service charges - Water | B7: 2 | C7: ='SA1'!C23 -> 653812484.2 | D7: ='SA1'!D23 -> 650601668.4 | E7: ='SA1'!E23 -> 736820317.5 | F7: ='SA1'!F23 -> 787552383 | G7: ='SA1'!G23 -> 677105651 | H7: ='SA1'!H23 -> 677105651 | I7: ='SA1'!I23 -> 654658723.2 | J7: ='SA1'!J23 -> 845005452 | K7: ='SA1'!K23 -> 883875703 | L7: ='SA1'!L23 -> 924533985
A8: Service charges - Waste Water Management | B8: 2 | C8: ='SA1'!C29 -> 118205182.5 | D8: ='SA1'!D29 -> 125355609.4 | E8: ='SA1'!E29 -> 141372935.4 | F8: ='SA1'!F29 -> 162318990 | G8: ='SA1'!G29 -> 141273006 | H8: ='SA1'!H29 -> 141273006 | I8: ='SA1'!I29 -> 133467630.5 | J8: ='SA1'!J29 -> 176453343 | K8: ='SA1'!K29 -> 184570199 | L8: ='SA1'!L29 -> 193060427
A9: Service charges - Waste Management | B9: 2 | C9: ='SA1'!C36 -> 140063278.7 | D9: ='SA1'!D36 -> 167811802.5 | E9: ='SA1'!E36 -> 195290903.9 | F9: ='SA1'!F36 -> 254855693 | G9: ='SA1'!G36 -> 220000000 | H9: ='SA1'!H36 -> 220000000 | I9: ='SA1'!I36 -> 181001892.5 | J9: ='SA1'!J36 -> 219500000 | K9: ='SA1'!K36 -> 229597000 | L9: ='SA1'!L36 -> 240158462
A10: Sale of Goods and Rendering of Services | C10: 7246254.31 | D10: 6384381.29 | E10: 6086281.75 | F10: 8971004 | G10: 8971004 | H10: 8971004 | I10: 9304571.87 | J10: 9805305 | K10: 10306758 | L10: 10780867
A11: Agency services | C11: 0 | D11: 0 | E11: 0 | F11: 0 | G11: 0 | H11: 0 | I11: 0 | J11: 0 | K11: 0 | L11: 0
A12: Interest
A13: Interest earned from Receivables | C13: 383188907 | D13: 461282220.2 | E13: 550656208.7 | F13: 558180554 | G13: 508181000 | H13: 508181000 | I13: 549881210.6 | J13: 508204666 | K13: 509259076 | L13: 528764992
A14: Interest earned from Current and Non Current Assets | C14: 8059667.51 | D14: 10685431.08 | E14: 15402442.26 | F14: 9760918 | G14: 9760918 | H14: 9760918 | I14: 8273858.07 | J14: 10239203 | K14: 10740924 | L14: 11235006
A15: Dividends
A16: Rent on Land
A17: Rental from Fixed Assets | C17: 365557173.2 | D17: 251709429.6 | E17: 106775414.2 | F17: 9300468 | G17: 9149251 | H17: 9149251 | I17: 8399900.32 | J17: 9857011 | K17: 9889724 | L17: 10344652
A18: Licence and permits | C18: 8749133 | D18: 7870875.72 | E18: 7528073.19 | F18: 8909223 | G18: 7409223 | H18: 7409223 | I18: 7242682.16 | J18: 7427464 | K18: 7769128 | L18: 8126509
A19: Operational Revenue | C19: 46411668.77 | D19: 42360491.88 | E19: 49985540.82 | F19: 77619600 | G19: 51910000 | H19: 51910000 | I19: 47866562.67 | J19: 51084078 | K19: 54406729 | L19: 56909443
A20: Non-Exchange Revenue
A21: Property rates | B21: 2 | C21: ='SA1'!C10 -> 425503361.1 | D21: ='SA1'!D10 -> 451441226.4 | E21: ='SA1'!E10 -> 456396936.2 | F21: ='SA1'!F10 -> 561076166 | G21: ='SA1'!G10 -> 546004467 | H21: ='SA1'!H10 -> 546004467 | I21: ='SA1'!I10 -> 469829302.7 | J21: ='SA1'!J10 -> 593684392 | K21: ='SA1'!K10 -> 616369951 | L21: ='SA1'!L10 -> 644722968
A22: Surcharges and Taxes | C22: 0 | D22: 0 | E22: 14333.63 | F22: 240782 | G22: 240782 | H22: 240782 | I22: 0 | J22: 150000 | K22: 156900 | L22: 164118
A23: Fines, penalties and forfeits | C23: 24736991.56 | D23: 7356290.42 | E23: 8377449.57 | F23: 3103615 | G23: 3053781 | H23: 3053781 | I23: 3481289.2 | J23: 11710752 | K23: 12249448 | L23: 12812925
A24: Licences or permits | C24: 479210 | D24: 152346.53 | E24: 261075.34 | F24: 50000 | G24: 50000 | H24: 50000 | I24: 0 | J24: 50000 | K24: 52300 | L24: 54706
A25: Transfer and subsidies - Operational | C25: 530447694.2 | D25: 511230910 | E25: 559520046.7 | F25: 616920600 | G25: 616487600 | H25: 616487600 | I25: 594827251.9 | J25: 657797200 | K25: 698315000 | L25: 741650000
A26: Interest | C26: 40881152.75 | D26: 43424197.47 | E26: 50406436.8 | F26: 54756000 | G26: 54756000 | H26: 54756000 | I26: 47676174.59 | J26: 54756000 | K26: 54756000 | L26: 54756000
A27: Fuel Levy
A28: Operational Revenue
A29: Gains on disposal of Assets | C29: -9489100.52 | D29: -2163762.84 | E29: -16572392.3 | F29: 0 | G29: 0 | H29: 0 | I29: 0 | J29: 0 | K29: 0 | L29: 0
A30: Other Gains | C30: 1966859.54 | D30: 2864874.13 | E30: 1275862.37 | F30: 0 | G30: 0 | H30: 0 | I30: 2964.95 | J30: 0 | K30: 0 | L30: 0
A31: Discontinued Operations
A32: Total Revenue (excluding capital transfers and contributions) | C32: =SUM(C6:C19)+SUM(C21:C31) -> 3600265430 | D32: =SUM(D6:D19)+SUM(D21:D31) -> 3695814982 | E32: 3745721837 | F32: 4214555654 | G32: 3926020991 | H32: 3926020991 | I32: 3620680932 | J32: 4264860853 | K32: 4442471088 | L32: 4651598496
A33: Expenditure
A34: Employee related costs | B34: 2 | C34: ='SA1'!C71 -> 711929298 | D34: ='SA1'!D71 -> 686188405.8 | E34: ='SA1'!E71 -> 696837022.5 | F34: ='SA1'!F71 -> 785821472 | G34: ='SA1'!G71 -> 770974710 | H34: ='SA1'!H71 -> 770974710 | I34: ='SA1'!I71 -> 708607742.2 | J34: ='SA1'!J71 -> 794681905 | K34: ='SA1'!K71 -> 835809548 | L34: ='SA1'!L71 -> 874256784 | M34: ='SA1'!M71 -> 0 | N34: ='SA1'!N71 -> 0 | O34: ='SA1'!O71 -> 0 | P34: ='SA1'!P71 -> 0 | Q34: ='SA1'!Q71 -> 0 | R34: ='SA1'!R71 -> 0 | S34: ='SA1'!S71 -> 0 | T34: ='SA1'!T71 -> 0
A35: Remuneration of councillors | C35: 36495510.29 | D35: 34189332.6 | E35: 36911611.07 | F35: 41586467 | G35: 43497293 | H35: 43497293 | I35: 36789489.61 | J35: 46107129 | K35: 48228064 | L35: 50446558
A36: Bulk purchases - electricity | B36: 2 | C36: ='SA1'!C88 -> 746597082.4 | D36: ='SA1'!D88 -> 874375147.9 | E36: ='SA1'!E88 -> 848229631.6 | F36: ='SA1'!F88 -> 1109286788 | G36: ='SA1'!G88 -> 1109286788 | H36: ='SA1'!H88 -> 1109286788 | I36: ='SA1'!I88 -> 523807455.9 | J36: ='SA1'!J88 -> 925000000 | K36: ='SA1'!K88 -> 950000000 | L36: ='SA1'!L88 -> 1025000000
A37: Inventory consumed | B37: 8 | C37: ='SA1'!C169 -> 42048446 | D37: ='SA1'!D169 -> 38390842 | E37: ='SA1'!E169 -> 59238296 | F37: ='SA1'!F169 -> 440738356 | G37: ='SA1'!G169 -> 440738356 | H37: ='SA1'!H169 -> 440738356 | I37: ='SA1'!I169 -> 54445797.98 | J37: ='SA1'!J169 -> 434300934 | K37: ='SA1'!K169 -> 557145740 | L37: ='SA1'!L169 -> 0
A38: Debt impairment | B38: 3 | C38: -4252300 | D38: 18029723.25 | E38: 3749542.96 | F38: 579348578 | G38: 239090995 | H38: 239090995 | I38: 0 | J38: 1030322710 | K38: 768642276 | L38: 482399891
A39: Depreciation and amortisation | C39: ='SA1'!C83 -> 417553088.7 | D39: ='SA1'!D83 -> 383480410.6 | E39: ='SA1'!E83 -> 382953200.1 | F39: ='SA1'!F83 -> 440000000 | G39: ='SA1'!G83 -> 420000000 | H39: ='SA1'!H83 -> 420000000 | I39: ='SA1'!I83 -> 316085315.8 | J39: ='SA1'!J83 -> 411097601 | K39: ='SA1'!K83 -> 456158103 | L39: ='SA1'!L83 -> 477141378
A40: Interest | C40: 74477210.65 | D40: 116935916 | E40: 237534472.3 | F40: 10710640 | G40: 10707640 | H40: 10707640 | I40: 793779.11 | J40: 10144245 | K40: 10610895 | L40: 11098993
A41: Contracted services | C41: ='SA1'!C127 -> 250964305.1 | D41: ='SA1'!D127 -> 333129889.7 | E41: ='SA1'!E127 -> 249463155.8 | F41: ='SA1'!F127 -> 465091629 | G41: ='SA1'!G127 -> 468366092 | H41: ='SA1'!H127 -> 468366092 | I41: ='SA1'!I127 -> 251510622.2 | J41: ='SA1'!J127 -> 363507814 | K41: ='SA1'!K127 -> 432877406 | L41: ='SA1'!L127 -> 454322741
A42: Transfers and subsidies | C42: ='SA1'!C93 -> 0 | D42: ='SA1'!D93 -> 0 | E42: ='SA1'!E93 -> 0 | F42: ='SA1'!F93 -> 0 | G42: ='SA1'!G93 -> 0 | H42: ='SA1'!H93 -> 0 | I42: ='SA1'!I93 -> 0 | J42: ='SA1'!J93 -> 0 | K42: ='SA1'!K93 -> 0 | L42: ='SA1'!L93 -> 0
A43: Irrecoverable debts written off | C43: 1149479591 | D43: 1284786461 | E43: 1386491357 | F43: 0 | G43: 0 | H43: 0 | I43: 385783435.7 | J43: 0 | K43: 0 | L43: 0
A44: Operational costs | C44: ='SA1'!C157 -> 211236738 | D44: ='SA1'!D157 -> 215671054.7 | E44: ='SA1'!E157 -> 312936025.6 | F44: ='SA1'!F157 -> 319736957 | G44: ='SA1'!G157 -> 310628624 | H44: ='SA1'!H157 -> 310628624 | I44: ='SA1'!I157 -> 186796779.3 | J44: ='SA1'!J157 -> 247478466 | K44: ='SA1'!K157 -> 264841362 | L44: ='SA1'!L157 -> 277196069
A45: Losses on disposal of Assets | C45: 12256905.01 | D45: 19269842.83 | E45: 0 | F45: 0 | G45: 0 | H45: 0 | I45: 0 | J45: 0 | K45: 0 | L45: 0
A46: Other Losses | C46: 7439912.53 | D46: 2575419.42 | E46: 342160.57 | F46: 0 | G46: 0 | H46: 0 | I46: 0 | J46: 0 | K46: 0 | L46: 0
A47: Total Expenditure | C47: =SUM(C34:C46) -> 3656225787 | D47: =SUM(D34:D46) -> 4007022446 | E47: 4214686475 | F47: 4192320887 | G47: 3813290498 | H47: 3813290498 | I47: 2464620418 | J47: 4262640804 | K47: 4324313394 | L47: 3651862414 | M47: =SUM(M34:M46) -> 0 | N47: 0 | O47: 0 | P47: 0 | Q47: 0 | R47: 0 | S47: 0 | T47: 0 | U47: 0 | V47: 0 | W47: 0 | X47: 0
A48: Surplus/(Deficit) | C48: =C32-C47 -> -55960357.08 | D48: =D32-D47 -> -311207463.9 | E48: -468964638.6 | F48: 22234767 | G48: 112730493 | H48: 112730493 | I48: 1156060514 | J48: 2220049 | K48: 118157694 | L48: 999736082 | M48: =M32+M47 -> 0 | N48: 0 | O48: 0 | P48: 0 | Q48: 0 | R48: 0 | S48: 0 | T48: 0 | U48: 0 | V48: 0 | W48: 0 | X48: 0
A49: Transfers and subsidies - capital (monetary allocations) | B49: 6 | C49: 189550763.4 | D49: 156811322.9 | E49: 107436569.9 | F49: 191469400 | G49: 171529401 | H49: 171529401 | I49: 105889534.4 | J49: 186249799 | K49: 197524000 | L49: 225287000
A50: Transfers and subsidies - capital (in-kind) | B50: 6
A51: Surplus/(Deficit) after capital transfers & contributions | C51: =SUM(C48:C50) -> 133590406.3 | D51: =SUM(D48:D50) -> -154396140.9 | E51: -361528068.7 | F51: 213704167 | G51: 284259894 | H51: 284259894 | I51: 1261950048 | J51: 188469848 | K51: 315681694 | L51: 1225023082
A52: Income Tax
A53: Surplus/(Deficit) after income tax | C53: =+C51-C52 -> 133590406.3 | D53: =+D51-D52 -> -154396140.9 | E53: -361528068.7 | F53: 213704167 | G53: 284259894 | H53: 284259894 | I53: 1261950048 | J53: 188469848 | K53: 315681694 | L53: 1225023082 | M53: 0 | N53: 0 | O53: 0 | P53: 0 | Q53: 0
A54: Share of Surplus/Deficit attributable to Joint Venture
A55: Share of Surplus/Deficit attributable to Minorities
A56: Surplus/(Deficit) attributable to municipality | C56: =SUM(C53:C55) -> 133590406.3 | D56: =SUM(D53:D55) -> -154396140.9 | E56: -361528068.7 | F56: 213704167 | G56: 284259894 | H56: 284259894 | I56: 1261950048 | J56: 188469848 | K56: 315681694 | L56: 1225023082 | M56: 0 | N56: 0 | O56: 0 | P56: 0 | Q56: 0
A57: Share of Surplus/Deficit attributable to Associate | B57: 7
A58: Intercompany/Parent subsidiary transactions
A59: =result -> Surplus/(Deficit) for the year | B59: 1 | C59: =SUM(C56:C58) -> 133590406.3 | D59: =SUM(D56:D58) -> -154396140.9 | E59: -361528068.7 | F59: 213704167 | G59: 284259894 | H59: 284259894 | I59: 1261950048 | J59: 188469848 | K59: 315681694 | L59: 1225023082 | M59: 0 | N59: 0 | O59: 0 | P59: 0 | Q59: 0 | R59: =R35+R58 -> 0 | S59: 0 | T59: 0 | U59: 0 | V59: 0 | W59: 0 | X59: 0
A60: References
A61: 1. Classifications are revenue sources and expenditure type
A62: 2. Detail to be provided in Table SA1 | O62: =O59-'A4-FinPerf RE'!J59 -> -188469848 | P62: =P59-'A4-FinPerf RE'!K59 -> -315681694 | Q62: =Q59-'A4-FinPerf RE'!L59 -> -1225023082
A63: 3. Debt impairment includes Impairment and Reversal of Impairment Losses
A64: 4. Expenditure type components previously shown under repairs and maintenance should be allocated back to the originating expenditure group/item; e.g. employee costs
A65: 5. Repairs & maintenance detailed in Table A9 and Table SA34c
A66: 6. Contributions are funds provided by external organisations to assist with infrastructure development; e.g. developer contributions (detail to be provided in Table SA1)
A67: 7. Equity method ( Includes Joint Ventures)
A68: 8. All materials consumed including water consumed and materials used in operations.

Sheet A5-Capex
A2: =Vdesc -> Vote Description | B2: =head27 -> Ref | C2: =head1b -> 2020/21 | D2: =head1A -> 2021/22 | E2: =Head1 -> 2022/23 | F2: =Head2 -> Current Year 2023/24 | J2: =Head3 -> 2024/25 Medium Term Revenue & Expenditure Framework
A3: R thousand | B3: 1 | C3: =Head5 -> Audited Outcome | D3: =Head5 -> Audited Outcome | E3: =Head5 -> Audited Outcome | F3: =Head6 -> Original Budget | G3: =Head7 -> Adjusted Budget | H3: =Head8 -> Full Year Forecast | I3: =Head5b -> Pre-audit outcome | J3: =Head9 -> Budget Year 2024/25 | K3: =Head10 -> Budget Year +1 2025/26 | L3: =Head11 -> Budget Year +2 2026/27
A4: Capital expenditure - Vote
A5: Multi-year expenditure to be appropriated | B5: 2
A6: =A5A!A6 -> Vote 01 - Public Safety | C6: =A5A!C6 -> 0 | D6: =A5A!D6 -> 0 | E6: =A5A!E6 -> 0 | F6: =A5A!F6 -> 0 | G6: =A5A!G6 -> 0 | H6: =A5A!H6 -> 0 | I6: =A5A!I6 -> 0 | J6: =A5A!J6 -> 0 | K6: =A5A!K6 -> 0 | L6: =A5A!L6 -> 0
A7: =A5A!A13 -> Vote 02 - Health Services | C7: =A5A!C13 -> 0 | D7: =A5A!D13 -> 0 | E7: =A5A!E13 -> 0 | F7: =A5A!F13 -> 0 | G7: =A5A!G13 -> 0 | H7: =A5A!H13 -> 0 | I7: =A5A!I13 -> 0 | J7: =A5A!J13 -> 0 | K7: =A5A!K13 -> 0 | L7: =A5A!L13 -> 0
A8: =A5A!A16 -> Vote 03 - Community Services | C8: =A5A!C16 -> 0 | D8: =A5A!D16 -> 0 | E8: =A5A!E16 -> 0 | F8: =A5A!F16 -> 0 | G8: =A5A!G16 -> 0 | H8: =A5A!H16 -> 0 | I8: =A5A!I16 -> 0 | J8: =A5A!J16 -> 0 | K8: =A5A!K16 -> 0 | L8: =A5A!L16 -> 0
A9: =A5A!A23 -> Vote 04 - Housing | C9: =A5A!C23 -> 0 | D9: =A5A!D23 -> 0 | E9: =A5A!E23 -> 0 | F9: =A5A!F23 -> 0 | G9: =A5A!G23 -> 0 | H9: =A5A!H23 -> 0 | I9: =A5A!I23 -> 0 | J9: =A5A!J23 -> 0 | K9: =A5A!K23 -> 0 | L9: =A5A!L23 -> 0
A10: =A5A!A29 -> Vote 05 - Sport Arts And Culture | C10: =A5A!C29 -> 0 | D10: =A5A!D29 -> 0 | E10: =A5A!E29 -> 0 | F10: =A5A!F29 -> 0 | G10: =A5A!G29 -> 0 | H10: =A5A!H29 -> 0 | I10: =A5A!I29 -> 0 | J10: =A5A!J29 -> 0 | K10: =A5A!K29 -> 0 | L10: =A5A!L29 -> 0
A11: =A5A!A36 -> Vote 06 - Council General | C11: =A5A!C36 -> 0 | D11: =A5A!D36 -> 0 | E11: =A5A!E36 -> 0 | F11: =A5A!F36 -> 0 | G11: =A5A!G36 -> 0 | H11: =A5A!H36 -> 0 | I11: =A5A!I36 -> 0 | J11: =A5A!J36 -> 0 | K11: =A5A!K36 -> 0 | L11: =A5A!L36 -> 0
A12: =A5A!A45 -> Vote 07 - Civil Engineering | C12: =A5A!C45 -> 49599701.43 | D12: =A5A!D45 -> 50195002.81 | E12: =A5A!E45 -> 23808362.07 | F12: =A5A!F45 -> 43684516 | G12: =A5A!G45 -> 40631041 | H12: =A5A!H45 -> 40631041 | I12: =A5A!I45 -> 25372659.27 | J12: =A5A!J45 -> 12801949 | K12: =A5A!K45 -> 15730798 | L12: =A5A!L45 -> 39608740
A13: =A5A!A50 -> Vote 08 - Water Section | C13: =A5A!C50 -> 18037274.16 | D13: =A5A!D50 -> 20668314.54 | E13: =A5A!E50 -> 8202162.52 | F13: =A5A!F50 -> 19000000 | G13: =A5A!G50 -> 28167471 | H13: =A5A!H50 -> 28167471 | I13: =A5A!I50 -> 7083140.8 | J13: =A5A!J50 -> 10467749 | K13: =A5A!K50 -> 11270449 | L13: =A5A!L50 -> 28145197
A14: =A5A!A53 -> Vote 09 - City Electrial Engineering | C14: =A5A!C53 -> 50705471.25 | D14: =A5A!D53 -> 20537556.77 | E14: =A5A!E53 -> 31363530.85 | F14: =A5A!F53 -> 19406177 | G14: =A5A!G53 -> 19636903 | H14: =A5A!H53 -> 19636903 | I14: =A5A!I53 -> 5754098.43 | J14: =A5A!J53 -> 5112652 | K14: =A5A!K53 -> 12918203 | L14: =A5A!L53 -> 14877305
A15: =A5A!A59 -> Vote 10 - Corporate Governane | C15: =A5A!C59 -> 0 | D15: =A5A!D59 -> 0 | E15: =A5A!E59 -> 0 | F15: =A5A!F59 -> 0 | G15: =A5A!G59 -> 0 | H15: =A5A!H59 -> 0 | I15: =A5A!I59 -> 0 | J15: =A5A!J59 -> 0 | K15: =A5A!K59 -> 0 | L15: =A5A!L59 -> 0
A16: =A5A!A63 -> Vote 11 - Budget And Treasury Office | C16: =A5A!C63 -> 0 | D16: =A5A!D63 -> 0 | E16: =A5A!E63 -> 0 | F16: =A5A!F63 -> 0 | G16: =A5A!G63 -> 0 | H16: =A5A!H63 -> 0 | I16: =A5A!I63 -> 0 | J16: =A5A!J63 -> 0 | K16: =A5A!K63 -> 0 | L16: =A5A!L63 -> 0
A17: =A5A!A67 -> Vote 12 - Cleansing | C17: =A5A!C67 -> 0 | D17: =A5A!D67 -> 0 | E17: =A5A!E67 -> 0 | F17: =A5A!F67 -> 0 | G17: =A5A!G67 -> 0 | H17: =A5A!H67 -> 0 | I17: =A5A!I67 -> 0 | J17: =A5A!J67 -> 0 | K17: =A5A!K67 -> 0 | L17: =A5A!L67 -> 0
A18: =A5A!A75 -> Vote 13 - Sewerage | C18: =A5A!C75 -> 0 | D18: =A5A!D75 -> 0 | E18: =A5A!E75 -> 1839080.71 | F18: =A5A!F75 -> 0 | G18: =A5A!G75 -> 0 | H18: =A5A!H75 -> 0 | I18: =A5A!I75 -> 0 | J18: =A5A!J75 -> 0 | K18: =A5A!K75 -> 0 | L18: =A5A!L75 -> 0
A19: =A5A!A80 -> Vote 14 - Market | C19: =A5A!C80 -> 0 | D19: =A5A!D80 -> 0 | E19: =A5A!E80 -> 0 | F19: =A5A!F80 -> 0 | G19: =A5A!G80 -> 0 | H19: =A5A!H80 -> 0 | I19: =A5A!I80 -> 0 | J19: =A5A!J80 -> 0 | K19: =A5A!K80 -> 0 | L19: =A5A!L80 -> 0
A20: =A5A!A82 -> Vote 15 - Other | C20: =A5A!C82 -> 0 | D20: =A5A!D82 -> 0 | E20: =A5A!E82 -> 0 | F20: =A5A!F82 -> 0 | G20: =A5A!G82 -> 0 | H20: =A5A!H82 -> 0 | I20: =A5A!I82 -> 0 | J20: =A5A!J82 -> 0 | K20: =A5A!K82 -> 0 | L20: =A5A!L82 -> 0
A21: Capital multi-year expenditure sub-total | B21: 7 | C21: =SUM(C6:C20) -> 118342446.8 | D21: =SUM(D6:D20) -> 91400874.12 | E21: 65213136.15 | F21: 82090693 | G21: 88435415 | H21: =SUM(H6:H20) -> 88435415 | I21: 38209898.5 | J21: 28382350 | K21: 39919450 | L21: 82631242
A23: Single-year expenditure to be appropriated | B23: 2
A24: =A5A!A90 -> Vote 01 - Public Safety | C24: =A5A!C90 -> 0 | D24: =A5A!D90 -> 0 | E24: =A5A!E90 -> 0 | F24: =A5A!F90 -> 0 | G24: =A5A!G90 -> 0 | H24: =A5A!H90 -> 0 | I24: =A5A!I90 -> 0 | J24: =A5A!J90 -> 0 | K24: =A5A!K90 -> 0 | L24: =A5A!L90 -> 0
A25: =A5A!A97 -> Vote 02 - Health Services | C25: =A5A!C97 -> 0 | D25: =A5A!D97 -> 0 | E25: =A5A!E97 -> 0 | F25: =A5A!F97 -> 0 | G25: =A5A!G97 -> 0 | H25: =A5A!H97 -> 0 | I25: =A5A!I97 -> 0 | J25: =A5A!J97 -> 0 | K25: =A5A!K97 -> 0 | L25: =A5A!L97 -> 0
A26: =A5A!A100 -> Vote 03 - Community Services | C26: =A5A!C100 -> 0 | D26: =A5A!D100 -> 0 | E26: =A5A!E100 -> 0 | F26: =A5A!F100 -> 0 | G26: =A5A!G100 -> 2400000 | H26: =A5A!H100 -> 2400000 | I26: =A5A!I100 -> 0 | J26: =A5A!J100 -> 0 | K26: =A5A!K100 -> 0 | L26: =A5A!L100 -> 0
A27: =A5A!A107 -> Vote 04 - Housing | C27: =A5A!C107 -> 0 | D27: =A5A!D107 -> 0 | E27: =A5A!E107 -> 0 | F27: =A5A!F107 -> 0 | G27: =A5A!G107 -> 0 | H27: =A5A!H107 -> 0 | I27: =A5A!I107 -> 0 | J27: =A5A!J107 -> 0 | K27: =A5A!K107 -> 0 | L27: =A5A!L107 -> 0
A28: =A5A!A113 -> Vote 05 - Sport Arts And Culture | C28: =A5A!C113 -> 12193170.53 | D28: =A5A!D113 -> 25390299.85 | E28: =A5A!E113 -> 2949852.28 | F28: =A5A!F113 -> 7800000 | G28: =A5A!G113 -> 8906488 | H28: =A5A!H113 -> 8906488 | I28: =A5A!I113 -> 4404142.1 | J28: =A5A!J113 -> 15093585 | K28: =A5A!K113 -> 20604550 | L28: =A5A!L113 -> 0
A29: =A5A!A120 -> Vote 06 - Council General | C29: =A5A!C120 -> 0 | D29: =A5A!D120 -> 0 | E29: =A5A!E120 -> 0.01 | F29: =A5A!F120 -> 2000000 | G29: =A5A!G120 -> 1300000 | H29: =A5A!H120 -> 1300000 | I29: =A5A!I120 -> 139795.33 | J29: =A5A!J120 -> 47000000 | K29: =A5A!K120 -> 0 | L29: =A5A!L120 -> 0
A30: =A5A!A129 -> Vote 07 - Civil Engineering | C30: =A5A!C129 -> 0 | D30: =A5A!D129 -> 0 | E30: =A5A!E129 -> 0 | F30: =A5A!F129 -> 0 | G30: =A5A!G129 -> 0 | H30: =A5A!H129 -> 0 | I30: =A5A!I129 -> 0 | J30: =A5A!J129 -> 0 | K30: =A5A!K129 -> 0 | L30: =A5A!L129 -> 0
A31: =A5A!A134 -> Vote 08 - Water Section | C31: =A5A!C134 -> 8671983.48 | D31: =A5A!D134 -> 3658562.41 | E31: =A5A!E134 -> 1526177.32 | F31: =A5A!F134 -> 37892668 | G31: =A5A!G134 -> 32130000 | H31: =A5A!H134 -> 32130000 | I31: =A5A!I134 -> 19414695.49 | J31: =A5A!J134 -> 25000000 | K31: =A5A!K134 -> 0 | L31: =A5A!L134 -> 24952106
A32: =A5A!A137 -> Vote 09 - City Electrial Engineering | C32: =A5A!C137 -> 7435566.13 | D32: =A5A!D137 -> 4071430.82 | E32: =A5A!E137 -> 1669627.37 | F32: =A5A!F137 -> 0 | G32: =A5A!G137 -> 1700000 | H32: =A5A!H137 -> 1700000 | I32: =A5A!I137 -> 0 | J32: =A5A!J137 -> 0 | K32: =A5A!K137 -> 0 | L32: =A5A!L137 -> 0
A33: =A5A!A143 -> Vote 10 - Corporate Governane | C33: =A5A!C143 -> 0 | D33: =A5A!D143 -> 0 | E33: =A5A!E143 -> 0 | F33: =A5A!F143 -> 0 | G33: =A5A!G143 -> 0 | H33: =A5A!H143 -> 0 | I33: =A5A!I143 -> 0 | J33: =A5A!J143 -> 0 | K33: =A5A!K143 -> 0 | L33: =A5A!L143 -> 0
A34: =A5A!A147 -> Vote 11 - Budget And Treasury Office | C34: =A5A!C147 -> 0 | D34: =A5A!D147 -> 0 | E34: =A5A!E147 -> 0 | F34: =A5A!F147 -> 8000000 | G34: =A5A!G147 -> 5600000 | H34: =A5A!H147 -> 5600000 | I34: =A5A!I147 -> 1187539.77 | J34: =A5A!J147 -> 3000000 | K34: =A5A!K147 -> 0 | L34: =A5A!L147 -> 0
A35: =A5A!A151 -> Vote 12 - Cleansing | C35: =A5A!C151 -> 0 | D35: =A5A!D151 -> 0 | E35: =A5A!E151 -> 3503531.32 | F35: =A5A!F151 -> 40014088 | G35: =A5A!G151 -> 52749354 | H35: =A5A!H151 -> 52749354 | I35: =A5A!I151 -> 35781123.78 | J35: =A5A!J151 -> 38773866 | K35: =A5A!K151 -> 29000000 | L35: =A5A!L151 -> 0
A36: =A5A!A159 -> Vote 13 - Sewerage | C36: =A5A!C159 -> 38703422.66 | D36: =A5A!D159 -> 14341581.94 | E36: =A5A!E159 -> 4744597.2 | F36: =A5A!F159 -> 53671952 | G36: =A5A!G159 -> 20567943 | H36: =A5A!H159 -> 20567943 | I36: =A5A!I159 -> 7697879.43 | J36: =A5A!J159 -> 74012454 | K36: =A5A!K159 -> 98000000 | L36: =A5A!L159 -> 117703651
A37: =A5A!A164 -> Vote 14 - Market | C37: =A5A!C164 -> 6125942.6 | D37: =A5A!D164 -> 13678068.43 | E37: =A5A!E164 -> 4345036.49 | F37: =A5A!F164 -> 0 | G37: =A5A!G164 -> 3067348 | H37: =A5A!H164 -> 3067348 | I37: =A5A!I164 -> 1063030.6 | J37: =A5A!J164 -> 4987544 | K37: =A5A!K164 -> 10000000 | L37: =A5A!L164 -> 0
A38: =A5A!A166 -> Vote 15 - Other | C38: =A5A!C166 -> 0 | D38: =A5A!D166 -> 0 | E38: =A5A!E166 -> 0 | F38: =A5A!F166 -> 0 | G38: =A5A!G166 -> 0 | H38: =A5A!H166 -> 0 | I38: =A5A!I166 -> 0 | J38: =A5A!J166 -> 0 | K38: =A5A!K166 -> 0 | L38: =A5A!L166 -> 0
A39: Capital single-year expenditure sub-total | C39: =SUM(C24:C38) -> 73130085.4 | D39: =SUM(D24:D38) -> 61139943.45 | E39: 18738821.99 | F39: 149378708 | G39: 128421133 | H39: 128421133 | I39: 69688206.5 | J39: 207867449 | K39: 157604550 | L39: 142655757
A40: Total Capital Expenditure - Vote | C40: =C39+C21 -> 191472532.2 | D40: =D39+D21 -> 152540817.6 | E40: 83951958.14 | F40: 231469401 | G40: 216856548 | H40: 216856548 | I40: 107898105 | J40: 236249799 | K40: 197524000 | L40: 225286999
A42: Capital Expenditure - Functional
A43: Governance and administration | C43: =SUM(C44:C46) -> 0 | D43: =SUM(D44:D46) -> 0 | E43: 0.01 | F43: 10000000 | G43: 6900000 | H43: 6900000 | I43: 1327335.1 | J43: 50000000 | K43: 0 | L43: 0
A44: Executive and council | C44: 0 | D44: 0 | E44: 0.01 | F44: 2000000 | G44: 1300000 | H44: 1300000 | I44: 139795.33 | J44: 47000000 | K44: 0 | L44: 0
A45: Finance and administration | C45: 0 | D45: 0 | E45: 0 | F45: 8000000 | G45: 5600000 | H45: 5600000 | I45: 1187539.77 | J45: 3000000 | K45: 0 | L45: 0
A46: Internal audit
A47: Community and public safety | C47: =SUM(C48:C52) -> 12193170.53 | D47: =SUM(D48:D52) -> 25390299.85 | E47: 2949852.28 | F47: 7800000 | G47: 11306488 | H47: 11306488 | I47: 4634794.92 | J47: 15093585 | K47: 20604550 | L47: 0
A48: Community and social services | C48: 0 | D48: 0 | E48: 0 | F48: 800000 | G48: 0 | H48: 0 | I48: 0 | J48: 0 | K48: 0 | L48: 0
A49: Sport and recreation | C49: 12193170.53 | D49: 25390299.85 | E49: 2949852.28 | F49: 7000000 | G49: 11306488 | H49: 11306488 | I49: 4404142.1 | J49: 15093585 | K49: 20604550 | L49: 0
A50: Public safety | C50: 0 | D50: 0 | E50: 0 | F50: 0 | G50: 0 | H50: 0 | I50: 230652.82 | J50: 0 | K50: 0 | L50: 0
A51: Housing | C51: 0 | D51: 0 | E51: 0 | F51: 0 | G51: 0 | H51: 0 | I51: 0 | J51: 0 | K51: 0 | L51: 0
A52: Health
A53: Economic and environmental services | C53: =SUM(C54:C56) -> 49599701.43 | D53: =SUM(D54:D56) -> 50195002.81 | E53: 23808362.07 | F53: 43684516 | G53: 40631041 | H53: 40631041 | I53: 25372659.27 | J53: 12801949 | K53: 15730798 | L53: 39608740
A54: Planning and development
A55: Road transport | C55: 49599701.43 | D55: 50195002.81 | E55: 23808362.07 | F55: 43684516 | G55: 40631041 | H55: 40631041 | I55: 25372659.27 | J55: 12801949 | K55: 15730798 | L55: 39608740
A56: Environmental protection
A57: Trading services | C57: =SUM(C58:C61) -> 123553717.7 | D57: =SUM(D58:D61) -> 63277446.48 | E57: 52848707.29 | F57: 169984885 | G57: 154951671 | H57: 154951671 | I57: 75730937.93 | J57: 153366721 | K57: 151188652 | L57: 185678259
A58: Energy sources | C58: 58141037.38 | D58: 24608987.59 | E58: 33033158.22 | F58: 19406177 | G58: 21336903 | H58: 21336903 | I58: 5754098.43 | J58: 5112652 | K58: 12918203 | L58: 14877305
A59: Water management | C59: 26709257.64 | D59: 24326876.95 | E59: 9728339.84 | F59: 56892668 | G59: 60297471 | H59: 60297471 | I59: 26497836.29 | J59: 35467749 | K59: 11270449 | L59: 53097303
A60: Waste water management | C60: 38703422.66 | D60: 14341581.94 | E60: 6583677.91 | F60: 53671952 | G60: 20567943 | H60: 20567943 | I60: 7697879.43 | J60: 74012454 | K60: 98000000 | L60: 117703651
A61: Waste management | C61: 0 | D61: 0 | E61: 3503531.32 | F61: 40014088 | G61: 52749354 | H61: 52749354 | I61: 35781123.78 | J61: 38773866 | K61: 29000000 | L61: 0
A62: Other | C62: 6125942.6 | D62: 13678068.43 | E62: 4345036.49 | F62: 0 | G62: 3067348 | H62: 3067348 | I62: 1063030.6 | J62: 4987544 | K62: 10000000 | L62: 0
A63: Total Capital Expenditure - Functional | B63: 3 | C63: =C43+C47+C53+C57+C62 -> 191472532.2 | D63: =D43+D47+D53+D57+D62 -> 152540817.6 | E63: 83951958.14 | F63: 231469401 | G63: 216856548 | H63: 216856548 | I63: 108128757.8 | J63: 236249799 | K63: 197524000 | L63: =L43+L47+L53+L57+L62 -> 225286999
A65: Funded by:
A66: National Government | C66: 184303800.3 | D66: 145096678.9 | E66: 77726955.16 | F66: 191469401 | G66: 195856548 | H66: 195856548 | I66: 106570769.9 | J66: 186249799 | K66: 197524000 | L66: 225286999
A67: Provincial Government | C67: 0 | D67: 0 | E67: 0 | F67: 0 | G67: 0 | H67: 0 | I67: 230652.82 | J67: 0 | K67: 0 | L67: 0
A68: District Municipality
A69: Transfers and subsidies - capital (monetary allocations) (Nat / Prov Departm Agencies, Households, Non-profit Institutions, Private Enterprises, Public Corporatons, Higher Educ Institutions) | C69: 0 | D69: 0 | E69: 0 | F69: 0 | G69: 0 | H69: 0 | I69: 0 | J69: 0 | K69: 0 | L69: 0
A70: Transfers recognised - capital | B70: 4 | C70: =SUM(C66:C69) -> 184303800.3 | D70: 145096678.9 | E70: 77726955.16 | F70: 191469401 | G70: 195856548 | H70: 195856548 | I70: 106801422.7 | J70: 186249799 | K70: 197524000 | L70: 225286999
A72: Borrowing | B72: 6 | C72: 0 | D72: 0 | E72: 0 | F72: 0 | G72: 0 | H72: 0 | I72: 0 | J72: 0 | K72: 0 | L72: 0
A73: Internally generated funds | C73: 7168731.9 | D73: 7444138.71 | E73: 6225002.98 | F73: 40000000 | G73: 21000000 | H73: 21000000 | I73: 1327335.1 | J73: 50000000 | K73: 0 | L73: 0
A74: Total Capital Funding | B74: 7 | C74: =+C70+C72+C73 -> 191472532.2 | D74: =+D70+D72+D73 -> 152540817.6 | E74: 83951958.14 | F74: 231469401 | G74: 216856548 | H74: 216856548 | I74: 108128757.8 | J74: 236249799 | K74: 197524000 | L74: 225286999
A75: =head27a -> References
A76: 1. Municipalities may choose to appropriate for capital expenditure for three years or for one year (if one year appropriation projected expenditure required for yr2 and yr3).
A77: 2. Include capital component of PPP unitary payment. Note that capital transfers are only appropriated to municipalities for the budget year
A78: 3. Capital expenditure by functional classification must reconcile to the appropriations by vote
A79: 4. Must reconcile to supporting table SA20 and to Budgeted Financial Performance (revenue and expenditure)
A81: 6. Include finance leases and PPP capital funding component of unitary payment - total borrowing/repayments to reconcile to changes in Table SA17
A82: 7. Total Capital Funding must balance with Total Capital Expenditure
A83: 8. Include any capitalised interest (MFMA section 46) as part of relevant capital budget

Sheet A5A
A1: =muni&" - "&Approve5 -> NW403 City Of Matlosana - Table A5 Budgeted Capital Expenditure by vote, functional classification and funding
A2: =Vdesc -> Vote Description | B2: =head27 -> Ref | C2: =head1b -> 2020/21 | D2: =head1A -> 2021/22 | E2: =Head1 -> 2022/23 | F2: =Head2 -> Current Year 2023/24 | J2: =Head3 -> 2024/25 Medium Term Revenue & Expenditure Framework | N2: ="Multi-year appropriation for "&Head9& " in the "&Head2A&" Annual Budget" -> Multi-year appropriation for Budget Year 2024/25 in the 2023/24 Annual Budget | R2: ="Multi-year appropriation for "&RIGHT(Head10,7)& " in the "&Head2A&" Annual Budget" -> Multi-year appropriation for 2025/26 in the 2023/24 Annual Budget | V2: New multi-year appropriations (funds for new and existing projects)
A3: R thousand | B3: 1 | C3: =Head5 -> Audited Outcome | D3: =Head5 -> Audited Outcome | E3: =Head5 -> Audited Outcome | F3: =Head6 -> Original Budget | G3: =Head7 -> Adjusted Budget | H3: =Head8 -> Full Year Forecast | I3: =Head5b -> Pre-audit outcome | J3: =Head9 -> Budget Year 2024/25 | K3: =Head10 -> Budget Year +1 2025/26 | L3: =Head11 -> Budget Year +2 2026/27 | N3: ="Appropriation for "&RIGHT(Head9,7) -> Appropriation for 2024/25 | O3: ="Adjustments in "&Head2A -> Adjustments in 2023/24 | P3: ="Downward adjustments for "&RIGHT(Head9,7) -> Downward adjustments for 2024/25 | Q3: Appropriation carried forward | R3: ="Appropriation for "&RIGHT(Head9,7) -> Appropriation for 2024/25 | S3: ="Adjustments in "&Head2A -> Adjustments in 2023/24 | T3: ="Downward adjustments for "&RIGHT(Head9,7) -> Downward adjustments for 2024/25 | U3: Appropriation carried forward | V3: =Head9 -> Budget Year 2024/25 | W3: =Head10 -> Budget Year +1 2025/26 | X3: =Head11 -> Budget Year +2 2026/27
A4: Capital expenditure - Municipal Vote
A5: Multi-year expenditure appropriation | B5: 2
A6: ='Org structure'!A2 -> Vote 01 - Public Safety | C6: =SUM(C7:C12) -> 0 | D6: 0 | E6: 0 | F6: 0 | G6: 0 | H6: 0 | I6: 0 | J6: 0 | K6: 0 | L6: 0 | N6: =SUM(N7:N12) -> 0 | O6: 0 | P6: 0 | Q6: 0 | R6: 0 | S6: 0 | T6: 0 | U6: 0 | V6: 0 | W6: 0 | X6: 0
A7: ='Org structure'!E3 -> 01.1 - Public Safety Administration | C7: 0 | D7: 0 | E7: 0 | F7: 0 | G7: 0 | H7: 0 | I7: 0 | J7: =Q7+V7 -> 0 | K7: =U7+W7 -> 0 | L7: =X7 -> 0 | N7: 0 | O7: 0 | P7: 0 | Q7: =SUM(N7:P7) -> 0 | R7: 0 | S7: 0 | T7: 0 | U7: =SUM(R7:T7) -> 0 | V7: 0 | W7: 0 | X7: 0
A8: ='Org structure'!E4 -> 01.2 - Fire Brigade | C8: 0 | D8: 0 | E8: 0 | F8: 0 | G8: 0 | H8: 0 | I8: 0 | J8: 0 | K8: 0 | L8: 0 | N8: 0 | O8: 0 | P8: 0 | Q8: 0 | R8: 0 | S8: 0 | T8: 0 | U8: 0 | V8: 0 | W8: 0 | X8: 0
A9: ='Org structure'!E5 -> 01.3 - Licencing Administration | C9: 0 | D9: 0 | E9: 0 | F9: 0 | G9: 0 | H9: 0 | I9: 0 | J9: 0 | K9: 0 | L9: 0 | N9: 0 | O9: 0 | P9: 0 | Q9: 0 | R9: 0 | S9: 0 | T9: 0 | U9: 0 | V9: 0 | W9: 0 | X9: 0
A10: ='Org structure'!E6 -> 01.4 - Traffic Administration | C10: 0 | D10: 0 | E10: 0 | F10: 0 | G10: 0 | H10: 0 | I10: 0 | J10: 0 | K10: 0 | L10: 0 | N10: 0 | O10: 0 | P10: 0 | Q10: 0 | R10: 0 | S10: 0 | T10: 0 | U10: 0 | V10: 0 | W10: 0 | X10: 0
A11: ='Org structure'!E7 -> 01.5 - Disaster Management | C11: 0 | D11: 0 | E11: 0 | F11: 0 | G11: 0 | H11: 0 | I11: 0 | J11: 0 | K11: 0 | L11: 0 | N11: 0 | O11: 0 | P11: 0 | Q11: 0 | R11: 0 | S11: 0 | T11: 0 | U11: 0 | V11: 0 | W11: 0 | X11: 0
A12: ='Org structure'!E8 -> 01.6 - Municipal Court | C12: 0 | D12: 0 | E12: 0 | F12: 0 | G12: 0 | H12: 0 | I12: 0 | J12: 0 | K12: 0 | L12: 0 | N12: 0 | O12: 0 | P12: 0 | Q12: 0 | R12: 0 | S12: 0 | T12: 0 | U12: 0 | V12: 0 | W12: 0 | X12: 0
A13: ='Org structure'!A3 -> Vote 02 - Health Services | C13: =SUM(C14:C15) -> 0 | D13: 0 | E13: 0 | F13: 0 | G13: 0 | H13: 0 | I13: 0 | J13: 0 | K13: 0 | L13: 0 | N13: =SUM(N14:N15) -> 0 | O13: 0 | P13: 0 | Q13: 0 | R13: 0 | S13: 0 | T13: 0 | U13: 0 | V13: 0 | W13: 0 | X13: 0
A14: ='Org structure'!E10 -> 02.1 - Health Services Administration | C14: 0 | D14: 0 | E14: 0 | F14: 0 | G14: 0 | H14: 0 | I14: 0 | J14: =Q14+V14 -> 0 | K14: =U14+W14 -> 0 | L14: =X14 -> 0 | N14: 0 | O14: 0 | P14: 0 | Q14: =SUM(N14:P14) -> 0 | R14: 0 | S14: 0 | T14: 0 | U14: =SUM(R14:T14) -> 0 | V14: 0 | W14: 0 | X14: 0
A15: ='Org structure'!E11 -> 02.2 - Occupational Health Centre | C15: 0 | D15: 0 | E15: 0 | F15: 0 | G15: 0 | H15: 0 | I15: 0 | J15: =Q15+V15 -> 0 | K15: =U15+W15 -> 0 | L15: =X15 -> 0 | N15: 0 | O15: 0 | P15: 0 | Q15: =SUM(N15:P15) -> 0 | R15: 0 | S15: 0 | T15: 0 | U15: =SUM(R15:T15) -> 0 | V15: 0 | W15: 0 | X15: 0
A16: ='Org structure'!A4 -> Vote 03 - Community Services | C16: =SUM(C17:C22) -> 0 | D16: 0 | E16: 0 | F16: 0 | G16: 0 | H16: 0 | I16: 0 | J16: 0 | K16: 0 | L16: 0 | N16: =SUM(N17:N22) -> 0 | O16: 0 | P16: 0 | Q16: 0 | R16: 0 | S16: 0 | T16: 0 | U16: 0 | V16: 0 | W16: 0 | X16: 0
A17: ='Org structure'!E13 -> 03.1 - Administration Community Services | C17: 0 | D17: 0 | E17: 0 | F17: 0 | G17: 0 | H17: 0 | I17: 0 | J17: =Q17+V17 -> 0 | K17: =U17+W17 -> 0 | L17: =X17 -> 0 | N17: 0 | O17: 0 | P17: 0 | Q17: =SUM(N17:P17) -> 0 | R17: 0 | S17: 0 | T17: 0 | U17: =SUM(R17:T17) -> 0 | V17: 0 | W17: 0 | X17: 0
A18: ='Org structure'!E14 -> 03.2 - Cemetary | C18: 0 | D18: 0 | E18: 0 | F18: 0 | G18: 0 | H18: 0 | I18: 0 | J18: 0 | K18: 0 | L18: 0 | N18: 0 | O18: 0 | P18: 0 | Q18: 0 | R18: 0 | S18: 0 | T18: 0 | U18: 0 | V18: 0 | W18: 0 | X18: 0
A19: ='Org structure'!E15 -> 03.3 - Aerodome | C19: 0 | D19: 0 | E19: 0 | F19: 0 | G19: 0 | H19: 0 | I19: 0 | J19: 0 | K19: 0 | L19: 0 | N19: 0 | O19: 0 | P19: 0 | Q19: 0 | R19: 0 | S19: 0 | T19: 0 | U19: 0 | V19: 0 | W19: 0 | X19: 0
A20: ='Org structure'!E16 -> 03.4 - Nature Reserve | C20: 0 | D20: 0 | E20: 0 | F20: 0 | G20: 0 | H20: 0 | I20: 0 | J20: 0 | K20: 0 | L20: 0 | N20: 0 | O20: 0 | P20: 0 | Q20: 0 | R20: 0 | S20: 0 | T20: 0 | U20: 0 | V20: 0 | W20: 0 | X20: 0
A21: ='Org structure'!E17 -> 03.5 - Orkney Vaal | C21: 0 | D21: 0 | E21: 0 | F21: 0 | G21: 0 | H21: 0 | I21: 0 | J21: 0 | K21: 0 | L21: 0 | N21: 0 | O21: 0 | P21: 0 | Q21: 0 | R21: 0 | S21: 0 | T21: 0 | U21: 0 | V21: 0 | W21: 0 | X21: 0
A22: ='Org structure'!E18 -> 03.6 - Administration Parks | C22: 0 | D22: 0 | E22: 0 | F22: 0 | G22: 0 | H22: 0 | I22: 0 | J22: 0 | K22: 0 | L22: 0 | N22: 0 | O22: 0 | P22: 0 | Q22: 0 | R22: 0 | S22: 0 | T22: 0 | U22: 0 | V22: 0 | W22: 0 | X22: 0
A23: ='Org structure'!A5 -> Vote 04 - Housing | C23: =SUM(C24:C28) -> 0 | D23: 0 | E23: 0 | F23: 0 | G23: 0 | H23: 0 | I23: 0 | J23: 0 | K23: 0 | L23: 0 | N23: =SUM(N24:N28) -> 0 | O23: 0 | P23: 0 | Q23: 0 | R23: 0 | S23: 0 | T23: 0 | U23: 0 | V23: 0 | W23: 0 | X23: 0
A24: ='Org structure'!E20 -> 04.1 - Administration Housing Services | C24: 0 | D24: 0 | E24: 0 | F24: 0 | G24: 0 | H24: 0 | I24: 0 | J24: =Q24+V24 -> 0 | K24: =U24+W24 -> 0 | L24: =X24 -> 0 | N24: 0 | O24: 0 | P24: 0 | Q24: =SUM(N24:P24) -> 0 | R24: 0 | S24: 0 | T24: 0 | U24: =SUM(R24:T24) -> 0 | V24: 0 | W24: 0 | X24: 0
A25: ='Org structure'!E21 -> 04.2 - Housing Services | C25: 0 | D25: 0 | E25: 0 | F25: 0 | G25: 0 | H25: 0 | I25: 0 | J25: =Q25+V25 -> 0 | K25: =U25+W25 -> 0 | L25: =X25 -> 0 | N25: 0 | O25: 0 | P25: 0 | Q25: =SUM(N25:P25) -> 0 | R25: 0 | S25: 0 | T25: 0 | U25: =SUM(R25:T25) -> 0 | V25: 0 | W25: 0 | X25: 0
A26: ='Org structure'!E22 -> 04.3 - Building Survey | C26: 0 | D26: 0 | E26: 0 | F26: 0 | G26: 0 | H26: 0 | I26: 0 | J26: =Q26+V26 -> 0 | K26: =U26+W26 -> 0 | L26: =X26 -> 0 | N26: 0 | O26: 0 | P26: 0 | Q26: =SUM(N26:P26) -> 0 | R26: 0 | S26: 0 | T26: 0 | U26: =SUM(R26:T26) -> 0 | V26: 0 | W26: 0 | X26: 0
A27: ='Org structure'!E23 -> 04.4 - Town Planning | C27: 0 | D27: 0 | E27: 0 | F27: 0 | G27: 0 | H27: 0 | I27: 0 | J27: =Q27+V27 -> 0 | K27: =U27+W27 -> 0 | L27: =X27 -> 0 | N27: 0 | O27: 0 | P27: 0 | Q27: =SUM(N27:P27) -> 0 | R27: 0 | S27: 0 | T27: 0 | U27: =SUM(R27:T27) -> 0 | V27: 0 | W27: 0 | X27: 0
A28: ='Org structure'!E24 -> 04.5 - Land Affairs | C28: 0 | D28: 0 | E28: 0 | F28: 0 | G28: 0 | H28: 0 | I28: 0 | J28: =Q28+V28 -> 0 | K28: =U28+W28 -> 0 | L28: =X28 -> 0 | N28: 0 | O28: 0 | P28: 0 | Q28: =SUM(N28:P28) -> 0 | R28: 0 | S28: 0 | T28: 0 | U28: =SUM(R28:T28) -> 0 | V28: 0 | W28: 0 | X28: 0
A29: ='Org structure'!A6 -> Vote 05 - Sport Arts And Culture | C29: =SUM(C30:C35) -> 0 | D29: 0 | E29: 0 | F29: 0 | G29: 0 | H29: 0 | I29: 0 | J29: 0 | K29: 0 | L29: 0 | N29: =SUM(N30:N35) -> 0 | O29: 0 | P29: 0 | Q29: 0 | R29: 0 | S29: 0 | T29: 0 | U29: 0 | V29: 0 | W29: 0 | X29: 0
A30: ='Org structure'!E26 -> 05.1 - Traffic Administration | C30: 0 | D30: 0 | E30: 0 | F30: 0 | G30: 0 | H30: 0 | I30: 0 | J30: =Q30+V30 -> 0 | K30: =U30+W30 -> 0 | L30: =X30 -> 0 | N30: 0 | O30: 0 | P30: 0 | Q30: =SUM(N30:P30) -> 0 | R30: 0 | S30: 0 | T30: 0 | U30: =SUM(R30:T30) -> 0 | V30: 0 | W30: 0 | X30: 0
A31: ='Org structure'!E27 -> 05.2 - Administration Sports Arts & Culture | C31: 0 | D31: 0 | E31: 0 | F31: 0 | G31: 0 | H31: 0 | I31: 0 | J31: 0 | K31: 0 | L31: 0 | N31: 0 | O31: 0 | P31: 0 | Q31: 0 | R31: 0 | S31: 0 | T31: 0 | U31: 0 | V31: 0 | W31: 0 | X31: 0
A32: ='Org structure'!E28 -> 05.3 - Museum | C32: 0 | D32: 0 | E32: 0 | F32: 0 | G32: 0 | H32: 0 | I32: 0 | J32: 0 | K32: 0 | L32: 0 | N32: 0 | O32: 0 | P32: 0 | Q32: 0 | R32: 0 | S32: 0 | T32: 0 | U32: 0 | V32: 0 | W32: 0 | X32: 0
A33: ='Org structure'!E29 -> 05.4 - Library | C33: 0 | D33: 0 | E33: 0 | F33: 0 | G33: 0 | H33: 0 | I33: 0 | J33: 0 | K33: 0 | L33: 0 | N33: 0 | O33: 0 | P33: 0 | Q33: 0 | R33: 0 | S33: 0 | T33: 0 | U33: 0 | V33: 0 | W33: 0 | X33: 0
A34: ='Org structure'!E30 -> 05.5 - Sports And Recreation | C34: 0 | D34: 0 | E34: 0 | F34: 0 | G34: 0 | H34: 0 | I34: 0 | J34: 0 | K34: 0 | L34: 0 | N34: 0 | O34: 0 | P34: 0 | Q34: 0 | R34: 0 | S34: 0 | T34: 0 | U34: 0 | V34: 0 | W34: 0 | X34: 0
A35: ='Org structure'!E31 -> 05.6 - Oppenheimer Stadium | C35: 0 | D35: 0 | E35: 0 | F35: 0 | G35: 0 | H35: 0 | I35: 0 | J35: 0 | K35: 0 | L35: 0 | N35: 0 | O35: 0 | P35: 0 | Q35: 0 | R35: 0 | S35: 0 | T35: 0 | U35: 0 | V35: 0 | W35: 0 | X35: 0
A36: ='Org structure'!A7 -> Vote 06 - Council General | C36: =SUM(C37:C44) -> 0 | D36: 0 | E36: 0 | F36: 0 | G36: 0 | H36: 0 | I36: 0 | J36: 0 | K36: 0 | L36: 0 | N36: =SUM(N37:N44) -> 0 | O36: 0 | P36: 0 | Q36: 0 | R36: 0 | S36: 0 | T36: 0 | U36: 0 | V36: 0 | W36: 0 | X36: 0
A37: ='Org structure'!E33 -> 06.1 - Administration Council General | C37: 0 | D37: 0 | E37: 0 | F37: 0 | G37: 0 | H37: 0 | I37: 0 | J37: =Q37+V37 -> 0 | K37: =U37+W37 -> 0 | L37: =X37 -> 0 | N37: 0 | O37: 0 | P37: 0 | Q37: =SUM(N37:P37) -> 0 | R37: 0 | S37: 0 | T37: 0 | U37: =SUM(R37:T37) -> 0 | V37: 0 | W37: 0 | X37: 0
A38: ='Org structure'!E34 -> 06.2 - Administration Municipal Manager | C38: 0 | D38: 0 | E38: 0 | F38: 0 | G38: 0 | H38: 0 | I38: 0 | J38: 0 | K38: 0 | L38: 0 | N38: 0 | O38: 0 | P38: 0 | Q38: 0 | R38: 0 | S38: 0 | T38: 0 | U38: 0 | V38: 0 | W38: 0 | X38: 0
A39: ='Org structure'!E35 -> 06.3 - Internal Audit | C39: 0 | D39: 0 | E39: 0 | F39: 0 | G39: 0 | H39: 0 | I39: 0 | J39: 0 | K39: 0 | L39: 0 | N39: 0 | O39: 0 | P39: 0 | Q39: 0 | R39: 0 | S39: 0 | T39: 0 | U39: 0 | V39: 0 | W39: 0 | X39: 0
A40: ='Org structure'!E36 -> 06.4 - Strategic | C40: 0 | D40: 0 | E40: 0 | F40: 0 | G40: 0 | H40: 0 | I40: 0 | J40: 0 | K40: 0 | L40: 0 | N40: 0 | O40: 0 | P40: 0 | Q40: 0 | R40: 0 | S40: 0 | T40: 0 | U40: 0 | V40: 0 | W40: 0 | X40: 0
A41: ='Org structure'!E37 -> 06.5 - Administration Mayor | C41: 0 | D41: 0 | E41: 0 | F41: 0 | G41: 0 | H41: 0 | I41: 0 | J41: 0 | K41: 0 | L41: 0 | N41: 0 | O41: 0 | P41: 0 | Q41: 0 | R41: 0 | S41: 0 | T41: 0 | U41: 0 | V41: 0 | W41: 0 | X41: 0
A42: ='Org structure'!E38 -> 06.6 - Administration Speaker | C42: 0 | D42: 0 | E42: 0 | F42: 0 | G42: 0 | H42: 0 | I42: 0 | J42: 0 | K42: 0 | L42: 0 | N42: 0 | O42: 0 | P42: 0 | Q42: 0 | R42: 0 | S42: 0 | T42: 0 | U42: 0 | V42: 0 | W42: 0 | X42: 0
A43: ='Org structure'!E39 -> 06.7 - Chief Whip | C43: 0 | D43: 0 | E43: 0 | F43: 0 | G43: 0 | H43: 0 | I43: 0 | J43: 0 | K43: 0 | L43: 0 | N43: 0 | O43: 0 | P43: 0 | Q43: 0 | R43: 0 | S43: 0 | T43: 0 | U43: 0 | V43: 0 | W43: 0 | X43: 0
A44: ='Org structure'!E40 -> 06.8 - Mpac | C44: 0 | D44: 0 | E44: 0 | F44: 0 | G44: 0 | H44: 0 | I44: 0 | J44: 0 | K44: 0 | L44: 0 | N44: 0 | O44: 0 | P44: 0 | Q44: 0 | R44: 0 | S44: 0 | T44: 0 | U44: 0 | V44: 0 | W44: 0 | X44: 0
A45: ='Org structure'!A8 -> Vote 07 - Civil Engineering | C45: =SUM(C46:C49) -> 49599701.43 | D45: 50195002.81 | E45: 23808362.07 | F45: 43684516 | G45: 40631041 | H45: 40631041 | I45: 25372659.27 | J45: 12801949 | K45: 15730798 | L45: 39608740 | N45: =SUM(N46:N49) -> 12801949 | O45: 0 | P45: 0 | Q45: 12801949 | R45: 15730798 | S45: 0 | T45: 0 | U45: 15730798 | V45: 0 | W45: 0 | X45: 39608740
A46: ='Org structure'!E42 -> 07.1 - Administration City Civil Engineer | C46: 0 | D46: 0 | E46: 0 | F46: 0 | G46: 0 | H46: 0 | I46: 0 | J46: =Q46+V46 -> 0 | K46: =U46+W46 -> 0 | L46: =X46 -> 0 | N46: 0 | O46: 0 | P46: 0 | Q46: =SUM(N46:P46) -> 0 | R46: 0 | S46: 0 | T46: 0 | U46: =SUM(R46:T46) -> 0 | V46: 0 | W46: 0 | X46: 0
A47: ='Org structure'!E43 -> 07.2 - Building Construction | C47: 0 | D47: 0 | E47: 0 | F47: 0 | G47: 0 | H47: 0 | I47: 0 | J47: =Q47+V47 -> 0 | K47: =U47+W47 -> 0 | L47: =X47 -> 0 | N47: 0 | O47: 0 | P47: 0 | Q47: =SUM(N47:P47) -> 0 | R47: 0 | S47: 0 | T47: 0 | U47: =SUM(R47:T47) -> 0 | V47: 0 | W47: 0 | X47: 0
A48: ='Org structure'!E44 -> 07.3 - Roads | C48: 49599701.43 | D48: 50195002.81 | E48: 23808362.07 | F48: 43684516 | G48: 40631041 | H48: 40631041 | I48: 25372659.27 | J48: =Q48+V48 -> 12801949 | K48: =U48+W48 -> 15730798 | L48: =X48 -> 39608740 | N48: 12801949 | O48: 0 | P48: 0 | Q48: =SUM(N48:P48) -> 12801949 | R48: 15730798 | S48: 0 | T48: 0 | U48: =SUM(R48:T48) -> 15730798 | V48: 0 | W48: 0 | X48: 39608740
A49: ='Org structure'!E45 -> 07.4 - Pmu Unit | C49: 0 | D49: 0 | E49: 0 | F49: 0 | G49: 0 | H49: 0 | I49: 0 | J49: =Q49+V49 -> 0 | K49: =U49+W49 -> 0 | L49: =X49 -> 0 | N49: 0 | O49: 0 | P49: 0 | Q49: =SUM(N49:P49) -> 0 | R49: 0 | S49: 0 | T49: 0 | U49: =SUM(R49:T49) -> 0 | V49: 0 | W49: 0 | X49: 0
A50: ='Org structure'!A9 -> Vote 08 - Water Section | C50: =SUM(C51:C52) -> 18037274.16 | D50: 20668314.54 | E50: 8202162.52 | F50: 19000000 | G50: 28167471 | H50: 28167471 | I50: 7083140.8 | J50: 10467749 | K50: 11270449 | L50: 28145197 | N50: =SUM(N51:N52) -> 10467749 | O50: 0 | P50: 0 | Q50: 10467749 | R50: 11270449 | S50: 0 | T50: 0 | U50: 11270449 | V50: 0 | W50: 0 | X50: 28145197
A51: ='Org structure'!E47 -> 08.1 - Administration Water | C51: 0 | D51: 0 | E51: 0 | F51: 0 | G51: 0 | H51: 0 | I51: 0 | J51: =Q51+V51 -> 0 | K51: =U51+W51 -> 0 | L51: =X51 -> 0 | N51: 0 | O51: 0 | P51: 0 | Q51: =SUM(N51:P51) -> 0 | R51: 0 | S51: 0 | T51: 0 | U51: =SUM(R51:T51) -> 0 | V51: 0 | W51: 0 | X51: 0
A52: ='Org structure'!E48 -> 08.2 - Water Distribution | C52: 18037274.16 | D52: 20668314.54 | E52: 8202162.52 | F52: 19000000 | G52: 28167471 | H52: 28167471 | I52: 7083140.8 | J52: =Q52+V52 -> 10467749 | K52: =U52+W52 -> 11270449 | L52: =X52 -> 28145197 | N52: 10467749 | O52: 0 | P52: 0 | Q52: =SUM(N52:P52) -> 10467749 | R52: 11270449 | S52: 0 | T52: 0 | U52: =SUM(R52:T52) -> 11270449 | V52: 0 | W52: 0 | X52: 28145197
A53: ='Org structure'!A10 -> Vote 09 - City Electrial Engineering | C53: =SUM(C54:C58) -> 50705471.25 | D53: 20537556.77 | E53: 31363530.85 | F53: 19406177 | G53: 19636903 | H53: 19636903 | I53: 5754098.43 | J53: 5112652 | K53: 12918203 | L53: 14877305 | N53: =SUM(N54:N58) -> 5112652 | O53: 0 | P53: 0 | Q53: 5112652 | R53: 12918203 | S53: 0 | T53: 0 | U53: 12918203 | V53: 0 | W53: 0 | X53: 14877305
A54: ='Org structure'!E50 -> 09.1 - Streetlighting | C54: 0 | D54: 0 | E54: 0 | F54: 0 | G54: 0 | H54: 0 | I54: 0 | J54: =Q54+V54 -> 0 | K54: =U54+W54 -> 0 | L54: =X54 -> 0 | N54: 0 | O54: 0 | P54: 0 | Q54: =SUM(N54:P54) -> 0 | R54: 0 | S54: 0 | T54: 0 | U54: =SUM(R54:T54) -> 0 | V54: 0 | W54: 0 | X54: 0
A55: ='Org structure'!E51 -> 09.2 - Garage | C55: 0 | D55: 0 | E55: 0 | F55: 0 | G55: 0 | H55: 0 | I55: 0 | J55: =Q55+V55 -> 0 | K55: =U55+W55 -> 0 | L55: =X55 -> 0 | N55: 0 | O55: 0 | P55: 0 | Q55: =SUM(N55:P55) -> 0 | R55: 0 | S55: 0 | T55: 0 | U55: =SUM(R55:T55) -> 0 | V55: 0 | W55: 0 | X55: 0
A56: ='Org structure'!E52 -> 09.3 - Workshop | C56: 0 | D56: 0 | E56: 0 | F56: 0 | G56: 0 | H56: 0 | I56: 0 | J56: =Q56+V56 -> 0 | K56: =U56+W56 -> 0 | L56: =X56 -> 0 | N56: 0 | O56: 0 | P56: 0 | Q56: =SUM(N56:P56) -> 0 | R56: 0 | S56: 0 | T56: 0 | U56: =SUM(R56:T56) -> 0 | V56: 0 | W56: 0 | X56: 0
A57: ='Org structure'!E53 -> 09.4 - Administration Electricity | C57: 0 | D57: 0 | E57: 0 | F57: 0 | G57: 0 | H57: 0 | I57: 0 | J57: =Q57+V57 -> 0 | K57: =U57+W57 -> 0 | L57: =X57 -> 0 | N57: 0 | O57: 0 | P57: 0 | Q57: =SUM(N57:P57) -> 0 | R57: 0 | S57: 0 | T57: 0 | U57: =SUM(R57:T57) -> 0 | V57: 0 | W57: 0 | X57: 0
A58: ='Org structure'!E54 -> 09.5 - Electricity Distribution | C58: 50705471.25 | D58: 20537556.77 | E58: 31363530.85 | F58: 19406177 | G58: 19636903 | H58: 19636903 | I58: 5754098.43 | J58: =Q58+V58 -> 5112652 | K58: =U58+W58 -> 12918203 | L58: =X58 -> 14877305 | N58: 5112652 | O58: 0 | P58: 0 | Q58: =SUM(N58:P58) -> 5112652 | R58: 12918203 | S58: 0 | T58: 0 | U58: =SUM(R58:T58) -> 12918203 | V58: 0 | W58: 0 | X58: 14877305
A59: ='Org structure'!A11 -> Vote 10 - Corporate Governane | C59: =SUM(C60:C62) -> 0 | D59: 0 | E59: 0 | F59: 0 | G59: 0 | H59: 0 | I59: 0 | J59: 0 | K59: 0 | L59: 0 | N59: =SUM(N60:N62) -> 0 | O59: 0 | P59: 0 | Q59: 0 | R59: 0 | S59: 0 | T59: 0 | U59: 0 | V59: 0 | W59: 0 | X59: 0
A60: ='Org structure'!E56 -> 10.1 - Administration City Secretary | C60: 0 | D60: 0 | E60: 0 | F60: 0 | G60: 0 | H60: 0 | I60: 0 | J60: =Q60+V60 -> 0 | K60: =U60+W60 -> 0 | L60: =X60 -> 0 | N60: 0 | O60: 0 | P60: 0 | Q60: =SUM(N60:P60) -> 0 | R60: 0 | S60: 0 | T60: 0 | U60: =SUM(R60:T60) -> 0 | V60: 0 | W60: 0 | X60: 0
A61: ='Org structure'!E57 -> 10.2 - Legal And Land Affairs | C61: 0 | D61: 0 | E61: 0 | F61: 0 | G61: 0 | H61: 0 | I61: 0 | J61: =Q61+V61 -> 0 | K61: =U61+W61 -> 0 | L61: =X61 -> 0 | N61: 0 | O61: 0 | P61: 0 | Q61: =SUM(N61:P61) -> 0 | R61: 0 | S61: 0 | T61: 0 | U61: =SUM(R61:T61) -> 0 | V61: 0 | W61: 0 | X61: 0
A62: ='Org structure'!E58 -> 10.3 - Management Services | C62: 0 | D62: 0 | E62: 0 | F62: 0 | G62: 0 | H62: 0 | I62: 0 | J62: =Q62+V62 -> 0 | K62: =U62+W62 -> 0 | L62: =X62 -> 0 | N62: 0 | O62: 0 | P62: 0 | Q62: =SUM(N62:P62) -> 0 | R62: 0 | S62: 0 | T62: 0 | U62: =SUM(R62:T62) -> 0 | V62: 0 | W62: 0 | X62: 0
A63: ='Org structure'!A12 -> Vote 11 - Budget And Treasury Office | C63: =SUM(C64:C66) -> 0 | D63: 0 | E63: 0 | F63: 0 | G63: 0 | H63: 0 | I63: 0 | J63: 0 | K63: 0 | L63: 0 | N63: =SUM(N64:N66) -> 0 | O63: 0 | P63: 0 | Q63: 0 | R63: 0 | S63: 0 | T63: 0 | U63: 0 | V63: 0 | W63: 0 | X63: 0
A64: ='Org structure'!E60 -> 11.1 - Administration City Treasurer | C64: 0 | D64: 0 | E64: 0 | F64: 0 | G64: 0 | H64: 0 | I64: 0 | J64: =Q64+V64 -> 0 | K64: =U64+W64 -> 0 | L64: =X64 -> 0 | N64: 0 | O64: 0 | P64: 0 | Q64: =SUM(N64:P64) -> 0 | R64: 0 | S64: 0 | T64: 0 | U64: =SUM(R64:T64) -> 0 | V64: 0 | W64: 0 | X64: 0
A65: ='Org structure'!E61 -> 11.2 - Data | C65: 0 | D65: 0 | E65: 0 | F65: 0 | G65: 0 | H65: 0 | I65: 0 | J65: =Q65+V65 -> 0 | K65: =U65+W65 -> 0 | L65: =X65 -> 0 | N65: 0 | O65: 0 | P65: 0 | Q65: =SUM(N65:P65) -> 0 | R65: 0 | S65: 0 | T65: 0 | U65: =SUM(R65:T65) -> 0 | V65: 0 | W65: 0 | X65: 0
A66: ='Org structure'!E62 -> 11.3 - Stores | C66: 0 | D66: 0 | E66: 0 | F66: 0 | G66: 0 | H66: 0 | I66: 0 | J66: =Q66+V66 -> 0 | K66: =U66+W66 -> 0 | L66: =X66 -> 0 | N66: 0 | O66: 0 | P66: 0 | Q66: =SUM(N66:P66) -> 0 | R66: 0 | S66: 0 | T66: 0 | U66: =SUM(R66:T66) -> 0 | V66: 0 | W66: 0 | X66: 0
A67: ='Org structure'!A13 -> Vote 12 - Cleansing | C67: =SUM(C68:C74) -> 0 | D67: 0 | E67: 0 | F67: 0 | G67: 0 | H67: 0 | I67: 0 | J67: 0 | K67: 0 | L67: 0 | N67: =SUM(N68:N74) -> 0 | O67: 0 | P67: 0 | Q67: 0 | R67: 0 | S67: 0 | T67: 0 | U67: 0 | V67: 0 | W67: 0 | X67: 0
A68: ='Org structure'!E64 -> 12.1 - Landfill Site | C68: 0 | D68: 0 | E68: 0 | F68: 0 | G68: 0 | H68: 0 | I68: 0 | J68: =Q68+V68 -> 0 | K68: =U68+W68 -> 0 | L68: =X68 -> 0 | N68: 0 | O68: 0 | P68: 0 | Q68: =SUM(N68:P68) -> 0 | R68: 0 | S68: 0 | T68: 0 | U68: =SUM(R68:T68) -> 0 | V68: 0 | W68: 0 | X68: 0
A69: ='Org structure'!E65 -> 12.2 - Administration Cleansing | C69: 0 | D69: 0 | E69: 0 | F69: 0 | G69: 0 | H69: 0 | I69: 0 | J69: 0 | K69: 0 | L69: 0 | N69: 0 | O69: 0 | P69: 0 | Q69: 0 | R69: 0 | S69: 0 | T69: 0 | U69: 0 | V69: 0 | W69: 0 | X69: 0
A70: ='Org structure'!E66 -> 12.3 - Refuse Removal | C70: 0 | D70: 0 | E70: 0 | F70: 0 | G70: 0 | H70: 0 | I70: 0 | J70: 0 | K70: 0 | L70: 0 | N70: 0 | O70: 0 | P70: 0 | Q70: 0 | R70: 0 | S70: 0 | T70: 0 | U70: 0 | V70: 0 | W70: 0 | X70: 0
A71: ='Org structure'!E67 -> 12.4 - Nightsoil Services | C71: 0 | D71: 0 | E71: 0 | F71: 0 | G71: 0 | H71: 0 | I71: 0 | J71: 0 | K71: 0 | L71: 0 | N71: 0 | O71: 0 | P71: 0 | Q71: 0 | R71: 0 | S71: 0 | T71: 0 | U71: 0 | V71: 0 | W71: 0 | X71: 0
A72: ='Org structure'!E68 -> 12.5 - Street Cleaning | C72: 0 | D72: 0 | E72: 0 | F72: 0 | G72: 0 | H72: 0 | I72: 0 | J72: 0 | K72: 0 | L72: 0 | N72: 0 | O72: 0 | P72: 0 | Q72: 0 | R72: 0 | S72: 0 | T72: 0 | U72: 0 | V72: 0 | W72: 0 | X72: 0
A73: ='Org structure'!E69 -> 12.6 - Public Restrooms | C73: 0 | D73: 0 | E73: 0 | F73: 0 | G73: 0 | H73: 0 | I73: 0 | J73: 0 | K73: 0 | L73: 0 | N73: 0 | O73: 0 | P73: 0 | Q73: 0 | R73: 0 | S73: 0 | T73: 0 | U73: 0 | V73: 0 | W73: 0 | X73: 0
A74: ='Org structure'!E70 -> 12.7 - Landfill Site | C74: 0 | D74: 0 | E74: 0 | F74: 0 | G74: 0 | H74: 0 | I74: 0 | J74: 0 | K74: 0 | L74: 0 | N74: 0 | O74: 0 | P74: 0 | Q74: 0 | R74: 0 | S74: 0 | T74: 0 | U74: 0 | V74: 0 | W74: 0 | X74: 0
A75: ='Org structure'!A14 -> Vote 13 - Sewerage | C75: =SUM(C76:C79) -> 0 | D75: 0 | E75: 1839080.71 | F75: 0 | G75: 0 | H75: 0 | I75: 0 | J75: 0 | K75: 0 | L75: 0 | N75: =SUM(N76:N79) -> 0 | O75: 0 | P75: 0 | Q75: 0 | R75: 0 | S75: 0 | T75: 0 | U75: 0 | V75: 0 | W75: 0 | X75: 0
A76: ='Org structure'!E72 -> 13.1 - Administration Sewerage | C76: 0 | D76: 0 | E76: 0 | F76: 0 | G76: 0 | H76: 0 | I76: 0 | J76: =Q76+V76 -> 0 | K76: =U76+W76 -> 0 | L76: =X76 -> 0 | N76: 0 | O76: 0 | P76: 0 | Q76: =SUM(N76:P76) -> 0 | R76: 0 | S76: 0 | T76: 0 | U76: =SUM(R76:T76) -> 0 | V76: 0 | W76: 0 | X76: 0
A77: ='Org structure'!E73 -> 13.2 - Sewer Agency | C77: 0 | D77: 0 | E77: 0 | F77: 0 | G77: 0 | H77: 0 | I77: 0 | J77: =Q77+V77 -> 0 | K77: =U77+W77 -> 0 | L77: =X77 -> 0 | N77: 0 | O77: 0 | P77: 0 | Q77: =SUM(N77:P77) -> 0 | R77: 0 | S77: 0 | T77: 0 | U77: =SUM(R77:T77) -> 0 | V77: 0 | W77: 0 | X77: 0
A78: ='Org structure'!E74 -> 13.3 - Sewer Distribution | C78: 0 | D78: 0 | E78: 1839080.71 | F78: 0 | G78: 0 | H78: 0 | I78: 0 | J78: =Q78+V78 -> 0 | K78: =U78+W78 -> 0 | L78: =X78 -> 0 | N78: 0 | O78: 0 | P78: 0 | Q78: =SUM(N78:P78) -> 0 | R78: 0 | S78: 0 | T78: 0 | U78: =SUM(R78:T78) -> 0 | V78: 0 | W78: 0 | X78: 0
A79: ='Org structure'!E75 -> 13.4 - Nightsoil Services | C79: 0 | D79: 0 | E79: 0 | F79: 0 | G79: 0 | H79: 0 | I79: 0 | J79: =Q79+V79 -> 0 | K79: =U79+W79 -> 0 | L79: =X79 -> 0 | N79: 0 | O79: 0 | P79: 0 | Q79: =SUM(N79:P79) -> 0 | R79: 0 | S79: 0 | T79: 0 | U79: =SUM(R79:T79) -> 0 | V79: 0 | W79: 0 | X79: 0
A80: ='Org structure'!A15 -> Vote 14 - Market | C80: =SUM(C81:C81) -> 0 | D80: 0 | E80: 0 | F80: 0 | G80: 0 | H80: 0 | I80: 0 | J80: 0 | K80: 0 | L80: 0 | N80: =SUM(N81:N81) -> 0 | O80: 0 | P80: 0 | Q80: 0 | R80: 0 | S80: 0 | T80: 0 | U80: 0 | V80: 0 | W80: 0 | X80: 0
A81: ='Org structure'!E77 -> 14.1 - Market | C81: 0 | D81: 0 | E81: 0 | F81: 0 | G81: 0 | H81: 0 | I81: 0 | J81: =Q81+V81 -> 0 | K81: =U81+W81 -> 0 | L81: =X81 -> 0 | N81: 0 | O81: 0 | P81: 0 | Q81: =SUM(N81:P81) -> 0 | R81: 0 | S81: 0 | T81: 0 | U81: =SUM(R81:T81) -> 0 | V81: 0 | W81: 0 | X81: 0
A82: ='Org structure'!A16 -> Vote 15 - Other | C82: =SUM(C83:C85) -> 0 | D82: 0 | E82: 0 | F82: 0 | G82: 0 | H82: 0 | I82: 0 | J82: 0 | K82: 0 | L82: 0 | N82: =SUM(N83:N85) -> 0 | O82: 0 | P82: 0 | Q82: 0 | R82: 0 | S82: 0 | T82: 0 | U82: 0 | V82: 0 | W82: 0 | X82: 0
A83: ='Org structure'!E79 -> 15.1 - Administration Led | C83: 0 | D83: 0 | E83: 0 | F83: 0 | G83: 0 | H83: 0 | I83: 0 | J83: =Q83+V83 -> 0 | K83: =U83+W83 -> 0 | L83: =X83 -> 0 | N83: 0 | O83: 0 | P83: 0 | Q83: =SUM(N83:P83) -> 0 | R83: 0 | S83: 0 | T83: 0 | U83: =SUM(R83:T83) -> 0 | V83: 0 | W83: 0 | X83: 0
A84: ='Org structure'!E80 -> 15.2 - Economic Affairs & Corporate Communicati | C84: 0 | D84: 0 | E84: 0 | F84: 0 | G84: 0 | H84: 0 | I84: 0 | J84: =Q84+V84 -> 0 | K84: =U84+W84 -> 0 | L84: =X84 -> 0 | N84: 0 | O84: 0 | P84: 0 | Q84: =SUM(N84:P84) -> 0 | R84: 0 | S84: 0 | T84: 0 | U84: =SUM(R84:T84) -> 0 | V84: 0 | W84: 0 | X84: 0
A85: ='Org structure'!E81 -> 15.3 - Local Economic Development | C85: 0 | D85: 0 | E85: 0 | F85: 0 | G85: 0 | H85: 0 | I85: 0 | J85: =Q85+V85 -> 0 | K85: =U85+W85 -> 0 | L85: =X85 -> 0 | N85: 0 | O85: 0 | P85: 0 | Q85: =SUM(N85:P85) -> 0 | R85: 0 | S85: 0 | T85: 0 | U85: =SUM(R85:T85) -> 0 | V85: 0 | W85: 0 | X85: 0
A86: Capital multi-year expenditure sub-total | C86: =C6+C13+C16+C23+C29+C36+C45+C50+C53+C59+C63+C67+C75+C80+C82 -> 118342446.8 | D86: 91400874.12 | E86: 65213136.15 | F86: 82090693 | G86: 88435415 | H86: 88435415 | I86: 38209898.5 | J86: 28382350 | K86: 39919450 | L86: 82631242 | N86: =N6+N13+N16+N23+N29+N36+N45+N50+N53+N59+N63+N67+N75+N80+N82 -> 28382350 | O86: 0 | P86: 0 | Q86: 28382350 | R86: 39919450 | S86: 0 | T86: 0 | U86: 39919450 | V86: 0 | W86: 0 | X86: 82631242
A88: Capital expenditure - Municipal Vote
A89: Single-year expenditure appropriation | B89: 2
A90: ='Org structure'!A2 -> Vote 01 - Public Safety | C90: =SUM(C91:C96) -> 0 | D90: 0 | E90: 0 | F90: 0 | G90: 0 | H90: 0 | I90: 0 | J90: 0 | K90: 0 | L90: 0
A91: ='Org structure'!E3 -> 01.1 - Public Safety Administration | C91: 0 | D91: 0 | E91: 0 | F91: 0 | G91: 0 | H91: 0 | I91: 0 | J91: 0 | K91: 0 | L91: 0
A92: ='Org structure'!E4 -> 01.2 - Fire Brigade | C92: 0 | D92: 0 | E92: 0 | F92: 0 | G92: 0 | H92: 0 | I92: 0 | J92: 0 | K92: 0 | L92: 0
A93: ='Org structure'!E5 -> 01.3 - Licencing Administration | C93: 0 | D93: 0 | E93: 0 | F93: 0 | G93: 0 | H93: 0 | I93: 0 | J93: 0 | K93: 0 | L93: 0
A94: ='Org structure'!E6 -> 01.4 - Traffic Administration | C94: 0 | D94: 0 | E94: 0 | F94: 0 | G94: 0 | H94: 0 | I94: 0 | J94: 0 | K94: 0 | L94: 0
A95: ='Org structure'!E7 -> 01.5 - Disaster Management | C95: 0 | D95: 0 | E95: 0 | F95: 0 | G95: 0 | H95: 0 | I95: 0 | J95: 0 | K95: 0 | L95: 0
A96: ='Org structure'!E8 -> 01.6 - Municipal Court | C96: 0 | D96: 0 | E96: 0 | F96: 0 | G96: 0 | H96: 0 | I96: 0 | J96: 0 | K96: 0 | L96: 0
A97: ='Org structure'!A3 -> Vote 02 - Health Services | C97: =SUM(C98:C99) -> 0 | D97: 0 | E97: 0 | F97: 0 | G97: 0 | H97: 0 | I97: 0 | J97: 0 | K97: 0 | L97: 0
A98: ='Org structure'!E10 -> 02.1 - Health Services Administration | C98: 0 | D98: 0 | E98: 0 | F98: 0 | G98: 0 | H98: 0 | I98: 0 | J98: 0 | K98: 0 | L98: 0
A99: ='Org structure'!E11 -> 02.2 - Occupational Health Centre | C99: 0 | D99: 0 | E99: 0 | F99: 0 | G99: 0 | H99: 0 | I99: 0 | J99: 0 | K99: 0 | L99: 0
A100: ='Org structure'!A4 -> Vote 03 - Community Services | C100: =SUM(C101:C106) -> 0 | D100: 0 | E100: 0 | F100: 0 | G100: 2400000 | H100: 2400000 | I100: 0 | J100: 0 | K100: 0 | L100: 0
A101: ='Org structure'!E13 -> 03.1 - Administration Community Services | C101: 0 | D101: 0 | E101: 0 | F101: 0 | G101: 0 | H101: 0 | I101: 0 | J101: 0 | K101: 0 | L101: 0
A102: ='Org structure'!E14 -> 03.2 - Cemetary | C102: 0 | D102: 0 | E102: 0 | F102: 0 | G102: 0 | H102: 0 | I102: 0 | J102: 0 | K102: 0 | L102: 0
A103: ='Org structure'!E15 -> 03.3 - Aerodome | C103: 0 | D103: 0 | E103: 0 | F103: 0 | G103: 0 | H103: 0 | I103: 0 | J103: 0 | K103: 0 | L103: 0
A104: ='Org structure'!E16 -> 03.4 - Nature Reserve | C104: 0 | D104: 0 | E104: 0 | F104: 0 | G104: 0 | H104: 0 | I104: 0 | J104: 0 | K104: 0 | L104: 0
A105: ='Org structure'!E17 -> 03.5 - Orkney Vaal | C105: 0 | D105: 0 | E105: 0 | F105: 0 | G105: 0 | H105: 0 | I105: 0 | J105: 0 | K105: 0 | L105: 0
A106: ='Org structure'!E18 -> 03.6 - Administration Parks | C106: 0 | D106: 0 | E106: 0 | F106: 0 | G106: 2400000 | H106: 2400000 | I106: 0 | J106: 0 | K106: 0 | L106: 0
A107: ='Org structure'!A5 -> Vote 04 - Housing | C107: =SUM(C108:C112) -> 0 | D107: 0 | E107: 0 | F107: 0 | G107: 0 | H107: 0 | I107: 0 | J107: 0 | K107: 0 | L107: 0
A108: ='Org structure'!E20 -> 04.1 - Administration Housing Services | C108: 0 | D108: 0 | E108: 0 | F108: 0 | G108: 0 | H108: 0 | I108: 0 | J108: 0 | K108: 0 | L108: 0
A109: ='Org structure'!E21 -> 04.2 - Housing Services | C109: 0 | D109: 0 | E109: 0 | F109: 0 | G109: 0 | H109: 0 | I109: 0 | J109: 0 | K109: 0 | L109: 0
A110: ='Org structure'!E22 -> 04.3 - Building Survey | C110: 0 | D110: 0 | E110: 0 | F110: 0 | G110: 0 | H110: 0 | I110: 0 | J110: 0 | K110: 0 | L110: 0
A111: ='Org structure'!E23 -> 04.4 - Town Planning | C111: 0 | D111: 0 | E111: 0 | F111: 0 | G111: 0 | H111: 0 | I111: 0 | J111: 0 | K111: 0 | L111: 0
A112: ='Org structure'!E24 -> 04.5 - Land Affairs | C112: 0 | D112: 0 | E112: 0 | F112: 0 | G112: 0 | H112: 0 | I112: 0 | J112: 0 | K112: 0 | L112: 0
A113: ='Org structure'!A6 -> Vote 05 - Sport Arts And Culture | C113: =SUM(C114:C119) -> 12193170.53 | D113: 25390299.85 | E113: 2949852.28 | F113: 7800000 | G113: 8906488 | H113: 8906488 | I113: 4404142.1 | J113: 15093585 | K113: 20604550 | L113: 0
A114: ='Org structure'!E26 -> 05.1 - Traffic Administration | C114: 0 | D114: 0 | E114: 0 | F114: 0 | G114: 0 | H114: 0 | I114: 0 | J114: 0 | K114: 0 | L114: 0
A115: ='Org structure'!E27 -> 05.2 - Administration Sports Arts & Culture | C115: 0 | D115: 0 | E115: 0 | F115: 0 | G115: 0 | H115: 0 | I115: 0 | J115: 0 | K115: 0 | L115: 0
A116: ='Org structure'!E28 -> 05.3 - Museum | C116: 0 | D116: 0 | E116: 0 | F116: 0 | G116: 0 | H116: 0 | I116: 0 | J116: 0 | K116: 0 | L116: 0
A117: ='Org structure'!E29 -> 05.4 - Library | C117: 0 | D117: 0 | E117: 0 | F117: 800000 | G117: 0 | H117: 0 | I117: 0 | J117: 0 | K117: 0 | L117: 0
A118: ='Org structure'!E30 -> 05.5 - Sports And Recreation | C118: 12193170.53 | D118: 25390299.85 | E118: 2949852.28 | F118: 7000000 | G118: 8906488 | H118: 8906488 | I118: 4404142.1 | J118: 15093585 | K118: 20604550 | L118: 0
A119: ='Org structure'!E31 -> 05.6 - Oppenheimer Stadium | C119: 0 | D119: 0 | E119: 0 | F119: 0 | G119: 0 | H119: 0 | I119: 0 | J119: 0 | K119: 0 | L119: 0
A120: ='Org structure'!A7 -> Vote 06 - Council General | C120: =SUM(C121:C128) -> 0 | D120: 0 | E120: 0.01 | F120: 2000000 | G120: 1300000 | H120: 1300000 | I120: 139795.33 | J120: 47000000 | K120: 0 | L120: 0
A121: ='Org structure'!E33 -> 06.1 - Administration Council General | C121: 0 | D121: 0 | E121: 0.01 | F121: 2000000 | G121: 1300000 | H121: 1300000 | I121: 139795.33 | J121: 47000000 | K121: 0 | L121: 0
A122: ='Org structure'!E34 -> 06.2 - Administration Municipal Manager | C122: 0 | D122: 0 | E122: 0 | F122: 0 | G122: 0 | H122: 0 | I122: 0 | J122: 0 | K122: 0 | L122: 0
A123: ='Org structure'!E35 -> 06.3 - Internal Audit | C123: 0 | D123: 0 | E123: 0 | F123: 0 | G123: 0 | H123: 0 | I123: 0 | J123: 0 | K123: 0 | L123: 0
A124: ='Org structure'!E36 -> 06.4 - Strategic | C124: 0 | D124: 0 | E124: 0 | F124: 0 | G124: 0 | H124: 0 | I124: 0 | J124: 0 | K124: 0 | L124: 0
A125: ='Org structure'!E37 -> 06.5 - Administration Mayor | C125: 0 | D125: 0 | E125: 0 | F125: 0 | G125: 0 | H125: 0 | I125: 0 | J125: 0 | K125: 0 | L125: 0
A126: ='Org structure'!E38 -> 06.6 - Administration Speaker | C126: 0 | D126: 0 | E126: 0 | F126: 0 | G126: 0 | H126: 0 | I126: 0 | J126: 0 | K126: 0 | L126: 0
A127: ='Org structure'!E39 -> 06.7 - Chief Whip | C127: 0 | D127: 0 | E127: 0 | F127: 0 | G127: 0 | H127: 0 | I127: 0 | J127: 0 | K127: 0 | L127: 0
A128: ='Org structure'!E40 -> 06.8 - Mpac | C128: 0 | D128: 0 | E128: 0 | F128: 0 | G128: 0 | H128: 0 | I128: 0 | J128: 0 | K128: 0 | L128: 0
A129: ='Org structure'!A8 -> Vote 07 - Civil Engineering | C129: =SUM(C130:C133) -> 0 | D129: 0 | E129: 0 | F129: 0 | G129: 0 | H129: 0 | I129: 0 | J129: 0 | K129: 0 | L129: 0
A130: ='Org structure'!E42 -> 07.1 - Administration City Civil Engineer | C130: 0 | D130: 0 | E130: 0 | F130: 0 | G130: 0 | H130: 0 | I130: 0 | J130: 0 | K130: 0 | L130: 0
A131: ='Org structure'!E43 -> 07.2 - Building Construction | C131: 0 | D131: 0 | E131: 0 | F131: 0 | G131: 0 | H131: 0 | I131: 0 | J131: 0 | K131: 0 | L131: 0
A132: ='Org structure'!E44 -> 07.3 - Roads | C132: 0 | D132: 0 | E132: 0 | F132: 0 | G132: 0 | H132: 0 | I132: 0 | J132: 0 | K132: 0 | L132: 0
A133: ='Org structure'!E45 -> 07.4 - Pmu Unit | C133: 0 | D133: 0 | E133: 0 | F133: 0 | G133: 0 | H133: 0 | I133: 0 | J133: 0 | K133: 0 | L133: 0
A134: ='Org structure'!A9 -> Vote 08 - Water Section | C134: =SUM(C135:C136) -> 8671983.48 | D134: 3658562.41 | E134: 1526177.32 | F134: 37892668 | G134: 32130000 | H134: 32130000 | I134: 19414695.49 | J134: 25000000 | K134: 0 | L134: 24952106
A135: ='Org structure'!E47 -> 08.1 - Administration Water | C135: 0 | D135: 0 | E135: 0 | F135: 0 | G135: 0 | H135: 0 | I135: 0 | J135: 0 | K135: 0 | L135: 0
A136: ='Org structure'!E48 -> 08.2 - Water Distribution | C136: 8671983.48 | D136: 3658562.41 | E136: 1526177.32 | F136: 37892668 | G136: 32130000 | H136: 32130000 | I136: 19414695.49 | J136: 25000000 | K136: 0 | L136: 24952106
A137: ='Org structure'!A10 -> Vote 09 - City Electrial Engineering | C137: =SUM(C138:C142) -> 7435566.13 | D137: 4071430.82 | E137: 1669627.37 | F137: 0 | G137: 1700000 | H137: 1700000 | I137: 0 | J137: 0 | K137: 0 | L137: 0
A138: ='Org structure'!E50 -> 09.1 - Streetlighting | C138: 0 | D138: 0 | E138: 0 | F138: 0 | G138: 0 | H138: 0 | I138: 0 | J138: 0 | K138: 0 | L138: 0
A139: ='Org structure'!E51 -> 09.2 - Garage | C139: 0 | D139: 0 | E139: 0 | F139: 0 | G139: 1700000 | H139: 1700000 | I139: 0 | J139: 0 | K139: 0 | L139: 0
A140: ='Org structure'!E52 -> 09.3 - Workshop | C140: 0 | D140: 0 | E140: 0 | F140: 0 | G140: 0 | H140: 0 | I140: 0 | J140: 0 | K140: 0 | L140: 0
A141: ='Org structure'!E53 -> 09.4 - Administration Electricity | C141: 0 | D141: 0 | E141: 0 | F141: 0 | G141: 0 | H141: 0 | I141: 0 | J141: 0 | K141: 0 | L141: 0
A142: ='Org structure'!E54 -> 09.5 - Electricity Distribution | C142: 7435566.13 | D142: 4071430.82 | E142: 1669627.37 | F142: 0 | G142: 0 | H142: 0 | I142: 0 | J142: 0 | K142: 0 | L142: 0
A143: ='Org structure'!A11 -> Vote 10 - Corporate Governane | C143: =SUM(C144:C146) -> 0 | D143: 0 | E143: 0 | F143: 0 | G143: 0 | H143: 0 | I143: 0 | J143: 0 | K143: 0 | L143: 0
A144: ='Org structure'!E56 -> 10.1 - Administration City Secretary | C144: 0 | D144: 0 | E144: 0 | F144: 0 | G144: 0 | H144: 0 | I144: 0 | J144: 0 | K144: 0 | L144: 0
A145: ='Org structure'!E57 -> 10.2 - Legal And Land Affairs | C145: 0 | D145: 0 | E145: 0 | F145: 0 | G145: 0 | H145: 0 | I145: 0 | J145: 0 | K145: 0 | L145: 0
A146: ='Org structure'!E58 -> 10.3 - Management Services | C146: 0 | D146: 0 | E146: 0 | F146: 0 | G146: 0 | H146: 0 | I146: 0 | J146: 0 | K146: 0 | L146: 0
A147: ='Org structure'!A12 -> Vote 11 - Budget And Treasury Office | C147: =SUM(C148:C150) -> 0 | D147: 0 | E147: 0 | F147: 8000000 | G147: 5600000 | H147: 5600000 | I147: 1187539.77 | J147: 3000000 | K147: 0 | L147: 0
A148: ='Org structure'!E60 -> 11.1 - Administration City Treasurer | C148: 0 | D148: 0 | E148: 0 | F148: 0 | G148: 0 | H148: 0 | I148: 0 | J148: 0 | K148: 0 | L148: 0
A149: ='Org structure'!E61 -> 11.2 - Data | C149: 0 | D149: 0 | E149: 0 | F149: 8000000 | G149: 5600000 | H149: 5600000 | I149: 1187539.77 | J149: 3000000 | K149: 0 | L149: 0
A150: ='Org structure'!E62 -> 11.3 - Stores | C150: 0 | D150: 0 | E150: 0 | F150: 0 | G150: 0 | H150: 0 | I150: 0 | J150: 0 | K150: 0 | L150: 0
A151: ='Org structure'!A13 -> Vote 12 - Cleansing | C151: =SUM(C152:C158) -> 0 | D151: 0 | E151: 3503531.32 | F151: 40014088 | G151: 52749354 | H151: 52749354 | I151: 35781123.78 | J151: 38773866 | K151: 29000000 | L151: 0
A152: ='Org structure'!E64 -> 12.1 - Landfill Site | C152: 0 | D152: 0 | E152: 0 | F152: 0 | G152: 0 | H152: 0 | I152: 0 | J152: 0 | K152: 0 | L152: 0
A153: ='Org structure'!E65 -> 12.2 - Administration Cleansing | C153: 0 | D153: 0 | E153: 7173.91 | F153: 4542900 | G153: 28690117 | H153: 28690117 | I153: 24148980.89 | J153: 0 | K153: 13000000 | L153: 0
A154: ='Org structure'!E66 -> 12.3 - Refuse Removal | C154: 0 | D154: 0 | E154: 0 | F154: 0 | G154: 0 | H154: 0 | I154: 0 | J154: 0 | K154: 0 | L154: 0
A155: ='Org structure'!E67 -> 12.4 - Nightsoil Services | C155: 0 | D155: 0 | E155: 0 | F155: 0 | G155: 0 | H155: 0 | I155: 0 | J155: 0 | K155: 0 | L155: 0
A156: ='Org structure'!E68 -> 12.5 - Street Cleaning | C156: 0 | D156: 0 | E156: 0 | F156: 0 | G156: 0 | H156: 0 | I156: 0 | J156: 0 | K156: 0 | L156: 0
A157: ='Org structure'!E69 -> 12.6 - Public Restrooms | C157: 0 | D157: 0 | E157: 0 | F157: 0 | G157: 0 | H157: 0 | I157: 0 | J157: 0 | K157: 0 | L157: 0
A158: ='Org structure'!E70 -> 12.7 - Landfill Site | C158: 0 | D158: 0 | E158: 3496357.41 | F158: 35471188 | G158: 24059237 | H158: 24059237 | I158: 11632142.89 | J158: 38773866 | K158: 16000000 | L158: 0
A159: ='Org structure'!A14 -> Vote 13 - Sewerage | C159: =SUM(C160:C163) -> 38703422.66 | D159: 14341581.94 | E159: 4744597.2 | F159: 53671952 | G159: 20567943 | H159: 20567943 | I159: 7697879.43 | J159: 74012454 | K159: 98000000 | L159: 117703651
A160: ='Org structure'!E72 -> 13.1 - Administration Sewerage | C160: 0 | D160: 0 | E160: 0 | F160: 0 | G160: 0 | H160: 0 | I160: 0 | J160: 0 | K160: 0 | L160: 0
A161: ='Org structure'!E73 -> 13.2 - Sewer Agency | C161: 0 | D161: 0 | E161: 0 | F161: 0 | G161: 0 | H161: 0 | I161: 0 | J161: 0 | K161: 0 | L161: 0
A162: ='Org structure'!E74 -> 13.3 - Sewer Distribution | C162: 38703422.66 | D162: 14341581.94 | E162: 4744597.2 | F162: 53671952 | G162: 20567943 | H162: 20567943 | I162: 7697879.43 | J162: 74012454 | K162: 98000000 | L162: 117703651
A163: ='Org structure'!E75 -> 13.4 - Nightsoil Services | C163: 0 | D163: 0 | E163: 0 | F163: 0 | G163: 0 | H163: 0 | I163: 0 | J163: 0 | K163: 0 | L163: 0
A164: ='Org structure'!A15 -> Vote 14 - Market | C164: =SUM(C165:C165) -> 6125942.6 | D164: 13678068.43 | E164: 4345036.49 | F164: 0 | G164: 3067348 | H164: 3067348 | I164: 1063030.6 | J164: 4987544 | K164: 10000000 | L164: 0
A165: ='Org structure'!E77 -> 14.1 - Market | C165: 6125942.6 | D165: 13678068.43 | E165: 4345036.49 | F165: 0 | G165: 3067348 | H165: 3067348 | I165: 1063030.6 | J165: 4987544 | K165: 10000000 | L165: 0
A166: ='Org structure'!A16 -> Vote 15 - Other | C166: =SUM(C167:C169) -> 0 | D166: 0 | E166: 0 | F166: 0 | G166: 0 | H166: 0 | I166: 0 | J166: 0 | K166: 0 | L166: 0
A167: ='Org structure'!E79 -> 15.1 - Administration Led | C167: 0 | D167: 0 | E167: 0 | F167: 0 | G167: 0 | H167: 0 | I167: 0 | J167: 0 | K167: 0 | L167: 0
A168: ='Org structure'!E80 -> 15.2 - Economic Affairs & Corporate Communicati | C168: 0 | D168: 0 | E168: 0 | F168: 0 | G168: 0 | H168: 0 | I168: 0 | J168: 0 | K168: 0 | L168: 0
A169: ='Org structure'!E81 -> 15.3 - Local Economic Development | C169: 0 | D169: 0 | E169: 0 | F169: 0 | G169: 0 | H169: 0 | I169: 0 | J169: 0 | K169: 0 | L169: 0
A170: Capital single-year expenditure sub-total | C170: =C90+C97+C100+C107+C113+C120+C129+C134+C137+C143+C147+C151+C159+C164+C166 -> 73130085.4 | D170: 61139943.45 | E170: 18738821.99 | F170: 149378708 | G170: 128421133 | H170: 128421133 | I170: 69688206.5 | J170: 207867449 | K170: 157604550 | L170: 142655757
A171: Total Capital Expenditure | C171: =C86+C170 -> 191472532.2 | D171: 152540817.6 | E171: 83951958.14 | F171: 231469401 | G171: 216856548 | H171: 216856548 | I171: 107898105 | J171: 236249799 | K171: 197524000 | L171: 225286999

Sheet A6-FinPos
A1: =muni&" - "&Approve6 -> NW403 City Of Matlosana - Table A6 Budgeted Financial Position
A2: =desc -> Description | B2: =head27 -> Ref | C2: =head1b -> 2020/21 | D2: =head1A -> 2021/22 | E2: =Head1 -> 2022/23 | F2: =Head2 -> Current Year 2023/24 | J2: =Head3 -> 2024/25 Medium Term Revenue & Expenditure Framework
A3: R thousand | C3: =Head5 -> Audited Outcome | D3: =Head5 -> Audited Outcome | E3: =Head5 -> Audited Outcome | F3: =Head6 -> Original Budget | G3: =Head7 -> Adjusted Budget | H3: =Head8 -> Full Year Forecast | I3: =Head5b -> Pre-audit outcome | J3: =Head9 -> Budget Year 2024/25 | K3: =Head10 -> Budget Year +1 2025/26 | L3: =Head11 -> Budget Year +2 2026/27
A4: ASSETS
A5: Current assets
A6: Cash and cash equivalents | C6: -195401873.4 | D6: 224921256.7 | E6: 104773259.4 | F6: 197691728 | G6: 522893308 | H6: 522893308 | I6: 498203114 | J6: -453678031 | K6: 3465847823 | L6: 3683179744
A7: Trade and other receivables from exchange transactions | B7: 1 | C7: ='SA3'!C19 -> 670755459.5 | D7: ='SA3'!D19 -> -904783213.8 | E7: ='SA3'!E19 -> -900930344.3 | F7: ='SA3'!F19 -> -44544062 | G7: ='SA3'!G19 -> 559999308 | H7: ='SA3'!H19 -> 559999308 | I7: ='SA3'!I19 -> 37614669.49 | J7: ='SA3'!J19 -> 818409460 | K7: ='SA3'!K19 -> 627406829 | L7: ='SA3'!L19 -> -2147454576
A8: Receivables from non-exchange transactions | B8: 1 | C8: ='SA3'!C28 -> -147673657.9 | D8: ='SA3'!D28 -> 1520912934 | E8: ='SA3'!E28 -> 1376534989 | F8: ='SA3'!F28 -> 47081411 | G8: ='SA3'!G28 -> 168100560 | H8: ='SA3'!H28 -> 168100560 | I8: ='SA3'!I28 -> 1487002264 | J8: ='SA3'!J28 -> 173426085 | K8: ='SA3'!K28 -> 127751465 | L8: ='SA3'!L28 -> -559721565
A9: Current portion of non-current receivables | C9: 35374.7 | D9: 7356.78 | E9: 0.41 | F9: 29274 | G9: 29274 | H9: 29274 | I9: -17138 | J9: 29274 | K9: 29567 | L9: 0
A10: Inventory | B10: 2 | C10: ='SA3'!C124 -> 33292849 | D10: ='SA3'!D124 -> 38539181 | E10: ='SA3'!E124 -> 52414101 | F10: ='SA3'!F124 -> 53928113 | G10: ='SA3'!G124 -> 53928113 | H10: ='SA3'!H124 -> 53928113 | I10: ='SA3'!I124 -> 59866091.25 | J10: ='SA3'!J124 -> -10372821 | K10: ='SA3'!K124 -> -120843669 | L10: ='SA3'!L124 -> -120843669
A11: VAT | C11: 734896484.5 | D11: 947384268.8 | E11: 1230782118 | F11: 195040276 | G11: 195040276 | H11: 195040276 | I11: 1340639614 | J11: 195040276 | K11: 196990679 | L11: 0
A12: Other current assets | C12: 37842090.07 | D12: 38482348.75 | E12: 40384455.67 | F12: 37026362 | G12: 37026362 | H12: 37026362 | I12: 39859120.45 | J12: 37026362 | K12: 37447126 | L12: 0
A13: Total current assets | C13: =SUM(C6:C12) -> 1133746726 | D13: =SUM(D6:D12) -> 1865464133 | E13: 1903958580 | F13: 486253102 | G13: 1537017201 | H13: 1537017201 | I13: 3463167735 | J13: 759880605 | K13: 4334629820 | L13: 855159934
A14: Non current assets
A15: Investments
A16: Investment property | C16: 256971223.4 | D16: 349864969.4 | E16: 345682384 | F16: 257100275 | G16: 257100275 | H16: 257100275 | I16: 345682384 | J16: 257100275 | K16: 259671278 | L16: 0
A17: Property, plant and equipment | B17: 3 | C17: ='SA3'!C130 -> 5699245338 | D17: ='SA3'!D130 -> 5832224024 | E17: ='SA3'!E130 -> 5724840744 | F17: ='SA3'!F130 -> 3851286409 | G17: ='SA3'!G130 -> 3836673556 | H17: ='SA3'!H130 -> 3836673556 | I17: ='SA3'!I130 -> 5516884186 | J17: ='SA3'!J130 -> 3581032996 | K17: ='SA3'!K130 -> 3575755029 | L17: ='SA3'!L130 -> 225286999
A18: Biological assets
A19: Living and non-living resources
A20: Heritage assets | C20: -567443583.4 | D20: -618226303.5 | E20: -618289947.7 | F20: 9941212 | G20: 9941212 | H20: 9941212 | I20: -618289947.7 | J20: 9941212 | K20: 10040624 | L20: 0
A21: Intangible assets | C21: 1297383.11 | D21: 1297383.11 | E21: 1297383.11 | F21: 1297383 | G21: 1297383 | H21: 1297383 | I21: 1297383.11 | J21: 1297383 | K21: 1310357 | L21: 0
A22: Trade and other receivables from exchange transactions | C22: 0 | D22: 0 | E22: 0 | F22: 32755 | G22: 32755 | H22: 32755 | I22: 0 | J22: 32755 | K22: 33083 | L22: 0
A23: Non-current receivables from non-exchange transactions
A24: Other non-current assets
A25: Total non current assets | C25: =SUM(C15:C24) -> 5390070361 | D25: =SUM(D15:D24) -> 5565160073 | E25: 5453530563 | F25: 4119658034 | G25: 4105045181 | H25: 4105045181 | I25: 5245574005 | J25: 3849404621 | K25: 3846810371 | L25: 225286999
A26: TOTAL ASSETS | C26: =C13+C25 -> 6523817087 | D26: =D13+D25 -> 7430624206 | E26: =E13+E25 -> 7357489143 | F26: =F13+F25 -> 4605911136 | G26: 5642062382 | H26: 5642062382 | I26: 8708741740 | J26: 4609285226 | K26: 8181440191 | L26: 1080446933
A27: LIABILITIES
A28: Current liabilities
A29: Bank overdraft
A30: Financial liabilities | C30: ='SA3'!C136 -> -1539426.06 | D30: ='SA3'!D136 -> -5042274.55 | E30: ='SA3'!E136 -> -622366.98 | F30: ='SA3'!F136 -> -2800000 | G30: ='SA3'!G136 -> -2800000 | H30: ='SA3'!H136 -> -2800000 | I30: ='SA3'!I136 -> -622366.98 | J30: ='SA3'!J136 -> -2800000 | K30: ='SA3'!K136 -> 820000 | L30: ='SA3'!L136 -> 0
A31: Consumer deposits | C31: 61754132.34 | D31: 64143094.01 | E31: 67915525.45 | F31: 97429637 | G31: 97429637 | H31: 97429637 | I31: 69373916.96 | J31: 99929637 | K31: 100928933 | L31: 2530000
A32: Trade and other payables from exchange transactions | B32: 4 | C32: 1639186598 | D32: 2641891193 | E32: 3370254315 | F32: -530428834 | G32: 474787107 | H32: 474787107 | I32: 3360436392 | J32: 2828551535 | K32: 3011799232 | L32: 423543260
A33: Trade and other payables from non-exchange transactions | B33: 5 | C33: 42709421.04 | D33: 23273213.09 | E33: 56274735.47 | F33: 93815683 | G33: 73142683 | H33: 73142683 | I33: 123923949.2 | J33: 42907407 | K33: 50785223 | L33: 239340000
A34: Provision | C34: 533021459.1 | D34: 563481572.2 | E34: 554291304.3 | F34: 572370777 | G34: 572370777 | H34: 572370777 | I34: 554491400.9 | J34: 587370777 | K34: 593464485 | L34: -22000000
A35: VAT | C35: 552242380.3 | D35: 741130329.7 | E35: 928915981.8 | F35: 0 | G35: 0 | H35: 0 | I35: 1210625798 | J35: 0 | K35: 0 | L35: 0
A36: Other current liabilities
A37: Total current liabilities | C37: =SUM(C29:C36) -> 2827374565 | D37: =SUM(D29:D36) -> 4028877127 | E37: 4977029495 | F37: 230387263 | G37: 1214930204 | H37: 1214930204 | I37: 5318229090 | J37: 3555959356 | K37: 3757797873 | L37: 643413260
A38: Non current liabilities
A39: Financial liabilities | B39: 6 | C39: ='SA3'!C148 -> 48848229.69 | D39: ='SA3'!D148 -> 42265259.54 | E39: ='SA3'!E148 -> 26575963.32 | F39: ='SA3'!F148 -> 81274059 | G39: ='SA3'!G148 -> 81274059 | H39: ='SA3'!H148 -> 81274059 | I39: ='SA3'!I148 -> 16429929.88 | J39: ='SA3'!J148 -> 81274059 | K39: ='SA3'!K148 -> 82086800 | L39: ='SA3'!L148 -> 0
A40: Provision | B40: 7 | C40: ='SA3'!C162 -> 0 | D40: ='SA3'!D162 -> 0 | E40: ='SA3'!E162 -> 0 | F40: ='SA3'!F162 -> 0 | G40: ='SA3'!G162 -> 0 | H40: ='SA3'!H162 -> 0 | I40: ='SA3'!I162 -> 0 | J40: ='SA3'!J162 -> 0 | K40: ='SA3'!K162 -> 0 | L40: ='SA3'!L162 -> 0
A41: Long term portion of trade payables | C41: ='SA3'!C151 -> 0 | D41: ='SA3'!D151 -> 0 | E41: ='SA3'!E151 -> 0 | F41: ='SA3'!F151 -> 0 | G41: ='SA3'!G151 -> 0 | H41: ='SA3'!H151 -> 0 | I41: ='SA3'!I151 -> 0 | J41: ='SA3'!J151 -> 0 | K41: ='SA3'!K151 -> 0 | L41: ='SA3'!L151 -> 0
A42: Other non-current liabilities
A43: Total non current liabilities | C43: =SUM(C39:C42) -> 48848229.69 | D43: =SUM(D39:D42) -> 42265259.54 | E43: 26575963.32 | F43: 81274059 | G43: 81274059 | H43: 81274059 | I43: 16429929.88 | J43: 81274059 | K43: 82086800 | L43: 0
A44: TOTAL LIABILITIES | C44: =C37+C43 -> 2876222794 | D44: =D37+D43 -> 4071142387 | E44: =E37+E43 -> 5003605459 | F44: =F37+F43 -> 311661322 | G44: 1296204263 | H44: 1296204263 | I44: 5334659020 | J44: 3637233415 | K44: =K37+K43 -> 3839884673 | L44: 643413260
A45: NET ASSETS | C45: =C26-C44 -> 3647594293 | D45: 3359481819 | E45: 2353883684 | F45: 4294249814 | G45: 4345858119 | H45: 4345858119 | I45: 3374082720 | J45: 972051811 | K45: 4341555518 | L45: 437033673
A46: COMMUNITY WEALTH/EQUITY
A47: Accumulated surplus/(deficit) | B47: 8 | C47: ='SA3'!C174 -> 4103041554 | D47: ='SA3'!D174 -> 3690653717 | E47: ='SA3'!E174 -> 2876893597 | F47: ='SA3'!F174 -> 4390837692 | G47: ='SA3'!G174 -> 4461393419 | H47: ='SA3'!H174 -> 4461393419 | I47: ='SA3'!I174 -> 3615812417 | J47: ='SA3'!J174 -> 973252632 | K47: ='SA3'!K174 -> 4408178397 | L47: ='SA3'!L174 -> 1225023082
A48: Reserves and funds | B48: 9 | C48: ='SA3'!C181 -> 0 | D48: ='SA3'!D181 -> 0 | E48: ='SA3'!E181 -> 0 | F48: ='SA3'!F181 -> 0 | G48: ='SA3'!G181 -> 0 | H48: ='SA3'!H181 -> 0 | I48: ='SA3'!I181 -> 0 | J48: ='SA3'!J181 -> 0 | K48: ='SA3'!K181 -> 0 | L48: ='SA3'!L181 -> 0
A49: Other
A50: TOTAL COMMUNITY WEALTH/EQUITY | B50: 10 | C50: =SUM(C47:C49) -> 4103041554 | D50: =SUM(D47:D49) -> 3690653717 | E50: 2876893597 | F50: 4390837692 | G50: 4461393419 | H50: 4461393419 | I50: 3615812417 | J50: 973252632 | K50: 4408178397 | L50: 1225023082
A51: =head27a -> References
A52: 1. Detail breakdown in Table SA3 for Trade receivables from Exchange and Non-exchange transactions
A53: 2. Include completed low cost housing to be transferred to beneficiaries within 12 months detail provided in Table SA3
A54: 3. Include 'Construction-work-in-progress' (disclosed separately in annual financial statements) detail in SA3
A55: 4. Detail breakdown in Table SA3.
A56: 5. Detail breakdown in Table SA3.
A57: 6. Detail breakdown in Table SA3.
A58: 7 Detail breakdown in Table SA3.
A59: 8. Detail breakdown in Table SA3.
A60: 9. Detail breakdown in Table SA3. Includes reserves to be funded by statute.
A61: 10. Net assets must balance with Total Community Wealth/Equity

Sheet A7-CFlow
A1: =muni&" - "&Approve7 -> NW403 City Of Matlosana - Table A7 Budgeted Cash Flows
A2: =desc -> Description | B2: =head27 -> Ref | C2: =head1b -> 2020/21 | D2: =head1A -> 2021/22 | E2: =Head1 -> 2022/23 | F2: =Head2 -> Current Year 2023/24 | J2: =Head3 -> 2024/25 Medium Term Revenue & Expenditure Framework
A3: R thousand | C3: =Head5 -> Audited Outcome | D3: =Head5 -> Audited Outcome | E3: =Head5 -> Audited Outcome | F3: =Head6 -> Original Budget | G3: =Head7 -> Adjusted Budget | H3: =Head8 -> Full Year Forecast | I3: =Head5b -> Pre-audit outcome | J3: =Head9 -> Budget Year 2024/25 | K3: =Head10 -> Budget Year +1 2025/26 | L3: =Head11 -> Budget Year +2 2026/27
A4: CASH FLOW FROM OPERATING ACTIVITIES
A5: Receipts
A6: Property rates | C6: 2626967525 | D6: 419718038.6 | E6: 340348238.4 | F6: 448860933 | G6: 327602680 | H6: 327602680 | I6: 400271340.8 | J6: ='SA30'!N5 -> 385894835 | K6: ='SA30'!O5 -> 527147850 | L6: ='SA30'!P5 -> 615868951
A7: Service charges | C7: 908957464.6 | D7: 1351237157 | E7: 1056633640 | F7: 1868567542 | G7: 1266062338 | H7: 1266062338 | I7: 1014242398 | J7: ='SA30'!N6+'SA30'!N7+'SA30'!N8+'SA30'!N9 -> 1527561609 | K7: ='SA30'!O6+'SA30'!O7+'SA30'!O8+'SA30'!O9 -> 1843649362 | L7: ='SA30'!P6+'SA30'!P7+'SA30'!P8+'SA30'!P9 -> 2185584864
A8: Other revenue | C8: 1475215511 | D8: 3785550518 | E8: 3341579200 | F8: 107953910 | G8: 80543259 | H8: 80543259 | I8: 2571280894 | J8: ='SA30'!N11+'SA30'!N15+'SA30'!N16+'SA30'!N17+'SA30'!N19+'SA30'!N29 -> 184420538 | K8: ='SA30'!O11+'SA30'!O15+'SA30'!O16+'SA30'!O17+'SA30'!O19+'SA30'!O29 -> 122530657 | L8: ='SA30'!P11+'SA30'!P15+'SA30'!P16+'SA30'!P17+'SA30'!P19+'SA30'!P29 -> 128840923
A9: Transfers and Subsidies - Operational | B9: 1 | C9: 0 | D9: 479886000 | E9: 554938807 | F9: 611134000 | G9: 610701000 | H9: 610701000 | I9: 595525000 | J9: ='SA30'!N18 -> 657797200 | K9: ='SA30'!O18 -> 698315002 | L9: ='SA30'!P18 -> 741650000
A10: Transfers and Subsidies - Capital | B10: 1 | C10: 0 | D10: 170551000 | E10: 150412000 | F10: 197256001 | G10: 177016001 | H10: 177016001 | I10: 172541000 | J10: ='SA30'!N23+'SA30'!N24 -> 186249799 | K10: ='SA30'!O23+'SA30'!O24 -> 197523999 | L10: ='SA30'!P23+'SA30'!P24 -> 225287000
A11: Interest | C11: 4448019.23 | D11: -56609.54 | E11: 1066635.75 | F11: 9760918 | G11: 9760918 | H11: 9760918 | I11: -401251.5 | J11: ='SA30'!N12+'SA30'!N13 -> 10239203 | K11: ='SA30'!O12+'SA30'!O13 -> 10740924 | L11: ='SA30'!P12+'SA30'!P13 -> 11235006
A12: Dividends | J12: ='SA30'!N14 -> 0 | K12: ='SA30'!O14 -> 0 | L12: ='SA30'!P14 -> 0
A13: Payments
A14: Suppliers and employees | C14: -3144902562 | D14: -4054823250 | E14: -3753555089 | F14: -3025072175 | G14: -2482709990 | H14: -2482709990 | I14: -2365243645 | J14: =-('SA30'!N35+'SA30'!N36+'SA30'!N38+'SA30'!N39+'SA30'!N40+'SA30'!N41+'SA30'!N44+'SA30'!N50) -> -3071220494 | K14: =-('SA30'!O35+'SA30'!O36+'SA30'!O38+'SA30'!O39+'SA30'!O40+'SA30'!O41+'SA30'!O44+'SA30'!O50) -> -3419513015 | L14: =-('SA30'!P35+'SA30'!P36+'SA30'!P38+'SA30'!P39+'SA30'!P40+'SA30'!P41+'SA30'!P44+'SA30'!P50) -> -3679466885
A15: Interest | J15: =-('SA30'!N37) -> 0 | K15: =-('SA30'!O37) -> 0 | L15: =-('SA30'!P37) -> 0
A16: Transfers and Subsidies | B16: 1 | J16: =-('SA30'!N42+'SA30'!N43) -> 0 | K16: =-('SA30'!O42+'SA30'!O43) -> 0 | L16: =-('SA30'!P42+'SA30'!P43) -> 0
A17: NET CASH FROM/(USED) OPERATING ACTIVITIES | C17: =SUM(C6:C12)+SUM(C14:C16) -> 1870685958 | D17: =SUM(D6:D12)+SUM(D14:D16) -> 2152062854 | E17: 1691423431 | F17: 218461129 | G17: -11023794 | H17: -11023794 | I17: =SUM(I6:I12)+SUM(I14:I16) -> 2388215736 | J17: -119057310 | K17: -19605221 | L17: 228999859
A18: CASH FLOWS FROM INVESTING ACTIVITIES
A19: Receipts
A20: Proceeds on disposal of PPE | J20: ='SA30'!N25 -> 0 | K20: ='SA30'!O25 -> 0 | L20: ='SA30'!P25 -> 0
A22: Decrease (increase) in non-current receivables | C22: 0 | D22: 0 | E22: 0 | F22: 0 | G22: 0 | H22: 0 | I22: 0 | J22: ='SA30'!N30 -> 0 | K22: ='SA30'!O30 -> 0 | L22: ='SA30'!P30 -> 0
A23: Decrease (increase) in non-current investments | J23: ='SA30'!N31 -> 0 | K23: ='SA30'!O31 -> 0 | L23: ='SA30'!P31 -> 0
A24: Payments
A25: Capital assets | C25: -140342184.1 | D25: -152540817.6 | E25: -83951958.14 | F25: -231469401 | G25: -216856548 | H25: -216856548 | I25: -108128757.8 | J25: =-('SA30'!N48) -> -236249799 | K25: =-('SA30'!O48) -> -197524000 | L25: =-('SA30'!P48) -> -225286999
A26: NET CASH FROM/(USED) INVESTING ACTIVITIES | C26: =+C20+C22+C23+C25 -> -140342184.1 | D26: =+D20+D22+D23+D25 -> -152540817.6 | E26: -83951958.14 | F26: -231469401 | G26: -216856548 | H26: -216856548 | I26: -108128757.8 | J26: -236249799 | K26: -197524000 | L26: -225286999
A28: CASH FLOWS FROM FINANCING ACTIVITIES
A29: Receipts
A30: Short term loans | J30: ='SA30'!N26 -> 0 | K30: ='SA30'!O26 -> 0 | L30: ='SA30'!P26 -> 0
A31: Borrowing long term/refinancing | J31: ='SA30'!N27 -> 0 | K31: ='SA30'!O27 -> 0 | L31: ='SA30'!P27 -> 0
A32: Increase (decrease) in consumer deposits | C32: 0 | D32: 0 | E32: 0 | F32: 2500000 | G32: 2500000 | H32: 2500000 | I32: 864648.31 | J32: ='SA30'!N28 -> -2500000 | K32: ='SA30'!O28 -> 475000 | L32: ='SA30'!P28 -> -2530000
A33: Payments
A34: Repayment of borrowing | C34: 0 | D34: 0 | E34: 0 | F34: -4800000 | G34: -4800000 | H34: -4800000 | I34: 0 | J34: =-('SA30'!N49) -> -4800000 | K34: =-('SA30'!O49) -> -1200000 | L34: =-('SA30'!P49) -> 0
A35: NET CASH FROM/(USED) FINANCING ACTIVITIES | C35: =SUM(C30:C32)+C34 -> 0 | D35: =SUM(D30:D32)+D34 -> 0 | E35: 0 | F35: -2300000 | G35: -2300000 | H35: -2300000 | I35: 864648.31 | J35: -7300000 | K35: -725000 | L35: -2530000
A37: NET INCREASE/ (DECREASE) IN CASH HELD | C37: =C17+C26+C35 -> 1730343774 | D37: 1999522037 | E37: 1607471473 | F37: -15308272 | G37: -230180342 | H37: -230180342 | I37: 2280951627 | J37: -362607109 | K37: -217854221 | L37: 1182860
A38: Cash/cash equivalents at the year begin: | B38: 2 | C38: -136386341.2 | D38: -195401873.4 | E38: 224921256.7 | F38: 213000000 | G38: 305678876 | H38: 305678876 | I38: 0 | J38: ='SA30'!N54 -> 92678877 | K38: =J39 -> -269928232 | L38: =K39 -> -487782453
A39: Cash/cash equivalents at the year end: | B39: 2 | C39: =C37+C38 -> 1593957432 | D39: =D37+D38 -> 1804120163 | E39: =E37+E38 -> 1832392729 | F39: =F37+F38 -> 197691728 | G39: 75498534 | H39: 75498534 | I39: 2280951627 | J39: -269928232 | K39: -487782453 | L39: -486599593
A40: =head27a -> References
A41: 1. Local/District municipalities to include transfers from/to District/Local Municipalities
A42: 2. Cash equivalents includes investments with maturities of 3 months or less
A43: 3. The MTREF is populated directly from SA30.
A44: Total receipts | C44: =SUM(C6:C12)+SUM(C20:C22) -> 5015588520 | D44: 6206886104 | E44: 5444978520 | F44: 3243533304 | G44: 2471686196 | H44: 2471686196 | I44: 4753459382 | J44: 2952163184 | K44: 3399907794 | L44: 3908466744
A45: Total payments | C45: =SUM(C14:C16)+C25 -> -3285244746 | D45: -4207364068 | E45: -3837507047 | F45: -3256541576 | G45: -2699566538 | H45: -2699566538 | I45: -2473372403 | J45: -3307470293 | K45: -3617037015 | L45: -3904753884
C46: =C44+C45 -> 1730343774 | D46: =D44+D45 -> 1999522037 | E46: 1607471473 | F46: -13008272 | G46: -227880342 | H46: -227880342 | I46: 2280086978 | J46: -355307109 | K46: -217129221 | L46: 3712860
A47: Borrowings & investments & c.deposits | C47: =C23+C31+C32 -> 0 | D47: =D23+D31+D32 -> 0 | E47: 0 | F47: 2500000 | G47: 2500000 | H47: 2500000 | I47: 864648.31 | J47: -2500000 | K47: 475000 | L47: -2530000
A48: =A34 -> Repayment of borrowing | C48: =C34 -> 0 | D48: =D34 -> 0 | E48: 0 | F48: -4800000 | G48: -4800000 | H48: -4800000 | I48: =I34 -> 0 | J48: -4800000 | K48: -1200000 | L48: 0
C49: =C46+C47+C48 -> 1730343774 | D49: =D46+D47+D48 -> 1999522037 | E49: 1607471473 | F49: -15308272 | G49: -230180342 | H49: -230180342 | I49: 2280951627 | J49: -362607109 | K49: -217854221 | L49: 1182860
C50: =C37-C49 -> 0 | D50: 0 | E50: 0 | F50: 0 | G50: 0 | H50: 0 | I50: 0 | J50: 0 | K50: 0 | L50: 0

Sheet A8-ResRecon
A1: =muni&" - "&Approve8 -> NW403 City Of Matlosana - Table A8 Cash backed reserves/accumulated surplus reconciliation
A2: =desc -> Description | B2: =head27 -> Ref | C2: =head1b -> 2020/21 | D2: =head1A -> 2021/22 | E2: =Head1 -> 2022/23 | F2: =Head2 -> Current Year 2023/24 | J2: =Head3 -> 2024/25 Medium Term Revenue & Expenditure Framework
A3: R thousand | C3: =Head5 -> Audited Outcome | D3: =Head5 -> Audited Outcome | E3: =Head5 -> Audited Outcome | F3: =Head6 -> Original Budget | G3: =Head7 -> Adjusted Budget | H3: =Head8 -> Full Year Forecast | I3: =Head5b -> Pre-audit outcome | J3: =Head9 -> Budget Year 2024/25 | K3: =Head10 -> Budget Year +1 2025/26 | L3: =Head11 -> Budget Year +2 2026/27
A4: Cash and investments available
A5: =LEFT('A7-CFlow'!A39,37) -> Cash/cash equivalents at the year end | B5: 1 | C5: ='A7-CFlow'!C39 -> 1593957432 | D5: ='A7-CFlow'!D39 -> 1804120163 | E5: ='A7-CFlow'!E39 -> 1832392729 | F5: ='A7-CFlow'!F39 -> 197691728 | G5: ='A7-CFlow'!G39 -> 75498534 | H5: ='A7-CFlow'!H39 -> 75498534 | I5: ='A7-CFlow'!I39 -> 2280951627 | J5: ='A7-CFlow'!J39 -> -269928232 | K5: ='A7-CFlow'!K39 -> -487782453 | L5: ='A7-CFlow'!L39 -> -486599593
A6: Other current investments > 90 days | C6: ='A6-FinPos'!C6-'A6-FinPos'!C29-'A8-ResRecon'!C5 -> -1789359306 | D6: ='A6-FinPos'!D6-'A6-FinPos'!D29-'A8-ResRecon'!D5 -> -1579198906 | E6: ='A6-FinPos'!E6-'A6-FinPos'!E29-'A8-ResRecon'!E5 -> -1727619470 | F6: ='A6-FinPos'!F6-'A6-FinPos'!F29-'A8-ResRecon'!F5 -> 0 | G6: ='A6-FinPos'!G6-'A6-FinPos'!G29-'A8-ResRecon'!G5 -> 447394774 | H6: ='A6-FinPos'!H6-'A6-FinPos'!H29-'A8-ResRecon'!H5 -> 447394774 | I6: ='A6-FinPos'!I6-'A6-FinPos'!I29-'A8-ResRecon'!I5 -> -1782748513 | J6: ='A6-FinPos'!J6-'A6-FinPos'!J29-'A8-ResRecon'!J5 -> -183749799 | K6: ='A6-FinPos'!K6-'A6-FinPos'!K29-'A8-ResRecon'!K5 -> 3953630276 | L6: ='A6-FinPos'!L6-'A6-FinPos'!L29-'A8-ResRecon'!L5 -> 4169779337
A7: Non current Investments | B7: 1 | C7: ='A6-FinPos'!C15 -> 0 | D7: ='A6-FinPos'!D15 -> 0 | E7: ='A6-FinPos'!E15 -> 0 | F7: ='A6-FinPos'!F15 -> 0 | G7: ='A6-FinPos'!G15 -> 0 | H7: ='A6-FinPos'!H15 -> 0 | I7: ='A6-FinPos'!I15 -> 0 | J7: ='A6-FinPos'!J15 -> 0 | K7: ='A6-FinPos'!K15 -> 0 | L7: ='A6-FinPos'!L15 -> 0
A8: Cash and investments available: | C8: =SUM(C5:C7) -> -195401873.4 | D8: =SUM(D5:D7) -> 224921256.7 | E8: 104773259.4 | F8: 197691728 | G8: 522893308 | H8: 522893308 | I8: 498203114 | J8: -453678031 | K8: 3465847823 | L8: 3683179744
A10: Application of cash and investments
A11: Unspent conditional transfers | C11: ='SA3'!C141 -> 42709421.04 | D11: ='SA3'!D141 -> 23273213.09 | E11: ='SA3'!E141 -> 56274735.47 | F11: ='SA3'!F141 -> 93815683 | G11: ='SA3'!G141 -> 73142683 | H11: ='SA3'!H141 -> 73142683 | I11: ='SA3'!I141 -> 123923949.2 | J11: ='SA3'!J141 -> 42907407 | K11: ='SA3'!K141 -> 50785223 | L11: ='SA3'!L141 -> 239340000
A12: Unspent borrowing
A13: Statutory requirements | B13: 2 | C13: -182654104.2 | D13: -206253939.1 | E13: -301866136.6 | F13: -195040276 | G13: -195040276 | H13: -195040276 | I13: -130013816.2 | J13: -195040276 | K13: -196990679 | L13: 0
A14: Other working capital requirements | B14: 3 | C14: =-C34 -> 1094086598 | D14: =-D34 -> 1952029193 | E14: 2927581315 | F14: =-F34 -> -531441834 | G14: 263543107 | H14: 263543107 | I14: 2158006392 | J14: 2140431535 | K14: 2415816232 | L14: 2823903260
A15: Other provisions | C15: 533021459.1 | D15: 563481572.2 | E15: 554291304.3 | F15: 572370777 | G15: 572370777 | H15: 572370777 | I15: 554491400.9 | J15: 587370777 | K15: 593464485 | L15: -22000000
A16: Long term investments committed | B16: 4 | C16: =C44 -> 0 | D16: =D44 -> 0 | E16: 0 | F16: 0 | G16: 0 | H16: 0 | I16: 0 | J16: 0 | K16: 0 | L16: 0
A17: Reserves to be backed by cash/investments | B17: 5
A18: Total Application of cash and investments: | C18: =SUM(C11:C17) -> 1487163374 | D18: =SUM(D11:D17) -> 2332530039 | E18: 3236281219 | F18: -60295650 | G18: 714016291 | H18: 714016291 | I18: 2706407926 | J18: 2575669443 | K18: 2863075261 | L18: 3041243260
A19: Surplus(shortfall) - Excluding Non-Current Creditors Trf to Debt Relief Benefits | C19: =C8-C18 -> -1682565247 | D19: =D8-D18 -> -2107608782 | E19: -3131507959 | F19: 257987378 | G19: -191122983 | H19: -191122983 | I19: -2208204812 | J19: -3029347474 | K19: 602772562 | L19: 641936484
A20: Creditors transferred to Debt Relief - Non-Current portion | C20: ='SA3'!C155 -> 0 | D20: ='SA3'!D155 -> 0 | E20: ='SA3'!E155 -> 0 | F20: ='SA3'!F155 -> 0 | G20: ='SA3'!G155 -> 0 | H20: ='SA3'!H155 -> 0 | I20: ='SA3'!I155 -> 0 | J20: ='SA3'!J155 -> 0 | K20: ='SA3'!K155 -> 0 | L20: ='SA3'!L155 -> 0
A21: Surplus(shortfall) - Including Non-Current Creditors Trf to Debt Relief Benefits | C21: =SUM(C19:C20) -> -1682565247 | D21: =SUM(D19:D20) -> -2107608782 | E21: -3131507959 | F21: 257987378 | G21: -191122983 | H21: -191122983 | I21: -2208204812 | J21: -3029347474 | K21: 602772562 | L21: 641936484
A22: =head27a -> References
A23: 1. Must reconcile with Budgeted Cash Flows
A24: 2. For example: VAT, taxation
A25: 3. Council approval for policy required - include sufficient working capital (e.g. allowing for a % of current debtors > 90 days as uncollectable)
A26: 4. For example: sinking fund requirements for borrowing
A27: 5. Council approval required for each reserve created and basis of cash backing of reserves - Total Reserves to be backed by cash/investments excl Valuation reserve
A30: Other working capital requirements
A31: Debtors | C31: =IF(ISERROR(ROUND(C37*C38,-3)),0,(ROUND(C37*C38,-3))) -> 545100000 | D31: =IF(ISERROR(ROUND(D37*D38,-3)),0,(ROUND(D37*D38,-3))) -> 689862000 | E31: 442673000 | F31: 1013000 | G31: 211244000 | H31: 211244000 | I31: 1202430000 | J31: 688120000 | K31: 595983000 | L31: -2400360000
A33: Creditors due | C33: ='SA3'!C139+'SA3'!C140 -> 1639186598 | D33: ='SA3'!D139+'SA3'!D140 -> 2641891193 | E33: ='SA3'!E139+'SA3'!E140 -> 3370254315 | F33: ='SA3'!F139+'SA3'!F140 -> -530428834 | G33: ='SA3'!G139+'SA3'!G140 -> 474787107 | H33: ='SA3'!H139+'SA3'!H140 -> 474787107 | I33: ='SA3'!I139+'SA3'!I140 -> 3360436392 | J33: ='SA3'!J139+'SA3'!J140 -> 2828551535 | K33: ='SA3'!K139+'SA3'!K140 -> 3011799232 | L33: ='SA3'!L139+'SA3'!L140 -> 423543260
A34: Total | C34: =C31-C33 -> -1094086598 | D34: =D31-D33 -> -1952029193 | E34: -2927581315 | F34: 531441834 | G34: -263543107 | H34: -263543107 | I34: -2158006392 | J34: -2140431535 | K34: -2415816232 | L34: -2823903260
A36: Debtors collection assumptions
A37: Balance outstanding - debtors | C37: ='A6-FinPos'!C7+'A6-FinPos'!C8+'A6-FinPos'!C9+'A6-FinPos'!C22+'A6-FinPos'!C23 -> 523117176.3 | D37: ='A6-FinPos'!D7+'A6-FinPos'!D8+'A6-FinPos'!D9+'A6-FinPos'!D22+'A6-FinPos'!D23 -> 616137077.4 | E37: ='A6-FinPos'!E7+'A6-FinPos'!E8+'A6-FinPos'!E9+'A6-FinPos'!E22+'A6-FinPos'!E23 -> 475604645.4 | F37: ='A6-FinPos'!F7+'A6-FinPos'!F8+'A6-FinPos'!F9+'A6-FinPos'!F22+'A6-FinPos'!F23 -> 2599378 | G37: ='A6-FinPos'!G7+'A6-FinPos'!G8+'A6-FinPos'!G9+'A6-FinPos'!G22+'A6-FinPos'!G23 -> 728161897 | H37: ='A6-FinPos'!H7+'A6-FinPos'!H8+'A6-FinPos'!H9+'A6-FinPos'!H22+'A6-FinPos'!H23 -> 728161897 | I37: ='A6-FinPos'!I7+'A6-FinPos'!I8+'A6-FinPos'!I9+'A6-FinPos'!I22+'A6-FinPos'!I23 -> 1524599795 | J37: ='A6-FinPos'!J7+'A6-FinPos'!J8+'A6-FinPos'!J9+'A6-FinPos'!J22+'A6-FinPos'!J23 -> 991897574 | K37: ='A6-FinPos'!K7+'A6-FinPos'!K8+'A6-FinPos'!K9+'A6-FinPos'!K22+'A6-FinPos'!K23 -> 755220944 | L37: ='A6-FinPos'!L7+'A6-FinPos'!L8+'A6-FinPos'!L9+'A6-FinPos'!L22+'A6-FinPos'!L23 -> -2707176141
A38: Estimate of debtors collection rate | C38: =IF(ISERROR('SA10'!D10),0,('SA10'!D10)) -> 1.042021895 | D38: =IF(ISERROR('SA10'!E10),0,('SA10'!E10)) -> 1.119656504 | E38: =IF(ISERROR('SA10'!F10),0,('SA10'!F10)) -> 0.9307584756 | F38: =IF(ISERROR('SA10'!G10),0,('SA10'!G10)) -> 0.389893115 | G38: =IF(ISERROR('SA10'!H10),0,('SA10'!H10)) -> 0.2901057534 | H38: =IF(ISERROR('SA10'!I10),0,('SA10'!I10)) -> 0.2901057534 | I38: =IF(ISERROR('SA10'!J10),0,('SA10'!J10)) -> 0.7886854862 | J38: =IF(ISERROR('SA10'!K10),0,('SA10'!K10)) -> 0.6937408344 | K38: =IF(ISERROR('SA10'!L10),0,('SA10'!L10)) -> 0.789150084 | L38: =IF(ISERROR('SA10'!M10),0,('SA10'!M10)) -> 0.8866655515
K41: `
A42: =A16 -> Long term investments committed
A43: Balance (Insert description; eg sinking fund)
C44: =SUM(C43:C43) -> 0 | D44: 0 | E44: 0 | F44: 0 | G44: 0 | H44: 0 | I44: 0 | J44: 0 | K44: 0 | L44: 0
A45: =A17 -> Reserves to be backed by cash/investments
A46: Housing Development Fund | C46: ='SA3'!C176 -> 0 | D46: ='SA3'!D176 -> 0 | E46: ='SA3'!E176 -> 0 | F46: ='SA3'!F176 -> 0 | G46: ='SA3'!G176 -> 0 | H46: ='SA3'!H176 -> 0 | I46: ='SA3'!I176 -> 0 | J46: ='SA3'!J176 -> 0 | K46: ='SA3'!K176 -> 0 | L46: ='SA3'!L176 -> 0
A47: Capital replacement | C47: ='SA3'!C177 -> 0 | D47: ='SA3'!D177 -> 0 | E47: ='SA3'!E177 -> 0 | F47: ='SA3'!F177 -> 0 | G47: ='SA3'!G177 -> 0 | H47: ='SA3'!H177 -> 0 | I47: ='SA3'!I177 -> 0 | J47: ='SA3'!J177 -> 0 | K47: ='SA3'!K177 -> 0 | L47: ='SA3'!L177 -> 0
A48: Self-insurance | C48: ='SA3'!C178 -> 0 | D48: ='SA3'!D178 -> 0 | E48: ='SA3'!E178 -> 0 | F48: ='SA3'!F178 -> 0 | G48: ='SA3'!G178 -> 0 | H48: ='SA3'!H178 -> 0 | I48: ='SA3'!I178 -> 0 | J48: ='SA3'!J178 -> 0 | K48: ='SA3'!K178 -> 0 | L48: ='SA3'!L178 -> 0
A49: Compensation for Occupational Injuries and Diseases
A50: Employee Benefit reserve
A51: Non-current Provisions reserve
A52: Valuation roll reserve
A53: Investment in associate account
A54: Capitalisation
B55: 6 | C55: =SUM(C46:C54) -> 0 | D55: =SUM(D46:D54) -> 0 | E55: 0 | F55: 0 | G55: 0 | H55: 0 | I55: 0 | J55: 0 | K55: 0 | L55: 0
A56: Note:
A57: 6. Above reserves do not include Revaluation reserve. Revaluation reserve not required to be cash backed

Sheet A9-Asset
A1: =muni&" - "&Approve9 -> NW403 City Of Matlosana - Table A9 Asset Management
A2: =desc -> Description | B2: =head27 -> Ref | C2: =head1b -> 2020/21 | D2: =head1A -> 2021/22 | E2: =Head1 -> 2022/23 | F2: =Head2 -> Current Year 2023/24 | I2: =Head3 -> 2024/25 Medium Term Revenue & Expenditure Framework
A3: R thousand | C3: =Head5 -> Audited Outcome | D3: =Head5 -> Audited Outcome | E3: =Head5 -> Audited Outcome | F3: =Head6 -> Original Budget | G3: =Head7 -> Adjusted Budget | H3: =Head8 -> Full Year Forecast | I3: =Head9 -> Budget Year 2024/25 | J3: =Head10 -> Budget Year +1 2025/26 | K3: =Head11 -> Budget Year +2 2026/27
A4: CAPITAL EXPENDITURE
A5: Total New Assets | B5: 1 | C5: =C15+C18+C19+C22+C25+C26+SUM(C29:C35)+C38 -> 169105011.9 | D5: =D15+D18+D19+D22+D25+D26+SUM(D29:D35)+D38 -> 133379440 | E5: 75010051.89 | F5: 200525637 | G5: 178227820 | H5: 178227820 | I5: 201149603 | J5: 119605797 | K5: 180302257
A6: Roads Infrastructure | C6: =SA34a!C7 -> 49599701.43 | D6: =SA34a!D7 -> 50195002.81 | E6: =SA34a!E7 -> 23808362.07 | F6: =SA34a!F7 -> 43684516 | G6: =SA34a!G7 -> 40631041 | H6: =SA34a!H7 -> 40631041 | I6: =SA34a!I7 -> 12801949 | J6: =SA34a!J7 -> 15730798 | K6: =SA34a!K7 -> 39608740
A7: Storm water Infrastructure | C7: =SA34a!C12 -> 0 | D7: =SA34a!D12 -> 0 | E7: =SA34a!E12 -> 0 | F7: =SA34a!F12 -> 0 | G7: =SA34a!G12 -> 0 | H7: =SA34a!H12 -> 0 | I7: =SA34a!I12 -> 0 | J7: =SA34a!J12 -> 0 | K7: =SA34a!K12 -> 0
A8: Electrical Infrastructure | C8: =SA34a!C16 -> 50705471.25 | D8: =SA34a!D16 -> 20537556.77 | E8: =SA34a!E16 -> 29978448.65 | F8: =SA34a!F16 -> 14200000 | G8: =SA34a!G16 -> 14430725 | H8: =SA34a!H16 -> 14430725 | I8: =SA34a!I16 -> 0 | J8: =SA34a!J16 -> 0 | K8: =SA34a!K16 -> 0
A9: Water Supply Infrastructure | C9: =SA34a!C26 -> 34144823.77 | D9: =SA34a!D26 -> 28398307.77 | E9: =SA34a!E26 -> 8186179.65 | F9: =SA34a!F26 -> 45474798 | G9: =SA34a!G26 -> 39642269 | H9: =SA34a!H26 -> 39642269 | I9: =SA34a!I26 -> 22967749 | J9: =SA34a!J26 -> 11270449 | K9: =SA34a!K26 -> 40621250
A10: Sanitation Infrastructure | C10: =SA34a!C37 -> 22461844.89 | D10: =SA34a!D37 -> 8858272.76 | E10: =SA34a!E37 -> 6583677.91 | F10: =SA34a!F37 -> 39352235 | G10: =SA34a!G37 -> 12567943 | H10: =SA34a!H37 -> 12567943 | I10: =SA34a!I37 -> 61512454 | J10: =SA34a!J37 -> 43000000 | K10: =SA34a!K37 -> 100072267
A11: Solid Waste Infrastructure | C11: =SA34a!C44 -> 0 | D11: =SA34a!D44 -> 0 | E11: =SA34a!E44 -> 3496357.41 | F11: =SA34a!F44 -> 35471188 | G11: =SA34a!G44 -> 24059237 | H11: =SA34a!H44 -> 24059237 | I11: =SA34a!I44 -> 38773866 | J11: =SA34a!J44 -> 16000000 | K11: =SA34a!K44 -> 0
A12: Rail Infrastructure | C12: =SA34a!C52 -> 0 | D12: =SA34a!D52 -> 0 | E12: =SA34a!E52 -> 0 | F12: =SA34a!F52 -> 0 | G12: =SA34a!G52 -> 0 | H12: =SA34a!H52 -> 0 | I12: =SA34a!I52 -> 0 | J12: =SA34a!J52 -> 0 | K12: =SA34a!K52 -> 0
A13: Coastal Infrastructure | C13: =SA34a!C62 -> 0 | D13: =SA34a!D62 -> 0 | E13: =SA34a!E62 -> 0 | F13: =SA34a!F62 -> 0 | G13: =SA34a!G62 -> 0 | H13: =SA34a!H62 -> 0 | I13: =SA34a!I62 -> 0 | J13: =SA34a!J62 -> 0 | K13: =SA34a!K62 -> 0
A14: Information and Communication Infrastructure | C14: =SA34a!C68 -> 0 | D14: =SA34a!D68 -> 0 | E14: =SA34a!E68 -> 0 | F14: =SA34a!F68 -> 0 | G14: =SA34a!G68 -> 0 | H14: =SA34a!H68 -> 0 | I14: =SA34a!I68 -> 0 | J14: =SA34a!J68 -> 0 | K14: =SA34a!K68 -> 0
A15: Infrastructure | C15: =SUM(C6:C14) -> 156911841.3 | D15: =SUM(D6:D14) -> 107989140.1 | E15: 72053025.69 | F15: 178182737 | G15: 131331215 | H15: 131331215 | I15: 136056018 | J15: 86001247 | K15: 180302257
A16: Community Facilities | C16: =SA34a!C75 -> 0 | D16: =SA34a!D75 -> 0 | E16: =SA34a!E75 -> 0 | F16: =SA34a!F75 -> 0 | G16: =SA34a!G75 -> 0 | H16: =SA34a!H75 -> 0 | I16: =SA34a!I75 -> 0 | J16: =SA34a!J75 -> 0 | K16: =SA34a!K75 -> 0
A17: Sport and Recreation Facilities | C17: =SA34a!C98 -> 12193170.53 | D17: =SA34a!D98 -> 25390299.85 | E17: =SA34a!E98 -> 2949852.28 | F17: =SA34a!F98 -> 7000000 | G17: =SA34a!G98 -> 8906488 | H17: =SA34a!H98 -> 8906488 | I17: =SA34a!I98 -> 15093585 | J17: =SA34a!J98 -> 20604550 | K17: =SA34a!K98 -> 0
A18: Community Assets | C18: =SUM(C16:C17) -> 12193170.53 | D18: =SUM(D16:D17) -> 25390299.85 | E18: 2949852.28 | F18: 7000000 | G18: 8906488 | H18: 8906488 | I18: 15093585 | J18: 20604550 | K18: 0
A19: Heritage Assets | C19: =SA34a!C103 -> 0 | D19: =SA34a!D103 -> 0 | E19: =SA34a!E103 -> 0 | F19: =SA34a!F103 -> 0 | G19: =SA34a!G103 -> 0 | H19: =SA34a!H103 -> 0 | I19: =SA34a!I103 -> 0 | J19: =SA34a!J103 -> 0 | K19: =SA34a!K103 -> 0
A20: Revenue Generating | C20: =SA34a!C111 -> 0 | D20: =SA34a!D111 -> 0 | E20: =SA34a!E111 -> 0 | F20: =SA34a!F111 -> 0 | G20: =SA34a!G111 -> 0 | H20: =SA34a!H111 -> 0 | I20: =SA34a!I111 -> 0 | J20: =SA34a!J111 -> 0 | K20: =SA34a!K111 -> 0
A21: Non-revenue Generating | C21: =SA34a!C114 -> 0 | D21: =SA34a!D114 -> 0 | E21: =SA34a!E114 -> 0 | F21: =SA34a!F114 -> 0 | G21: =SA34a!G114 -> 0 | H21: =SA34a!H114 -> 0 | I21: =SA34a!I114 -> 0 | J21: =SA34a!J114 -> 0 | K21: =SA34a!K114 -> 0
A22: Investment properties | C22: =SUM(C20:C21) -> 0 | D22: =SUM(D20:D21) -> 0 | E22: 0 | F22: 0 | G22: 0 | H22: 0 | I22: 0 | J22: 0 | K22: 0
A23: Operational Buildings | C23: =SA34a!C119 -> 0 | D23: =SA34a!D119 -> 0 | E23: =SA34a!E119 -> 0 | F23: =SA34a!F119 -> 0 | G23: =SA34a!G119 -> 0 | H23: =SA34a!H119 -> 0 | I23: =SA34a!I119 -> 0 | J23: =SA34a!J119 -> 0 | K23: =SA34a!K119 -> 0
A24: Housing | C24: =SA34a!C131 -> 0 | D24: =SA34a!D131 -> 0 | E24: =SA34a!E131 -> 0 | F24: =SA34a!F131 -> 0 | G24: =SA34a!G131 -> 0 | H24: =SA34a!H131 -> 0 | I24: =SA34a!I131 -> 0 | J24: =SA34a!J131 -> 0 | K24: =SA34a!K131 -> 0
A25: Other Assets | C25: =SUM(C23:C24) -> 0 | D25: =SUM(D23:D24) -> 0 | E25: 0 | F25: 0 | G25: 0 | H25: 0 | I25: 0 | J25: 0 | K25: 0
A26: Biological or Cultivated Assets | C26: =SA34a!C136 -> 0 | D26: =SA34a!D136 -> 0 | E26: =SA34a!E136 -> 0 | F26: =SA34a!F136 -> 0 | G26: =SA34a!G136 -> 0 | H26: =SA34a!H136 -> 0 | I26: =SA34a!I136 -> 0 | J26: =SA34a!J136 -> 0 | K26: =SA34a!K136 -> 0
A27: Servitudes | C27: =SA34a!C140 -> 0 | D27: =SA34a!D140 -> 0 | E27: =SA34a!E140 -> 0 | F27: =SA34a!F140 -> 0 | G27: =SA34a!G140 -> 0 | H27: =SA34a!H140 -> 0 | I27: =SA34a!I140 -> 0 | J27: =SA34a!J140 -> 0 | K27: =SA34a!K140 -> 0
A28: Licences and Rights | C28: =SA34a!C141 -> 0 | D28: =SA34a!D141 -> 0 | E28: =SA34a!E141 -> 0 | F28: =SA34a!F141 -> 0 | G28: =SA34a!G141 -> 0 | H28: =SA34a!H141 -> 0 | I28: =SA34a!I141 -> 0 | J28: =SA34a!J141 -> 0 | K28: =SA34a!K141 -> 0
A29: Intangible Assets | C29: =SUM(C27:C28) -> 0 | D29: =SUM(D27:D28) -> 0 | E29: 0 | F29: 0 | G29: 0 | H29: 0 | I29: 0 | J29: 0 | K29: 0
A30: Computer Equipment | C30: =SA34a!C149 -> 0 | D30: =SA34a!D149 -> 0 | E30: =SA34a!E149 -> 0 | F30: =SA34a!F149 -> 8000000 | G30: =SA34a!G149 -> 5600000 | H30: =SA34a!H149 -> 5600000 | I30: =SA34a!I149 -> 3000000 | J30: =SA34a!J149 -> 0 | K30: =SA34a!K149 -> 0
A31: Furniture and Office Equipment | C31: =SA34a!C152 -> 0 | D31: =SA34a!D152 -> 0 | E31: =SA34a!E152 -> 0.01 | F31: =SA34a!F152 -> 1800000 | G31: =SA34a!G152 -> 800000 | H31: =SA34a!H152 -> 800000 | I31: =SA34a!I152 -> 2000000 | J31: =SA34a!J152 -> 0 | K31: =SA34a!K152 -> 0
A32: Machinery and Equipment | C32: =SA34a!C155 -> 0 | D32: =SA34a!D155 -> 0 | E32: =SA34a!E155 -> 0 | F32: =SA34a!F155 -> 1000000 | G32: =SA34a!G155 -> 500000 | H32: =SA34a!H155 -> 500000 | I32: =SA34a!I155 -> 5000000 | J32: =SA34a!J155 -> 0 | K32: =SA34a!K155 -> 0
A33: Transport Assets | C33: =SA34a!C158 -> 0 | D33: =SA34a!D158 -> 0 | E33: =SA34a!E158 -> 7173.91 | F33: =SA34a!F158 -> 4542900 | G33: =SA34a!G158 -> 31090117 | H33: =SA34a!H158 -> 31090117 | I33: =SA34a!I158 -> 40000000 | J33: =SA34a!J158 -> 13000000 | K33: =SA34a!K158 -> 0
A34: Land | C34: =SA34a!C161 -> 0 | D34: =SA34a!D161 -> 0 | E34: =SA34a!E161 -> 0 | F34: =SA34a!F161 -> 0 | G34: =SA34a!G161 -> 0 | H34: =SA34a!H161 -> 0 | I34: =SA34a!I161 -> 0 | J34: =SA34a!J161 -> 0 | K34: =SA34a!K161 -> 0
A35: Zoo's, Marine and Non-biological Animals | C35: =SA34a!C164 -> 0 | D35: =SA34a!D164 -> 0 | E35: =SA34a!E164 -> 0 | F35: =SA34a!F164 -> 0 | G35: =SA34a!G164 -> 0 | H35: =SA34a!H164 -> 0 | I35: =SA34a!I164 -> 0 | J35: =SA34a!J164 -> 0 | K35: =SA34a!K164 -> 0
A36: Mature | C36: =SA34a!C168 -> 0 | D36: =SA34a!D168 -> 0 | E36: =SA34a!E168 -> 0 | F36: =SA34a!F168 -> 0 | G36: =SA34a!G168 -> 0 | H36: =SA34a!H168 -> 0 | I36: =SA34a!I168 -> 0 | J36: =SA34a!J168 -> 0 | K36: =SA34a!K168 -> 0
A37: Immature | C37: =SA34a!C171 -> 0 | D37: =SA34a!D171 -> 0 | E37: =SA34a!E171 -> 0 | F37: =SA34a!F171 -> 0 | G37: =SA34a!G171 -> 0 | H37: =SA34a!H171 -> 0 | I37: =SA34a!I171 -> 0 | J37: =SA34a!J171 -> 0 | K37: =SA34a!K171 -> 0
A38: Living Resources | C38: =SUM(C36:C37) -> 0 | D38: =SUM(D36:D37) -> 0 | E38: 0 | F38: 0 | G38: 0 | H38: 0 | I38: 0 | J38: 0 | K38: 0
A40: Total Renewal of Existing Assets | B40: 2 | C40: =C50+C53+C54+C57+C60+C61+SUM(C64:C70)+C73 -> 16241578.28 | D40: =D50+D53+D54+D57+D60+D61+SUM(D64:D70)+D73 -> 5483309.18 | E40: 3054709.57 | F40: 19525894 | G40: 13206178 | H40: 13206178 | I40: 17612652 | J40: 67918203 | K40: 32508689
A41: Roads Infrastructure | C41: =SA34b!C7 -> 0 | D41: =SA34b!D7 -> 0 | E41: =SA34b!E7 -> 0 | F41: =SA34b!F7 -> 0 | G41: =SA34b!G7 -> 0 | H41: =SA34b!H7 -> 0 | I41: =SA34b!I7 -> 0 | J41: =SA34b!J7 -> 0 | K41: =SA34b!K7 -> 0
A42: Storm water Infrastructure | C42: =SA34b!C12 -> 0 | D42: =SA34b!D12 -> 0 | E42: =SA34b!E12 -> 0 | F42: =SA34b!F12 -> 0 | G42: =SA34b!G12 -> 0 | H42: =SA34b!H12 -> 0 | I42: =SA34b!I12 -> 0 | J42: =SA34b!J12 -> 0 | K42: =SA34b!K12 -> 0
A43: Electrical Infrastructure | C43: =SA34b!C16 -> 0 | D43: =SA34b!D16 -> 0 | E43: =SA34b!E16 -> 3054709.57 | F43: =SA34b!F16 -> 5206177 | G43: =SA34b!G16 -> 5206178 | H43: =SA34b!H16 -> 5206178 | I43: =SA34b!I16 -> 5112652 | J43: =SA34b!J16 -> 12918203 | K43: =SA34b!K16 -> 14877305
A44: Water Supply Infrastructure | C44: =SA34b!C26 -> 0 | D44: =SA34b!D26 -> 0 | E44: =SA34b!E26 -> 0 | F44: =SA34b!F26 -> 0 | G44: =SA34b!G26 -> 0 | H44: =SA34b!H26 -> 0 | I44: =SA34b!I26 -> 0 | J44: =SA34b!J26 -> 0 | K44: =SA34b!K26 -> 0
A45: Sanitation Infrastructure | C45: =SA34b!C37 -> 16241578.28 | D45: =SA34b!D37 -> 5483309.18 | E45: =SA34b!E37 -> 0 | F45: =SA34b!F37 -> 14319717 | G45: =SA34b!G37 -> 8000000 | H45: =SA34b!H37 -> 8000000 | I45: =SA34b!I37 -> 12500000 | J45: =SA34b!J37 -> 55000000 | K45: =SA34b!K37 -> 17631384
A46: Solid Waste Infrastructure | C46: =SA34b!C44 -> 0 | D46: =SA34b!D44 -> 0 | E46: =SA34b!E44 -> 0 | F46: =SA34b!F44 -> 0 | G46: =SA34b!G44 -> 0 | H46: =SA34b!H44 -> 0 | I46: =SA34b!I44 -> 0 | J46: =SA34b!J44 -> 0 | K46: =SA34b!K44 -> 0
A47: Rail Infrastructure | C47: =SA34b!C52 -> 0 | D47: =SA34b!D52 -> 0 | E47: =SA34b!E52 -> 0 | F47: =SA34b!F52 -> 0 | G47: =SA34b!G52 -> 0 | H47: =SA34b!H52 -> 0 | I47: =SA34b!I52 -> 0 | J47: =SA34b!J52 -> 0 | K47: =SA34b!K52 -> 0
A48: Coastal Infrastructure | C48: =SA34b!C62 -> 0 | D48: =SA34b!D62 -> 0 | E48: =SA34b!E62 -> 0 | F48: =SA34b!F62 -> 0 | G48: =SA34b!G62 -> 0 | H48: =SA34b!H62 -> 0 | I48: =SA34b!I62 -> 0 | J48: =SA34b!J62 -> 0 | K48: =SA34b!K62 -> 0
A49: Information and Communication Infrastructure | C49: =SA34b!C68 -> 0 | D49: =SA34b!D68 -> 0 | E49: =SA34b!E68 -> 0 | F49: =SA34b!F68 -> 0 | G49: =SA34b!G68 -> 0 | H49: =SA34b!H68 -> 0 | I49: =SA34b!I68 -> 0 | J49: =SA34b!J68 -> 0 | K49: =SA34b!K68 -> 0
A50: Infrastructure | C50: =SUM(C41:C49) -> 16241578.28 | D50: =SUM(D41:D49) -> 5483309.18 | E50: 3054709.57 | F50: 19525894 | G50: 13206178 | H50: 13206178 | I50: 17612652 | J50: 67918203 | K50: 32508689
A51: Community Facilities | C51: =SA34b!C75 -> 0 | D51: =SA34b!D75 -> 0 | E51: =SA34b!E75 -> 0 | F51: =SA34b!F75 -> 0 | G51: =SA34b!G75 -> 0 | H51: =SA34b!H75 -> 0 | I51: =SA34b!I75 -> 0 | J51: =SA34b!J75 -> 0 | K51: =SA34b!K75 -> 0
A52: Sport and Recreation Facilities | C52: =SA34b!C98 -> 0 | D52: =SA34b!D98 -> 0 | E52: =SA34b!E98 -> 0 | F52: =SA34b!F98 -> 0 | G52: =SA34b!G98 -> 0 | H52: =SA34b!H98 -> 0 | I52: =SA34b!I98 -> 0 | J52: =SA34b!J98 -> 0 | K52: =SA34b!K98 -> 0
A53: Community Assets | C53: =SUM(C51:C52) -> 0 | D53: =SUM(D51:D52) -> 0 | E53: 0 | F53: 0 | G53: 0 | H53: 0 | I53: 0 | J53: 0 | K53: 0
A54: Heritage Assets | C54: =SA34b!C103 -> 0 | D54: =SA34b!D103 -> 0 | E54: =SA34b!E103 -> 0 | F54: =SA34b!F103 -> 0 | G54: =SA34b!G103 -> 0 | H54: =SA34b!H103 -> 0 | I54: =SA34b!I103 -> 0 | J54: =SA34b!J103 -> 0 | K54: =SA34b!K103 -> 0
A55: Revenue Generating | C55: =SA34b!C111 -> 0 | D55: =SA34b!D111 -> 0 | E55: =SA34b!E111 -> 0 | F55: =SA34b!F111 -> 0 | G55: =SA34b!G111 -> 0 | H55: =SA34b!H111 -> 0 | I55: =SA34b!I111 -> 0 | J55: =SA34b!J111 -> 0 | K55: =SA34b!K111 -> 0
A56: Non-revenue Generating | C56: =SA34b!C114 -> 0 | D56: =SA34b!D114 -> 0 | E56: =SA34b!E114 -> 0 | F56: =SA34b!F114 -> 0 | G56: =SA34b!G114 -> 0 | H56: =SA34b!H114 -> 0 | I56: =SA34b!I114 -> 0 | J56: =SA34b!J114 -> 0 | K56: =SA34b!K114 -> 0
A57: Investment properties | C57: =SUM(C55:C56) -> 0 | D57: =SUM(D55:D56) -> 0 | E57: 0 | F57: 0 | G57: 0 | H57: 0 | I57: 0 | J57: 0 | K57: 0
A58: Operational Buildings | C58: =SA34b!C119 -> 0 | D58: =SA34b!D119 -> 0 | E58: =SA34b!E119 -> 0 | F58: =SA34b!F119 -> 0 | G58: =SA34b!G119 -> 0 | H58: =SA34b!H119 -> 0 | I58: =SA34b!I119 -> 0 | J58: =SA34b!J119 -> 0 | K58: =SA34b!K119 -> 0
A59: Housing | C59: =SA34b!C131 -> 0 | D59: =SA34b!D131 -> 0 | E59: =SA34b!E131 -> 0 | F59: =SA34b!F131 -> 0 | G59: =SA34b!G131 -> 0 | H59: =SA34b!H131 -> 0 | I59: =SA34b!I131 -> 0 | J59: =SA34b!J131 -> 0 | K59: =SA34b!K131 -> 0
A60: Other Assets | C60: =SUM(C58:C59) -> 0 | D60: =SUM(D58:D59) -> 0 | E60: 0 | F60: 0 | G60: 0 | H60: 0 | I60: 0 | J60: 0 | K60: 0
A61: Biological or Cultivated Assets | C61: =SA34b!C136 -> 0 | D61: =SA34b!D136 -> 0 | E61: =SA34b!E136 -> 0 | F61: =SA34b!F136 -> 0 | G61: =SA34b!G136 -> 0 | H61: =SA34b!H136 -> 0 | I61: =SA34b!I136 -> 0 | J61: =SA34b!J136 -> 0 | K61: =SA34b!K136 -> 0
A62: Servitudes | C62: =SA34b!C140 -> 0 | D62: =SA34b!D140 -> 0 | E62: =SA34b!E140 -> 0 | F62: =SA34b!F140 -> 0 | G62: =SA34b!G140 -> 0 | H62: =SA34b!H140 -> 0 | I62: =SA34b!I140 -> 0 | J62: =SA34b!J140 -> 0 | K62: =SA34b!K140 -> 0
A63: Licences and Rights | C63: =SA34b!C141 -> 0 | D63: =SA34b!D141 -> 0 | E63: =SA34b!E141 -> 0 | F63: =SA34b!F141 -> 0 | G63: =SA34b!G141 -> 0 | H63: =SA34b!H141 -> 0 | I63: =SA34b!I141 -> 0 | J63: =SA34b!J141 -> 0 | K63: =SA34b!K141 -> 0
A64: Intangible Assets | C64: =SUM(C62:C63) -> 0 | D64: =SUM(D62:D63) -> 0 | E64: 0 | F64: 0 | G64: 0 | H64: 0 | I64: 0 | J64: 0 | K64: 0
A65: Computer Equipment | C65: =SA34b!C149 -> 0 | D65: =SA34b!D149 -> 0 | E65: =SA34b!E149 -> 0 | F65: =SA34b!F149 -> 0 | G65: =SA34b!G149 -> 0 | H65: =SA34b!H149 -> 0 | I65: =SA34b!I149 -> 0 | J65: =SA34b!J149 -> 0 | K65: =SA34b!K149 -> 0
A66: Furniture and Office Equipment | C66: =SA34b!C152 -> 0 | D66: =SA34b!D152 -> 0 | E66: =SA34b!E152 -> 0 | F66: =SA34b!F152 -> 0 | G66: =SA34b!G152 -> 0 | H66: =SA34b!H152 -> 0 | I66: =SA34b!I152 -> 0 | J66: =SA34b!J152 -> 0 | K66: =SA34b!K152 -> 0
A67: Machinery and Equipment | C67: =SA34b!C155 -> 0 | D67: =SA34b!D155 -> 0 | E67: =SA34b!E155 -> 0 | F67: =SA34b!F155 -> 0 | G67: =SA34b!G155 -> 0 | H67: =SA34b!H155 -> 0 | I67: =SA34b!I155 -> 0 | J67: =SA34b!J155 -> 0 | K67: =SA34b!K155 -> 0
A68: Transport Assets | C68: =SA34b!C158 -> 0 | D68: =SA34b!D158 -> 0 | E68: =SA34b!E158 -> 0 | F68: =SA34b!F158 -> 0 | G68: =SA34b!G158 -> 0 | H68: =SA34b!H158 -> 0 | I68: =SA34b!I158 -> 0 | J68: =SA34b!J158 -> 0 | K68: =SA34b!K158 -> 0
A69: Land | C69: =SA34b!C161 -> 0 | D69: =SA34b!D161 -> 0 | E69: =SA34b!E161 -> 0 | F69: =SA34b!F161 -> 0 | G69: =SA34b!G161 -> 0 | H69: =SA34b!H161 -> 0 | I69: =SA34b!I161 -> 0 | J69: =SA34b!J161 -> 0 | K69: =SA34b!K161 -> 0
A70: Zoo's, Marine and Non-biological Animals | C70: =SA34b!C164 -> 0 | D70: =SA34b!D164 -> 0 | E70: =SA34b!E164 -> 0 | F70: =SA34b!F164 -> 0 | G70: =SA34b!G164 -> 0 | H70: =SA34b!H164 -> 0 | I70: =SA34b!I164 -> 0 | J70: =SA34b!J164 -> 0 | K70: =SA34b!K164 -> 0
A71: Mature | C71: =SA34b!C168 -> 0 | D71: =SA34b!D168 -> 0 | E71: =SA34b!E168 -> 0 | F71: =SA34b!F168 -> 0 | G71: =SA34b!G168 -> 0 | H71: =SA34b!H168 -> 0 | I71: =SA34b!I168 -> 0 | J71: =SA34b!J168 -> 0 | K71: =SA34b!K168 -> 0
A72: Immature | C72: =SA34b!C171 -> 0 | D72: =SA34b!D171 -> 0 | E72: =SA34b!E171 -> 0 | F72: =SA34b!F171 -> 0 | G72: =SA34b!G171 -> 0 | H72: =SA34b!H171 -> 0 | I72: =SA34b!I171 -> 0 | J72: =SA34b!J171 -> 0 | K72: =SA34b!K171 -> 0
A73: Living Resources | C73: =SUM(C71:C72) -> 0 | D73: 0 | E73: 0 | F73: 0 | G73: 0 | H73: 0 | I73: 0 | J73: 0 | K73: 0
A75: Total Upgrading of Existing Assets | B75: 6 | C75: =C85+C88+C89+C92+C95+C96+SUM(C99:C105)+C108 -> 6125942.09 | D75: =D85+D88+D89+D92+D95+D96+SUM(D99:D105)+D108 -> 13678068.43 | E75: 5887196.68 | F75: 11417870 | G75: 25422550 | H75: 25422550 | I75: 17487544 | J75: 10000000 | K75: 12476053
A76: Roads Infrastructure | C76: =SA34e!C7 -> 0 | D76: =SA34e!D7 -> 0 | E76: =SA34e!E7 -> 0 | F76: =SA34e!F7 -> 0 | G76: =SA34e!G7 -> 0 | H76: =SA34e!H7 -> 0 | I76: =SA34e!I7 -> 0 | J76: =SA34e!J7 -> 0 | K76: =SA34e!K7 -> 0
A77: Storm water Infrastructure | C77: =SA34e!C12 -> 0 | D77: =SA34e!D12 -> 0 | E77: =SA34e!E12 -> 0 | F77: =SA34e!F12 -> 0 | G77: =SA34e!G12 -> 0 | H77: =SA34e!H12 -> 0 | I77: =SA34e!I12 -> 0 | J77: =SA34e!J12 -> 0 | K77: =SA34e!K12 -> 0
A78: Electrical Infrastructure | C78: =SA34e!C16 -> 0 | D78: =SA34e!D16 -> 0 | E78: =SA34e!E16 -> 0 | F78: =SA34e!F16 -> 0 | G78: =SA34e!G16 -> 0 | H78: =SA34e!H16 -> 0 | I78: =SA34e!I16 -> 0 | J78: =SA34e!J16 -> 0 | K78: =SA34e!K16 -> 0
A79: Water Supply Infrastructure | C79: =SA34e!C26 -> 0 | D79: =SA34e!D26 -> 0 | E79: =SA34e!E26 -> 1542160.19 | F79: =SA34e!F26 -> 11417870 | G79: =SA34e!G26 -> 20655202 | H79: =SA34e!H26 -> 20655202 | I79: =SA34e!I26 -> 12500000 | J79: =SA34e!J26 -> 0 | K79: =SA34e!K26 -> 12476053
A80: Sanitation Infrastructure | C80: =SA34e!C37 -> -0.51 | D80: =SA34e!D37 -> 0 | E80: =SA34e!E37 -> 0 | F80: =SA34e!F37 -> 0 | G80: =SA34e!G37 -> 0 | H80: =SA34e!H37 -> 0 | I80: =SA34e!I37 -> 0 | J80: =SA34e!J37 -> 0 | K80: =SA34e!K37 -> 0
A81: Solid Waste Infrastructure | C81: =SA34e!C44 -> 0 | D81: =SA34e!D44 -> 0 | E81: =SA34e!E44 -> 0 | F81: =SA34e!F44 -> 0 | G81: =SA34e!G44 -> 0 | H81: =SA34e!H44 -> 0 | I81: =SA34e!I44 -> 0 | J81: =SA34e!J44 -> 0 | K81: =SA34e!K44 -> 0
A82: Rail Infrastructure | C82: =SA34e!C52 -> 0 | D82: =SA34e!D52 -> 0 | E82: =SA34e!E52 -> 0 | F82: =SA34e!F52 -> 0 | G82: =SA34e!G52 -> 0 | H82: =SA34e!H52 -> 0 | I82: =SA34e!I52 -> 0 | J82: =SA34e!J52 -> 0 | K82: =SA34e!K52 -> 0
A83: Coastal Infrastructure | C83: =SA34e!C62 -> 0 | D83: =SA34e!D62 -> 0 | E83: =SA34e!E62 -> 0 | F83: =SA34e!F62 -> 0 | G83: =SA34e!G62 -> 0 | H83: =SA34e!H62 -> 0 | I83: =SA34e!I62 -> 0 | J83: =SA34e!J62 -> 0 | K83: =SA34e!K62 -> 0
A84: Information and Communication Infrastructure | C84: =SA34e!C68 -> 0 | D84: =SA34e!D68 -> 0 | E84: =SA34e!E68 -> 0 | F84: =SA34e!F68 -> 0 | G84: =SA34e!G68 -> 0 | H84: =SA34e!H68 -> 0 | I84: =SA34e!I68 -> 0 | J84: =SA34e!J68 -> 0 | K84: =SA34e!K68 -> 0
A85: Infrastructure | C85: =SUM(C76:C84) -> -0.51 | D85: 0 | E85: 1542160.19 | F85: 11417870 | G85: 20655202 | H85: 20655202 | I85: 12500000 | J85: 0 | K85: 12476053
A86: Community Facilities | C86: =SA34e!C75 -> 6125942.6 | D86: =SA34e!D75 -> 13678068.43 | E86: =SA34e!E75 -> 4345036.49 | F86: =SA34e!F75 -> 0 | G86: =SA34e!G75 -> 3067348 | H86: =SA34e!H75 -> 3067348 | I86: =SA34e!I75 -> 4987544 | J86: =SA34e!J75 -> 10000000 | K86: =SA34e!K75 -> 0
A87: Sport and Recreation Facilities | C87: =SA34e!C98 -> 0 | D87: =SA34e!D98 -> 0 | E87: =SA34e!E98 -> 0 | F87: =SA34e!F98 -> 0 | G87: =SA34e!G98 -> 0 | H87: =SA34e!H98 -> 0 | I87: =SA34e!I98 -> 0 | J87: =SA34e!J98 -> 0 | K87: =SA34e!K98 -> 0
A88: Community Assets | C88: =SUM(C86:C87) -> 6125942.6 | D88: 13678068.43 | E88: 4345036.49 | F88: 0 | G88: 3067348 | H88: 3067348 | I88: 4987544 | J88: 10000000 | K88: 0
A89: Heritage Assets | C89: =SA34e!C103 -> 0 | D89: =SA34e!D103 -> 0 | E89: =SA34e!E103 -> 0 | F89: =SA34e!F103 -> 0 | G89: =SA34e!G103 -> 0 | H89: =SA34e!H103 -> 0 | I89: =SA34e!I103 -> 0 | J89: =SA34e!J103 -> 0 | K89: =SA34e!K103 -> 0
A90: Revenue Generating | C90: =SA34e!C111 -> 0 | D90: =SA34e!D111 -> 0 | E90: =SA34e!E111 -> 0 | F90: =SA34e!F111 -> 0 | G90: =SA34e!G111 -> 0 | H90: =SA34e!H111 -> 0 | I90: =SA34e!I111 -> 0 | J90: =SA34e!J111 -> 0 | K90: =SA34e!K111 -> 0
A91: Non-revenue Generating | C91: =SA34e!C114 -> 0 | D91: =SA34e!D114 -> 0 | E91: =SA34e!E114 -> 0 | F91: =SA34e!F114 -> 0 | G91: =SA34e!G114 -> 0 | H91: =SA34e!H114 -> 0 | I91: =SA34e!I114 -> 0 | J91: =SA34e!J114 -> 0 | K91: =SA34e!K114 -> 0
A92: Investment properties | C92: =SUM(C90:C91) -> 0 | D92: 0 | E92: 0 | F92: 0 | G92: 0 | H92: 0 | I92: 0 | J92: 0 | K92: 0
A93: Operational Buildings | C93: =SA34e!C119 -> 0 | D93: =SA34e!D119 -> 0 | E93: =SA34e!E119 -> 0 | F93: =SA34e!F119 -> 0 | G93: =SA34e!G119 -> 1700000 | H93: =SA34e!H119 -> 1700000 | I93: =SA34e!I119 -> 0 | J93: =SA34e!J119 -> 0 | K93: =SA34e!K119 -> 0
A94: Housing | C94: =SA34e!C131 -> 0 | D94: =SA34e!D131 -> 0 | E94: =SA34e!E131 -> 0 | F94: =SA34e!F131 -> 0 | G94: =SA34e!G131 -> 0 | H94: =SA34e!H131 -> 0 | I94: =SA34e!I131 -> 0 | J94: =SA34e!J131 -> 0 | K94: =SA34e!K131 -> 0
A95: Other Assets | C95: =SUM(C93:C94) -> 0 | D95: 0 | E95: 0 | F95: 0 | G95: 1700000 | H95: 1700000 | I95: 0 | J95: 0 | K95: 0
A96: Biological or Cultivated Assets | C96: =SA34e!C136 -> 0 | D96: =SA34e!D136 -> 0 | E96: =SA34e!E136 -> 0 | F96: =SA34e!F136 -> 0 | G96: =SA34e!G136 -> 0 | H96: =SA34e!H136 -> 0 | I96: =SA34e!I136 -> 0 | J96: =SA34e!J136 -> 0 | K96: =SA34e!K136 -> 0
A97: Servitudes | C97: =SA34e!C140 -> 0 | D97: =SA34e!D140 -> 0 | E97: =SA34e!E140 -> 0 | F97: =SA34e!F140 -> 0 | G97: =SA34e!G140 -> 0 | H97: =SA34e!H140 -> 0 | I97: =SA34e!I140 -> 0 | J97: =SA34e!J140 -> 0 | K97: =SA34e!K140 -> 0
A98: Licences and Rights | C98: =SA34e!C141 -> 0 | D98: =SA34e!D141 -> 0 | E98: =SA34e!E141 -> 0 | F98: =SA34e!F141 -> 0 | G98: =SA34e!G141 -> 0 | H98: =SA34e!H141 -> 0 | I98: =SA34e!I141 -> 0 | J98: =SA34e!J141 -> 0 | K98: =SA34e!K141 -> 0
A99: Intangible Assets | C99: =SUM(C97:C98) -> 0 | D99: 0 | E99: 0 | F99: 0 | G99: 0 | H99: 0 | I99: 0 | J99: 0 | K99: 0
A100: Computer Equipment | C100: =SA34e!C149 -> 0 | D100: =SA34e!D149 -> 0 | E100: =SA34e!E149 -> 0 | F100: =SA34e!F149 -> 0 | G100: =SA34e!G149 -> 0 | H100: =SA34e!H149 -> 0 | I100: =SA34e!I149 -> 0 | J100: =SA34e!J149 -> 0 | K100: =SA34e!K149 -> 0
A101: Furniture and Office Equipment | C101: =SA34e!C152 -> 0 | D101: =SA34e!D152 -> 0 | E101: =SA34e!E152 -> 0 | F101: =SA34e!F152 -> 0 | G101: =SA34e!G152 -> 0 | H101: =SA34e!H152 -> 0 | I101: =SA34e!I152 -> 0 | J101: =SA34e!J152 -> 0 | K101: =SA34e!K152 -> 0
A102: Machinery and Equipment | C102: =SA34e!C155 -> 0 | D102: =SA34e!D155 -> 0 | E102: =SA34e!E155 -> 0 | F102: =SA34e!F155 -> 0 | G102: =SA34e!G155 -> 0 | H102: =SA34e!H155 -> 0 | I102: =SA34e!I155 -> 0 | J102: =SA34e!J155 -> 0 | K102: =SA34e!K155 -> 0
A103: Transport Assets | C103: =SA34e!C158 -> 0 | D103: =SA34e!D158 -> 0 | E103: =SA34e!E158 -> 0 | F103: =SA34e!F158 -> 0 | G103: =SA34e!G158 -> 0 | H103: =SA34e!H158 -> 0 | I103: =SA34e!I158 -> 0 | J103: =SA34e!J158 -> 0 | K103: =SA34e!K158 -> 0
A104: Land | C104: =SA34e!C161 -> 0 | D104: =SA34e!D161 -> 0 | E104: =SA34e!E161 -> 0 | F104: =SA34e!F161 -> 0 | G104: =SA34e!G161 -> 0 | H104: =SA34e!H161 -> 0 | I104: =SA34e!I161 -> 0 | J104: =SA34e!J161 -> 0 | K104: =SA34e!K161 -> 0
A105: Zoo's, Marine and Non-biological Animals | C105: =SA34e!C164 -> 0 | D105: =SA34e!D164 -> 0 | E105: =SA34e!E164 -> 0 | F105: =SA34e!F164 -> 0 | G105: =SA34e!G164 -> 0 | H105: =SA34e!H164 -> 0 | I105: =SA34e!I164 -> 0 | J105: =SA34e!J164 -> 0 | K105: =SA34e!K164 -> 0
A106: Mature | C106: =SA34e!C168 -> 0 | D106: =SA34e!D168 -> 0 | E106: =SA34e!E168 -> 0 | F106: =SA34e!F168 -> 0 | G106: =SA34e!G168 -> 0 | H106: =SA34e!H168 -> 0 | I106: =SA34e!I168 -> 0 | J106: =SA34e!J168 -> 0 | K106: =SA34e!K168 -> 0
A107: Immature | C107: =SA34b!C171 -> 0 | D107: =SA34b!D171 -> 0 | E107: =SA34b!E171 -> 0 | F107: =SA34b!F171 -> 0 | G107: =SA34b!G171 -> 0 | H107: =SA34b!H171 -> 0 | I107: =SA34b!I171 -> 0 | J107: =SA34b!J171 -> 0 | K107: =SA34b!K171 -> 0
A108: Living Resources | C108: =SUM(C106:C107) -> 0 | D108: =SUM(D106:D107) -> 0 | E108: 0 | F108: 0 | G108: 0 | H108: 0 | I108: 0 | J108: 0 | K108: 0
A110: Total Capital Expenditure | B110: 4 | C110: =+C5+C40+C75 -> 191472532.2 | D110: =+D5+D40+D75 -> 152540817.6 | E110: 83951958.14 | F110: 231469401 | G110: 216856548 | H110: 216856548 | I110: 236249799 | J110: 197524000 | K110: 225286999
A111: Roads Infrastructure | C111: =+C6+C41+C76 -> 49599701.43 | D111: 50195002.81 | E111: 23808362.07 | F111: 43684516 | G111: 40631041 | H111: 40631041 | I111: 12801949 | J111: 15730798 | K111: 39608740
A112: Storm water Infrastructure | C112: =+C7+C42+C77 -> 0 | D112: 0 | E112: 0 | F112: 0 | G112: 0 | H112: 0 | I112: 0 | J112: 0 | K112: 0
A113: Electrical Infrastructure | C113: =+C8+C43+C78 -> 50705471.25 | D113: 20537556.77 | E113: 33033158.22 | F113: 19406177 | G113: 19636903 | H113: 19636903 | I113: 5112652 | J113: 12918203 | K113: 14877305
A114: Water Supply Infrastructure | C114: =+C9+C44+C79 -> 34144823.77 | D114: 28398307.77 | E114: 9728339.84 | F114: 56892668 | G114: 60297471 | H114: 60297471 | I114: 35467749 | J114: 11270449 | K114: 53097303
A115: Sanitation Infrastructure | C115: =+C10+C45+C80 -> 38703422.66 | D115: 14341581.94 | E115: 6583677.91 | F115: 53671952 | G115: 20567943 | H115: 20567943 | I115: 74012454 | J115: 98000000 | K115: 117703651
A116: Solid Waste Infrastructure | C116: =+C11+C46+C81 -> 0 | D116: 0 | E116: 3496357.41 | F116: 35471188 | G116: 24059237 | H116: 24059237 | I116: 38773866 | J116: 16000000 | K116: 0
A117: Rail Infrastructure | C117: =+C12+C47+C82 -> 0 | D117: 0 | E117: 0 | F117: 0 | G117: 0 | H117: 0 | I117: 0 | J117: 0 | K117: 0
A118: Coastal Infrastructure | C118: =+C13+C48+C83 -> 0 | D118: 0 | E118: 0 | F118: 0 | G118: 0 | H118: 0 | I118: 0 | J118: 0 | K118: 0
A119: Information and Communication Infrastructure | C119: =+C14+C49+C84 -> 0 | D119: 0 | E119: 0 | F119: 0 | G119: 0 | H119: 0 | I119: 0 | J119: 0 | K119: 0
A120: Infrastructure | C120: =SUM(C111:C119) -> 173153419.1 | D120: =SUM(D111:D119) -> 113472449.3 | E120: 76649895.45 | F120: 209126501 | G120: 165192595 | H120: 165192595 | I120: 166168670 | J120: 153919450 | K120: 225286999
A121: Community Facilities | C121: =+C16+C51+C86 -> 6125942.6 | D121: 13678068.43 | E121: 4345036.49 | F121: 0 | G121: 3067348 | H121: 3067348 | I121: 4987544 | J121: 10000000 | K121: 0
A122: Sport and Recreation Facilities | C122: =+C17+C52+C87 -> 12193170.53 | D122: 25390299.85 | E122: 2949852.28 | F122: 7000000 | G122: 8906488 | H122: 8906488 | I122: 15093585 | J122: 20604550 | K122: 0
A123: Community Assets | C123: =SUM(C121:C122) -> 18319113.13 | D123: =SUM(D121:D122) -> 39068368.28 | E123: 7294888.77 | F123: 7000000 | G123: 11973836 | H123: 11973836 | I123: 20081129 | J123: 30604550 | K123: 0
A124: Heritage Assets | C124: =+C19+C54+C89 -> 0 | D124: 0 | E124: 0 | F124: 0 | G124: 0 | H124: 0 | I124: 0 | J124: 0 | K124: 0
A125: Revenue Generating | C125: =+C20+C55+C90 -> 0 | D125: 0 | E125: 0 | F125: 0 | G125: 0 | H125: 0 | I125: 0 | J125: 0 | K125: 0
A126: Non-revenue Generating | C126: =+C21+C56+C91 -> 0 | D126: 0 | E126: 0 | F126: 0 | G126: 0 | H126: 0 | I126: 0 | J126: 0 | K126: 0
A127: Investment properties | C127: =SUM(C125:C126) -> 0 | D127: =SUM(D125:D126) -> 0 | E127: 0 | F127: 0 | G127: 0 | H127: 0 | I127: 0 | J127: 0 | K127: 0
A128: Operational Buildings | C128: =+C23+C58+C93 -> 0 | D128: 0 | E128: 0 | F128: 0 | G128: 1700000 | H128: 1700000 | I128: 0 | J128: 0 | K128: 0
A129: Housing | C129: =+C24+C59+C94 -> 0 | D129: 0 | E129: 0 | F129: 0 | G129: 0 | H129: 0 | I129: 0 | J129: 0 | K129: 0
A130: Other Assets | C130: =SUM(C128:C129) -> 0 | D130: 0 | E130: 0 | F130: 0 | G130: 1700000 | H130: 1700000 | I130: 0 | J130: 0 | K130: 0
A131: Biological or Cultivated Assets | C131: =+C26+C61+C96 -> 0 | D131: 0 | E131: 0 | F131: 0 | G131: 0 | H131: 0 | I131: 0 | J131: 0 | K131: 0
A132: Servitudes | C132: =+C27+C62+C97 -> 0 | D132: 0 | E132: 0 | F132: 0 | G132: 0 | H132: 0 | I132: 0 | J132: 0 | K132: 0
A133: Licences and Rights | C133: =+C28+C63+C98 -> 0 | D133: 0 | E133: 0 | F133: 0 | G133: 0 | H133: 0 | I133: 0 | J133: 0 | K133: 0
A134: Intangible Assets | C134: =SUM(C132:C133) -> 0 | D134: =SUM(D132:D133) -> 0 | E134: 0 | F134: 0 | G134: 0 | H134: 0 | I134: 0 | J134: 0 | K134: 0
A135: Computer Equipment | C135: =+C30+C65+C100 -> 0 | D135: 0 | E135: 0 | F135: 8000000 | G135: 5600000 | H135: 5600000 | I135: 3000000 | J135: 0 | K135: 0
A136: Furniture and Office Equipment | C136: =+C31+C66+C101 -> 0 | D136: 0 | E136: 0.01 | F136: 1800000 | G136: 800000 | H136: 800000 | I136: 2000000 | J136: 0 | K136: 0
A137: Machinery and Equipment | C137: =+C32+C67+C102 -> 0 | D137: 0 | E137: 0 | F137: 1000000 | G137: 500000 | H137: 500000 | I137: 5000000 | J137: 0 | K137: 0
A138: Transport Assets | C138: =+C33+C68+C103 -> 0 | D138: 0 | E138: 7173.91 | F138: 4542900 | G138: 31090117 | H138: 31090117 | I138: 40000000 | J138: 13000000 | K138: 0
A139: Land | C139: =+C34+C69+C104 -> 0 | D139: 0 | E139: 0 | F139: 0 | G139: 0 | H139: 0 | I139: 0 | J139: 0 | K139: 0
A140: Zoo's, Marine and Non-biological Animals | C140: =+C35+C70+C105 -> 0 | D140: 0 | E140: 0 | F140: 0 | G140: 0 | H140: 0 | I140: 0 | J140: 0 | K140: 0
A141: Mature | C141: =+C36+C71+C106 -> 0 | D141: =+D36+D71+D106 -> 0 | E141: 0 | F141: 0 | G141: 0 | H141: 0 | I141: 0 | J141: 0 | K141: 0
A142: Immature | C142: =+C37+C72+C107 -> 0 | D142: =+D37+D72+D107 -> 0 | E142: 0 | F142: 0 | G142: 0 | H142: 0 | I142: 0 | J142: 0 | K142: 0
A143: Living Resources | C143: =SUM(C141:C142) -> 0 | D143: 0 | E143: 0 | F143: 0 | G143: 0 | H143: 0 | I143: 0 | J143: 0 | K143: 0
A144: TOTAL CAPITAL EXPENDITURE - Asset class | C144: =+C5+C40+C75 -> 191472532.2 | D144: =+D5+D40+D75 -> 152540817.6 | E144: 83951958.14 | F144: 231469401 | G144: 216856548 | H144: 216856548 | I144: 236249799 | J144: 197524000 | K144: 225286999
A146: ASSET REGISTER SUMMARY - PPE (WDV) | B146: 5 | C146: =C156+C159+C160+C163+C166+C167+C170+C171+C172+C173+C174+C175+C176+C179 -> 5390070361 | D146: =D156+D159+D160+D163+D166+D167+D170+D171+D172+D173+D174+D175+D176+D179 -> 5565160073 | E146: 5453530563 | F146: 4119625279 | G146: 4105012426 | H146: 4105012426 | I146: 3849371866 | J146: 3846777288 | K146: 225286999
A147: Roads Infrastructure | C147: 4058714654 | D147: 4018136575 | E147: 4004323324 | F147: 1410294438 | G147: 1407240963 | H147: 1407240963 | I147: 1416804165 | J147: 1433773037 | K147: 39608740
A148: Storm water Infrastructure | C148: 0 | D148: 0 | E148: 0 | F148: 55937374 | G148: 55937374 | H148: 55937374 | I148: 29498874 | J148: 29793863 | K148: 0
A149: Electrical Infrastructure | C149: -49387219.23 | D149: -81493664.1 | E149: -103098057 | F149: 693996233 | G149: 694226959 | H149: 694226959 | I149: 613687180 | J149: 627578476 | K149: 14877305
A150: Water Supply Infrastructure | C150: 350776250.9 | D150: 462955632.2 | E150: 397382039 | F150: 519054827 | G150: 522459630 | H150: 522459630 | I150: 408693339 | J150: 388228295 | K150: 53097303
A151: Sanitation Infrastructure | C151: 6024295.71 | D151: 21446213.32 | E151: 32781722.29 | F151: 503279937 | G151: 470175928 | H151: 470175928 | I151: 446907712 | J151: 474624211 | K151: 117703651
A152: Solid Waste Infrastructure | C152: 0 | D152: 0 | E152: 4128997.41 | F152: 49760483 | G152: 38348532 | H152: 38348532 | I152: 70857036 | J152: 48404002 | K152: 0
A153: Rail Infrastructure
A154: Coastal Infrastructure
A155: Information and Communication Infrastructure | C155: 0 | D155: 0 | E155: 0 | F155: 3267763 | G155: 3267763 | H155: 3267763 | I155: 2546713 | J155: 2572179 | K155: 0
A156: Infrastructure | C156: =SUM(C147:C155) -> 4366127982 | D156: =SUM(D147:D155) -> 4421044756 | E156: 4335518026 | F156: 3235591055 | G156: 3191657149 | H156: 3191657149 | I156: 2988995019 | J156: 3004974063 | K156: 225286999
A159: Community Assets | C159: 1259727464 | D159: 1321982163 | E159: 1095492431 | F159: 574908200 | G159: 579882036 | H159: 579882036 | I159: 523563873 | J159: 539122121 | K159: 0
A160: Heritage Assets | C160: -567443583.4 | D160: -618226303.5 | E160: -618289947.7 | F160: 9941212 | G160: 9941212 | H160: 9941212 | I160: 9941212 | J160: 10040624 | K160: 0
A163: Investment properties | C163: 256971223.4 | D163: 349864969.4 | E163: 345682384 | F163: 257100275 | G163: 257100275 | H163: 257100275 | I163: 257100275 | J163: 259671278 | K163: 0
A166: Other Assets | C166: 7129230.87 | D166: 5500630.87 | E166: 5500630.87 | F166: 24837962 | G166: 26537962 | H166: 26537962 | I166: 20992362 | J166: 21202286 | K166: 0
A167: Biological or Cultivated Assets
A170: Intangible Assets | C170: 1297383.11 | D170: 1297383.11 | E170: 1297383.11 | F170: 1297383 | G170: 1297383 | H170: 1297383 | I170: 1297383 | J170: 1310357 | K170: 0
A171: Computer Equipment | C171: 12898923.76 | D171: 14335988.97 | E171: 15791608.78 | F171: 8000000 | G171: 5600000 | H171: 5600000 | I171: 3000000 | J171: 0 | K171: 0
A172: Furniture and Office Equipment | C172: 3490869.49 | D172: 2376619.07 | E172: 2859590.29 | F172: 345210 | G172: -654790 | H172: -654790 | I172: -1858290 | J172: -3896873 | K172: 0
A173: Machinery and Equipment | C173: 3267287.37 | D173: 2705606.98 | E173: 4324598.17 | F173: 1065682 | G173: 565682 | H173: 565682 | I173: 4344632 | J173: -661922 | K173: 0
A174: Transport Assets | C174: 44872430.79 | D174: 62246559.62 | E174: 263756658.4 | F174: 4542900 | G174: 31090117 | H174: 31090117 | I174: 40000000 | J174: 13000000 | K174: 0
A175: Land
A176: Zoo's, Marine and Non-biological Animals | C176: 1731150 | D176: 2031699 | E176: 1597200 | F176: 1995400 | G176: 1995400 | H176: 1995400 | I176: 1995400 | J176: 2015354 | K176: 0
A179: Living Resources
A180: TOTAL ASSET REGISTER SUMMARY - PPE (WDV) | B180: 5 | C180: =C156+C159+C160+C163+C166+C167+C170+C171+C172+C173+C174+C175+C176+C179 -> 5390070361 | D180: =D156+D159+D160+D163+D166+D167+D170+D171+D172+D173+D174+D175+D176+D179 -> 5565160073 | E180: 5453530563 | F180: =F156+F159+F160+F163+F166+F167+F170+F171+F172+F173+F174+F175+F176+F179 -> 4119625279 | G180: =G156+G159+G160+G163+G166+G167+G170+G171+G172+G173+G174+G175+G176+G179 -> 4105012426 | H180: 4105012426 | I180: 3849371866 | J180: 3846777288 | K180: 225286999
A182: EXPENDITURE OTHER ITEMS | C182: =SUM(C183:C184) -> 543122190 | D182: =SUM(D183:D184) -> 499099764.6 | E182: 520478728.6 | F182: 718401658 | G182: 726164845 | H182: 726164845 | I182: 675521777 | J182: 822829833 | K182: 816810326
A183: Depreciation | B183: 7 | C183: =SA34d!C175 -> 417553088.7 | D183: =SA34d!D175 -> 383480410.5 | E183: =SA34d!E175 -> 382953200.1 | F183: =SA34d!F175 -> 440000000 | G183: =SA34d!G175 -> 420000000 | H183: =SA34d!H175 -> 420000000 | I183: =SA34d!I175 -> 411097601 | J183: =SA34d!J175 -> 456158103 | K183: =SA34d!K175 -> 477141378
A184: Repairs and Maintenance by Asset Class | B184: 3 | C184: =C194+C197+C198+C201+C204+C205+SUM(C208:C214)+C217 -> 125569101.3 | D184: =D194+D197+D198+D201+D204+D205+SUM(D208:D214)+D217 -> 115619354 | E184: 137525528.5 | F184: 278401658 | G184: 306164845 | H184: 306164845 | I184: 264424176 | J184: 366671730 | K184: 339668948
A185: Roads Infrastructure | C185: =SA34c!C7 -> 6017464.13 | D185: =SA34c!D7 -> 14285794.08 | E185: =SA34c!E7 -> 18695258.99 | F185: =SA34c!F7 -> 56998462 | G185: =SA34c!G7 -> 79791860 | H185: =SA34c!H7 -> 79791860 | I185: =SA34c!I7 -> 63408835 | J185: =SA34c!J7 -> 83145120 | K185: =SA34c!K7 -> 49342575
A186: Storm water Infrastructure | C186: =SA34c!C12 -> 0 | D186: =SA34c!D12 -> 0 | E186: =SA34c!E12 -> 0 | F186: =SA34c!F12 -> 10000000 | G186: =SA34c!G12 -> 10000000 | H186: =SA34c!H12 -> 10000000 | I186: =SA34c!I12 -> 7000000 | J186: =SA34c!J12 -> 10460000 | K186: =SA34c!K12 -> 10941160
A187: Electrical Infrastructure | C187: =SA34c!C16 -> 35985097.88 | D187: =SA34c!D16 -> 45970035.79 | E187: =SA34c!E16 -> 72297087.15 | F187: =SA34c!F16 -> 91719229 | G187: =SA34c!G16 -> 97219229 | H187: =SA34c!H16 -> 97219229 | I187: =SA34c!I16 -> 81994752 | J187: =SA34c!J16 -> 88577527 | K187: =SA34c!K16 -> 143368869
A188: Water Supply Infrastructure | C188: =SA34c!C26 -> 2292288.57 | D188: =SA34c!D26 -> 25145747.03 | E188: =SA34c!E26 -> 11579869.93 | F188: =SA34c!F26 -> 16679185 | G188: =SA34c!G26 -> 19679185 | H188: =SA34c!H26 -> 19679185 | I188: =SA34c!I26 -> 20251065 | J188: =SA34c!J26 -> 21182624 | K188: =SA34c!K26 -> 28479955
A189: Sanitation Infrastructure | C189: =SA34c!C37 -> 1496157.68 | D189: =SA34c!D37 -> 7414535.23 | E189: =SA34c!E37 -> 4090988.87 | F189: =SA34c!F37 -> 21490280 | G189: =SA34c!G37 -> 24489171 | H189: =SA34c!H37 -> 24489171 | I189: =SA34c!I37 -> 22689140 | J189: =SA34c!J37 -> 26870845 | K189: =SA34c!K37 -> 31388523
A190: Solid Waste Infrastructure | C190: =SA34c!C44 -> 0 | D190: =SA34c!D44 -> 0 | E190: =SA34c!E44 -> 0 | F190: =SA34c!F44 -> 0 | G190: =SA34c!G44 -> 0 | H190: =SA34c!H44 -> 0 | I190: =SA34c!I44 -> 0 | J190: =SA34c!J44 -> 0 | K190: =SA34c!K44 -> 0
A191: Rail Infrastructure | C191: =SA34c!C52 -> 0 | D191: =SA34c!D52 -> 0 | E191: =SA34c!E52 -> 0 | F191: =SA34c!F52 -> 0 | G191: =SA34c!G52 -> 0 | H191: =SA34c!H52 -> 0 | I191: =SA34c!I52 -> 0 | J191: =SA34c!J52 -> 0 | K191: =SA34c!K52 -> 0
A192: Coastal Infrastructure | C192: =SA34c!C62 -> 0 | D192: =SA34c!D62 -> 0 | E192: =SA34c!E62 -> 0 | F192: =SA34c!F62 -> 0 | G192: =SA34c!G62 -> 0 | H192: =SA34c!H62 -> 0 | I192: =SA34c!I62 -> 0 | J192: =SA34c!J62 -> 0 | K192: =SA34c!K62 -> 0
A193: Information and Communication Infrastructure | C193: =SA34c!C68 -> 0 | D193: =SA34c!D68 -> 0 | E193: =SA34c!E68 -> 0 | F193: =SA34c!F68 -> 0 | G193: =SA34c!G68 -> 0 | H193: =SA34c!H68 -> 0 | I193: =SA34c!I68 -> 0 | J193: =SA34c!J68 -> 0 | K193: =SA34c!K68 -> 0
A194: Infrastructure | C194: =SUM(C185:C193) -> 45791008.26 | D194: =SUM(D185:D193) -> 92816112.13 | E194: 106663204.9 | F194: 196887156 | G194: 231179445 | H194: 231179445 | I194: 195343792 | J194: 230236116 | K194: 263521082
A195: Community Facilities | C195: =SA34c!C75 -> 648665.47 | D195: =SA34c!D75 -> 414630.11 | E195: =SA34c!E75 -> 3112620.23 | F195: =SA34c!F75 -> 10611544 | G195: =SA34c!G75 -> 11587508 | H195: =SA34c!H75 -> 11587508 | I195: =SA34c!I75 -> 9742645 | J195: =SA34c!J75 -> 10088305 | K195: =SA34c!K75 -> 10476510
